Workbook

Sheet Cover
C2: United Energy
C3: Regulatory proposal 2026-31
C5: =REPLACE(LEFT(_xlfn.TEXTAFTER(CELL("filename")," - ",1),FIND("Jan2025",_xlfn.TEXTAFTER(CELL("filename")," - "),1)-4),1,1,UPPER(LEFT(LEFT(_xlfn.TEXTAFTER(CELL("filename")," - ",1),FIND("Jan2025",_xlfn.TEXTAFTER(CELL("filename")," - "),1)-4),1))) -> Connections
C6: Model number: | D6: =LEFT(_xlfn.TEXTAFTER(CELL("filename")," MOD "),FIND(" - ",_xlfn.TEXTAFTER(CELL("filename")," MOD "),1)-1) -> 6.01
C8: 2025-01-31

Sheet Assumptions
A1: =business -> United Energy
A2: =title -> Connections
A3: Assumptions
B5: Business: | C5: United Energy
B6: Title | C6: Connections
B8: Output dollars | C8: 2026-06-30
B12: Input
B13: Link/Calculated
B16: Forecast | D16: 2025 | G16: =AND(G$19>=$D16, G$19<$D$17) -> FALSE | H16: =AND(H$19>=$D16, H$19<$D$17) -> FALSE | I16: FALSE | J16: FALSE | K16: FALSE | L16: FALSE | M16: FALSE | N16: FALSE | O16: FALSE | P16: FALSE | Q16: FALSE | R16: FALSE | S16: FALSE | T16: TRUE | U16: TRUE | V16: FALSE | W16: FALSE | X16: FALSE | Y16: FALSE | Z16: FALSE
B17: 2025/6 - 2030/31 reg period | D17: 2027 | G17: =AND(G$19>=$D$17, SUM(F$17:F$17)<5) -> FALSE | H17: =AND(H19>=$D$17, SUM(G17:G17)<5) -> FALSE | I17: FALSE | J17: FALSE | K17: FALSE | L17: FALSE | M17: FALSE | N17: FALSE | O17: FALSE | P17: FALSE | Q17: FALSE | R17: FALSE | S17: FALSE | T17: FALSE | U17: FALSE | V17: TRUE | W17: TRUE | X17: TRUE | Y17: TRUE | Z17: TRUE
B18: Forecast period | G18: =OR(G16:G17) -> FALSE | H18: =OR(H16:H17) -> FALSE | I18: FALSE | J18: FALSE | K18: FALSE | L18: FALSE | M18: FALSE | N18: FALSE | O18: FALSE | P18: FALSE | Q18: FALSE | R18: FALSE | S18: FALSE | T18: TRUE | U18: TRUE | V18: TRUE | W18: TRUE | X18: TRUE | Y18: TRUE | Z18: TRUE
B19: Fin year end | G19: 2012 | H19: =G19+1 -> 2013 | I19: 2014 | J19: 2015 | K19: 2016 | L19: 2017 | M19: 2018 | N19: 2019 | O19: 2020 | P19: 2021 | Q19: 2022 | R19: 2023 | S19: 2024 | T19: 2025 | U19: 2026 | V19: 2027 | W19: 2028 | X19: 2029 | Y19: 2030 | Z19: 2031
B20: Basis | G20: Actual | H20: Actual | I20: Actual | J20: Actual | K20: Actual | L20: Actual | M20: Actual | N20: Actual | O20: Actual | P20: Actual | Q20: Actual | R20: Actual | S20: Actual | T20: Forecast | U20: Forecast | V20: Forecast | W20: Forecast | X20: Forecast | Y20: Forecast | Z20: Forecast
G24: =G19-1&"/"&RIGHT(G19,2) -> 2011/12 | H24: =H19-1&"/"&RIGHT(H19,2) -> 2012/13 | I24: 2013/14 | J24: 2014/15 | K24: 2015/16 | L24: 2016/17 | M24: 2017/18 | N24: 2018/19 | O24: 2019/20 | P24: 2020/21 | Q24: 2021/22 | R24: 2022/23 | S24: 2023/24 | T24: 2024/25 | U24: 2025/26 | V24: 2026/27 | W24: 2027/28 | X24: 2028/29 | Y24: 2029/30 | Z24: 2030/31
B25: Inflation conversions
B27: Cumulative escalation
B29: Conversion to June 2026 | D29: 2025/26 | G29: 1.411271192 | H29: 1.383544843 | I29: 1.354277548 | J29: 1.323729934 | K29: 1.304027907 | L29: 1.290819521 | M29: 1.26633243 | N29: 1.240557522 | O29: 1.221106272 | P29: 1.206394148 | Q29: 1.20123639 | R29: 1.175712522 | S29: 1.112912646 | T29: 1.050660525 | U29: 1.014889157 | V29: 0.9870079234 | W29: 0.9615279594 | X29: 0.9367057698 | Y29: 0.9125243739 | Z29: 0.8889672295

Sheet Hist_vol
A1: =Assumptions!$A$1 -> United Energy
A2: =Assumptions!$A$2 -> Connections
A3: Historical volumes
B7: =Assumptions!B17 -> 2025/6 - 2030/31 reg period | G7: =Assumptions!G17 -> FALSE | H7: =Assumptions!H17 -> FALSE | I7: =Assumptions!I17 -> FALSE | J7: =Assumptions!J17 -> FALSE | K7: =Assumptions!K17 -> FALSE | L7: =Assumptions!L17 -> FALSE | M7: =Assumptions!M17 -> FALSE | N7: =Assumptions!N17 -> FALSE | O7: =Assumptions!O17 -> FALSE | P7: =Assumptions!P17 -> FALSE | Q7: =Assumptions!Q17 -> FALSE | R7: =Assumptions!R17 -> FALSE | S7: =Assumptions!S17 -> FALSE | T7: =Assumptions!T17 -> FALSE | U7: =Assumptions!U17 -> FALSE | V7: =Assumptions!V17 -> TRUE | W7: =Assumptions!W17 -> TRUE | X7: =Assumptions!X17 -> TRUE | Y7: =Assumptions!Y17 -> TRUE | Z7: =Assumptions!Z17 -> TRUE
B8: =Assumptions!B18 -> Forecast period | G8: =Assumptions!G18 -> FALSE | H8: =Assumptions!H18 -> FALSE | I8: =Assumptions!I18 -> FALSE | J8: =Assumptions!J18 -> FALSE | K8: =Assumptions!K18 -> FALSE | L8: =Assumptions!L18 -> FALSE | M8: =Assumptions!M18 -> FALSE | N8: =Assumptions!N18 -> FALSE | O8: =Assumptions!O18 -> FALSE | P8: =Assumptions!P18 -> FALSE | Q8: =Assumptions!Q18 -> FALSE | R8: =Assumptions!R18 -> FALSE | S8: =Assumptions!S18 -> FALSE | T8: =Assumptions!T18 -> TRUE | U8: =Assumptions!U18 -> TRUE | V8: =Assumptions!V18 -> TRUE | W8: =Assumptions!W18 -> TRUE | X8: =Assumptions!X18 -> TRUE | Y8: =Assumptions!Y18 -> TRUE | Z8: =Assumptions!Z18 -> TRUE
B9: =Assumptions!B19 -> Fin year end | G9: =Assumptions!G19 -> 2012 | H9: =Assumptions!H19 -> 2013 | I9: =Assumptions!I19 -> 2014 | J9: =Assumptions!J19 -> 2015 | K9: =Assumptions!K19 -> 2016 | L9: =Assumptions!L19 -> 2017 | M9: =Assumptions!M19 -> 2018 | N9: =Assumptions!N19 -> 2019 | O9: =Assumptions!O19 -> 2020 | P9: =Assumptions!P19 -> 2021 | Q9: =Assumptions!Q19 -> 2022 | R9: =Assumptions!R19 -> 2023 | S9: =Assumptions!S19 -> 2024 | T9: =Assumptions!T19 -> 2025 | U9: =Assumptions!U19 -> 2026 | V9: =Assumptions!V19 -> 2027 | W9: =Assumptions!W19 -> 2028 | X9: =Assumptions!X19 -> 2029 | Y9: =Assumptions!Y19 -> 2030 | Z9: =Assumptions!Z19 -> 2031
B10: =Assumptions!B20 -> Basis | G10: =Assumptions!G20 -> Actual | H10: =Assumptions!H20 -> Actual | I10: =Assumptions!I20 -> Actual | J10: =Assumptions!J20 -> Actual | K10: =Assumptions!K20 -> Actual | L10: =Assumptions!L20 -> Actual | M10: =Assumptions!M20 -> Actual | N10: =Assumptions!N20 -> Actual | O10: =Assumptions!O20 -> Actual | P10: =Assumptions!P20 -> Actual | Q10: =Assumptions!Q20 -> Actual | R10: =Assumptions!R20 -> Actual | S10: =Assumptions!S20 -> Actual | T10: =Assumptions!T20 -> Forecast | U10: =Assumptions!U20 -> Forecast | V10: =Assumptions!V20 -> Forecast | W10: =Assumptions!W20 -> Forecast | X10: =Assumptions!X20 -> Forecast | Y10: =Assumptions!Y20 -> Forecast | Z10: =Assumptions!Z20 -> Forecast
B13: Category | C13: Type | D13: RIN category | E13: Description | G13: =Assumptions!G$24 -> 2011/12 | H13: =Assumptions!H$24 -> 2012/13 | I13: =Assumptions!I$24 -> 2013/14 | J13: =Assumptions!J$24 -> 2014/15 | K13: =Assumptions!K$24 -> 2015/16 | L13: =Assumptions!L$24 -> 2016/17 | M13: =Assumptions!M$24 -> 2017/18 | N13: =Assumptions!N$24 -> 2018/19 | O13: =Assumptions!O$24 -> 2019/20 | P13: =Assumptions!P$24 -> 2020/21 | Q13: =Assumptions!Q$24 -> 2021/22 | R13: =Assumptions!R$24 -> 2022/23 | S13: =Assumptions!S$24 -> 2023/24 | T13: =Assumptions!T$24 -> 2024/25 | U13: =Assumptions!U$24 -> 2025/26 | V13: =Assumptions!V$24 -> 2026/27 | W13: =Assumptions!W$24 -> 2027/28 | X13: =Assumptions!X$24 -> 2028/29 | Y13: =Assumptions!Y$24 -> 2029/30 | Z13: =Assumptions!Z$24 -> 2030/31
B14: Volumes
B15: Connections | C15: R1 | D15: =IF(ISBLANK($C15), "", INDEX(Lists!T$7:T$21, MATCH($C15, Lists!$S$7:$S$21,0))) -> Residential | E15: =IF(ISBLANK($C15), "", INDEX(Lists!U$7:U$21, MATCH($C15, Lists!$S$7:$S$21,0))) -> Simple connection LV | G15: 9659 | H15: 9682.5 | I15: 8873.5 | J15: 9240.167766 | K15: 9806.167766 | L15: 9670.5 | M15: 10237 | N15: 9357.5 | O15: 7441.5 | P15: 5568 | Q15: 5672 | R15: 6355 | S15: 6553
B16: Connections | C16: R2 | D16: =IF(ISBLANK($C16), "", INDEX(Lists!T$7:T$21, MATCH($C16, Lists!$S$7:$S$21,0))) -> Residential | E16: =IF(ISBLANK($C16), "", INDEX(Lists!U$7:U$21, MATCH($C16, Lists!$S$7:$S$21,0))) -> Complex connection LV | G16: 0 | H16: 0 | I16: 0 | J16: 0 | K16: 0 | L16: 0 | M16: 0 | N16: 0 | O16: 0 | P16: 0 | Q16: 0 | R16: 0 | S16: 0
B17: Connections | C17: R3 | D17: =IF(ISBLANK($C17), "", INDEX(Lists!T$7:T$21, MATCH($C17, Lists!$S$7:$S$21,0))) -> Residential | E17: =IF(ISBLANK($C17), "", INDEX(Lists!U$7:U$21, MATCH($C17, Lists!$S$7:$S$21,0))) -> Complex connection HV | G17: 0 | H17: 0 | I17: 0 | J17: 0 | K17: 0 | L17: 0 | M17: 0 | N17: 0 | O17: 0 | P17: 0 | Q17: 0 | R17: 0 | S17: 0
B18: Connections | C18: CI1 | D18: =IF(ISBLANK($C18), "", INDEX(Lists!T$7:T$21, MATCH($C18, Lists!$S$7:$S$21,0))) -> Commercial/Industrial | E18: =IF(ISBLANK($C18), "", INDEX(Lists!U$7:U$21, MATCH($C18, Lists!$S$7:$S$21,0))) -> Simple connection LV | G18: 2603 | H18: 3109.5 | I18: 2298.041534 | J18: 780.115143 | K18: 716.553759 | L18: 888.9801496 | M18: 981.5 | N18: 926 | O18: 822 | P18: 693 | Q18: 634 | R18: 627 | S18: 607
B19: Connections | C19: CI2 | D19: =IF(ISBLANK($C19), "", INDEX(Lists!T$7:T$21, MATCH($C19, Lists!$S$7:$S$21,0))) -> Commercial/Industrial | E19: =IF(ISBLANK($C19), "", INDEX(Lists!U$7:U$21, MATCH($C19, Lists!$S$7:$S$21,0))) -> Complex connection HV (customer connected at LV, minor HV works) | G19: 315.5 | H19: 473.5 | I19: 1207.29992 | J19: 1542.842164 | K19: 1324.246789 | L19: 1413.204545 | M19: 1414 | N19: 1186.5 | O19: 944.5 | P19: 792 | Q19: 827 | R19: 835 | S19: 749
B20: Connections | C20: CI3 | D20: =IF(ISBLANK($C20), "", INDEX(Lists!T$7:T$21, MATCH($C20, Lists!$S$7:$S$21,0))) -> Commercial/Industrial | E20: =IF(ISBLANK($C20), "", INDEX(Lists!U$7:U$21, MATCH($C20, Lists!$S$7:$S$21,0))) -> Complex connection HV (customer connected at LV, upstream asset works) | G20: 3.5 | H20: 1.5 | I20: 5.469249201 | J20: 18.20059161 | K20: 24.99457601 | L20: 19.2632336 | M20: 10.5 | N20: 4.5 | O20: 2 | P20: 0 | Q20: 5 | R20: 2 | S20: 18
B21: Connections | C21: CI4 | D21: =IF(ISBLANK($C21), "", INDEX(Lists!T$7:T$21, MATCH($C21, Lists!$S$7:$S$21,0))) -> Commercial/Industrial | E21: =IF(ISBLANK($C21), "", INDEX(Lists!U$7:U$21, MATCH($C21, Lists!$S$7:$S$21,0))) -> Complex connection HV (customer connected at HV) | G21: 8.5 | H21: 12 | I21: 27.68929712 | J21: 541.6743357 | K21: 1087.03711 | L21: 1241.052071 | M21: 1356 | N21: 1232.5 | O21: 1023.5 | P21: 858 | Q21: 797 | R21: 860 | S21: 684
B22: Connections | C22: CI5 | D22: =IF(ISBLANK($C22), "", INDEX(Lists!T$7:T$21, MATCH($C22, Lists!$S$7:$S$21,0))) -> Commercial/Industrial | E22: =IF(ISBLANK($C22), "", INDEX(Lists!U$7:U$21, MATCH($C22, Lists!$S$7:$S$21,0))) -> Complex connection sub-transmission | G22: 0 | H22: 0 | I22: 0 | J22: 0 | K22: 0 | L22: 0 | M22: 0 | N22: 0 | O22: 0 | P22: 0 | Q22: 9 | R22: 27 | S22: 47
B23: Connections | C23: S1 | D23: =IF(ISBLANK($C23), "", INDEX(Lists!T$7:T$21, MATCH($C23, Lists!$S$7:$S$21,0))) -> Subdivision | E23: =IF(ISBLANK($C23), "", INDEX(Lists!U$7:U$21, MATCH($C23, Lists!$S$7:$S$21,0))) -> Complex connection LV | G23: 102.5 | H23: 163.5 | I23: 249 | J23: 301 | K23: 898 | L23: 1272.5 | M23: 581.5 | N23: 604 | O23: 762.5 | P23: 685 | Q23: 492 | R23: 700 | S23: 340
B24: Connections | C24: S2 | D24: =IF(ISBLANK($C24), "", INDEX(Lists!T$7:T$21, MATCH($C24, Lists!$S$7:$S$21,0))) -> Subdivision | E24: =IF(ISBLANK($C24), "", INDEX(Lists!U$7:U$21, MATCH($C24, Lists!$S$7:$S$21,0))) -> Complex connection HV (no upstream asset works) | G24: 32.5 | H24: 43.5 | I24: 63 | J24: 70 | K24: 109.5 | L24: 93 | M24: 203 | N24: 351 | O24: 632.5 | P24: 1109 | Q24: 476 | R24: 644 | S24: 83
B25: Connections | C25: S3 | D25: =IF(ISBLANK($C25), "", INDEX(Lists!T$7:T$21, MATCH($C25, Lists!$S$7:$S$21,0))) -> Subdivision | E25: =IF(ISBLANK($C25), "", INDEX(Lists!U$7:U$21, MATCH($C25, Lists!$S$7:$S$21,0))) -> Complex connection HV (with upstream asset works) | G25: 0 | H25: 0 | I25: 0 | J25: 0 | K25: 0 | L25: 0.5 | M25: 16.5 | N25: 16 | O25: 0 | P25: 0 | Q25: 0 | R25: 0 | S25: 0
B26: Connections | C26: EG1 | D26: =IF(ISBLANK($C26), "", INDEX(Lists!T$7:T$21, MATCH($C26, Lists!$S$7:$S$21,0))) -> Embedded generation | E26: =IF(ISBLANK($C26), "", INDEX(Lists!U$7:U$21, MATCH($C26, Lists!$S$7:$S$21,0))) -> Simple connection LV | G26: 11674.5 | H26: 7420 | I26: 3143.5 | J26: 5632 | K26: 6484.5 | L26: 4168 | M26: 5570.5 | N26: 3383.5 | O26: 0 | P26: 0 | Q26: 10157 | R26: 12070 | S26: 0
B27: Connections | C27: EG2 | D27: =IF(ISBLANK($C27), "", INDEX(Lists!T$7:T$21, MATCH($C27, Lists!$S$7:$S$21,0))) -> Embedded generation | E27: =IF(ISBLANK($C27), "", INDEX(Lists!U$7:U$21, MATCH($C27, Lists!$S$7:$S$21,0))) -> Complex connection HV (small capacity) | G27: 0 | H27: 0 | I27: 0 | J27: 0 | K27: 0 | L27: 0 | M27: 0 | N27: 0 | O27: 0 | P27: 0 | Q27: 0 | R27: 0 | S27: 0
B28: Connections | C28: EG3 | D28: =IF(ISBLANK($C28), "", INDEX(Lists!T$7:T$21, MATCH($C28, Lists!$S$7:$S$21,0))) -> Embedded generation | E28: =IF(ISBLANK($C28), "", INDEX(Lists!U$7:U$21, MATCH($C28, Lists!$S$7:$S$21,0))) -> Complex connection HV (large capacity) | G28: 0 | H28: 1 | I28: 1 | J28: 0 | K28: 0 | L28: 0 | M28: 0 | N28: 0 | O28: 0 | P28: 0 | Q28: 0 | R28: 0 | S28: 0

Sheet Hist_expenditure
A1: =Assumptions!$A$1 -> United Energy
A2: =Assumptions!$A$2 -> Connections
A3: Historical expenditure (nominal)
B7: =Assumptions!B17 -> 2025/6 - 2030/31 reg period | G7: =Assumptions!G17 -> FALSE | H7: =Assumptions!H17 -> FALSE | I7: =Assumptions!I17 -> FALSE | J7: =Assumptions!J17 -> FALSE | K7: =Assumptions!K17 -> FALSE | L7: =Assumptions!L17 -> FALSE | M7: =Assumptions!M17 -> FALSE | N7: =Assumptions!N17 -> FALSE | O7: =Assumptions!O17 -> FALSE | P7: =Assumptions!P17 -> FALSE | Q7: =Assumptions!Q17 -> FALSE | R7: =Assumptions!R17 -> FALSE | S7: =Assumptions!S17 -> FALSE | T7: =Assumptions!T17 -> FALSE | U7: =Assumptions!U17 -> FALSE | V7: =Assumptions!V17 -> TRUE | W7: =Assumptions!W17 -> TRUE | X7: =Assumptions!X17 -> TRUE | Y7: =Assumptions!Y17 -> TRUE | Z7: =Assumptions!Z17 -> TRUE
B8: =Assumptions!B18 -> Forecast period | G8: =Assumptions!G18 -> FALSE | H8: =Assumptions!H18 -> FALSE | I8: =Assumptions!I18 -> FALSE | J8: =Assumptions!J18 -> FALSE | K8: =Assumptions!K18 -> FALSE | L8: =Assumptions!L18 -> FALSE | M8: =Assumptions!M18 -> FALSE | N8: =Assumptions!N18 -> FALSE | O8: =Assumptions!O18 -> FALSE | P8: =Assumptions!P18 -> FALSE | Q8: =Assumptions!Q18 -> FALSE | R8: =Assumptions!R18 -> FALSE | S8: =Assumptions!S18 -> FALSE | T8: =Assumptions!T18 -> TRUE | U8: =Assumptions!U18 -> TRUE | V8: =Assumptions!V18 -> TRUE | W8: =Assumptions!W18 -> TRUE | X8: =Assumptions!X18 -> TRUE | Y8: =Assumptions!Y18 -> TRUE | Z8: =Assumptions!Z18 -> TRUE
B9: =Assumptions!B19 -> Fin year end | G9: =Assumptions!G19 -> 2012 | H9: =Assumptions!H19 -> 2013 | I9: =Assumptions!I19 -> 2014 | J9: =Assumptions!J19 -> 2015 | K9: =Assumptions!K19 -> 2016 | L9: =Assumptions!L19 -> 2017 | M9: =Assumptions!M19 -> 2018 | N9: =Assumptions!N19 -> 2019 | O9: =Assumptions!O19 -> 2020 | P9: =Assumptions!P19 -> 2021 | Q9: =Assumptions!Q19 -> 2022 | R9: =Assumptions!R19 -> 2023 | S9: =Assumptions!S19 -> 2024 | T9: =Assumptions!T19 -> 2025 | U9: =Assumptions!U19 -> 2026 | V9: =Assumptions!V19 -> 2027 | W9: =Assumptions!W19 -> 2028 | X9: =Assumptions!X19 -> 2029 | Y9: =Assumptions!Y19 -> 2030 | Z9: =Assumptions!Z19 -> 2031
B10: =Assumptions!B20 -> Basis | G10: =Assumptions!G20 -> Actual | H10: =Assumptions!H20 -> Actual | I10: =Assumptions!I20 -> Actual | J10: =Assumptions!J20 -> Actual | K10: =Assumptions!K20 -> Actual | L10: =Assumptions!L20 -> Actual | M10: =Assumptions!M20 -> Actual | N10: =Assumptions!N20 -> Actual | O10: =Assumptions!O20 -> Actual | P10: =Assumptions!P20 -> Actual | Q10: =Assumptions!Q20 -> Actual | R10: =Assumptions!R20 -> Actual | S10: =Assumptions!S20 -> Actual | T10: =Assumptions!T20 -> Forecast | U10: =Assumptions!U20 -> Forecast | V10: =Assumptions!V20 -> Forecast | W10: =Assumptions!W20 -> Forecast | X10: =Assumptions!X20 -> Forecast | Y10: =Assumptions!Y20 -> Forecast | Z10: =Assumptions!Z20 -> Forecast
B13: =Hist_vol!B$13 -> Category | C13: Type | D13: =Hist_vol!D$13 -> RIN category | E13: =Hist_vol!E$13 -> Description | G13: =Assumptions!G$24 -> 2011/12 | H13: =Assumptions!H$24 -> 2012/13 | I13: =Assumptions!I$24 -> 2013/14 | J13: =Assumptions!J$24 -> 2014/15 | K13: =Assumptions!K$24 -> 2015/16 | L13: =Assumptions!L$24 -> 2016/17 | M13: =Assumptions!M$24 -> 2017/18 | N13: =Assumptions!N$24 -> 2018/19 | O13: =Assumptions!O$24 -> 2019/20 | P13: =Assumptions!P$24 -> 2020/21 | Q13: =Assumptions!Q$24 -> 2021/22 | R13: =Assumptions!R$24 -> 2022/23 | S13: =Assumptions!S$24 -> 2023/24 | T13: =Assumptions!T$24 -> 2024/25 | U13: =Assumptions!U$24 -> 2025/26 | V13: =Assumptions!V$24 -> 2026/27 | W13: =Assumptions!W$24 -> 2027/28 | X13: =Assumptions!X$24 -> 2028/29 | Y13: =Assumptions!Y$24 -> 2029/30 | Z13: =Assumptions!Z$24 -> 2030/31
B14: Spend ($ nominal)
B15: =Hist_vol!B15 -> Connections | C15: =Hist_vol!C15 -> R1 | D15: =Hist_vol!D15 -> Residential | E15: =Hist_vol!E15 -> Simple connection LV | G15: 0 | H15: 0 | I15: 0 | J15: 0 | K15: 4598081.671 | L15: 10207574.35 | M15: 14269042.68 | N15: 14867959 | O15: 11819079.5 | P15: 12157157 | Q15: 13416104 | R15: 19467498 | S15: 19510372
B16: =Hist_vol!B16 -> Connections | C16: =Hist_vol!C16 -> R2 | D16: =Hist_vol!D16 -> Residential | E16: =Hist_vol!E16 -> Complex connection LV | G16: 0 | H16: 0 | I16: 0 | J16: 0 | K16: 0 | L16: 0 | M16: 0 | N16: 0 | O16: 0 | P16: 0 | Q16: 0 | R16: 0 | S16: 0
B17: =Hist_vol!B17 -> Connections | C17: =Hist_vol!C17 -> R3 | D17: =Hist_vol!D17 -> Residential | E17: =Hist_vol!E17 -> Complex connection HV | G17: 0 | H17: 0 | I17: 0 | J17: 0 | K17: 0 | L17: 0 | M17: 0 | N17: 0 | O17: 0 | P17: 0 | Q17: 0 | R17: 0 | S17: 0
B18: =Hist_vol!B18 -> Connections | C18: =Hist_vol!C18 -> CI1 | D18: =Hist_vol!D18 -> Commercial/Industrial | E18: =Hist_vol!E18 -> Simple connection LV | G18: 3532400.5 | H18: 3729710.5 | I18: 3710133.96 | J18: 3836542.64 | K18: 2043292.778 | L18: 2047640.64 | M18: 2807754.189 | N18: 3505903.539 | O18: 3951881 | P18: 5612030.5 | Q18: 5091251 | R18: 5130555 | S18: 7363087
B19: =Hist_vol!B19 -> Connections | C19: =Hist_vol!C19 -> CI2 | D19: =Hist_vol!D19 -> Commercial/Industrial | E19: =Hist_vol!E19 -> Complex connection HV (customer connected at LV, minor HV works) | G19: 17999637.5 | H19: 17719767 | I19: 18813867.44 | J19: 20348922.4 | K19: 21385575.85 | L19: 19880046.5 | M19: 13851055.26 | N19: 10965925.04 | O19: 10949854.5 | P19: 14735244.5 | Q19: 11725987 | R19: 16019592 | S19: 18205648
B20: =Hist_vol!B20 -> Connections | C20: =Hist_vol!C20 -> CI3 | D20: =Hist_vol!D20 -> Commercial/Industrial | E20: =Hist_vol!E20 -> Complex connection HV (customer connected at LV, upstream asset works) | G20: 2288746.5 | H20: 892431.5 | I20: 1000657.24 | J20: 5036985.441 | K20: 6370784.364 | L20: 2928223.435 | M20: 1180277.771 | N20: 1079596.5 | O20: 821569.5 | P20: 0 | Q20: 1714541 | R20: 417858 | S20: 5775429
B21: =Hist_vol!B21 -> Connections | C21: =Hist_vol!C21 -> CI4 | D21: =Hist_vol!D21 -> Commercial/Industrial | E21: =Hist_vol!E21 -> Complex connection HV (customer connected at HV) | G21: 862333.5 | H21: 941163.5 | I21: 1406405.9 | J21: 5987817.965 | K21: 10009239.11 | L21: 11819080.76 | M21: 10822490.05 | N21: 8786653.22 | O21: 11934556 | P21: 19911542.73 | Q21: 9398553 | R21: 12379006 | S21: 41972585
B22: =Hist_vol!B22 -> Connections | C22: =Hist_vol!C22 -> CI5 | D22: =Hist_vol!D22 -> Commercial/Industrial | E22: =Hist_vol!E22 -> Complex connection sub-transmission | G22: 0 | H22: 0 | I22: 0 | J22: 0 | K22: 0 | L22: 0 | M22: 0 | N22: 0 | O22: 0 | P22: 0 | Q22: 6429 | R22: 35874 | S22: 412534
B23: =Hist_vol!B23 -> Connections | C23: =Hist_vol!C23 -> S1 | D23: =Hist_vol!D23 -> Subdivision | E23: =Hist_vol!E23 -> Complex connection LV | G23: 10081998.5 | H23: 9526519.5 | I23: 11118254.46 | J23: 13169785.09 | K23: 8646432.094 | L23: 3292574.317 | M23: 1286070.427 | N23: 1277070.251 | O23: 1623785.25 | P23: 1838576.29 | Q23: 1163068 | R23: 1530187 | S23: 2916214
B24: =Hist_vol!B24 -> Connections | C24: =Hist_vol!C24 -> S2 | D24: =Hist_vol!D24 -> Subdivision | E24: =Hist_vol!E24 -> Complex connection HV (no upstream asset works) | G24: 1623704 | H24: 1711281 | I24: 2396876.57 | J24: 2333512.005 | K24: 1476101.935 | L24: 1634512.304 | M24: 1091564.716 | N24: 1058066.751 | O24: 1425795.25 | P24: 1880309.29 | Q24: 1169108 | R24: 1901160 | S24: 3085437
B25: =Hist_vol!B25 -> Connections | C25: =Hist_vol!C25 -> S3 | D25: =Hist_vol!D25 -> Subdivision | E25: =Hist_vol!E25 -> Complex connection HV (with upstream asset works) | G25: 0 | H25: 0 | I25: 0 | J25: 0 | K25: 0 | L25: 202742.6402 | M25: 627496.6402 | N25: 694059 | O25: 269305 | P25: 0 | Q25: 0 | R25: 0 | S25: 0
B26: =Hist_vol!B26 -> Connections | C26: =Hist_vol!C26 -> EG1 | D26: =Hist_vol!D26 -> Embedded generation | E26: =Hist_vol!E26 -> Simple connection LV | G26: 380000 | H26: 380000 | I26: 0 | J26: 0 | K26: 0 | L26: 0 | M26: 0 | N26: 0 | O26: 0 | P26: 0 | Q26: 0 | R26: 0 | S26: 0
B27: =Hist_vol!B27 -> Connections | C27: =Hist_vol!C27 -> EG2 | D27: =Hist_vol!D27 -> Embedded generation | E27: =Hist_vol!E27 -> Complex connection HV (small capacity) | G27: 90000 | H27: 90000 | I27: 0 | J27: 0 | K27: 0 | L27: 0 | M27: 0 | N27: 0 | O27: 2961.5 | P27: 13586 | Q27: 183618 | R27: 4202460 | S27: 1957670
B28: =Hist_vol!B28 -> Connections | C28: =Hist_vol!C28 -> EG3 | D28: =Hist_vol!D28 -> Embedded generation | E28: =Hist_vol!E28 -> Complex connection HV (large capacity) | G28: 0 | H28: 80000 | I28: 80000 | J28: 0 | K28: 0 | L28: 0 | M28: 0 | N28: 0 | O28: 0 | P28: 0 | Q28: 0 | R28: 0 | S28: 0
C29: Total | G29: =SUM(G15:G28) -> 36858820.5 | H29: =SUM(H15:H28) -> 35070873 | I29: 38526195.56 | J29: 50713565.54 | K29: 54529507.79 | L29: 52012394.94 | M29: 45935751.74 | N29: 42235233.3 | O29: 42798787.5 | P29: 56148446.31 | Q29: 43868659 | R29: 61084190 | S29: =SUM(S15:S28) -> 101198976

Sheet Hist_contributions
A1: =Assumptions!$A$1 -> United Energy
A2: =Assumptions!$A$2 -> Connections
A3: Type 1 Contributions (nominal)
B7: =Assumptions!B17 -> 2025/6 - 2030/31 reg period | G7: =Assumptions!G17 -> FALSE | H7: =Assumptions!H17 -> FALSE | I7: =Assumptions!I17 -> FALSE | J7: =Assumptions!J17 -> FALSE | K7: =Assumptions!K17 -> FALSE | L7: =Assumptions!L17 -> FALSE | M7: =Assumptions!M17 -> FALSE | N7: =Assumptions!N17 -> FALSE | O7: =Assumptions!O17 -> FALSE | P7: =Assumptions!P17 -> FALSE | Q7: =Assumptions!Q17 -> FALSE | R7: =Assumptions!R17 -> FALSE | S7: =Assumptions!S17 -> FALSE | T7: =Assumptions!T17 -> FALSE | U7: =Assumptions!U17 -> FALSE | V7: =Assumptions!V17 -> TRUE | W7: =Assumptions!W17 -> TRUE | X7: =Assumptions!X17 -> TRUE | Y7: =Assumptions!Y17 -> TRUE | Z7: =Assumptions!Z17 -> TRUE
B8: =Assumptions!B18 -> Forecast period | G8: =Assumptions!G18 -> FALSE | H8: =Assumptions!H18 -> FALSE | I8: =Assumptions!I18 -> FALSE | J8: =Assumptions!J18 -> FALSE | K8: =Assumptions!K18 -> FALSE | L8: =Assumptions!L18 -> FALSE | M8: =Assumptions!M18 -> FALSE | N8: =Assumptions!N18 -> FALSE | O8: =Assumptions!O18 -> FALSE | P8: =Assumptions!P18 -> FALSE | Q8: =Assumptions!Q18 -> FALSE | R8: =Assumptions!R18 -> FALSE | S8: =Assumptions!S18 -> FALSE | T8: =Assumptions!T18 -> TRUE | U8: =Assumptions!U18 -> TRUE | V8: =Assumptions!V18 -> TRUE | W8: =Assumptions!W18 -> TRUE | X8: =Assumptions!X18 -> TRUE | Y8: =Assumptions!Y18 -> TRUE | Z8: =Assumptions!Z18 -> TRUE
B9: =Assumptions!B19 -> Fin year end | G9: =Assumptions!G19 -> 2012 | H9: =Assumptions!H19 -> 2013 | I9: =Assumptions!I19 -> 2014 | J9: =Assumptions!J19 -> 2015 | K9: =Assumptions!K19 -> 2016 | L9: =Assumptions!L19 -> 2017 | M9: =Assumptions!M19 -> 2018 | N9: =Assumptions!N19 -> 2019 | O9: =Assumptions!O19 -> 2020 | P9: =Assumptions!P19 -> 2021 | Q9: =Assumptions!Q19 -> 2022 | R9: =Assumptions!R19 -> 2023 | S9: =Assumptions!S19 -> 2024 | T9: =Assumptions!T19 -> 2025 | U9: =Assumptions!U19 -> 2026 | V9: =Assumptions!V19 -> 2027 | W9: =Assumptions!W19 -> 2028 | X9: =Assumptions!X19 -> 2029 | Y9: =Assumptions!Y19 -> 2030 | Z9: =Assumptions!Z19 -> 2031
B10: =Assumptions!B20 -> Basis | G10: =Assumptions!G20 -> Actual | H10: =Assumptions!H20 -> Actual | I10: =Assumptions!I20 -> Actual | J10: =Assumptions!J20 -> Actual | K10: =Assumptions!K20 -> Actual | L10: =Assumptions!L20 -> Actual | M10: =Assumptions!M20 -> Actual | N10: =Assumptions!N20 -> Actual | O10: =Assumptions!O20 -> Actual | P10: =Assumptions!P20 -> Actual | Q10: =Assumptions!Q20 -> Actual | R10: =Assumptions!R20 -> Actual | S10: =Assumptions!S20 -> Actual | T10: =Assumptions!T20 -> Forecast | U10: =Assumptions!U20 -> Forecast | V10: =Assumptions!V20 -> Forecast | W10: =Assumptions!W20 -> Forecast | X10: =Assumptions!X20 -> Forecast | Y10: =Assumptions!Y20 -> Forecast | Z10: =Assumptions!Z20 -> Forecast
B13: =Hist_vol!B$13 -> Category | C13: Type | D13: =Hist_vol!D$13 -> RIN category | E13: =Hist_vol!E$13 -> Description | G13: =Assumptions!G$24 -> 2011/12 | H13: =Assumptions!H$24 -> 2012/13 | I13: =Assumptions!I$24 -> 2013/14 | J13: =Assumptions!J$24 -> 2014/15 | K13: =Assumptions!K$24 -> 2015/16 | L13: =Assumptions!L$24 -> 2016/17 | M13: =Assumptions!M$24 -> 2017/18 | N13: =Assumptions!N$24 -> 2018/19 | O13: =Assumptions!O$24 -> 2019/20 | P13: =Assumptions!P$24 -> 2020/21 | Q13: =Assumptions!Q$24 -> 2021/22 | R13: =Assumptions!R$24 -> 2022/23 | S13: =Assumptions!S$24 -> 2023/24 | T13: =Assumptions!T$24 -> 2024/25 | U13: =Assumptions!U$24 -> 2025/26 | V13: =Assumptions!V$24 -> 2026/27 | W13: =Assumptions!W$24 -> 2027/28 | X13: =Assumptions!X$24 -> 2028/29 | Y13: =Assumptions!Y$24 -> 2029/30 | Z13: =Assumptions!Z$24 -> 2030/31
B14: Contributions ($ nominal)
B15: =Hist_expenditure!B15 -> Connections | C15: =Hist_expenditure!C15 -> R1 | D15: =Hist_expenditure!D15 -> Residential | E15: =Hist_expenditure!E15 -> Simple connection LV | G15: 778507.6326 | H15: 708177.8234 | I15: 97636.34016 | J15: 0 | K15: 2471402.245 | L15: 6241910.62 | M15: 10078658.91 | N15: 11438228.38 | O15: 10587595.34 | P15: 11977127 | Q15: 8201664 | R15: 17724636 | S15: 19408830
B16: =Hist_expenditure!B16 -> Connections | C16: =Hist_expenditure!C16 -> R2 | D16: =Hist_expenditure!D16 -> Residential | E16: =Hist_expenditure!E16 -> Complex connection LV | G16: 0 | H16: 0 | I16: 0 | J16: 0 | K16: 0 | L16: 0 | M16: 0 | N16: 0 | O16: 0 | P16: 0 | Q16: 0 | R16: 0 | S16: 0
B17: =Hist_expenditure!B17 -> Connections | C17: =Hist_expenditure!C17 -> R3 | D17: =Hist_expenditure!D17 -> Residential | E17: =Hist_expenditure!E17 -> Complex connection HV | G17: 0 | H17: 0 | I17: 0 | J17: 0 | K17: 0 | L17: 0 | M17: 0 | N17: 0 | O17: 0 | P17: 0 | Q17: 0 | R17: 0 | S17: 0
B18: =Hist_expenditure!B18 -> Connections | C18: =Hist_expenditure!C18 -> CI1 | D18: =Hist_expenditure!D18 -> Commercial/Industrial | E18: =Hist_expenditure!E18 -> Simple connection LV | G18: 919573.0235 | H18: 850044.3644 | I18: 669600.5709 | J18: 1221955.422 | K18: 1685528.725 | L18: 2521368.114 | M18: 2964197.828 | N18: 2959471.919 | O18: 3189458.93 | P18: 3160262 | Q18: 4262385 | R18: 3616342 | S18: 7783504
B19: =Hist_expenditure!B19 -> Connections | C19: =Hist_expenditure!C19 -> CI2 | D19: =Hist_expenditure!D19 -> Commercial/Industrial | E19: =Hist_expenditure!E19 -> Complex connection HV (customer connected at LV, minor HV works) | G19: 4224182.347 | H19: 3716478.268 | I19: 3290974.464 | J19: 6531030.042 | K19: 10403033.95 | L19: 13091554.09 | M19: 10367761.13 | N19: 8206509.409 | O19: 8219272.092 | P19: 7945799 | Q19: 9816971 | R19: 11291630 | S19: 19245152
B20: =Hist_expenditure!B20 -> Connections | C20: =Hist_expenditure!C20 -> CI3 | D20: =Hist_expenditure!D20 -> Commercial/Industrial | E20: =Hist_expenditure!E20 -> Complex connection HV (customer connected at LV, upstream asset works) | G20: 468221.8207 | H20: 321173.657 | I20: 279769.5119 | J20: 1696800.997 | K20: 2646904.75 | L20: 1660729.218 | M20: 790559.4513 | N20: 759613.3578 | O20: 595246.7414 | P20: 0 | Q20: 1435410 | R20: 294533 | S20: 6105194
B21: =Hist_expenditure!B21 -> Connections | C21: =Hist_expenditure!C21 -> CI4 | D21: =Hist_expenditure!D21 -> Commercial/Industrial | E21: =Hist_expenditure!E21 -> Complex connection HV (customer connected at HV) | G21: 125688.9716 | H21: 91466.1726 | I21: 215751.4522 | J21: 2046530.089 | K21: 5917373.289 | L21: 9819909.584 | M21: 8766191.822 | N21: 6971915.864 | O21: 9678907.786 | P21: 12137340 | Q21: 7868449 | R21: 8725513 | S21: 44369131
B22: =Hist_expenditure!B22 -> Connections | C22: =Hist_expenditure!C22 -> CI5 | D22: =Hist_expenditure!D22 -> Commercial/Industrial | E22: =Hist_expenditure!E22 -> Complex connection sub-transmission | G22: 0 | H22: 0 | I22: 0 | J22: 0 | K22: 0 | L22: 0 | M22: 0 | N22: 0 | O22: 0 | P22: 0 | Q22: 5383 | R22: 25286 | S22: 436089
B23: =Hist_expenditure!B23 -> Connections | C23: =Hist_expenditure!C23 -> S1 | D23: =Hist_expenditure!D23 -> Subdivision | E23: =Hist_expenditure!E23 -> Complex connection LV | G23: 2335114.071 | H23: 2024518.59 | I23: 2081670.166 | J23: 4225559.802 | K23: 3863297.11 | L23: 2797936.492 | M23: 1529874.132 | N23: 1234802.882 | O23: 1570079.021 | P23: 1132275 | Q23: 552670 | R23: 560877 | S23: 710618
B24: =Hist_expenditure!B24 -> Connections | C24: =Hist_expenditure!C24 -> S2 | D24: =Hist_expenditure!D24 -> Subdivision | E24: =Hist_expenditure!E24 -> Complex connection HV (no upstream asset works) | G24: 359552.2199 | H24: 315411.1339 | I24: 455114.332 | J24: 733871.5191 | K24: 1086490.534 | L24: 1855620.351 | M24: 1358787.761 | N24: 1054427.892 | O24: 1396725.855 | P24: 1106119 | Q24: 555541 | R24: 696854 | S24: 751854
B25: =Hist_expenditure!B25 -> Connections | C25: =Hist_expenditure!C25 -> S3 | D25: =Hist_expenditure!D25 -> Subdivision | E25: =Hist_expenditure!E25 -> Complex connection HV (with upstream asset works) | G25: 0 | H25: 0 | I25: 0 | J25: 0 | K25: 0 | L25: 136276.6415 | M25: 299762.743 | N25: 339125.8713 | O25: 175639.7697 | P25: 0 | Q25: 0 | R25: 0 | S25: 0
B26: =Hist_expenditure!B26 -> Connections | C26: =Hist_expenditure!C26 -> EG1 | D26: =Hist_expenditure!D26 -> Embedded generation | E26: =Hist_expenditure!E26 -> Simple connection LV | G26: 143887.0835 | H26: 143887.0835 | I26: 0 | J26: 0 | K26: 0 | L26: 0 | M26: 0 | N26: 0 | O26: 0 | P26: 0 | Q26: 0 | R26: 0 | S26: 0
B27: =Hist_expenditure!B27 -> Connections | C27: =Hist_expenditure!C27 -> EG2 | D27: =Hist_expenditure!D27 -> Embedded generation | E27: =Hist_expenditure!E27 -> Complex connection HV (small capacity) | G27: 34078.51977 | H27: 34078.51977 | I27: 0 | J27: 0 | K27: 0 | L27: 0 | M27: 0 | N27: 0 | O27: 0 | P27: 8012 | Q27: 33559 | R27: 600448 | S27: 7648749
B28: =Hist_expenditure!B28 -> Connections | C28: =Hist_expenditure!C28 -> EG3 | D28: =Hist_expenditure!D28 -> Embedded generation | E28: =Hist_expenditure!E28 -> Complex connection HV (large capacity) | G28: 0 | H28: 4078.437473 | I28: 4078.437473 | J28: 0 | K28: 0 | L28: 0 | M28: 0 | N28: 0 | O28: 0 | P28: 0 | Q28: 0 | R28: 0 | S28: 0
C29: Total | G29: =SUM(G15:G28) -> 9388805.69 | H29: =SUM(H15:H28) -> 8209314.05 | I29: 7094595.275 | J29: 16455747.87 | K29: 28074030.6 | L29: 38125305.11 | M29: 36155793.78 | N29: 32964095.58 | O29: 35412925.54 | P29: 37466934 | Q29: 32732032 | R29: 43536119 | S29: 106459121

Sheet Unit_rates
A1: =Assumptions!$A$1 -> United Energy
A2: =Assumptions!$A$2 -> Connections
A3: Unit rates
B7: =Assumptions!B17 -> 2025/6 - 2030/31 reg period | G7: =Assumptions!G17 -> FALSE | H7: =Assumptions!H17 -> FALSE | I7: =Assumptions!I17 -> FALSE | J7: =Assumptions!J17 -> FALSE | K7: =Assumptions!K17 -> FALSE | L7: =Assumptions!L17 -> FALSE | M7: =Assumptions!M17 -> FALSE | N7: =Assumptions!N17 -> FALSE | O7: =Assumptions!O17 -> FALSE | P7: =Assumptions!P17 -> FALSE | Q7: =Assumptions!Q17 -> FALSE | R7: =Assumptions!R17 -> FALSE | S7: =Assumptions!S17 -> FALSE
B8: =Assumptions!B18 -> Forecast period | G8: =Assumptions!G18 -> FALSE | H8: =Assumptions!H18 -> FALSE | I8: =Assumptions!I18 -> FALSE | J8: =Assumptions!J18 -> FALSE | K8: =Assumptions!K18 -> FALSE | L8: =Assumptions!L18 -> FALSE | M8: =Assumptions!M18 -> FALSE | N8: =Assumptions!N18 -> FALSE | O8: =Assumptions!O18 -> FALSE | P8: =Assumptions!P18 -> FALSE | Q8: =Assumptions!Q18 -> FALSE | R8: =Assumptions!R18 -> FALSE | S8: =Assumptions!S18 -> FALSE
B9: =Assumptions!B19 -> Fin year end | G9: =Assumptions!G19 -> 2012 | H9: =Assumptions!H19 -> 2013 | I9: =Assumptions!I19 -> 2014 | J9: =Assumptions!J19 -> 2015 | K9: =Assumptions!K19 -> 2016 | L9: =Assumptions!L19 -> 2017 | M9: =Assumptions!M19 -> 2018 | N9: =Assumptions!N19 -> 2019 | O9: =Assumptions!O19 -> 2020 | P9: =Assumptions!P19 -> 2021 | Q9: =Assumptions!Q19 -> 2022 | R9: =Assumptions!R19 -> 2023 | S9: =Assumptions!S19 -> 2024
B10: =Assumptions!B20 -> Basis | G10: =Assumptions!G20 -> Actual | H10: =Assumptions!H20 -> Actual | I10: =Assumptions!I20 -> Actual | J10: =Assumptions!J20 -> Actual | K10: =Assumptions!K20 -> Actual | L10: =Assumptions!L20 -> Actual | M10: =Assumptions!M20 -> Actual | N10: =Assumptions!N20 -> Actual | O10: =Assumptions!O20 -> Actual | P10: =Assumptions!P20 -> Actual | Q10: =Assumptions!Q20 -> Actual | R10: =Assumptions!R20 -> Actual | S10: =Assumptions!S20 -> Actual
B13: =Hist_vol!B$13 -> Category | C13: Type | D13: =Hist_vol!D$13 -> RIN category | E13: =Hist_vol!E$13 -> Description | G13: =Assumptions!G$24 -> 2011/12 | H13: =Assumptions!H$24 -> 2012/13 | I13: =Assumptions!I$24 -> 2013/14 | J13: =Assumptions!J$24 -> 2014/15 | K13: =Assumptions!K$24 -> 2015/16 | L13: =Assumptions!L$24 -> 2016/17 | M13: =Assumptions!M$24 -> 2017/18 | N13: =Assumptions!N$24 -> 2018/19 | O13: =Assumptions!O$24 -> 2019/20 | P13: =Assumptions!P$24 -> 2020/21 | Q13: =Assumptions!Q$24 -> 2021/22 | R13: =Assumptions!R$24 -> 2022/23 | S13: =Assumptions!S$24 -> 2023/24
B14: Unit rate ($ June 2026) | R14: Base year
B15: =Hist_vol!B15 -> Connections | C15: =Hist_vol!C15 -> R1 | D15: =Hist_vol!D15 -> Residential | E15: =Hist_vol!E15 -> Simple connection LV | G15: =IF(Hist_vol!G15=0,0, Hist_expenditure!G15*Assumptions!G$29/Hist_vol!G15) -> 0 | H15: =IF(Hist_vol!H15=0,0, Hist_expenditure!H15*Assumptions!H$29/Hist_vol!H15) -> 0 | I15: =IF(Hist_vol!I15=0,0, Hist_expenditure!I15*Assumptions!I$29/Hist_vol!I15) -> 0 | J15: =IF(Hist_vol!J15=0,0, Hist_expenditure!J15*Assumptions!J$29/Hist_vol!J15) -> 0 | K15: =IF(Hist_vol!K15=0,0, Hist_expenditure!K15*Assumptions!K$29/Hist_vol!K15) -> 611.4546437 | L15: =IF(Hist_vol!L15=0,0, Hist_expenditure!L15*Assumptions!L$29/Hist_vol!L15) -> 1362.508271 | M15: =IF(Hist_vol!M15=0,0, Hist_expenditure!M15*Assumptions!M$29/Hist_vol!M15) -> 1765.102226 | N15: =IF(Hist_vol!N15=0,0, Hist_expenditure!N15*Assumptions!N$29/Hist_vol!N15) -> 1971.098945 | O15: =IF(Hist_vol!O15=0,0, Hist_expenditure!O15*Assumptions!O$29/Hist_vol!O15) -> 1939.441256 | P15: =IF(Hist_vol!P15=0,0, Hist_expenditure!P15*Assumptions!P$29/Hist_vol!P15) -> 2634.037906 | Q15: =IF(Hist_vol!Q15=0,0, Hist_expenditure!Q15*Assumptions!Q$29/Hist_vol!Q15) -> 2841.310355 | R15: =IF(Hist_vol!R15=0,0, Hist_expenditure!R15*Assumptions!R$29/Hist_vol!R15) -> 3601.602072 | S15: =IF(Hist_vol!S15=0,0, Hist_expenditure!S15*Assumptions!S$29/Hist_vol!S15) -> 3313.496068
B16: =Hist_vol!B16 -> Connections | C16: =Hist_vol!C16 -> R2 | D16: =Hist_vol!D16 -> Residential | E16: =Hist_vol!E16 -> Complex connection LV | G16: =IF(Hist_vol!G16=0,0, Hist_expenditure!G16*Assumptions!G$29/Hist_vol!G16) -> 0 | H16: =IF(Hist_vol!H16=0,0, Hist_expenditure!H16*Assumptions!H$29/Hist_vol!H16) -> 0 | I16: =IF(Hist_vol!I16=0,0, Hist_expenditure!I16*Assumptions!I$29/Hist_vol!I16) -> 0 | J16: =IF(Hist_vol!J16=0,0, Hist_expenditure!J16*Assumptions!J$29/Hist_vol!J16) -> 0 | K16: =IF(Hist_vol!K16=0,0, Hist_expenditure!K16*Assumptions!K$29/Hist_vol!K16) -> 0 | L16: =IF(Hist_vol!L16=0,0, Hist_expenditure!L16*Assumptions!L$29/Hist_vol!L16) -> 0 | M16: =IF(Hist_vol!M16=0,0, Hist_expenditure!M16*Assumptions!M$29/Hist_vol!M16) -> 0 | N16: =IF(Hist_vol!N16=0,0, Hist_expenditure!N16*Assumptions!N$29/Hist_vol!N16) -> 0 | O16: =IF(Hist_vol!O16=0,0, Hist_expenditure!O16*Assumptions!O$29/Hist_vol!O16) -> 0 | P16: =IF(Hist_vol!P16=0,0, Hist_expenditure!P16*Assumptions!P$29/Hist_vol!P16) -> 0 | Q16: =IF(Hist_vol!Q16=0,0, Hist_expenditure!Q16*Assumptions!Q$29/Hist_vol!Q16) -> 0 | R16: =IF(Hist_vol!R16=0,0, Hist_expenditure!R16*Assumptions!R$29/Hist_vol!R16) -> 0 | S16: =IF(Hist_vol!S16=0,0, Hist_expenditure!S16*Assumptions!S$29/Hist_vol!S16) -> 0
B17: =Hist_vol!B17 -> Connections | C17: =Hist_vol!C17 -> R3 | D17: =Hist_vol!D17 -> Residential | E17: =Hist_vol!E17 -> Complex connection HV | G17: =IF(Hist_vol!G17=0,0, Hist_expenditure!G17*Assumptions!G$29/Hist_vol!G17) -> 0 | H17: =IF(Hist_vol!H17=0,0, Hist_expenditure!H17*Assumptions!H$29/Hist_vol!H17) -> 0 | I17: =IF(Hist_vol!I17=0,0, Hist_expenditure!I17*Assumptions!I$29/Hist_vol!I17) -> 0 | J17: =IF(Hist_vol!J17=0,0, Hist_expenditure!J17*Assumptions!J$29/Hist_vol!J17) -> 0 | K17: =IF(Hist_vol!K17=0,0, Hist_expenditure!K17*Assumptions!K$29/Hist_vol!K17) -> 0 | L17: =IF(Hist_vol!L17=0,0, Hist_expenditure!L17*Assumptions!L$29/Hist_vol!L17) -> 0 | M17: =IF(Hist_vol!M17=0,0, Hist_expenditure!M17*Assumptions!M$29/Hist_vol!M17) -> 0 | N17: =IF(Hist_vol!N17=0,0, Hist_expenditure!N17*Assumptions!N$29/Hist_vol!N17) -> 0 | O17: =IF(Hist_vol!O17=0,0, Hist_expenditure!O17*Assumptions!O$29/Hist_vol!O17) -> 0 | P17: =IF(Hist_vol!P17=0,0, Hist_expenditure!P17*Assumptions!P$29/Hist_vol!P17) -> 0 | Q17: =IF(Hist_vol!Q17=0,0, Hist_expenditure!Q17*Assumptions!Q$29/Hist_vol!Q17) -> 0 | R17: =IF(Hist_vol!R17=0,0, Hist_expenditure!R17*Assumptions!R$29/Hist_vol!R17) -> 0 | S17: =IF(Hist_vol!S17=0,0, Hist_expenditure!S17*Assumptions!S$29/Hist_vol!S17) -> 0
B18: =Hist_vol!B18 -> Connections | C18: =Hist_vol!C18 -> CI1 | D18: =Hist_vol!D18 -> Commercial/Industrial | E18: =Hist_vol!E18 -> Simple connection LV | G18: =IF(Hist_vol!G18=0,0, Hist_expenditure!G18*Assumptions!G$29/Hist_vol!G18) -> 1915.165219 | H18: =IF(Hist_vol!H18=0,0, Hist_expenditure!H18*Assumptions!H$29/Hist_vol!H18) -> 1659.502083 | I18: =IF(Hist_vol!I18=0,0, Hist_expenditure!I18*Assumptions!I$29/Hist_vol!I18) -> 2186.449221 | J18: =IF(Hist_vol!J18=0,0, Hist_expenditure!J18*Assumptions!J$29/Hist_vol!J18) -> 6509.995841 | K18: =IF(Hist_vol!K18=0,0, Hist_expenditure!K18*Assumptions!K$29/Hist_vol!K18) -> 3718.507888 | L18: =IF(Hist_vol!L18=0,0, Hist_expenditure!L18*Assumptions!L$29/Hist_vol!L18) -> 2973.221069 | M18: =IF(Hist_vol!M18=0,0, Hist_expenditure!M18*Assumptions!M$29/Hist_vol!M18) -> 3622.567687 | N18: =IF(Hist_vol!N18=0,0, Hist_expenditure!N18*Assumptions!N$29/Hist_vol!N18) -> 4696.84126 | O18: =IF(Hist_vol!O18=0,0, Hist_expenditure!O18*Assumptions!O$29/Hist_vol!O18) -> 5870.640723 | P18: =IF(Hist_vol!P18=0,0, Hist_expenditure!P18*Assumptions!P$29/Hist_vol!P18) -> 9769.582617 | Q18: =IF(Hist_vol!Q18=0,0, Hist_expenditure!Q18*Assumptions!Q$29/Hist_vol!Q18) -> 9646.365884 | R18: =IF(Hist_vol!R18=0,0, Hist_expenditure!R18*Assumptions!R$29/Hist_vol!R18) -> 9620.50679 | S18: =IF(Hist_vol!S18=0,0, Hist_expenditure!S18*Assumptions!S$29/Hist_vol!S18) -> 13499.95492
B19: =Hist_vol!B19 -> Connections | C19: =Hist_vol!C19 -> CI2 | D19: =Hist_vol!D19 -> Commercial/Industrial | E19: =Hist_vol!E19 -> Complex connection HV (customer connected at LV, minor HV works) | G19: =IF(Hist_vol!G19=0,0, Hist_expenditure!G19*Assumptions!G$29/Hist_vol!G19) -> 80514.64301 | H19: =IF(Hist_vol!H19=0,0, Hist_expenditure!H19*Assumptions!H$29/Hist_vol!H19) -> 51776.32998 | I19: =IF(Hist_vol!I19=0,0, Hist_expenditure!I19*Assumptions!I$29/Hist_vol!I19) -> 21104.28223 | J19: =IF(Hist_vol!J19=0,0, Hist_expenditure!J19*Assumptions!J$29/Hist_vol!J19) -> 17458.99765 | K19: =IF(Hist_vol!K19=0,0, Hist_expenditure!K19*Assumptions!K$29/Hist_vol!K19) -> 21059.05632 | L19: =IF(Hist_vol!L19=0,0, Hist_expenditure!L19*Assumptions!L$29/Hist_vol!L19) -> 18158.41322 | M19: =IF(Hist_vol!M19=0,0, Hist_expenditure!M19*Assumptions!M$29/Hist_vol!M19) -> 12404.55479 | N19: =IF(Hist_vol!N19=0,0, Hist_expenditure!N19*Assumptions!N$29/Hist_vol!N19) -> 11465.53796 | O19: =IF(Hist_vol!O19=0,0, Hist_expenditure!O19*Assumptions!O$29/Hist_vol!O19) -> 14156.62891 | P19: =IF(Hist_vol!P19=0,0, Hist_expenditure!P19*Assumptions!P$29/Hist_vol!P19) -> 22445.09184 | Q19: =IF(Hist_vol!Q19=0,0, Hist_expenditure!Q19*Assumptions!Q$29/Hist_vol!Q19) -> 17032.26395 | R19: =IF(Hist_vol!R19=0,0, Hist_expenditure!R19*Assumptions!R$29/Hist_vol!R19) -> 22556.20947 | S19: =IF(Hist_vol!S19=0,0, Hist_expenditure!S19*Assumptions!S$29/Hist_vol!S19) -> 27051.12937
B20: =Hist_vol!B20 -> Connections | C20: =Hist_vol!C20 -> CI3 | D20: =Hist_vol!D20 -> Commercial/Industrial | E20: =Hist_vol!E20 -> Complex connection HV (customer connected at LV, upstream asset works) | G20: =IF(Hist_vol!G20=0,0, Hist_expenditure!G20*Assumptions!G$29/Hist_vol!G20) -> 922869.1432 | H20: =IF(Hist_vol!H20=0,0, Hist_expenditure!H20*Assumptions!H$29/Hist_vol!H20) -> 823145.9994 | I20: =IF(Hist_vol!I20=0,0, Hist_expenditure!I20*Assumptions!I$29/Hist_vol!I20) -> 247779.4636 | J20: =IF(Hist_vol!J20=0,0, Hist_expenditure!J20*Assumptions!J$29/Hist_vol!J20) -> 366340.2019 | K20: =IF(Hist_vol!K20=0,0, Hist_expenditure!K20*Assumptions!K$29/Hist_vol!K20) -> 332379.3369 | L20: =IF(Hist_vol!L20=0,0, Hist_expenditure!L20*Assumptions!L$29/Hist_vol!L20) -> 196218.7684 | M20: =IF(Hist_vol!M20=0,0, Hist_expenditure!M20*Assumptions!M$29/Hist_vol!M20) -> 142345.1446 | N20: =IF(Hist_vol!N20=0,0, Hist_expenditure!N20*Assumptions!N$29/Hist_vol!N20) -> 297622.5687 | O20: =IF(Hist_vol!O20=0,0, Hist_expenditure!O20*Assumptions!O$29/Hist_vol!O20) -> 501611.8346 | P20: =IF(Hist_vol!P20=0,0, Hist_expenditure!P20*Assumptions!P$29/Hist_vol!P20) -> 0 | Q20: =IF(Hist_vol!Q20=0,0, Hist_expenditure!Q20*Assumptions!Q$29/Hist_vol!Q20) -> 411913.8082 | R20: =IF(Hist_vol!R20=0,0, Hist_expenditure!R20*Assumptions!R$29/Hist_vol!R20) -> 245640.4415 | S20: =IF(Hist_vol!S20=0,0, Hist_expenditure!S20*Assumptions!S$29/Hist_vol!S20) -> 357085.9985
B21: =Hist_vol!B21 -> Connections | C21: =Hist_vol!C21 -> CI4 | D21: =Hist_vol!D21 -> Commercial/Industrial | E21: =Hist_vol!E21 -> Complex connection HV (customer connected at HV) | G21: =IF(Hist_vol!G21=0,0, Hist_expenditure!G21*Assumptions!G$29/Hist_vol!G21) -> 143174.8737 | H21: =IF(Hist_vol!H21=0,0, Hist_expenditure!H21*Assumptions!H$29/Hist_vol!H21) -> 108511.8255 | I21: =IF(Hist_vol!I21=0,0, Hist_expenditure!I21*Assumptions!I$29/Hist_vol!I21) -> 68787.0091 | J21: =IF(Hist_vol!J21=0,0, Hist_expenditure!J21*Assumptions!J$29/Hist_vol!J21) -> 14632.87691 | K21: =IF(Hist_vol!K21=0,0, Hist_expenditure!K21*Assumptions!K$29/Hist_vol!K21) -> 12007.25072 | L21: =IF(Hist_vol!L21=0,0, Hist_expenditure!L21*Assumptions!L$29/Hist_vol!L21) -> 12293.03791 | M21: =IF(Hist_vol!M21=0,0, Hist_expenditure!M21*Assumptions!M$29/Hist_vol!M21) -> 10106.83638 | N21: =IF(Hist_vol!N21=0,0, Hist_expenditure!N21*Assumptions!N$29/Hist_vol!N21) -> 8844.096346 | O21: =IF(Hist_vol!O21=0,0, Hist_expenditure!O21*Assumptions!O$29/Hist_vol!O21) -> 14238.75054 | P21: =IF(Hist_vol!P21=0,0, Hist_expenditure!P21*Assumptions!P$29/Hist_vol!P21) -> 27996.70003 | Q21: =IF(Hist_vol!Q21=0,0, Hist_expenditure!Q21*Assumptions!Q$29/Hist_vol!Q21) -> 14165.47538 | R21: =IF(Hist_vol!R21=0,0, Hist_expenditure!R21*Assumptions!R$29/Hist_vol!R21) -> 16923.43298 | S21: =IF(Hist_vol!S21=0,0, Hist_expenditure!S21*Assumptions!S$29/Hist_vol!S21) -> 68292.13545
B22: =Hist_vol!B22 -> Connections | C22: =Hist_vol!C22 -> CI5 | D22: =Hist_vol!D22 -> Commercial/Industrial | E22: =Hist_vol!E22 -> Complex connection sub-transmission | G22: =IF(Hist_vol!G22=0,0, Hist_expenditure!G22*Assumptions!G$29/Hist_vol!G22) -> 0 | H22: =IF(Hist_vol!H22=0,0, Hist_expenditure!H22*Assumptions!H$29/Hist_vol!H22) -> 0 | I22: =IF(Hist_vol!I22=0,0, Hist_expenditure!I22*Assumptions!I$29/Hist_vol!I22) -> 0 | J22: =IF(Hist_vol!J22=0,0, Hist_expenditure!J22*Assumptions!J$29/Hist_vol!J22) -> 0 | K22: =IF(Hist_vol!K22=0,0, Hist_expenditure!K22*Assumptions!K$29/Hist_vol!K22) -> 0 | L22: =IF(Hist_vol!L22=0,0, Hist_expenditure!L22*Assumptions!L$29/Hist_vol!L22) -> 0 | M22: =IF(Hist_vol!M22=0,0, Hist_expenditure!M22*Assumptions!M$29/Hist_vol!M22) -> 0 | N22: =IF(Hist_vol!N22=0,0, Hist_expenditure!N22*Assumptions!N$29/Hist_vol!N22) -> 0 | O22: =IF(Hist_vol!O22=0,0, Hist_expenditure!O22*Assumptions!O$29/Hist_vol!O22) -> 0 | P22: =IF(Hist_vol!P22=0,0, Hist_expenditure!P22*Assumptions!P$29/Hist_vol!P22) -> 0 | Q22: =IF(Hist_vol!Q22=0,0, Hist_expenditure!Q22*Assumptions!Q$29/Hist_vol!Q22) -> 858.0831944 | R22: =IF(Hist_vol!R22=0,0, Hist_expenditure!R22*Assumptions!R$29/Hist_vol!R22) -> 1562.130037 | S22: =IF(Hist_vol!S22=0,0, Hist_expenditure!S22*Assumptions!S$29/Hist_vol!S22) -> 9768.389482
B23: =Hist_vol!B23 -> Connections | C23: =Hist_vol!C23 -> S1 | D23: =Hist_vol!D23 -> Subdivision | E23: =Hist_vol!E23 -> Complex connection LV | G23: =IF(Hist_vol!G23=0,0, Hist_expenditure!G23*Assumptions!G$29/Hist_vol!G23) -> 138813.9906 | H23: =IF(Hist_vol!H23=0,0, Hist_expenditure!H23*Assumptions!H$29/Hist_vol!H23) -> 80613.86496 | I23: =IF(Hist_vol!I23=0,0, Hist_expenditure!I23*Assumptions!I$29/Hist_vol!I23) -> 60470.69228 | J23: =IF(Hist_vol!J23=0,0, Hist_expenditure!J23*Assumptions!J$29/Hist_vol!J23) -> 57917.73671 | K23: =IF(Hist_vol!K23=0,0, Hist_expenditure!K23*Assumptions!K$29/Hist_vol!K23) -> 12555.88947 | L23: =IF(Hist_vol!L23=0,0, Hist_expenditure!L23*Assumptions!L$29/Hist_vol!L23) -> 3339.975798 | M23: =IF(Hist_vol!M23=0,0, Hist_expenditure!M23*Assumptions!M$29/Hist_vol!M23) -> 2800.675303 | N23: =IF(Hist_vol!N23=0,0, Hist_expenditure!N23*Assumptions!N$29/Hist_vol!N23) -> 2622.978652 | O23: =IF(Hist_vol!O23=0,0, Hist_expenditure!O23*Assumptions!O$29/Hist_vol!O23) -> 2600.412266 | P23: =IF(Hist_vol!P23=0,0, Hist_expenditure!P23*Assumptions!P$29/Hist_vol!P23) -> 3238.025806 | Q23: =IF(Hist_vol!Q23=0,0, Hist_expenditure!Q23*Assumptions!Q$29/Hist_vol!Q23) -> 2839.673994 | R23: =IF(Hist_vol!R23=0,0, Hist_expenditure!R23*Assumptions!R$29/Hist_vol!R23) -> 2570.085738 | S23: =IF(Hist_vol!S23=0,0, Hist_expenditure!S23*Assumptions!S$29/Hist_vol!S23) -> 9545.56306
B24: =Hist_vol!B24 -> Connections | C24: =Hist_vol!C24 -> S2 | D24: =Hist_vol!D24 -> Subdivision | E24: =Hist_vol!E24 -> Complex connection HV (no upstream asset works) | G24: =IF(Hist_vol!G24=0,0, Hist_expenditure!G24*Assumptions!G$29/Hist_vol!G24) -> 70507.28245 | H24: =IF(Hist_vol!H24=0,0, Hist_expenditure!H24*Assumptions!H$29/Hist_vol!H24) -> 54428.36785 | I24: =IF(Hist_vol!I24=0,0, Hist_expenditure!I24*Assumptions!I$29/Hist_vol!I24) -> 51524.38291 | J24: =IF(Hist_vol!J24=0,0, Hist_expenditure!J24*Assumptions!J$29/Hist_vol!J24) -> 44127.70989 | K24: =IF(Hist_vol!K24=0,0, Hist_expenditure!K24*Assumptions!K$29/Hist_vol!K24) -> 17578.79558 | L24: =IF(Hist_vol!L24=0,0, Hist_expenditure!L24*Assumptions!L$29/Hist_vol!L24) -> 22686.67086 | M24: =IF(Hist_vol!M24=0,0, Hist_expenditure!M24*Assumptions!M$29/Hist_vol!M24) -> 6809.279801 | N24: =IF(Hist_vol!N24=0,0, Hist_expenditure!N24*Assumptions!N$29/Hist_vol!N24) -> 3739.580246 | O24: =IF(Hist_vol!O24=0,0, Hist_expenditure!O24*Assumptions!O$29/Hist_vol!O24) -> 2752.644304 | P24: =IF(Hist_vol!P24=0,0, Hist_expenditure!P24*Assumptions!P$29/Hist_vol!P24) -> 2045.44105 | Q24: =IF(Hist_vol!Q24=0,0, Hist_expenditure!Q24*Assumptions!Q$29/Hist_vol!Q24) -> 2950.367801 | R24: =IF(Hist_vol!R24=0,0, Hist_expenditure!R24*Assumptions!R$29/Hist_vol!R24) -> 3470.834811 | S24: =IF(Hist_vol!S24=0,0, Hist_expenditure!S24*Assumptions!S$29/Hist_vol!S24) -> 41371.34767
B25: =Hist_vol!B25 -> Connections | C25: =Hist_vol!C25 -> S3 | D25: =Hist_vol!D25 -> Subdivision | E25: =Hist_vol!E25 -> Complex connection HV (with upstream asset works) | G25: =IF(Hist_vol!G25=0,0, Hist_expenditure!G25*Assumptions!G$29/Hist_vol!G25) -> 0 | H25: =IF(Hist_vol!H25=0,0, Hist_expenditure!H25*Assumptions!H$29/Hist_vol!H25) -> 0 | I25: =IF(Hist_vol!I25=0,0, Hist_expenditure!I25*Assumptions!I$29/Hist_vol!I25) -> 0 | J25: =IF(Hist_vol!J25=0,0, Hist_expenditure!J25*Assumptions!J$29/Hist_vol!J25) -> 0 | K25: =IF(Hist_vol!K25=0,0, Hist_expenditure!K25*Assumptions!K$29/Hist_vol!K25) -> 0 | L25: =IF(Hist_vol!L25=0,0, Hist_expenditure!L25*Assumptions!L$29/Hist_vol!L25) -> 523408.3154 | M25: =IF(Hist_vol!M25=0,0, Hist_expenditure!M25*Assumptions!M$29/Hist_vol!M25) -> 48158.74819 | N25: =IF(Hist_vol!N25=0,0, Hist_expenditure!N25*Assumptions!N$29/Hist_vol!N25) -> 53813.75708 | O25: =IF(Hist_vol!O25=0,0, Hist_expenditure!O25*Assumptions!O$29/Hist_vol!O25) -> 0 | P25: =IF(Hist_vol!P25=0,0, Hist_expenditure!P25*Assumptions!P$29/Hist_vol!P25) -> 0 | Q25: =IF(Hist_vol!Q25=0,0, Hist_expenditure!Q25*Assumptions!Q$29/Hist_vol!Q25) -> 0 | R25: =IF(Hist_vol!R25=0,0, Hist_expenditure!R25*Assumptions!R$29/Hist_vol!R25) -> 0 | S25: =IF(Hist_vol!S25=0,0, Hist_expenditure!S25*Assumptions!S$29/Hist_vol!S25) -> 0
B26: =Hist_vol!B26 -> Connections | C26: =Hist_vol!C26 -> EG1 | D26: =Hist_vol!D26 -> Embedded generation | E26: =Hist_vol!E26 -> Simple connection LV | G26: =IF(Hist_vol!G26=0,0, Hist_expenditure!G26*Assumptions!G$29/Hist_vol!G26) -> 45.9362759 | H26: =IF(Hist_vol!H26=0,0, Hist_expenditure!H26*Assumptions!H$29/Hist_vol!H26) -> 70.85539625 | I26: =IF(Hist_vol!I26=0,0, Hist_expenditure!I26*Assumptions!I$29/Hist_vol!I26) -> 0 | J26: =IF(Hist_vol!J26=0,0, Hist_expenditure!J26*Assumptions!J$29/Hist_vol!J26) -> 0 | K26: =IF(Hist_vol!K26=0,0, Hist_expenditure!K26*Assumptions!K$29/Hist_vol!K26) -> 0 | L26: =IF(Hist_vol!L26=0,0, Hist_expenditure!L26*Assumptions!L$29/Hist_vol!L26) -> 0 | M26: =IF(Hist_vol!M26=0,0, Hist_expenditure!M26*Assumptions!M$29/Hist_vol!M26) -> 0 | N26: =IF(Hist_vol!N26=0,0, Hist_expenditure!N26*Assumptions!N$29/Hist_vol!N26) -> 0 | O26: =IF(Hist_vol!O26=0,0, Hist_expenditure!O26*Assumptions!O$29/Hist_vol!O26) -> 0 | P26: =IF(Hist_vol!P26=0,0, Hist_expenditure!P26*Assumptions!P$29/Hist_vol!P26) -> 0 | Q26: =IF(Hist_vol!Q26=0,0, Hist_expenditure!Q26*Assumptions!Q$29/Hist_vol!Q26) -> 0 | R26: =IF(Hist_vol!R26=0,0, Hist_expenditure!R26*Assumptions!R$29/Hist_vol!R26) -> 0 | S26: =IF(Hist_vol!S26=0,0, Hist_expenditure!S26*Assumptions!S$29/Hist_vol!S26) -> 0
B27: =Hist_vol!B27 -> Connections | C27: =Hist_vol!C27 -> EG2 | D27: =Hist_vol!D27 -> Embedded generation | E27: =Hist_vol!E27 -> Complex connection HV (small capacity) | G27: =IF(Hist_vol!G27=0,0, Hist_expenditure!G27*Assumptions!G$29/Hist_vol!G27) -> 0 | H27: =IF(Hist_vol!H27=0,0, Hist_expenditure!H27*Assumptions!H$29/Hist_vol!H27) -> 0 | I27: =IF(Hist_vol!I27=0,0, Hist_expenditure!I27*Assumptions!I$29/Hist_vol!I27) -> 0 | J27: =IF(Hist_vol!J27=0,0, Hist_expenditure!J27*Assumptions!J$29/Hist_vol!J27) -> 0 | K27: =IF(Hist_vol!K27=0,0, Hist_expenditure!K27*Assumptions!K$29/Hist_vol!K27) -> 0 | L27: =IF(Hist_vol!L27=0,0, Hist_expenditure!L27*Assumptions!L$29/Hist_vol!L27) -> 0 | M27: =IF(Hist_vol!M27=0,0, Hist_expenditure!M27*Assumptions!M$29/Hist_vol!M27) -> 0 | N27: =IF(Hist_vol!N27=0,0, Hist_expenditure!N27*Assumptions!N$29/Hist_vol!N27) -> 0 | O27: =IF(Hist_vol!O27=0,0, Hist_expenditure!O27*Assumptions!O$29/Hist_vol!O27) -> 0 | P27: =IF(Hist_vol!P27=0,0, Hist_expenditure!P27*Assumptions!P$29/Hist_vol!P27) -> 0 | Q27: =IF(Hist_vol!Q27=0,0, Hist_expenditure!Q27*Assumptions!Q$29/Hist_vol!Q27) -> 0 | R27: =IF(Hist_vol!R27=0,0, Hist_expenditure!R27*Assumptions!R$29/Hist_vol!R27) -> 0 | S27: =IF(Hist_vol!S27=0,0, Hist_expenditure!S27*Assumptions!S$29/Hist_vol!S27) -> 0
B28: =Hist_vol!B28 -> Connections | C28: =Hist_vol!C28 -> EG3 | D28: =Hist_vol!D28 -> Embedded generation | E28: =Hist_vol!E28 -> Complex connection HV (large capacity) | G28: =IF(Hist_vol!G28=0,0, Hist_expenditure!G28*Assumptions!G$29/Hist_vol!G28) -> 0 | H28: =IF(Hist_vol!H28=0,0, Hist_expenditure!H28*Assumptions!H$29/Hist_vol!H28) -> 110683.5874 | I28: =IF(Hist_vol!I28=0,0, Hist_expenditure!I28*Assumptions!I$29/Hist_vol!I28) -> 108342.2038 | J28: =IF(Hist_vol!J28=0,0, Hist_expenditure!J28*Assumptions!J$29/Hist_vol!J28) -> 0 | K28: =IF(Hist_vol!K28=0,0, Hist_expenditure!K28*Assumptions!K$29/Hist_vol!K28) -> 0 | L28: =IF(Hist_vol!L28=0,0, Hist_expenditure!L28*Assumptions!L$29/Hist_vol!L28) -> 0 | M28: =IF(Hist_vol!M28=0,0, Hist_expenditure!M28*Assumptions!M$29/Hist_vol!M28) -> 0 | N28: =IF(Hist_vol!N28=0,0, Hist_expenditure!N28*Assumptions!N$29/Hist_vol!N28) -> 0 | O28: =IF(Hist_vol!O28=0,0, Hist_expenditure!O28*Assumptions!O$29/Hist_vol!O28) -> 0 | P28: =IF(Hist_vol!P28=0,0, Hist_expenditure!P28*Assumptions!P$29/Hist_vol!P28) -> 0 | Q28: =IF(Hist_vol!Q28=0,0, Hist_expenditure!Q28*Assumptions!Q$29/Hist_vol!Q28) -> 0 | R28: =IF(Hist_vol!R28=0,0, Hist_expenditure!R28*Assumptions!R$29/Hist_vol!R28) -> 0 | S28: =IF(Hist_vol!S28=0,0, Hist_expenditure!S28*Assumptions!S$29/Hist_vol!S28) -> 0

Sheet CC_ratio
A1: =Assumptions!$A$1 -> United Energy
A2: =Assumptions!$A$2 -> Connections
A3: Customer contribution ratio
B7: =Assumptions!B17 -> 2025/6 - 2030/31 reg period | G7: =Assumptions!G17 -> FALSE | H7: =Assumptions!H17 -> FALSE | I7: =Assumptions!I17 -> FALSE | J7: =Assumptions!J17 -> FALSE | K7: =Assumptions!K17 -> FALSE | L7: =Assumptions!L17 -> FALSE | M7: =Assumptions!M17 -> FALSE | N7: =Assumptions!N17 -> FALSE | O7: =Assumptions!O17 -> FALSE | P7: =Assumptions!P17 -> FALSE | Q7: =Assumptions!Q17 -> FALSE | R7: =Assumptions!R17 -> FALSE | S7: =Assumptions!S17 -> FALSE | T7: =Assumptions!T17 -> FALSE | U7: =Assumptions!U17 -> FALSE | V7: =Assumptions!V17 -> TRUE | W7: =Assumptions!W17 -> TRUE | X7: =Assumptions!X17 -> TRUE | Y7: =Assumptions!Y17 -> TRUE | Z7: =Assumptions!Z17 -> TRUE
B8: =Assumptions!B18 -> Forecast period | G8: =Assumptions!G18 -> FALSE | H8: =Assumptions!H18 -> FALSE | I8: =Assumptions!I18 -> FALSE | J8: =Assumptions!J18 -> FALSE | K8: =Assumptions!K18 -> FALSE | L8: =Assumptions!L18 -> FALSE | M8: =Assumptions!M18 -> FALSE | N8: =Assumptions!N18 -> FALSE | O8: =Assumptions!O18 -> FALSE | P8: =Assumptions!P18 -> FALSE | Q8: =Assumptions!Q18 -> FALSE | R8: =Assumptions!R18 -> FALSE | S8: =Assumptions!S18 -> FALSE | T8: =Assumptions!T18 -> TRUE | U8: =Assumptions!U18 -> TRUE | V8: =Assumptions!V18 -> TRUE | W8: =Assumptions!W18 -> TRUE | X8: =Assumptions!X18 -> TRUE | Y8: =Assumptions!Y18 -> TRUE | Z8: =Assumptions!Z18 -> TRUE
B9: =Assumptions!B19 -> Fin year end | G9: =Assumptions!G19 -> 2012 | H9: =Assumptions!H19 -> 2013 | I9: =Assumptions!I19 -> 2014 | J9: =Assumptions!J19 -> 2015 | K9: =Assumptions!K19 -> 2016 | L9: =Assumptions!L19 -> 2017 | M9: =Assumptions!M19 -> 2018 | N9: =Assumptions!N19 -> 2019 | O9: =Assumptions!O19 -> 2020 | P9: =Assumptions!P19 -> 2021 | Q9: =Assumptions!Q19 -> 2022 | R9: =Assumptions!R19 -> 2023 | S9: =Assumptions!S19 -> 2024 | T9: =Assumptions!T19 -> 2025 | U9: =Assumptions!U19 -> 2026 | V9: =Assumptions!V19 -> 2027 | W9: =Assumptions!W19 -> 2028 | X9: =Assumptions!X19 -> 2029 | Y9: =Assumptions!Y19 -> 2030 | Z9: =Assumptions!Z19 -> 2031
B10: =Assumptions!B20 -> Basis | G10: =Assumptions!G20 -> Actual | H10: =Assumptions!H20 -> Actual | I10: =Assumptions!I20 -> Actual | J10: =Assumptions!J20 -> Actual | K10: =Assumptions!K20 -> Actual | L10: =Assumptions!L20 -> Actual | M10: =Assumptions!M20 -> Actual | N10: =Assumptions!N20 -> Actual | O10: =Assumptions!O20 -> Actual | P10: =Assumptions!P20 -> Actual | Q10: =Assumptions!Q20 -> Actual | R10: =Assumptions!R20 -> Actual | S10: =Assumptions!S20 -> Actual | T10: =Assumptions!T20 -> Forecast | U10: =Assumptions!U20 -> Forecast | V10: =Assumptions!V20 -> Forecast | W10: =Assumptions!W20 -> Forecast | X10: =Assumptions!X20 -> Forecast | Y10: =Assumptions!Y20 -> Forecast | Z10: =Assumptions!Z20 -> Forecast
B13: =Hist_vol!B$13 -> Category | C13: Type | D13: =Hist_vol!D$13 -> RIN category | E13: =Hist_vol!E$13 -> Description | G13: =Assumptions!G$24 -> 2011/12 | H13: =Assumptions!H$24 -> 2012/13 | I13: =Assumptions!I$24 -> 2013/14 | J13: =Assumptions!J$24 -> 2014/15 | K13: =Assumptions!K$24 -> 2015/16 | L13: =Assumptions!L$24 -> 2016/17 | M13: =Assumptions!M$24 -> 2017/18 | N13: =Assumptions!N$24 -> 2018/19 | O13: =Assumptions!O$24 -> 2019/20 | P13: =Assumptions!P$24 -> 2020/21 | Q13: =Assumptions!Q$24 -> 2021/22 | R13: =Assumptions!R$24 -> 2022/23 | S13: =Assumptions!S$24 -> 2023/24 | T13: =Assumptions!T$24 -> 2024/25 | U13: =Assumptions!U$24 -> 2025/26 | V13: =Assumptions!V$24 -> 2026/27 | W13: =Assumptions!W$24 -> 2027/28 | X13: =Assumptions!X$24 -> 2028/29 | Y13: =Assumptions!Y$24 -> 2029/30 | Z13: =Assumptions!Z$24 -> 2030/31
B14: Contribution as % of spend
B15: =Hist_vol!B15 -> Connections | C15: =Hist_vol!C15 -> R1 | D15: =Hist_vol!D15 -> Residential | E15: =Hist_vol!E15 -> Simple connection LV | G15: =IF(Hist_expenditure!G15=0,0, Hist_contributions!G15/Hist_expenditure!G15) -> 0 | H15: =IF(Hist_expenditure!H15=0,0, Hist_contributions!H15/Hist_expenditure!H15) -> 0 | I15: =IF(Hist_expenditure!I15=0,0, Hist_contributions!I15/Hist_expenditure!I15) -> 0 | J15: =IF(Hist_expenditure!J15=0,0, Hist_contributions!J15/Hist_expenditure!J15) -> 0 | K15: =IF(Hist_expenditure!K15=0,0, Hist_contributions!K15/Hist_expenditure!K15) -> 0.5374855042 | L15: =IF(Hist_expenditure!L15=0,0, Hist_contributions!L15/Hist_expenditure!L15) -> 0.6114979334 | M15: =IF(Hist_expenditure!M15=0,0, Hist_contributions!M15/Hist_expenditure!M15) -> 0.7063304204 | N15: =IF(Hist_expenditure!N15=0,0, Hist_contributions!N15/Hist_expenditure!N15) -> 0.7693206838 | O15: =IF(Hist_expenditure!O15=0,0, Hist_contributions!O15/Hist_expenditure!O15) -> 0.895805409 | P15: =IF(Hist_expenditure!P15=0,0, Hist_contributions!P15/Hist_expenditure!P15) -> 0.9851914391 | Q15: =IF(Hist_expenditure!Q15=0,0, Hist_contributions!Q15/Hist_expenditure!Q15) -> 0.6113297869 | R15: =IF(Hist_expenditure!R15=0,0, Hist_contributions!R15/Hist_expenditure!R15) -> 0.9104732411 | S15: =IF(Hist_expenditure!S15=0,0, Hist_contributions!S15/Hist_expenditure!S15) -> 0.9947954862 | T15: 0.9104732411 | U15: =$T15 -> 0.9104732411 | V15: =$T15 -> 0.9104732411 | W15: 0.9104732411 | X15: 0.9104732411 | Y15: 0.9104732411 | Z15: 0.9104732411
B16: =Hist_vol!B16 -> Connections | C16: =Hist_vol!C16 -> R2 | D16: =Hist_vol!D16 -> Residential | E16: =Hist_vol!E16 -> Complex connection LV | G16: =IF(Hist_expenditure!G16=0,0, Hist_contributions!G16/Hist_expenditure!G16) -> 0 | H16: =IF(Hist_expenditure!H16=0,0, Hist_contributions!H16/Hist_expenditure!H16) -> 0 | I16: =IF(Hist_expenditure!I16=0,0, Hist_contributions!I16/Hist_expenditure!I16) -> 0 | J16: =IF(Hist_expenditure!J16=0,0, Hist_contributions!J16/Hist_expenditure!J16) -> 0 | K16: =IF(Hist_expenditure!K16=0,0, Hist_contributions!K16/Hist_expenditure!K16) -> 0 | L16: =IF(Hist_expenditure!L16=0,0, Hist_contributions!L16/Hist_expenditure!L16) -> 0 | M16: =IF(Hist_expenditure!M16=0,0, Hist_contributions!M16/Hist_expenditure!M16) -> 0 | N16: =IF(Hist_expenditure!N16=0,0, Hist_contributions!N16/Hist_expenditure!N16) -> 0 | O16: =IF(Hist_expenditure!O16=0,0, Hist_contributions!O16/Hist_expenditure!O16) -> 0 | P16: =IF(Hist_expenditure!P16=0,0, Hist_contributions!P16/Hist_expenditure!P16) -> 0 | Q16: =IF(Hist_expenditure!Q16=0,0, Hist_contributions!Q16/Hist_expenditure!Q16) -> 0 | R16: =IF(Hist_expenditure!R16=0,0, Hist_contributions!R16/Hist_expenditure!R16) -> 0 | S16: =IF(Hist_expenditure!S16=0,0, Hist_contributions!S16/Hist_expenditure!S16) -> 0 | T16: 0 | U16: =$T16 -> 0 | V16: 0 | W16: 0 | X16: 0 | Y16: 0 | Z16: 0
B17: =Hist_vol!B17 -> Connections | C17: =Hist_vol!C17 -> R3 | D17: =Hist_vol!D17 -> Residential | E17: =Hist_vol!E17 -> Complex connection HV | G17: =IF(Hist_expenditure!G17=0,0, Hist_contributions!G17/Hist_expenditure!G17) -> 0 | H17: =IF(Hist_expenditure!H17=0,0, Hist_contributions!H17/Hist_expenditure!H17) -> 0 | I17: =IF(Hist_expenditure!I17=0,0, Hist_contributions!I17/Hist_expenditure!I17) -> 0 | J17: =IF(Hist_expenditure!J17=0,0, Hist_contributions!J17/Hist_expenditure!J17) -> 0 | K17: =IF(Hist_expenditure!K17=0,0, Hist_contributions!K17/Hist_expenditure!K17) -> 0 | L17: =IF(Hist_expenditure!L17=0,0, Hist_contributions!L17/Hist_expenditure!L17) -> 0 | M17: =IF(Hist_expenditure!M17=0,0, Hist_contributions!M17/Hist_expenditure!M17) -> 0 | N17: =IF(Hist_expenditure!N17=0,0, Hist_contributions!N17/Hist_expenditure!N17) -> 0 | O17: =IF(Hist_expenditure!O17=0,0, Hist_contributions!O17/Hist_expenditure!O17) -> 0 | P17: =IF(Hist_expenditure!P17=0,0, Hist_contributions!P17/Hist_expenditure!P17) -> 0 | Q17: =IF(Hist_expenditure!Q17=0,0, Hist_contributions!Q17/Hist_expenditure!Q17) -> 0 | R17: =IF(Hist_expenditure!R17=0,0, Hist_contributions!R17/Hist_expenditure!R17) -> 0 | S17: =IF(Hist_expenditure!S17=0,0, Hist_contributions!S17/Hist_expenditure!S17) -> 0 | T17: 0 | U17: 0 | V17: 0 | W17: 0 | X17: 0 | Y17: 0 | Z17: 0
B18: =Hist_vol!B18 -> Connections | C18: =Hist_vol!C18 -> CI1 | D18: =Hist_vol!D18 -> Commercial/Industrial | E18: =Hist_vol!E18 -> Simple connection LV | G18: =IF(Hist_expenditure!G18=0,0, Hist_contributions!G18/Hist_expenditure!G18) -> 0.2603252444 | H18: =IF(Hist_expenditure!H18=0,0, Hist_contributions!H18/Hist_expenditure!H18) -> 0.2279116206 | I18: =IF(Hist_expenditure!I18=0,0, Hist_contributions!I18/Hist_expenditure!I18) -> 0.1804788124 | J18: =IF(Hist_expenditure!J18=0,0, Hist_contributions!J18/Hist_expenditure!J18) -> 0.3185043244 | K18: =IF(Hist_expenditure!K18=0,0, Hist_contributions!K18/Hist_expenditure!K18) -> 0.8249080813 | L18: =IF(Hist_expenditure!L18=0,0, Hist_contributions!L18/Hist_expenditure!L18) -> 1.231352838 | M18: =IF(Hist_expenditure!M18=0,0, Hist_contributions!M18/Hist_expenditure!M18) -> 1.055718424 | N18: =IF(Hist_expenditure!N18=0,0, Hist_contributions!N18/Hist_expenditure!N18) -> 0.8441395738 | O18: =IF(Hist_expenditure!O18=0,0, Hist_contributions!O18/Hist_expenditure!O18) -> 0.8070736265 | P18: =IF(Hist_expenditure!P18=0,0, Hist_contributions!P18/Hist_expenditure!P18) -> 0.5631227414 | Q18: =IF(Hist_expenditure!Q18=0,0, Hist_contributions!Q18/Hist_expenditure!Q18) -> 0.8371979696 | R18: =IF(Hist_expenditure!R18=0,0, Hist_contributions!R18/Hist_expenditure!R18) -> 0.7048637038 | S18: =IF(Hist_expenditure!S18=0,0, Hist_contributions!S18/Hist_expenditure!S18) -> 1.057097926 | T18: 0.8791891058 | U18: 0.8791891058 | V18: 0.8791891058 | W18: 0.8791891058 | X18: 0.8791891058 | Y18: 0.8791891058 | Z18: 0.8791891058
B19: =Hist_vol!B19 -> Connections | C19: =Hist_vol!C19 -> CI2 | D19: =Hist_vol!D19 -> Commercial/Industrial | E19: =Hist_vol!E19 -> Complex connection HV (customer connected at LV, minor HV works) | G19: =IF(Hist_expenditure!G19=0,0, Hist_contributions!G19/Hist_expenditure!G19) -> 0.2346815233 | H19: =IF(Hist_expenditure!H19=0,0, Hist_contributions!H19/Hist_expenditure!H19) -> 0.2097362944 | I19: =IF(Hist_expenditure!I19=0,0, Hist_contributions!I19/Hist_expenditure!I19) -> 0.174922805 | J19: =IF(Hist_expenditure!J19=0,0, Hist_contributions!J19/Hist_expenditure!J19) -> 0.3209521327 | K19: =IF(Hist_expenditure!K19=0,0, Hist_contributions!K19/Hist_expenditure!K19) -> 0.4864509621 | L19: =IF(Hist_expenditure!L19=0,0, Hist_contributions!L19/Hist_expenditure!L19) -> 0.6585273377 | M19: =IF(Hist_expenditure!M19=0,0, Hist_contributions!M19/Hist_expenditure!M19) -> 0.7485177795 | N19: =IF(Hist_expenditure!N19=0,0, Hist_contributions!N19/Hist_expenditure!N19) -> 0.7483645365 | O19: =IF(Hist_expenditure!O19=0,0, Hist_contributions!O19/Hist_expenditure!O19) -> 0.75062843 | P19: =IF(Hist_expenditure!P19=0,0, Hist_contributions!P19/Hist_expenditure!P19) -> 0.539237676 | Q19: =IF(Hist_expenditure!Q19=0,0, Hist_contributions!Q19/Hist_expenditure!Q19) -> 0.837197841 | R19: =IF(Hist_expenditure!R19=0,0, Hist_contributions!R19/Hist_expenditure!R19) -> 0.7048637693 | S19: =IF(Hist_expenditure!S19=0,0, Hist_contributions!S19/Hist_expenditure!S19) -> 1.057097885 | T19: 0.6254710423 | U19: 0.6254710423 | V19: 0.6254710423 | W19: 0.6254710423 | X19: 0.6254710423 | Y19: 0.6254710423 | Z19: 0.6254710423
B20: =Hist_vol!B20 -> Connections | C20: =Hist_vol!C20 -> CI3 | D20: =Hist_vol!D20 -> Commercial/Industrial | E20: =Hist_vol!E20 -> Complex connection HV (customer connected at LV, upstream asset works) | G20: =IF(Hist_expenditure!G20=0,0, Hist_contributions!G20/Hist_expenditure!G20) -> 0.2045756578 | H20: =IF(Hist_expenditure!H20=0,0, Hist_contributions!H20/Hist_expenditure!H20) -> 0.3598860607 | I20: =IF(Hist_expenditure!I20=0,0, Hist_contributions!I20/Hist_expenditure!I20) -> 0.2795857569 | J20: =IF(Hist_expenditure!J20=0,0, Hist_contributions!J20/Hist_expenditure!J20) -> 0.3368683545 | K20: =IF(Hist_expenditure!K20=0,0, Hist_contributions!K20/Hist_expenditure!K20) -> 0.4154754892 | L20: =IF(Hist_expenditure!L20=0,0, Hist_contributions!L20/Hist_expenditure!L20) -> 0.5671456617 | M20: =IF(Hist_expenditure!M20=0,0, Hist_contributions!M20/Hist_expenditure!M20) -> 0.6698079643 | N20: =IF(Hist_expenditure!N20=0,0, Hist_contributions!N20/Hist_expenditure!N20) -> 0.7036085777 | O20: =IF(Hist_expenditure!O20=0,0, Hist_contributions!O20/Hist_expenditure!O20) -> 0.7245239038 | P20: =IF(Hist_expenditure!P20=0,0, Hist_contributions!P20/Hist_expenditure!P20) -> 0 | Q20: =IF(Hist_expenditure!Q20=0,0, Hist_contributions!Q20/Hist_expenditure!Q20) -> 0.8371978273 | R20: =IF(Hist_expenditure!R20=0,0, Hist_contributions!R20/Hist_expenditure!R20) -> 0.7048638533 | S20: =IF(Hist_expenditure!S20=0,0, Hist_contributions!S20/Hist_expenditure!S20) -> 1.057097923 | T20: 0.7048638533 | U20: 0.7048638533 | V20: 0.7048638533 | W20: 0.7048638533 | X20: 0.7048638533 | Y20: 0.7048638533 | Z20: 0.7048638533
B21: =Hist_vol!B21 -> Connections | C21: =Hist_vol!C21 -> CI4 | D21: =Hist_vol!D21 -> Commercial/Industrial | E21: =Hist_vol!E21 -> Complex connection HV (customer connected at HV) | G21: =IF(Hist_expenditure!G21=0,0, Hist_contributions!G21/Hist_expenditure!G21) -> 0.1457544808 | H21: =IF(Hist_expenditure!H21=0,0, Hist_contributions!H21/Hist_expenditure!H21) -> 0.09718414771 | I21: =IF(Hist_expenditure!I21=0,0, Hist_contributions!I21/Hist_expenditure!I21) -> 0.1534062479 | J21: =IF(Hist_expenditure!J21=0,0, Hist_contributions!J21/Hist_expenditure!J21) -> 0.3417822821 | K21: =IF(Hist_expenditure!K21=0,0, Hist_contributions!K21/Hist_expenditure!K21) -> 0.5911911211 | L21: =IF(Hist_expenditure!L21=0,0, Hist_contributions!L21/Hist_expenditure!L21) -> 0.8308522283 | M21: =IF(Hist_expenditure!M21=0,0, Hist_contributions!M21/Hist_expenditure!M21) -> 0.809997679 | N21: =IF(Hist_expenditure!N21=0,0, Hist_contributions!N21/Hist_expenditure!N21) -> 0.793466601 | O21: =IF(Hist_expenditure!O21=0,0, Hist_contributions!O21/Hist_expenditure!O21) -> 0.8109985647 | P21: =IF(Hist_expenditure!P21=0,0, Hist_contributions!P21/Hist_expenditure!P21) -> 0.609563014 | Q21: =IF(Hist_expenditure!Q21=0,0, Hist_contributions!Q21/Hist_expenditure!Q21) -> 0.8371979176 | R21: =IF(Hist_expenditure!R21=0,0, Hist_contributions!R21/Hist_expenditure!R21) -> 0.7048637831 | S21: =IF(Hist_expenditure!S21=0,0, Hist_contributions!S21/Hist_expenditure!S21) -> 1.057097889 | T21: 0.5990480127 | U21: 0.5990480127 | V21: 0.5990480127 | W21: 0.5990480127 | X21: 0.5990480127 | Y21: 0.5990480127 | Z21: 0.5990480127
B22: =Hist_vol!B22 -> Connections | C22: =Hist_vol!C22 -> CI5 | D22: =Hist_vol!D22 -> Commercial/Industrial | E22: =Hist_vol!E22 -> Complex connection sub-transmission | G22: =IF(Hist_expenditure!G22=0,0, Hist_contributions!G22/Hist_expenditure!G22) -> 0 | H22: =IF(Hist_expenditure!H22=0,0, Hist_contributions!H22/Hist_expenditure!H22) -> 0 | I22: =IF(Hist_expenditure!I22=0,0, Hist_contributions!I22/Hist_expenditure!I22) -> 0 | J22: =IF(Hist_expenditure!J22=0,0, Hist_contributions!J22/Hist_expenditure!J22) -> 0 | K22: =IF(Hist_expenditure!K22=0,0, Hist_contributions!K22/Hist_expenditure!K22) -> 0 | L22: =IF(Hist_expenditure!L22=0,0, Hist_contributions!L22/Hist_expenditure!L22) -> 0 | M22: =IF(Hist_expenditure!M22=0,0, Hist_contributions!M22/Hist_expenditure!M22) -> 0 | N22: =IF(Hist_expenditure!N22=0,0, Hist_contributions!N22/Hist_expenditure!N22) -> 0 | O22: =IF(Hist_expenditure!O22=0,0, Hist_contributions!O22/Hist_expenditure!O22) -> 0 | P22: =IF(Hist_expenditure!P22=0,0, Hist_contributions!P22/Hist_expenditure!P22) -> 0 | Q22: =IF(Hist_expenditure!Q22=0,0, Hist_contributions!Q22/Hist_expenditure!Q22) -> 0.8372997356 | R22: =IF(Hist_expenditure!R22=0,0, Hist_contributions!R22/Hist_expenditure!R22) -> 0.7048558845 | S22: =IF(Hist_expenditure!S22=0,0, Hist_contributions!S22/Hist_expenditure!S22) -> 1.057098324 | T22: 0.7048558845 | U22: 0.7048558845 | V22: 0.7048558845 | W22: 0.7048558845 | X22: 0.7048558845 | Y22: 0.7048558845 | Z22: 0.7048558845
B23: =Hist_vol!B23 -> Connections | C23: =Hist_vol!C23 -> S1 | D23: =Hist_vol!D23 -> Subdivision | E23: =Hist_vol!E23 -> Complex connection LV | G23: =IF(Hist_expenditure!G23=0,0, Hist_contributions!G23/Hist_expenditure!G23) -> 0.2316122217 | H23: =IF(Hist_expenditure!H23=0,0, Hist_contributions!H23/Hist_expenditure!H23) -> 0.2125139816 | I23: =IF(Hist_expenditure!I23=0,0, Hist_contributions!I23/Hist_expenditure!I23) -> 0.1872299447 | J23: =IF(Hist_expenditure!J23=0,0, Hist_contributions!J23/Hist_expenditure!J23) -> 0.3208526011 | K23: =IF(Hist_expenditure!K23=0,0, Hist_contributions!K23/Hist_expenditure!K23) -> 0.4468082405 | L23: =IF(Hist_expenditure!L23=0,0, Hist_contributions!L23/Hist_expenditure!L23) -> 0.8497717055 | M23: =IF(Hist_expenditure!M23=0,0, Hist_contributions!M23/Hist_expenditure!M23) -> 1.189572592 | N23: =IF(Hist_expenditure!N23=0,0, Hist_contributions!N23/Hist_expenditure!N23) -> 0.966902863 | O23: =IF(Hist_expenditure!O23=0,0, Hist_contributions!O23/Hist_expenditure!O23) -> 0.9669252881 | P23: =IF(Hist_expenditure!P23=0,0, Hist_contributions!P23/Hist_expenditure!P23) -> 0.61584336 | Q23: =IF(Hist_expenditure!Q23=0,0, Hist_contributions!Q23/Hist_expenditure!Q23) -> 0.4751828784 | R23: =IF(Hist_expenditure!R23=0,0, Hist_contributions!R23/Hist_expenditure!R23) -> 0.366541475 | S23: =IF(Hist_expenditure!S23=0,0, Hist_contributions!S23/Hist_expenditure!S23) -> 0.243678276 | T23: 0.8885915835 | U23: 0.8885915835 | V23: 0.8885915835 | W23: 0.8885915835 | X23: 0.8885915835 | Y23: 0.8885915835 | Z23: 0.8885915835
B24: =Hist_vol!B24 -> Connections | C24: =Hist_vol!C24 -> S2 | D24: =Hist_vol!D24 -> Subdivision | E24: =Hist_vol!E24 -> Complex connection HV (no upstream asset works) | G24: =IF(Hist_expenditure!G24=0,0, Hist_contributions!G24/Hist_expenditure!G24) -> 0.2214395111 | H24: =IF(Hist_expenditure!H24=0,0, Hist_contributions!H24/Hist_expenditure!H24) -> 0.1843128825 | I24: =IF(Hist_expenditure!I24=0,0, Hist_contributions!I24/Hist_expenditure!I24) -> 0.1898780845 | J24: =IF(Hist_expenditure!J24=0,0, Hist_contributions!J24/Hist_expenditure!J24) -> 0.3144922835 | K24: =IF(Hist_expenditure!K24=0,0, Hist_contributions!K24/Hist_expenditure!K24) -> 0.7360538649 | L24: =IF(Hist_expenditure!L24=0,0, Hist_contributions!L24/Hist_expenditure!L24) -> 1.13527463 | M24: =IF(Hist_expenditure!M24=0,0, Hist_contributions!M24/Hist_expenditure!M24) -> 1.244807331 | N24: =IF(Hist_expenditure!N24=0,0, Hist_contributions!N24/Hist_expenditure!N24) -> 0.9965608421 | O24: =IF(Hist_expenditure!O24=0,0, Hist_contributions!O24/Hist_expenditure!O24) -> 0.9796118024 | P24: =IF(Hist_expenditure!P24=0,0, Hist_contributions!P24/Hist_expenditure!P24) -> 0.5882643913 | Q24: =IF(Hist_expenditure!Q24=0,0, Hist_contributions!Q24/Hist_expenditure!Q24) -> 0.4751836443 | R24: =IF(Hist_expenditure!R24=0,0, Hist_contributions!R24/Hist_expenditure!R24) -> 0.3665414799 | S24: =IF(Hist_expenditure!S24=0,0, Hist_contributions!S24/Hist_expenditure!S24) -> 0.2436782861 | T24: 0.6732592451 | U24: 0.6732592451 | V24: 0.6732592451 | W24: 0.6732592451 | X24: 0.6732592451 | Y24: 0.6732592451 | Z24: 0.6732592451
B25: =Hist_vol!B25 -> Connections | C25: =Hist_vol!C25 -> S3 | D25: =Hist_vol!D25 -> Subdivision | E25: =Hist_vol!E25 -> Complex connection HV (with upstream asset works) | G25: =IF(Hist_expenditure!G25=0,0, Hist_contributions!G25/Hist_expenditure!G25) -> 0 | H25: =IF(Hist_expenditure!H25=0,0, Hist_contributions!H25/Hist_expenditure!H25) -> 0 | I25: =IF(Hist_expenditure!I25=0,0, Hist_contributions!I25/Hist_expenditure!I25) -> 0 | J25: =IF(Hist_expenditure!J25=0,0, Hist_contributions!J25/Hist_expenditure!J25) -> 0 | K25: =IF(Hist_expenditure!K25=0,0, Hist_contributions!K25/Hist_expenditure!K25) -> 0 | L25: =IF(Hist_expenditure!L25=0,0, Hist_contributions!L25/Hist_expenditure!L25) -> 0.6721656646 | M25: =IF(Hist_expenditure!M25=0,0, Hist_contributions!M25/Hist_expenditure!M25) -> 0.4777121085 | N25: =IF(Hist_expenditure!N25=0,0, Hist_contributions!N25/Hist_expenditure!N25) -> 0.4886124541 | O25: =IF(Hist_expenditure!O25=0,0, Hist_contributions!O25/Hist_expenditure!O25) -> 0.6521964677 | P25: =IF(Hist_expenditure!P25=0,0, Hist_contributions!P25/Hist_expenditure!P25) -> 0 | Q25: =IF(Hist_expenditure!Q25=0,0, Hist_contributions!Q25/Hist_expenditure!Q25) -> 0 | R25: =IF(Hist_expenditure!R25=0,0, Hist_contributions!R25/Hist_expenditure!R25) -> 0 | S25: =IF(Hist_expenditure!S25=0,0, Hist_contributions!S25/Hist_expenditure!S25) -> 0 | T25: 0 | U25: 0 | V25: 0 | W25: 0 | X25: 0 | Y25: 0 | Z25: 0
B26: =Hist_vol!B26 -> Connections | C26: =Hist_vol!C26 -> EG1 | D26: =Hist_vol!D26 -> Embedded generation | E26: =Hist_vol!E26 -> Simple connection LV | G26: =IF(Hist_expenditure!G26=0,0, Hist_contributions!G26/Hist_expenditure!G26) -> 0.3786502196 | H26: =IF(Hist_expenditure!H26=0,0, Hist_contributions!H26/Hist_expenditure!H26) -> 0.3786502196 | I26: =IF(Hist_expenditure!I26=0,0, Hist_contributions!I26/Hist_expenditure!I26) -> 0 | J26: =IF(Hist_expenditure!J26=0,0, Hist_contributions!J26/Hist_expenditure!J26) -> 0 | K26: =IF(Hist_expenditure!K26=0,0, Hist_contributions!K26/Hist_expenditure!K26) -> 0 | L26: =IF(Hist_expenditure!L26=0,0, Hist_contributions!L26/Hist_expenditure!L26) -> 0 | M26: =IF(Hist_expenditure!M26=0,0, Hist_contributions!M26/Hist_expenditure!M26) -> 0 | N26: =IF(Hist_expenditure!N26=0,0, Hist_contributions!N26/Hist_expenditure!N26) -> 0 | O26: =IF(Hist_expenditure!O26=0,0, Hist_contributions!O26/Hist_expenditure!O26) -> 0 | P26: =IF(Hist_expenditure!P26=0,0, Hist_contributions!P26/Hist_expenditure!P26) -> 0 | Q26: =IF(Hist_expenditure!Q26=0,0, Hist_contributions!Q26/Hist_expenditure!Q26) -> 0 | R26: =IF(Hist_expenditure!R26=0,0, Hist_contributions!R26/Hist_expenditure!R26) -> 0 | S26: =IF(Hist_expenditure!S26=0,0, Hist_contributions!S26/Hist_expenditure!S26) -> 0 | T26: 1 | U26: 1 | V26: 1 | W26: 1 | X26: 1 | Y26: 1 | Z26: 1
B27: =Hist_vol!B27 -> Connections | C27: =Hist_vol!C27 -> EG2 | D27: =Hist_vol!D27 -> Embedded generation | E27: =Hist_vol!E27 -> Complex connection HV (small capacity) | G27: =IF(Hist_expenditure!G27=0,0, Hist_contributions!G27/Hist_expenditure!G27) -> 0.3786502196 | H27: =IF(Hist_expenditure!H27=0,0, Hist_contributions!H27/Hist_expenditure!H27) -> 0.3786502196 | I27: =IF(Hist_expenditure!I27=0,0, Hist_contributions!I27/Hist_expenditure!I27) -> 0 | J27: =IF(Hist_expenditure!J27=0,0, Hist_contributions!J27/Hist_expenditure!J27) -> 0 | K27: =IF(Hist_expenditure!K27=0,0, Hist_contributions!K27/Hist_expenditure!K27) -> 0 | L27: =IF(Hist_expenditure!L27=0,0, Hist_contributions!L27/Hist_expenditure!L27) -> 0 | M27: =IF(Hist_expenditure!M27=0,0, Hist_contributions!M27/Hist_expenditure!M27) -> 0 | N27: =IF(Hist_expenditure!N27=0,0, Hist_contributions!N27/Hist_expenditure!N27) -> 0 | O27: =IF(Hist_expenditure!O27=0,0, Hist_contributions!O27/Hist_expenditure!O27) -> 0 | P27: =IF(Hist_expenditure!P27=0,0, Hist_contributions!P27/Hist_expenditure!P27) -> 0.5897247166 | Q27: =IF(Hist_expenditure!Q27=0,0, Hist_contributions!Q27/Hist_expenditure!Q27) -> 0.1827653062 | R27: =IF(Hist_expenditure!R27=0,0, Hist_contributions!R27/Hist_expenditure!R27) -> 0.1428801226 | S27: =IF(Hist_expenditure!S27=0,0, Hist_contributions!S27/Hist_expenditure!S27) -> 3.907067585 | T27: 1 | U27: 1 | V27: 1 | W27: 1 | X27: 1 | Y27: 1 | Z27: 1
B28: =Hist_vol!B28 -> Connections | C28: =Hist_vol!C28 -> EG3 | D28: =Hist_vol!D28 -> Embedded generation | E28: =Hist_vol!E28 -> Complex connection HV (large capacity) | G28: =IF(Hist_expenditure!G28=0,0, Hist_contributions!G28/Hist_expenditure!G28) -> 0 | H28: =IF(Hist_expenditure!H28=0,0, Hist_contributions!H28/Hist_expenditure!H28) -> 0.05098046841 | I28: =IF(Hist_expenditure!I28=0,0, Hist_contributions!I28/Hist_expenditure!I28) -> 0.05098046841 | J28: =IF(Hist_expenditure!J28=0,0, Hist_contributions!J28/Hist_expenditure!J28) -> 0 | K28: =IF(Hist_expenditure!K28=0,0, Hist_contributions!K28/Hist_expenditure!K28) -> 0 | L28: =IF(Hist_expenditure!L28=0,0, Hist_contributions!L28/Hist_expenditure!L28) -> 0 | M28: =IF(Hist_expenditure!M28=0,0, Hist_contributions!M28/Hist_expenditure!M28) -> 0 | N28: =IF(Hist_expenditure!N28=0,0, Hist_contributions!N28/Hist_expenditure!N28) -> 0 | O28: =IF(Hist_expenditure!O28=0,0, Hist_contributions!O28/Hist_expenditure!O28) -> 0 | P28: =IF(Hist_expenditure!P28=0,0, Hist_contributions!P28/Hist_expenditure!P28) -> 0 | Q28: =IF(Hist_expenditure!Q28=0,0, Hist_contributions!Q28/Hist_expenditure!Q28) -> 0 | R28: =IF(Hist_expenditure!R28=0,0, Hist_contributions!R28/Hist_expenditure!R28) -> 0 | S28: =IF(Hist_expenditure!S28=0,0, Hist_contributions!S28/Hist_expenditure!S28) -> 0 | T28: 1 | U28: 1 | V28: 1 | W28: 1 | X28: 1 | Y28: 1 | Z28: 1

Sheet Macromonitor
A1: =Assumptions!$A$1 -> United Energy
A2: =Assumptions!$A$2 -> Connections
A3: Macromonitor Forecast
B7: Category | C7: Type | D7: =Hist_vol!D$13 -> RIN category | E7: =Hist_vol!E$13 -> Description | H7: 2023/24 | I7: 2024/25 | J7: 2025/26 | K7: 2026/27 | L7: 2027/28 | M7: 2028/29 | N7: 2029/30 | O7: 2030/31
I8: forecast | J8: forecast | K8: forecast | L8: forecast | M8: forecast | N8: forecast | O8: forecast
B9: Connections | C9: R1 | D9: Residential | E9: Simple connection LV | H9: =$M$36 -> -0.03722420921 | I9: =TRANSPOSE($M$38:$M$44) -> 0.140668672 | J9: 0.1327495143 | K9: 0.1302331798 | L9: -0.03961908271 | M9: -0.05021724997 | N9: 0.01612766932 | O9: 0.03621545016
B10: Connections | C10: R2 | D10: Residential | E10: Complex connection LV | H10: =$M$36 -> -0.03722420921 | I10: =TRANSPOSE($M$38:$M$44) -> 0.140668672 | J10: 0.1327495143 | K10: 0.1302331798 | L10: -0.03961908271 | M10: -0.05021724997 | N10: 0.01612766932 | O10: 0.03621545016
B11: Connections | C11: R3 | D11: Residential | E11: Complex connection HV | H11: -0.03722420921 | I11: =TRANSPOSE($M$38:$M$44) -> 0.140668672 | J11: 0.1327495143 | K11: 0.1302331798 | L11: -0.03961908271 | M11: -0.05021724997 | N11: 0.01612766932 | O11: 0.03621545016
B12: Connections | C12: CI1 | D12: Commercial/Industrial | E12: Simple connection LV | H12: =$M$61 -> -0.1103631896 | I12: =TRANSPOSE($M$63:$M$69) -> -0.2095697954 | J12: 0.07178301935 | K12: 0.1342191225 | L12: 0.04546567838 | M12: 0.01700109583 | N12: 0.020028106 | O12: -0.001911413793
B13: Connections | C13: CI2 | D13: Commercial/Industrial | E13: Complex connection HV (customer connected at LV, minor HV works) | H13: =$M$61 -> -0.1103631896 | I13: =TRANSPOSE($M$63:$M$69) -> -0.2095697954 | J13: 0.07178301935 | K13: 0.1342191225 | L13: 0.04546567838 | M13: 0.01700109583 | N13: 0.020028106 | O13: -0.001911413793
B14: Connections | C14: CI3 | D14: Commercial/Industrial | E14: Complex connection HV (customer connected at LV, upstream asset works) | H14: -0.1103631896 | I14: =TRANSPOSE($M$63:$M$69) -> -0.2095697954 | J14: 0.07178301935 | K14: 0.1342191225 | L14: 0.04546567838 | M14: 0.01700109583 | N14: 0.020028106 | O14: -0.001911413793
B15: Connections | C15: CI4 | D15: Commercial/Industrial | E15: Complex connection HV (customer connected at HV) | H15: -0.1103631896 | I15: =TRANSPOSE($M$63:$M$69) -> -0.2095697954 | J15: 0.07178301935 | K15: 0.1342191225 | L15: 0.04546567838 | M15: 0.01700109583 | N15: 0.020028106 | O15: -0.001911413793
B16: Connections | C16: CI5 | D16: Commercial/Industrial | E16: Complex connection sub-transmission | H16: -0.1103631896 | I16: =TRANSPOSE($M$63:$M$69) -> -0.2095697954 | J16: 0.07178301935 | K16: 0.1342191225 | L16: 0.04546567838 | M16: 0.01700109583 | N16: 0.020028106 | O16: -0.001911413793
B17: Connections | C17: S1 | D17: Subdivision | E17: Complex connection LV | H17: =$M$36 -> -0.03722420921 | I17: =TRANSPOSE($M$38:$M$44) -> 0.140668672 | J17: 0.1327495143 | K17: 0.1302331798 | L17: -0.03961908271 | M17: -0.05021724997 | N17: 0.01612766932 | O17: 0.03621545016
B18: Connections | C18: S2 | D18: Subdivision | E18: Complex connection HV (no upstream asset works) | H18: =$M$36 -> -0.03722420921 | I18: =TRANSPOSE($M$38:$M$44) -> 0.140668672 | J18: 0.1327495143 | K18: 0.1302331798 | L18: -0.03961908271 | M18: -0.05021724997 | N18: 0.01612766932 | O18: 0.03621545016
B19: Connections | C19: S3 | D19: Subdivision | E19: Complex connection HV (with upstream asset works) | H19: -0.03722420921 | I19: =TRANSPOSE($M$38:$M$44) -> 0.140668672 | J19: 0.1327495143 | K19: 0.1302331798 | L19: -0.03961908271 | M19: -0.05021724997 | N19: 0.01612766932 | O19: 0.03621545016
B20: Connections | C20: EG1 | D20: Embedded generation | E20: Simple connection LV | H20: =$L$90 -> -0.5385473088 | I20: =TRANSPOSE($L$92:$L$98) -> -0.5999905957 | J20: 0.0001189940359 | K20: 2.000614166 | L20: 1.500111731 | M20: -0.0002346961364 | N20: 0.1665679493 | O20: -4.109546732e-06
B21: Connections | C21: EG2 | D21: Embedded generation | E21: Complex connection HV (small capacity) | H21: =$L$90 -> -0.5385473088 | I21: =TRANSPOSE($L$92:$L$98) -> -0.5999905957 | J21: 0.0001189940359 | K21: 2.000614166 | L21: 1.500111731 | M21: -0.0002346961364 | N21: 0.1665679493 | O21: -4.109546732e-06
B22: Connections | C22: EG3 | D22: Embedded generation | E22: Complex connection HV (large capacity) | H22: -0.5385473088 | I22: =TRANSPOSE($L$92:$L$98) -> -0.5999905957 | J22: 0.0001189940359 | K22: 2.000614166 | L22: 1.500111731 | M22: -0.0002346961364 | N22: 0.1665679493 | O22: -4.109546732e-06
B25: Residential
B26: Estimated Number of Dwellings Commenced
B27: Numbers
B28: Year Ended June | C28: CitiPower | E28: United Energy | G28: Powercor | I28: Other Regions | K28: Victoria
C31: Annual | D31: A%Ch | E31: Annual | F31: A%Ch | G31: Annual | H31: A%Ch | I31: Annual | J31: A%Ch | K31: Annual | L31: A%Ch
B32: 2020-06-01 | C32: 9151.604912 | E32: 10331.94036 | G32: 19144.34476 | I32: =K32-G32-E32-C32 -> 20095.10997 | K32: 58723
B33: 2021-06-01 | C33: 5240.671963 | D33: =((C33/C32-1)*100) -> -42.73494089 | E33: 11281.15188 | F33: =((E33/E32-1)*100) -> 9.18715637 | G33: 26755.96783 | H33: =((G33/G32-1)*100) -> 39.75912033 | I33: 24131.20833 | J33: =((I33/I32-1)*100) -> 20.08497774 | K33: 67409 | L33: =((K33/K32-1)*100) -> 14.79147864
B34: 2022-06-01 | C34: 7116.85873 | D34: 35.80050002 | E34: 12394.63589 | F34: 9.870304237 | G34: 23889.11063 | H34: -10.71483271 | I34: 23873.39475 | J34: -1.068382411 | K34: 67274 | L34: -0.2002699936
B35: 2023-06-01 | C35: 6485.291041 | D35: -8.874247938 | E35: 9143.662179 | F35: -26.22887626 | G35: 20837.03662 | H35: -12.77600518 | I35: 18420.01016 | J35: -22.84293728 | K35: 54886 | L35: -18.41424622
B36: 2024-06-01 | C36: 5971.463806 | D36: -7.922963387 | E36: 8803.296585 | F36: -3.722420921 | G36: 17906.95044 | H36: -14.06191403 | I36: 20421.18717 | J36: 10.86414714 | K36: 53102.898 | L36: -3.24873738 | M36: =F36/100 -> -0.03722420921
B37: Forecasts | M37: Growth rate - UE
B38: 2025-06-01 | C38: 7091.649969 | D38: =((C38/C36-1)*100) -> 18.75898773 | E38: 10041.64462 | F38: =((E38/E36-1)*100) -> 14.0668672 | G38: 18869.2242 | H38: =((G38/G36-1)*100) -> 5.373744433 | I38: 20610.80793 | J38: =((I38/I36-1)*100) -> 0.9285491703 | K38: 56613.32672 | L38: =((K38/K36-1)*100) -> 6.610616089 | M38: =F38/100 -> 0.140668672
B39: 2026-06-01 | C39: 9507.179627 | D39: 34.06160299 | E39: 11374.66807 | F39: 13.27495143 | G39: 21044.64047 | H39: 11.52891211 | I39: 23489.04902 | J39: 13.96471743 | K39: 65415.53719 | L39: 15.54794776 | M39: =F39/100 -> 0.1327495143
B40: 2027-06-01 | C40: 10733.18205 | D40: 12.89554289 | E40: 12856.02726 | F40: 13.02331798 | G40: 23650.93959 | H40: 12.38462176 | I40: 26650.82433 | J40: 13.46063568 | K40: 73890.97324 | L40: 12.95630429 | M40: 0.1302331798
B41: 2028-06-01 | C41: 10242.30372 | D41: -4.573465043 | E41: 12346.68326 | F41: -3.961908271 | G41: 23444.945 | H41: -0.8709784624 | I41: 25866.34153 | J41: -2.943559243 | K41: 71900.27351 | L41: -2.694104087 | M41: -0.03961908271
B42: 2029-06-01 | C42: 9230.624076 | D42: -9.877461897 | E42: 11726.66678 | F42: -5.021724997 | G42: 21992.43652 | H42: -6.195401543 | I42: 24373.69933 | J42: -5.770596485 | K42: 67323.4267 | L42: -6.365548534 | M42: -0.05021724997
B43: 2030-06-01 | C43: 8895.061069 | D43: -3.635323075 | E43: 11915.79058 | F43: 1.612766932 | G43: 22139.10006 | H43: 0.6668817382 | I43: 24706.46893 | J43: 1.365281447 | K43: 67656.42064 | L43: 0.49461822 | M43: 0.01612766932
B44: 2031-06-01 | C44: 9345.173403 | D44: 5.060250064 | E44: 12347.3263 | F44: 3.621545016 | G44: 22659.44723 | H44: 2.350353771 | I44: 25440.25029 | J44: 2.969996915 | K44: 69792.19723 | L44: 3.156798085 | M44: 0.03621545016
L45: Source: ABS & Macromonitor
B47: Non Residential
B48: Estimated Value of Non-Residential Building Work Done
B49: Chain Volume Measures - 2021/22 Prices
B51: Year Ended June | C51: CitiPower | E51: United Energy | G51: Powercor | I51: Other Regions | K51: Victoria
C54: $M | D54: A%Ch | E54: $M | F54: A%Ch | G54: $M | H54: A%Ch | I54: $M | J54: A%Ch | K54: $M | L54: A%Ch
B55: 2018-06-01 | C55: 4617.706984 | E55: 3085.425466 | G55: 3078.393559 | I55: 2750.088567 | K55: 13531.61438
B56: 2019-06-01 | C56: 5414.364119 | D56: =((C56/C55-1)*100) -> 17.25222362 | E56: 2732.822329 | F56: -11.42802316 | G56: 3069.916262 | H56: -0.2753805339 | I56: 3214.968335 | J56: =((I56/I55-1)*100) -> 16.90417441 | K56: 14432.07091 | L56: 6.654464963
B57: 2020-06-01 | C57: 5783.360619 | D57: 6.815140103 | E57: 2672.812028 | F57: -2.19590936 | G57: 3471.087807 | H57: 13.06783347 | I57: 3713.534434 | J57: =((I57/I56-1)*100) -> 15.50765193 | K57: 15640.79489 | L57: 8.375263547
B58: 2021-06-01 | C58: 4623.711045 | D58: -20.05148306 | E58: 2367.97981 | F58: -11.40492541 | G58: 3936.047586 | H58: 13.395218 | I58: 3635.537544 | J58: -2.10034109 | K58: 14563.27598 | L58: -6.889156921
B59: 2022-06-01 | C59: 4612.490685 | D59: -0.2426700043 | E59: 2719.491283 | F59: 14.84436106 | G59: 4173.997529 | H59: 6.045403097 | I59: 4036.716473 | J59: 11.03492741 | K59: 15542.69597 | L59: 6.72527243
B60: 2023-06-01 | C60: 4677.633719 | D60: 1.412317964 | E60: 3160.67025 | F60: 16.2228491 | G60: 4693.230325 | H60: 12.43970062 | I60: 4775.617756 | J60: 18.30451279 | K60: 17307.15205 | L60: 11.35231677
B61: 2024-06-01 | C61: 4095.957515 | D61: =((C61/C60-1)*100) -> -12.43526619 | E61: 2811.8486 | F61: =((E61/E60-1)*100) -> -11.03631896 | G61: 5243.690936 | H61: =((G61/G60-1)*100) -> 11.72882157 | I61: 5077.920582 | J61: =((I61/I60-1)*100) -> 6.330130282 | K61: 17229.41763 | L61: =((K61/K60-1)*100) -> -0.4491462122 | M61: =F61/100 -> -0.1103631896
B62: Forecasts | M62: Growth rate - UE
B63: 2025-06-01 | C63: 3949.890574 | D63: =((C63/C61-1)*100) -> -3.566124409 | E63: 2222.570064 | F63: =((E63/E61-1)*100) -> -20.95697954 | G63: 4896.573766 | H63: =((G63/G61-1)*100) -> -6.619710702 | I63: 4771.749516 | J63: =((I63/I61-1)*100) -> -6.02945755 | K63: 15840.78392 | L63: =((K63/K61-1)*100) -> -8.059667147 | M63: =F63/100 -> -0.2095697954
B64: 2026-06-01 | C64: 4354.572732 | D64: =((C64/C63-1)*100) -> 10.24540175 | E64: 2382.112854 | F64: =((E64/E63-1)*100) -> 7.178301935 | G64: 4092.211891 | H64: =((G64/G63-1)*100) -> -16.42703477 | I64: 4324.213062 | J64: =((I64/I63-1)*100) -> -9.378875656 | K64: 15153.11054 | L64: =((K64/K63-1)*100) -> -4.341157511 | M64: =F64/100 -> 0.07178301935
B65: 2027-06-01 | C65: 4280.802386 | D65: -1.694089206 | E65: 2701.837951 | F65: 13.42191225 | G65: 4070.711392 | H65: -0.525400426 | I65: 4254.872517 | J65: -1.60354138 | K65: 15308.22425 | L65: 1.023642673 | M65: 0.1342191225
B66: 2028-06-01 | C66: 4408.976638 | D66: 2.99416419 | E66: 2824.678847 | F66: 4.546567838 | G66: 4159.253134 | H66: 2.175092605 | I66: 4228.747567 | J66: -0.6140007648 | K66: 15621.65619 | L66: 2.047474188 | M66: 0.04546567838
B67: 2029-06-01 | C67: 4526.087333 | D67: 2.656187709 | E67: 2872.701482 | F67: 1.700109583 | G67: 4177.15655 | H67: 0.4304478418 | I67: 4241.08493 | J67: 0.2917498084 | K67: 15817.0303 | L67: 1.250661948 | M67: 0.01700109583
B68: 2030-06-01 | C68: 4619.555015 | D68: 2.065087901 | E68: 2930.236252 | F68: 2.0028106 | G68: 4155.397996 | H68: -0.5208939105 | I68: 4244.783728 | J68: 0.08721348205 | K68: 15949.97299 | L68: 0.8405035141 | M68: 0.020028106
B69: 2031-06-01 | C69: 4813.10308 | D69: 4.189755595 | E69: 2924.635358 | F69: -0.1911413793 | G69: 4154.016388 | H69: -0.03324851361 | I69: 4235.933224 | J69: -0.2085030496 | K69: 16127.68805 | L69: 1.114202884 | M69: -0.001911413793
L70: Source: ABS & Macromonitor
B74: Renewable
B75: Estimated Value of Renewable Energy Construction - less than 200 MW capacity - United Energy
B76: $ Million - Constant 2021/22 Prices
B77: Year Ended June | C77: United Energy
C78: Wind | E78: Solar | G78: Battery & Other | I78: Total renewables
C79: Annual | D79: A%Ch | E79: Annual | F79: A%Ch | G79: Annual | H79: A%Ch | I79: Annual | J79: A%Ch
B80: 2014-06-01 | C80: 0.7252562335 | D80: - | E80: 0 | F80: - | G80: -0.0001091670954 | H80: - | I80: 0.7251470664 | J80: -
B81: 2015-06-01 | C81: 0.2660383846 | D81: - | E81: 0 | F81: - | G81: 3.170338348e-06 | H81: - | I81: 0.2660415549 | J81: -
B82: 2016-06-01 | C82: 0.4458750031 | D82: - | E82: 0 | F82: - | G82: 2.562673744e-06 | H82: - | I82: 0.4458775658 | J82: -
B83: 2017-06-01 | C83: 0.004544226115 | D83: - | E83: 0.004544226115 | F83: - | G83: 0.005837207183 | H83: - | I83: 0.01492565941 | J83: -
B84: 2018-06-01 | C84: 0.006231316128 | D84: 37.12601375 | E84: 0.006231316128 | F84: 37.12601375 | G84: 0.008004329524 | H84: 37.12601375 | I84: 0.02046696178 | J84: 37.12601375
B85: 2019-06-01 | C85: 0.006750601601 | D85: 8.333479839 | E85: 0.006750601601 | F85: 8.333479839 | G85: 0.008671368711 | H85: 8.333479839 | I85: 0.02217257191 | J85: 8.333479839
B86: 2020-06-01 | C86: 0.1133668123 | D86: 1579.358655 | E86: 0.1133668123 | F86: 1579.358655 | G86: 0.145623381 | H86: 1579.358655 | I86: 0.3723570055 | J86: 1579.358655
B87: 2021-06-01 | C87: 0.09997364304 | D87: -11.81401238 | E87: 0.09997364304 | F87: -11.81401238 | G87: 0.1284194167 | H87: -11.81401238 | I87: 0.3283667028 | J87: -11.81401238
B88: 2022-06-01 | C88: 0.3776908432 | D88: 277.7904173 | E88: 0.3776908432 | F88: 277.7904173 | G88: 0.4851562504 | H88: 277.7904173 | I88: 1.240537937 | J88: 277.7904173 | K88: Excl batteries
B89: 2023-06-01 | C89: 0.4354500578 | D89: 15.29272303 | E89: 0.1638121646 | F89: -56.62797562 | G89: 0.4261713158 | H89: -12.15792531 | I89: 1.025433538 | J89: -17.33960665 | K89: =SUM(C89,E89) -> 0.5992622224
B90: 2024-06-01 | C90: 0.1382655826 | D90: -68.24766006 | E90: 0.1382655826 | F90: -15.59504573 | G90: 0.2979972246 | H90: -30.07571989 | I90: 0.5745283899 | J90: -43.97214754 | K90: =SUM(C90,E90) -> 0.2765311652 | L90: =K90/K89-1 -> -0.5385473088
B91: Forecasts | L91: Growth rate - UE
B92: 2025-06-01 | C92: 0.05530753334 | D92: -59.99905957 | E92: 0.05530753334 | F92: -59.99905957 | G92: 0.09869810353 | H92: -66.87952257 | I92: 0.2093131702 | J92: -63.56782817 | K92: =SUM(C92,E92) -> 0.1106150667 | L92: =K92/K90-1 -> -0.5999905957
B93: 2026-06-01 | C93: 0.05531411461 | D93: 0.01189940359 | E93: 0.05531411461 | F93: 0.01189940359 | G93: 0.09870984801 | H93: 0.01189940359 | I93: 0.2093380772 | J93: 0.01189940359 | K93: 0.1106282292 | L93: =K93/K92-1 -> 0.0001189940359
B94: 2027-06-01 | C94: 0.1659763158 | D94: 200.0614166 | E94: 0.1659763158 | F94: 200.0614166 | G94: 0.09873005608 | H94: 0.02047218576 | I94: 0.4306826878 | J94: 105.7354751 | K94: 0.3319526317 | L94: =K94/K93-1 -> 2.000614166
B95: 2028-06-01 | C95: 0.2766395563 | D95: 66.67411543 | E95: 0.5532791125 | F95: 233.3482309 | G95: 0.09873446857 | H95: 0.004469256184 | I95: 0.9286531373 | J95: 115.6235121 | K95: 0.8299186688 | L95: 1.500111731
B96: 2029-06-01 | C96: 0.27657463 | D96: -0.02346961364 | E96: 0.55314926 | F96: -0.02346961364 | G96: 0.9285312478 | H96: 840.4327194 | I96: 1.758255138 | J96: 89.33389305 | K96: 0.8297238901 | L96: -0.0002346961364
B97: 2030-06-01 | C97: 0.4148268415 | D97: 49.98730777 | E97: 0.5531024554 | F97: -0.008461486174 | G97: 0.8855575585 | H97: -4.628136041 | I97: 1.853486855 | J97: 5.416262719 | K97: 0.9679292969 | L97: 0.1665679493
B98: 2031-06-01 | C98: 0.4148251368 | D98: -0.0004109546732 | E98: 0.5531001824 | F98: -0.0004109546732 | G98: 0.9284488648 | H98: 4.843423881 | I98: 1.896374184 | J98: 2.313872817 | K98: 0.9679253192 | L98: -4.109546732e-06
J99: Source: ABS & Macromonitor

Sheet Growth_rates
A1: =Assumptions!$A$1 -> United Energy
A2: =Assumptions!$A$2 -> Connections
A3: Growth rates
B7: =Assumptions!B17 -> 2025/6 - 2030/31 reg period | H7: =Assumptions!G17 -> FALSE | I7: =Assumptions!H17 -> FALSE | J7: =Assumptions!I17 -> FALSE | K7: =Assumptions!J17 -> FALSE | L7: =Assumptions!K17 -> FALSE | M7: =Assumptions!L17 -> FALSE | N7: =Assumptions!M17 -> FALSE | O7: =Assumptions!N17 -> FALSE | P7: =Assumptions!O17 -> FALSE | Q7: =Assumptions!P17 -> FALSE | R7: =Assumptions!Q17 -> FALSE | S7: =Assumptions!R17 -> FALSE | T7: =Assumptions!S17 -> FALSE | U7: =Assumptions!T17 -> FALSE | V7: =Assumptions!U17 -> FALSE | W7: =Assumptions!V17 -> TRUE | X7: =Assumptions!W17 -> TRUE | Y7: =Assumptions!X17 -> TRUE | Z7: =Assumptions!Y17 -> TRUE | AA7: =Assumptions!Z17 -> TRUE
B8: =Assumptions!B18 -> Forecast period | H8: =Assumptions!G18 -> FALSE | I8: =Assumptions!H18 -> FALSE | J8: =Assumptions!I18 -> FALSE | K8: =Assumptions!J18 -> FALSE | L8: =Assumptions!K18 -> FALSE | M8: =Assumptions!L18 -> FALSE | N8: =Assumptions!M18 -> FALSE | O8: =Assumptions!N18 -> FALSE | P8: =Assumptions!O18 -> FALSE | Q8: =Assumptions!P18 -> FALSE | R8: =Assumptions!Q18 -> FALSE | S8: =Assumptions!R18 -> FALSE | T8: =Assumptions!S18 -> FALSE | U8: =Assumptions!T18 -> TRUE | V8: =Assumptions!U18 -> TRUE | W8: =Assumptions!V18 -> TRUE | X8: =Assumptions!W18 -> TRUE | Y8: =Assumptions!X18 -> TRUE | Z8: =Assumptions!Y18 -> TRUE | AA8: =Assumptions!Z18 -> TRUE
B9: =Assumptions!B19 -> Fin year end | H9: =Assumptions!G19 -> 2012 | I9: =Assumptions!H19 -> 2013 | J9: =Assumptions!I19 -> 2014 | K9: =Assumptions!J19 -> 2015 | L9: =Assumptions!K19 -> 2016 | M9: =Assumptions!L19 -> 2017 | N9: =Assumptions!M19 -> 2018 | O9: =Assumptions!N19 -> 2019 | P9: =Assumptions!O19 -> 2020 | Q9: =Assumptions!P19 -> 2021 | R9: =Assumptions!Q19 -> 2022 | S9: =Assumptions!R19 -> 2023 | T9: =Assumptions!S19 -> 2024 | U9: =Assumptions!T19 -> 2025 | V9: =Assumptions!U19 -> 2026 | W9: =Assumptions!V19 -> 2027 | X9: =Assumptions!W19 -> 2028 | Y9: =Assumptions!X19 -> 2029 | Z9: =Assumptions!Y19 -> 2030 | AA9: =Assumptions!Z19 -> 2031
B10: =Assumptions!B20 -> Basis | H10: =Assumptions!G20 -> Actual | I10: =Assumptions!H20 -> Actual | J10: =Assumptions!I20 -> Actual | K10: =Assumptions!J20 -> Actual | L10: =Assumptions!K20 -> Actual | M10: =Assumptions!L20 -> Actual | N10: =Assumptions!M20 -> Actual | O10: =Assumptions!N20 -> Actual | P10: =Assumptions!O20 -> Actual | Q10: =Assumptions!P20 -> Actual | R10: =Assumptions!Q20 -> Actual | S10: =Assumptions!R20 -> Actual | T10: =Assumptions!S20 -> Actual | U10: =Assumptions!T20 -> Forecast | V10: =Assumptions!U20 -> Forecast | W10: =Assumptions!V20 -> Forecast | X10: =Assumptions!W20 -> Forecast | Y10: =Assumptions!X20 -> Forecast | Z10: =Assumptions!Y20 -> Forecast | AA10: =Assumptions!Z20 -> Forecast
B13: =Hist_vol!B$13 -> Category | C13: Type | D13: =Hist_vol!D$13 -> RIN category | E13: =Hist_vol!E$13 -> Description | H13: =Assumptions!G$24 -> 2011/12 | I13: =Assumptions!H$24 -> 2012/13 | J13: =Assumptions!I$24 -> 2013/14 | K13: =Assumptions!J$24 -> 2014/15 | L13: =Assumptions!K$24 -> 2015/16 | M13: =Assumptions!L$24 -> 2016/17 | N13: =Assumptions!M$24 -> 2017/18 | O13: =Assumptions!N$24 -> 2018/19 | P13: =Assumptions!O$24 -> 2019/20 | Q13: =Assumptions!P$24 -> 2020/21 | R13: =Assumptions!Q$24 -> 2021/22 | S13: =Assumptions!R$24 -> 2022/23 | T13: =Assumptions!S$24 -> 2023/24 | U13: =Assumptions!T$24 -> 2024/25 | V13: =Assumptions!U$24 -> 2025/26 | W13: =Assumptions!V$24 -> 2026/27 | X13: =Assumptions!W$24 -> 2027/28 | Y13: =Assumptions!X$24 -> 2028/29 | Z13: =Assumptions!Y$24 -> 2029/30 | AA13: =Assumptions!Z$24 -> 2030/31
B14: Compound growth | S14: Base year
B16: Connections | C16: Macromonitor | D16: =Hist_vol!D15 -> Residential | E16: =Hist_vol!E15 -> Simple connection LV | F16: =C16&D16&E16 -> MacromonitorResidentialSimple connection LV | S16: 1 | T16: =(1+Macromonitor!H9)*Growth_rates!S16 -> 0.9627757908 | U16: =(1+Macromonitor!I9)*Growth_rates!T16 -> 1.098208183 | V16: =(1+Macromonitor!J9)*Growth_rates!U16 -> 1.243994786 | W16: =(1+Macromonitor!K9)*Growth_rates!V16 -> 1.406004182 | X16: =(1+Macromonitor!L9)*Growth_rates!W16 -> 1.350299586 | Y16: =(1+Macromonitor!M9)*Growth_rates!X16 -> 1.282491254 | Z16: =(1+Macromonitor!N9)*Growth_rates!Y16 -> 1.303174849 | AA16: =(1+Macromonitor!O9)*Growth_rates!Z16 -> 1.350369913
B17: Connections | C17: Macromonitor | D17: =Hist_vol!D16 -> Residential | E17: =Hist_vol!E16 -> Complex connection LV | F17: MacromonitorResidentialComplex connection LV | S17: 1 | T17: =(1+Macromonitor!H10)*Growth_rates!S17 -> 0.9627757908 | U17: =(1+Macromonitor!I10)*Growth_rates!T17 -> 1.098208183 | V17: =(1+Macromonitor!J10)*Growth_rates!U17 -> 1.243994786 | W17: =(1+Macromonitor!K10)*Growth_rates!V17 -> 1.406004182 | X17: =(1+Macromonitor!L10)*Growth_rates!W17 -> 1.350299586 | Y17: =(1+Macromonitor!M10)*Growth_rates!X17 -> 1.282491254 | Z17: =(1+Macromonitor!N10)*Growth_rates!Y17 -> 1.303174849 | AA17: =(1+Macromonitor!O10)*Growth_rates!Z17 -> 1.350369913
B18: Connections | C18: Macromonitor | D18: =Hist_vol!D17 -> Residential | E18: =Hist_vol!E17 -> Complex connection HV | F18: MacromonitorResidentialComplex connection HV | S18: 1 | T18: =(1+Macromonitor!H11)*Growth_rates!S18 -> 0.9627757908 | U18: =(1+Macromonitor!I11)*Growth_rates!T18 -> 1.098208183 | V18: =(1+Macromonitor!J11)*Growth_rates!U18 -> 1.243994786 | W18: =(1+Macromonitor!K11)*Growth_rates!V18 -> 1.406004182 | X18: =(1+Macromonitor!L11)*Growth_rates!W18 -> 1.350299586 | Y18: =(1+Macromonitor!M11)*Growth_rates!X18 -> 1.282491254 | Z18: =(1+Macromonitor!N11)*Growth_rates!Y18 -> 1.303174849 | AA18: =(1+Macromonitor!O11)*Growth_rates!Z18 -> 1.350369913
B19: Connections | C19: Macromonitor | D19: =Hist_vol!D18 -> Commercial/Industrial | E19: =Hist_vol!E18 -> Simple connection LV | F19: MacromonitorCommercial/IndustrialSimple connection LV | S19: 1 | T19: =(1+Macromonitor!H12)*Growth_rates!S19 -> 0.8896368104 | U19: =(1+Macromonitor!I12)*Growth_rates!T19 -> 0.7031958061 | V19: =(1+Macromonitor!J12)*Growth_rates!U19 -> 0.7536733242 | W19: =(1+Macromonitor!K12)*Growth_rates!V19 -> 0.8548306965 | X19: =(1+Macromonitor!L12)*Growth_rates!W19 -> 0.893696154 | Y19: =(1+Macromonitor!M12)*Growth_rates!X19 -> 0.9088899679 | Z19: =(1+Macromonitor!N12)*Growth_rates!Y19 -> 0.9270933126 | AA19: =(1+Macromonitor!O12)*Growth_rates!Z19 -> 0.9253212536
B20: Connections | C20: Macromonitor | D20: =Hist_vol!D19 -> Commercial/Industrial | E20: =Hist_vol!E19 -> Complex connection HV (customer connected at LV, minor HV works) | F20: MacromonitorCommercial/IndustrialComplex connection HV (customer connected at LV, minor HV works) | S20: 1 | T20: =(1+Macromonitor!H13)*Growth_rates!S20 -> 0.8896368104 | U20: =(1+Macromonitor!I13)*Growth_rates!T20 -> 0.7031958061 | V20: =(1+Macromonitor!J13)*Growth_rates!U20 -> 0.7536733242 | W20: =(1+Macromonitor!K13)*Growth_rates!V20 -> 0.8548306965 | X20: =(1+Macromonitor!L13)*Growth_rates!W20 -> 0.893696154 | Y20: =(1+Macromonitor!M13)*Growth_rates!X20 -> 0.9088899679 | Z20: =(1+Macromonitor!N13)*Growth_rates!Y20 -> 0.9270933126 | AA20: =(1+Macromonitor!O13)*Growth_rates!Z20 -> 0.9253212536
B21: Connections | C21: Macromonitor | D21: =Hist_vol!D20 -> Commercial/Industrial | E21: =Hist_vol!E20 -> Complex connection HV (customer connected at LV, upstream asset works) | F21: MacromonitorCommercial/IndustrialComplex connection HV (customer connected at LV, upstream asset works) | S21: 1 | T21: =(1+Macromonitor!H14)*Growth_rates!S21 -> 0.8896368104 | U21: =(1+Macromonitor!I14)*Growth_rates!T21 -> 0.7031958061 | V21: =(1+Macromonitor!J14)*Growth_rates!U21 -> 0.7536733242 | W21: =(1+Macromonitor!K14)*Growth_rates!V21 -> 0.8548306965 | X21: =(1+Macromonitor!L14)*Growth_rates!W21 -> 0.893696154 | Y21: =(1+Macromonitor!M14)*Growth_rates!X21 -> 0.9088899679 | Z21: =(1+Macromonitor!N14)*Growth_rates!Y21 -> 0.9270933126 | AA21: =(1+Macromonitor!O14)*Growth_rates!Z21 -> 0.9253212536
B22: Connections | C22: Macromonitor | D22: =Hist_vol!D21 -> Commercial/Industrial | E22: =Hist_vol!E21 -> Complex connection HV (customer connected at HV) | F22: MacromonitorCommercial/IndustrialComplex connection HV (customer connected at HV) | S22: 1 | T22: =(1+Macromonitor!H15)*Growth_rates!S22 -> 0.8896368104 | U22: =(1+Macromonitor!I15)*Growth_rates!T22 -> 0.7031958061 | V22: =(1+Macromonitor!J15)*Growth_rates!U22 -> 0.7536733242 | W22: =(1+Macromonitor!K15)*Growth_rates!V22 -> 0.8548306965 | X22: =(1+Macromonitor!L15)*Growth_rates!W22 -> 0.893696154 | Y22: =(1+Macromonitor!M15)*Growth_rates!X22 -> 0.9088899679 | Z22: =(1+Macromonitor!N15)*Growth_rates!Y22 -> 0.9270933126 | AA22: =(1+Macromonitor!O15)*Growth_rates!Z22 -> 0.9253212536
B23: Connections | C23: Macromonitor | D23: =Hist_vol!D22 -> Commercial/Industrial | E23: =Hist_vol!E22 -> Complex connection sub-transmission | F23: MacromonitorCommercial/IndustrialComplex connection sub-transmission | S23: 1 | T23: =(1+Macromonitor!H16)*Growth_rates!S23 -> 0.8896368104 | U23: =(1+Macromonitor!I16)*Growth_rates!T23 -> 0.7031958061 | V23: =(1+Macromonitor!J16)*Growth_rates!U23 -> 0.7536733242 | W23: =(1+Macromonitor!K16)*Growth_rates!V23 -> 0.8548306965 | X23: =(1+Macromonitor!L16)*Growth_rates!W23 -> 0.893696154 | Y23: =(1+Macromonitor!M16)*Growth_rates!X23 -> 0.9088899679 | Z23: =(1+Macromonitor!N16)*Growth_rates!Y23 -> 0.9270933126 | AA23: =(1+Macromonitor!O16)*Growth_rates!Z23 -> 0.9253212536
B24: Connections | C24: Macromonitor | D24: =Hist_vol!D23 -> Subdivision | E24: =Hist_vol!E23 -> Complex connection LV | F24: MacromonitorSubdivisionComplex connection LV | S24: 1 | T24: =(1+Macromonitor!H17)*Growth_rates!S24 -> 0.9627757908 | U24: =(1+Macromonitor!I17)*Growth_rates!T24 -> 1.098208183 | V24: =(1+Macromonitor!J17)*Growth_rates!U24 -> 1.243994786 | W24: =(1+Macromonitor!K17)*Growth_rates!V24 -> 1.406004182 | X24: =(1+Macromonitor!L17)*Growth_rates!W24 -> 1.350299586 | Y24: =(1+Macromonitor!M17)*Growth_rates!X24 -> 1.282491254 | Z24: =(1+Macromonitor!N17)*Growth_rates!Y24 -> 1.303174849 | AA24: =(1+Macromonitor!O17)*Growth_rates!Z24 -> 1.350369913
B25: Connections | C25: Macromonitor | D25: =Hist_vol!D24 -> Subdivision | E25: =Hist_vol!E24 -> Complex connection HV (no upstream asset works) | F25: MacromonitorSubdivisionComplex connection HV (no upstream asset works) | S25: 1 | T25: =(1+Macromonitor!H18)*Growth_rates!S25 -> 0.9627757908 | U25: =(1+Macromonitor!I18)*Growth_rates!T25 -> 1.098208183 | V25: =(1+Macromonitor!J18)*Growth_rates!U25 -> 1.243994786 | W25: =(1+Macromonitor!K18)*Growth_rates!V25 -> 1.406004182 | X25: =(1+Macromonitor!L18)*Growth_rates!W25 -> 1.350299586 | Y25: =(1+Macromonitor!M18)*Growth_rates!X25 -> 1.282491254 | Z25: =(1+Macromonitor!N18)*Growth_rates!Y25 -> 1.303174849 | AA25: =(1+Macromonitor!O18)*Growth_rates!Z25 -> 1.350369913
B26: Connections | C26: Macromonitor | D26: =Hist_vol!D25 -> Subdivision | E26: =Hist_vol!E25 -> Complex connection HV (with upstream asset works) | F26: MacromonitorSubdivisionComplex connection HV (with upstream asset works) | S26: 1 | T26: =(1+Macromonitor!H19)*Growth_rates!S26 -> 0.9627757908 | U26: =(1+Macromonitor!I19)*Growth_rates!T26 -> 1.098208183 | V26: =(1+Macromonitor!J19)*Growth_rates!U26 -> 1.243994786 | W26: =(1+Macromonitor!K19)*Growth_rates!V26 -> 1.406004182 | X26: =(1+Macromonitor!L19)*Growth_rates!W26 -> 1.350299586 | Y26: =(1+Macromonitor!M19)*Growth_rates!X26 -> 1.282491254 | Z26: =(1+Macromonitor!N19)*Growth_rates!Y26 -> 1.303174849 | AA26: =(1+Macromonitor!O19)*Growth_rates!Z26 -> 1.350369913
B27: Connections | C27: Macromonitor | D27: =Hist_vol!D26 -> Embedded generation | E27: =Hist_vol!E26 -> Simple connection LV | F27: MacromonitorEmbedded generationSimple connection LV | S27: 1 | T27: =(1+Macromonitor!H20)*Growth_rates!S27 -> 0.4614526912 | U27: =(1+Macromonitor!I20)*Growth_rates!T27 -> 0.1845854161 | V27: =(1+Macromonitor!J20)*Growth_rates!U27 -> 0.1846073807 | W27: =(1+Macromonitor!K20)*Growth_rates!V27 -> 0.5539355216 | X27: =(1+Macromonitor!L20)*Growth_rates!W27 -> 1.384900696 | Y27: =(1+Macromonitor!M20)*Growth_rates!X27 -> 1.384575665 | Z27: =(1+Macromonitor!N20)*Growth_rates!Y27 -> 1.615201594 | AA27: =(1+Macromonitor!O20)*Growth_rates!Z27 -> 1.615194956
B28: Connections | C28: Macromonitor | D28: =Hist_vol!D27 -> Embedded generation | E28: =Hist_vol!E27 -> Complex connection HV (small capacity) | F28: MacromonitorEmbedded generationComplex connection HV (small capacity) | S28: 1 | T28: =(1+Macromonitor!H21)*Growth_rates!S28 -> 0.4614526912 | U28: =(1+Macromonitor!I21)*Growth_rates!T28 -> 0.1845854161 | V28: =(1+Macromonitor!J21)*Growth_rates!U28 -> 0.1846073807 | W28: =(1+Macromonitor!K21)*Growth_rates!V28 -> 0.5539355216 | X28: =(1+Macromonitor!L21)*Growth_rates!W28 -> 1.384900696 | Y28: =(1+Macromonitor!M21)*Growth_rates!X28 -> 1.384575665 | Z28: =(1+Macromonitor!N21)*Growth_rates!Y28 -> 1.615201594 | AA28: =(1+Macromonitor!O21)*Growth_rates!Z28 -> 1.615194956
B29: Connections | C29: Macromonitor | D29: =Hist_vol!D28 -> Embedded generation | E29: =Hist_vol!E28 -> Complex connection HV (large capacity) | F29: MacromonitorEmbedded generationComplex connection HV (large capacity) | S29: 1 | T29: =(1+Macromonitor!H22)*Growth_rates!S29 -> 0.4614526912 | U29: =(1+Macromonitor!I22)*Growth_rates!T29 -> 0.1845854161 | V29: =(1+Macromonitor!J22)*Growth_rates!U29 -> 0.1846073807 | W29: =(1+Macromonitor!K22)*Growth_rates!V29 -> 0.5539355216 | X29: =(1+Macromonitor!L22)*Growth_rates!W29 -> 1.384900696 | Y29: =(1+Macromonitor!M22)*Growth_rates!X29 -> 1.384575665 | Z29: =(1+Macromonitor!N22)*Growth_rates!Y29 -> 1.615201594 | AA29: =(1+Macromonitor!O22)*Growth_rates!Z29 -> 1.615194956

Sheet Grid connected batteries
A1: =Assumptions!$A$1 -> United Energy
A2: =Assumptions!$A$2 -> Connections
A3: Grid connected batteries
B7: =Assumptions!B17 -> 2025/6 - 2030/31 reg period | E7: =Assumptions!V17 -> TRUE | F7: =Assumptions!W17 -> TRUE | G7: =Assumptions!X17 -> TRUE | H7: =Assumptions!Y17 -> TRUE | I7: =Assumptions!Z17 -> TRUE
B8: =Assumptions!B18 -> Forecast period | E8: =Assumptions!V18 -> TRUE | F8: =Assumptions!W18 -> TRUE | G8: =Assumptions!X18 -> TRUE | H8: =Assumptions!Y18 -> TRUE | I8: =Assumptions!Z18 -> TRUE
B9: =Assumptions!B19 -> Fin year end | E9: =Assumptions!V19 -> 2027 | F9: =Assumptions!W19 -> 2028 | G9: =Assumptions!X19 -> 2029 | H9: =Assumptions!Y19 -> 2030 | I9: =Assumptions!Z19 -> 2031
B10: =Assumptions!B20 -> Basis | E10: =Assumptions!V20 -> Forecast | F10: =Assumptions!W20 -> Forecast | G10: =Assumptions!X20 -> Forecast | H10: =Assumptions!Y20 -> Forecast | I10: =Assumptions!Z20 -> Forecast
B13: =Hist_vol!B$13 -> Category | C13: Type | D13: =Hist_vol!E$13 -> Description | E13: =Assumptions!V$24 -> 2026/27 | F13: =Assumptions!W$24 -> 2027/28 | G13: =Assumptions!X$24 -> 2028/29 | H13: =Assumptions!Y$24 -> 2029/30 | I13: =Assumptions!Z$24 -> 2030/31 | K13: Total
B15: =Hist_expenditure!B15 -> Connections | C15: Grid connected Battery | D15: Connected capacity (MW) | E15: 51.4442082 | F15: 50.5600161 | G15: 61.1490957 | H15: 70.303464 | I15: 64.6864515 | K15: =SUM(E15:I15) -> 298.1432355
B16: =Hist_expenditure!B16 -> Connections | C16: Grid connected Battery | D16: Gross capex | E16: =E15*$E$20 -> 5296592.788 | F16: =F15*$E$20 -> 5205558.138 | G16: =G15*$E$20 -> 6295788.595 | H16: =H15*$E$20 -> 7238304.047 | I16: =I15*$E$20 -> 6659987.674 | K16: =SUM(E16:I16) -> 30696231.24
B17: =Hist_expenditure!B17 -> Connections | C17: Grid connected Battery | D17: Incremental revenue | E17: =E15*$E$21 -> 1260228.768 | F17: =F15*$E$21 -> 1238568.714 | G17: =G15*$E$21 -> 1497969.397 | H17: =H15*$E$21 -> 1722223.958 | I17: =I15*$E$21 -> 1584624.002 | K17: 7303614.84
B18: =Hist_expenditure!B18 -> Connections | C18: Grid connected Battery | D18: Customer contribution | E18: =E16-E17 -> 4036364.02 | F18: =F16-F17 -> 3966989.423 | G18: 4797819.198 | H18: 5516080.089 | I18: 5075363.671 | K18: 23392616.4
B20: Connections | C20: Grid connected Battery | D20: Gross capex unit rate | E20: 102958 | F20: per MW
B21: Connections | C21: Grid connected Battery | D21: Incremental revenue unit rate | E21: 24497 | F21: per MW

Sheet Forecast_vol
A1: =Assumptions!$A$1 -> United Energy
A2: =Assumptions!$A$2 -> Connections
A3: Forecast volumes
B7: =Assumptions!B17 -> 2025/6 - 2030/31 reg period | H7: =Assumptions!G17 -> FALSE | I7: =Assumptions!H17 -> FALSE | J7: =Assumptions!I17 -> FALSE | K7: =Assumptions!J17 -> FALSE | L7: =Assumptions!K17 -> FALSE | M7: =Assumptions!L17 -> FALSE | N7: =Assumptions!M17 -> FALSE | O7: =Assumptions!N17 -> FALSE | P7: =Assumptions!O17 -> FALSE | Q7: =Assumptions!P17 -> FALSE | R7: =Assumptions!Q17 -> FALSE | S7: =Assumptions!R17 -> FALSE | T7: =Assumptions!S17 -> FALSE | U7: =Assumptions!T17 -> FALSE | V7: =Assumptions!U17 -> FALSE | W7: =Assumptions!V17 -> TRUE | X7: =Assumptions!W17 -> TRUE | Y7: =Assumptions!X17 -> TRUE | Z7: =Assumptions!Y17 -> TRUE | AA7: =Assumptions!Z17 -> TRUE
B8: =Assumptions!B18 -> Forecast period | H8: =Assumptions!G18 -> FALSE | I8: =Assumptions!H18 -> FALSE | J8: =Assumptions!I18 -> FALSE | K8: =Assumptions!J18 -> FALSE | L8: =Assumptions!K18 -> FALSE | M8: =Assumptions!L18 -> FALSE | N8: =Assumptions!M18 -> FALSE | O8: =Assumptions!N18 -> FALSE | P8: =Assumptions!O18 -> FALSE | Q8: =Assumptions!P18 -> FALSE | R8: =Assumptions!Q18 -> FALSE | S8: =Assumptions!R18 -> FALSE | T8: =Assumptions!S18 -> FALSE | U8: =Assumptions!T18 -> TRUE | V8: =Assumptions!U18 -> TRUE | W8: =Assumptions!V18 -> TRUE | X8: =Assumptions!W18 -> TRUE | Y8: =Assumptions!X18 -> TRUE | Z8: =Assumptions!Y18 -> TRUE | AA8: =Assumptions!Z18 -> TRUE
B9: =Assumptions!B19 -> Fin year end | H9: =Assumptions!G19 -> 2012 | I9: =Assumptions!H19 -> 2013 | J9: =Assumptions!I19 -> 2014 | K9: =Assumptions!J19 -> 2015 | L9: =Assumptions!K19 -> 2016 | M9: =Assumptions!L19 -> 2017 | N9: =Assumptions!M19 -> 2018 | O9: =Assumptions!N19 -> 2019 | P9: =Assumptions!O19 -> 2020 | Q9: =Assumptions!P19 -> 2021 | R9: =Assumptions!Q19 -> 2022 | S9: =Assumptions!R19 -> 2023 | T9: =Assumptions!S19 -> 2024 | U9: =Assumptions!T19 -> 2025 | V9: =Assumptions!U19 -> 2026 | W9: =Assumptions!V19 -> 2027 | X9: =Assumptions!W19 -> 2028 | Y9: =Assumptions!X19 -> 2029 | Z9: =Assumptions!Y19 -> 2030 | AA9: =Assumptions!Z19 -> 2031
B10: =Assumptions!B20 -> Basis | H10: =Assumptions!G20 -> Actual | I10: =Assumptions!H20 -> Actual | J10: =Assumptions!I20 -> Actual | K10: =Assumptions!J20 -> Actual | L10: =Assumptions!K20 -> Actual | M10: =Assumptions!L20 -> Actual | N10: =Assumptions!M20 -> Actual | O10: =Assumptions!N20 -> Actual | P10: =Assumptions!O20 -> Actual | Q10: =Assumptions!P20 -> Actual | R10: =Assumptions!Q20 -> Actual | S10: =Assumptions!R20 -> Actual | T10: =Assumptions!S20 -> Actual | U10: =Assumptions!T20 -> Forecast | V10: =Assumptions!U20 -> Forecast | W10: =Assumptions!V20 -> Forecast | X10: =Assumptions!W20 -> Forecast | Y10: =Assumptions!X20 -> Forecast | Z10: =Assumptions!Y20 -> Forecast | AA10: =Assumptions!Z20 -> Forecast
B13: =Hist_vol!B$13 -> Category | C13: Type | D13: =Hist_vol!D$13 -> RIN category | E13: =Hist_vol!E$13 -> Description | H13: =Assumptions!G$24 -> 2011/12 | I13: =Assumptions!H$24 -> 2012/13 | J13: =Assumptions!I$24 -> 2013/14 | K13: =Assumptions!J$24 -> 2014/15 | L13: =Assumptions!K$24 -> 2015/16 | M13: =Assumptions!L$24 -> 2016/17 | N13: =Assumptions!M$24 -> 2017/18 | O13: =Assumptions!N$24 -> 2018/19 | P13: =Assumptions!O$24 -> 2019/20 | Q13: =Assumptions!P$24 -> 2020/21 | R13: =Assumptions!Q$24 -> 2021/22 | S13: =Assumptions!R$24 -> 2022/23 | T13: =Assumptions!S$24 -> 2023/24 | U13: =Assumptions!T$24 -> 2024/25 | V13: =Assumptions!U$24 -> 2025/26 | W13: =Assumptions!V$24 -> 2026/27 | X13: =Assumptions!W$24 -> 2027/28 | Y13: =Assumptions!X$24 -> 2028/29 | Z13: =Assumptions!Y$24 -> 2029/30 | AA13: =Assumptions!Z$24 -> 2030/31
B14: Forecast volumes
B15: =Hist_vol!B15 -> Connections | C15: =Hist_vol!C15 -> R1 | D15: =Hist_vol!D15 -> Residential | E15: =Hist_vol!E15 -> Simple connection LV | H15: =IF(H$8, Hist_vol!$R15*Growth_rates!H16, Hist_vol!G15) -> 9659 | I15: =IF(I$8, Hist_vol!$R15*Growth_rates!I16, Hist_vol!H15) -> 9682.5 | J15: =IF(J$8, Hist_vol!$R15*Growth_rates!J16, Hist_vol!I15) -> 8873.5 | K15: =IF(K$8, Hist_vol!$R15*Growth_rates!K16, Hist_vol!J15) -> 9240.167766 | L15: =IF(L$8, Hist_vol!$R15*Growth_rates!L16, Hist_vol!K15) -> 9806.167766 | M15: =IF(M$8, Hist_vol!$R15*Growth_rates!M16, Hist_vol!L15) -> 9670.5 | N15: =IF(N$8, Hist_vol!$R15*Growth_rates!N16, Hist_vol!M15) -> 10237 | O15: =IF(O$8, Hist_vol!$R15*Growth_rates!O16, Hist_vol!N15) -> 9357.5 | P15: =IF(P$8, Hist_vol!$R15*Growth_rates!P16, Hist_vol!O15) -> 7441.5 | Q15: =IF(Q$8, Hist_vol!$R15*Growth_rates!Q16, Hist_vol!P15) -> 5568 | R15: =IF(R$8, Hist_vol!$R15*Growth_rates!R16, Hist_vol!Q15) -> 5672 | S15: =IF(S$8, Hist_vol!$R15*Growth_rates!S16, Hist_vol!R15) -> 6355 | T15: =IF(T$8, Hist_vol!$R15*Growth_rates!T16, Hist_vol!S15) -> 6553 | U15: =IF(U$8, Hist_vol!$R15*Growth_rates!U16, Hist_vol!T15) -> 6979.113001 | V15: =IF(V$8, Hist_vol!$R15*Growth_rates!V16, Hist_vol!U15) -> 7905.586862 | W15: =IF(W$8, Hist_vol!$R15*Growth_rates!W16, Hist_vol!V15) -> 8935.156578 | X15: =IF(X$8, Hist_vol!$R15*Growth_rates!X16, Hist_vol!W15) -> 8581.15387 | Y15: =IF(Y$8, Hist_vol!$R15*Growth_rates!Y16, Hist_vol!X15) -> 8150.231921 | Z15: =IF(Z$8, Hist_vol!$R15*Growth_rates!Z16, Hist_vol!Y15) -> 8281.676166 | AA15: =IF(AA$8, Hist_vol!$R15*Growth_rates!AA16, Hist_vol!Z15) -> 8581.600797
B16: =Hist_vol!B16 -> Connections | C16: =Hist_vol!C16 -> R2 | D16: =Hist_vol!D16 -> Residential | E16: =Hist_vol!E16 -> Complex connection LV | H16: =IF(H$8, Hist_vol!$R16*Growth_rates!H17, Hist_vol!G16) -> 0 | I16: =IF(I$8, Hist_vol!$R16*Growth_rates!I17, Hist_vol!H16) -> 0 | J16: =IF(J$8, Hist_vol!$R16*Growth_rates!J17, Hist_vol!I16) -> 0 | K16: =IF(K$8, Hist_vol!$R16*Growth_rates!K17, Hist_vol!J16) -> 0 | L16: =IF(L$8, Hist_vol!$R16*Growth_rates!L17, Hist_vol!K16) -> 0 | M16: =IF(M$8, Hist_vol!$R16*Growth_rates!M17, Hist_vol!L16) -> 0 | N16: =IF(N$8, Hist_vol!$R16*Growth_rates!N17, Hist_vol!M16) -> 0 | O16: =IF(O$8, Hist_vol!$R16*Growth_rates!O17, Hist_vol!N16) -> 0 | P16: =IF(P$8, Hist_vol!$R16*Growth_rates!P17, Hist_vol!O16) -> 0 | Q16: =IF(Q$8, Hist_vol!$R16*Growth_rates!Q17, Hist_vol!P16) -> 0 | R16: =IF(R$8, Hist_vol!$R16*Growth_rates!R17, Hist_vol!Q16) -> 0 | S16: =IF(S$8, Hist_vol!$R16*Growth_rates!S17, Hist_vol!R16) -> 0 | T16: =IF(T$8, Hist_vol!$R16*Growth_rates!T17, Hist_vol!S16) -> 0 | U16: =IF(U$8, Hist_vol!$R16*Growth_rates!U17, Hist_vol!T16) -> 0 | V16: =IF(V$8, Hist_vol!$R16*Growth_rates!V17, Hist_vol!U16) -> 0 | W16: =IF(W$8, Hist_vol!$R16*Growth_rates!W17, Hist_vol!V16) -> 0 | X16: =IF(X$8, Hist_vol!$R16*Growth_rates!X17, Hist_vol!W16) -> 0 | Y16: =IF(Y$8, Hist_vol!$R16*Growth_rates!Y17, Hist_vol!X16) -> 0 | Z16: =IF(Z$8, Hist_vol!$R16*Growth_rates!Z17, Hist_vol!Y16) -> 0 | AA16: =IF(AA$8, Hist_vol!$R16*Growth_rates!AA17, Hist_vol!Z16) -> 0
B17: =Hist_vol!B17 -> Connections | C17: =Hist_vol!C17 -> R3 | D17: =Hist_vol!D17 -> Residential | E17: =Hist_vol!E17 -> Complex connection HV | H17: =IF(H$8, Hist_vol!$R17*Growth_rates!H18, Hist_vol!G17) -> 0 | I17: =IF(I$8, Hist_vol!$R17*Growth_rates!I18, Hist_vol!H17) -> 0 | J17: =IF(J$8, Hist_vol!$R17*Growth_rates!J18, Hist_vol!I17) -> 0 | K17: =IF(K$8, Hist_vol!$R17*Growth_rates!K18, Hist_vol!J17) -> 0 | L17: =IF(L$8, Hist_vol!$R17*Growth_rates!L18, Hist_vol!K17) -> 0 | M17: =IF(M$8, Hist_vol!$R17*Growth_rates!M18, Hist_vol!L17) -> 0 | N17: =IF(N$8, Hist_vol!$R17*Growth_rates!N18, Hist_vol!M17) -> 0 | O17: =IF(O$8, Hist_vol!$R17*Growth_rates!O18, Hist_vol!N17) -> 0 | P17: =IF(P$8, Hist_vol!$R17*Growth_rates!P18, Hist_vol!O17) -> 0 | Q17: =IF(Q$8, Hist_vol!$R17*Growth_rates!Q18, Hist_vol!P17) -> 0 | R17: =IF(R$8, Hist_vol!$R17*Growth_rates!R18, Hist_vol!Q17) -> 0 | S17: =IF(S$8, Hist_vol!$R17*Growth_rates!S18, Hist_vol!R17) -> 0 | T17: =IF(T$8, Hist_vol!$R17*Growth_rates!T18, Hist_vol!S17) -> 0 | U17: =IF(U$8, Hist_vol!$R17*Growth_rates!U18, Hist_vol!T17) -> 0 | V17: =IF(V$8, Hist_vol!$R17*Growth_rates!V18, Hist_vol!U17) -> 0 | W17: =IF(W$8, Hist_vol!$R17*Growth_rates!W18, Hist_vol!V17) -> 0 | X17: =IF(X$8, Hist_vol!$R17*Growth_rates!X18, Hist_vol!W17) -> 0 | Y17: =IF(Y$8, Hist_vol!$R17*Growth_rates!Y18, Hist_vol!X17) -> 0 | Z17: =IF(Z$8, Hist_vol!$R17*Growth_rates!Z18, Hist_vol!Y17) -> 0 | AA17: =IF(AA$8, Hist_vol!$R17*Growth_rates!AA18, Hist_vol!Z17) -> 0
B18: =Hist_vol!B18 -> Connections | C18: =Hist_vol!C18 -> CI1 | D18: =Hist_vol!D18 -> Commercial/Industrial | E18: =Hist_vol!E18 -> Simple connection LV | H18: =IF(H$8, Hist_vol!$R18*Growth_rates!H19, Hist_vol!G18) -> 2603 | I18: =IF(I$8, Hist_vol!$R18*Growth_rates!I19, Hist_vol!H18) -> 3109.5 | J18: =IF(J$8, Hist_vol!$R18*Growth_rates!J19, Hist_vol!I18) -> 2298.041534 | K18: =IF(K$8, Hist_vol!$R18*Growth_rates!K19, Hist_vol!J18) -> 780.115143 | L18: =IF(L$8, Hist_vol!$R18*Growth_rates!L19, Hist_vol!K18) -> 716.553759 | M18: =IF(M$8, Hist_vol!$R18*Growth_rates!M19, Hist_vol!L18) -> 888.9801496 | N18: =IF(N$8, Hist_vol!$R18*Growth_rates!N19, Hist_vol!M18) -> 981.5 | O18: =IF(O$8, Hist_vol!$R18*Growth_rates!O19, Hist_vol!N18) -> 926 | P18: =IF(P$8, Hist_vol!$R18*Growth_rates!P19, Hist_vol!O18) -> 822 | Q18: =IF(Q$8, Hist_vol!$R18*Growth_rates!Q19, Hist_vol!P18) -> 693 | R18: =IF(R$8, Hist_vol!$R18*Growth_rates!R19, Hist_vol!Q18) -> 634 | S18: =IF(S$8, Hist_vol!$R18*Growth_rates!S19, Hist_vol!R18) -> 627 | T18: =IF(T$8, Hist_vol!$R18*Growth_rates!T19, Hist_vol!S18) -> 607 | U18: =IF(U$8, Hist_vol!$R18*Growth_rates!U19, Hist_vol!T18) -> 440.9037704 | V18: =IF(V$8, Hist_vol!$R18*Growth_rates!V19, Hist_vol!U18) -> 472.5531743 | W18: =IF(W$8, Hist_vol!$R18*Growth_rates!W19, Hist_vol!V18) -> 535.9788467 | X18: =IF(X$8, Hist_vol!$R18*Growth_rates!X19, Hist_vol!W18) -> 560.3474885 | Y18: =IF(Y$8, Hist_vol!$R18*Growth_rates!Y19, Hist_vol!X18) -> 569.8740099 | Z18: =IF(Z$8, Hist_vol!$R18*Growth_rates!Z19, Hist_vol!Y18) -> 581.287507 | AA18: =IF(AA$8, Hist_vol!$R18*Growth_rates!AA19, Hist_vol!Z18) -> 580.176426
B19: =Hist_vol!B19 -> Connections | C19: =Hist_vol!C19 -> CI2 | D19: =Hist_vol!D19 -> Commercial/Industrial | E19: =Hist_vol!E19 -> Complex connection HV (customer connected at LV, minor HV works) | H19: =IF(H$8, Hist_vol!$R19*Growth_rates!H20, Hist_vol!G19) -> 315.5 | I19: =IF(I$8, Hist_vol!$R19*Growth_rates!I20, Hist_vol!H19) -> 473.5 | J19: =IF(J$8, Hist_vol!$R19*Growth_rates!J20, Hist_vol!I19) -> 1207.29992 | K19: =IF(K$8, Hist_vol!$R19*Growth_rates!K20, Hist_vol!J19) -> 1542.842164 | L19: =IF(L$8, Hist_vol!$R19*Growth_rates!L20, Hist_vol!K19) -> 1324.246789 | M19: =IF(M$8, Hist_vol!$R19*Growth_rates!M20, Hist_vol!L19) -> 1413.204545 | N19: =IF(N$8, Hist_vol!$R19*Growth_rates!N20, Hist_vol!M19) -> 1414 | O19: =IF(O$8, Hist_vol!$R19*Growth_rates!O20, Hist_vol!N19) -> 1186.5 | P19: =IF(P$8, Hist_vol!$R19*Growth_rates!P20, Hist_vol!O19) -> 944.5 | Q19: =IF(Q$8, Hist_vol!$R19*Growth_rates!Q20, Hist_vol!P19) -> 792 | R19: =IF(R$8, Hist_vol!$R19*Growth_rates!R20, Hist_vol!Q19) -> 827 | S19: =IF(S$8, Hist_vol!$R19*Growth_rates!S20, Hist_vol!R19) -> 835 | T19: =IF(T$8, Hist_vol!$R19*Growth_rates!T20, Hist_vol!S19) -> 749 | U19: =IF(U$8, Hist_vol!$R19*Growth_rates!U20, Hist_vol!T19) -> 587.1684981 | V19: =IF(V$8, Hist_vol!$R19*Growth_rates!V20, Hist_vol!U19) -> 629.3172257 | W19: =IF(W$8, Hist_vol!$R19*Growth_rates!W20, Hist_vol!V19) -> 713.7836315 | X19: =IF(X$8, Hist_vol!$R19*Growth_rates!X20, Hist_vol!W19) -> 746.2362886 | Y19: =IF(Y$8, Hist_vol!$R19*Growth_rates!Y20, Hist_vol!X19) -> 758.9231232 | Z19: =IF(Z$8, Hist_vol!$R19*Growth_rates!Z20, Hist_vol!Y19) -> 774.122916 | AA19: =IF(AA$8, Hist_vol!$R19*Growth_rates!AA20, Hist_vol!Z19) -> 772.6432468
B20: =Hist_vol!B20 -> Connections | C20: =Hist_vol!C20 -> CI3 | D20: =Hist_vol!D20 -> Commercial/Industrial | E20: =Hist_vol!E20 -> Complex connection HV (customer connected at LV, upstream asset works) | H20: =IF(H$8, Hist_vol!$R20*Growth_rates!H21, Hist_vol!G20) -> 3.5 | I20: =IF(I$8, Hist_vol!$R20*Growth_rates!I21, Hist_vol!H20) -> 1.5 | J20: =IF(J$8, Hist_vol!$R20*Growth_rates!J21, Hist_vol!I20) -> 5.469249201 | K20: =IF(K$8, Hist_vol!$R20*Growth_rates!K21, Hist_vol!J20) -> 18.20059161 | L20: =IF(L$8, Hist_vol!$R20*Growth_rates!L21, Hist_vol!K20) -> 24.99457601 | M20: =IF(M$8, Hist_vol!$R20*Growth_rates!M21, Hist_vol!L20) -> 19.2632336 | N20: =IF(N$8, Hist_vol!$R20*Growth_rates!N21, Hist_vol!M20) -> 10.5 | O20: =IF(O$8, Hist_vol!$R20*Growth_rates!O21, Hist_vol!N20) -> 4.5 | P20: =IF(P$8, Hist_vol!$R20*Growth_rates!P21, Hist_vol!O20) -> 2 | Q20: =IF(Q$8, Hist_vol!$R20*Growth_rates!Q21, Hist_vol!P20) -> 0 | R20: =IF(R$8, Hist_vol!$R20*Growth_rates!R21, Hist_vol!Q20) -> 5 | S20: =IF(S$8, Hist_vol!$R20*Growth_rates!S21, Hist_vol!R20) -> 2 | T20: =IF(T$8, Hist_vol!$R20*Growth_rates!T21, Hist_vol!S20) -> 18 | U20: =IF(U$8, Hist_vol!$R20*Growth_rates!U21, Hist_vol!T20) -> 1.406391612 | V20: =IF(V$8, Hist_vol!$R20*Growth_rates!V21, Hist_vol!U20) -> 1.507346648 | W20: =IF(W$8, Hist_vol!$R20*Growth_rates!W21, Hist_vol!V20) -> 1.709661393 | X20: =IF(X$8, Hist_vol!$R20*Growth_rates!X21, Hist_vol!W20) -> 1.787392308 | Y20: =IF(Y$8, Hist_vol!$R20*Growth_rates!Y21, Hist_vol!X20) -> 1.817779936 | Z20: =IF(Z$8, Hist_vol!$R20*Growth_rates!Z21, Hist_vol!Y20) -> 1.854186625 | AA20: =IF(AA$8, Hist_vol!$R20*Growth_rates!AA21, Hist_vol!Z20) -> 1.850642507
B21: =Hist_vol!B21 -> Connections | C21: =Hist_vol!C21 -> CI4 | D21: =Hist_vol!D21 -> Commercial/Industrial | E21: =Hist_vol!E21 -> Complex connection HV (customer connected at HV) | H21: =IF(H$8, Hist_vol!$R21*Growth_rates!H22, Hist_vol!G21) -> 8.5 | I21: =IF(I$8, Hist_vol!$R21*Growth_rates!I22, Hist_vol!H21) -> 12 | J21: =IF(J$8, Hist_vol!$R21*Growth_rates!J22, Hist_vol!I21) -> 27.68929712 | K21: =IF(K$8, Hist_vol!$R21*Growth_rates!K22, Hist_vol!J21) -> 541.6743357 | L21: =IF(L$8, Hist_vol!$R21*Growth_rates!L22, Hist_vol!K21) -> 1087.03711 | M21: =IF(M$8, Hist_vol!$R21*Growth_rates!M22, Hist_vol!L21) -> 1241.052071 | N21: =IF(N$8, Hist_vol!$R21*Growth_rates!N22, Hist_vol!M21) -> 1356 | O21: =IF(O$8, Hist_vol!$R21*Growth_rates!O22, Hist_vol!N21) -> 1232.5 | P21: =IF(P$8, Hist_vol!$R21*Growth_rates!P22, Hist_vol!O21) -> 1023.5 | Q21: =IF(Q$8, Hist_vol!$R21*Growth_rates!Q22, Hist_vol!P21) -> 858 | R21: =IF(R$8, Hist_vol!$R21*Growth_rates!R22, Hist_vol!Q21) -> 797 | S21: =IF(S$8, Hist_vol!$R21*Growth_rates!S22, Hist_vol!R21) -> 860 | T21: =IF(T$8, Hist_vol!$R21*Growth_rates!T22, Hist_vol!S21) -> 684 | U21: =IF(U$8, Hist_vol!$R21*Growth_rates!U22, Hist_vol!T21) -> 604.7483932 | V21: =IF(V$8, Hist_vol!$R21*Growth_rates!V22, Hist_vol!U21) -> 648.1590588 | W21: =IF(W$8, Hist_vol!$R21*Growth_rates!W22, Hist_vol!V21) -> 735.154399 | X21: =IF(X$8, Hist_vol!$R21*Growth_rates!X22, Hist_vol!W21) -> 768.5786924 | Y21: =IF(Y$8, Hist_vol!$R21*Growth_rates!Y22, Hist_vol!X21) -> 781.6453724 | Z21: =IF(Z$8, Hist_vol!$R21*Growth_rates!Z22, Hist_vol!Y21) -> 797.3002488 | AA21: =IF(AA$8, Hist_vol!$R21*Growth_rates!AA22, Hist_vol!Z21) -> 795.7762781
B22: =Hist_vol!B22 -> Connections | C22: =Hist_vol!C22 -> CI5 | D22: =Hist_vol!D22 -> Commercial/Industrial | E22: =Hist_vol!E22 -> Complex connection sub-transmission | H22: =IF(H$8, Hist_vol!$R22*Growth_rates!H23, Hist_vol!G22) -> 0 | I22: =IF(I$8, Hist_vol!$R22*Growth_rates!I23, Hist_vol!H22) -> 0 | J22: =IF(J$8, Hist_vol!$R22*Growth_rates!J23, Hist_vol!I22) -> 0 | K22: =IF(K$8, Hist_vol!$R22*Growth_rates!K23, Hist_vol!J22) -> 0 | L22: =IF(L$8, Hist_vol!$R22*Growth_rates!L23, Hist_vol!K22) -> 0 | M22: =IF(M$8, Hist_vol!$R22*Growth_rates!M23, Hist_vol!L22) -> 0 | N22: =IF(N$8, Hist_vol!$R22*Growth_rates!N23, Hist_vol!M22) -> 0 | O22: =IF(O$8, Hist_vol!$R22*Growth_rates!O23, Hist_vol!N22) -> 0 | P22: =IF(P$8, Hist_vol!$R22*Growth_rates!P23, Hist_vol!O22) -> 0 | Q22: =IF(Q$8, Hist_vol!$R22*Growth_rates!Q23, Hist_vol!P22) -> 0 | R22: =IF(R$8, Hist_vol!$R22*Growth_rates!R23, Hist_vol!Q22) -> 9 | S22: =IF(S$8, Hist_vol!$R22*Growth_rates!S23, Hist_vol!R22) -> 27 | T22: =IF(T$8, Hist_vol!$R22*Growth_rates!T23, Hist_vol!S22) -> 47 | U22: =IF(U$8, Hist_vol!$R22*Growth_rates!U23, Hist_vol!T22) -> 18.98628676 | V22: =IF(V$8, Hist_vol!$R22*Growth_rates!V23, Hist_vol!U22) -> 20.34917975 | W22: =IF(W$8, Hist_vol!$R22*Growth_rates!W23, Hist_vol!V22) -> 23.0804288 | X22: =IF(X$8, Hist_vol!$R22*Growth_rates!X23, Hist_vol!W22) -> 24.12979616 | Y22: =IF(Y$8, Hist_vol!$R22*Growth_rates!Y23, Hist_vol!X22) -> 24.54002913 | Z22: =IF(Z$8, Hist_vol!$R22*Growth_rates!Z23, Hist_vol!Y22) -> 25.03151944 | AA22: =IF(AA$8, Hist_vol!$R22*Growth_rates!AA23, Hist_vol!Z22) -> 24.98367385
B23: =Hist_vol!B23 -> Connections | C23: =Hist_vol!C23 -> S1 | D23: =Hist_vol!D23 -> Subdivision | E23: =Hist_vol!E23 -> Complex connection LV | H23: =IF(H$8, Hist_vol!$R23*Growth_rates!H24, Hist_vol!G23) -> 102.5 | I23: =IF(I$8, Hist_vol!$R23*Growth_rates!I24, Hist_vol!H23) -> 163.5 | J23: =IF(J$8, Hist_vol!$R23*Growth_rates!J24, Hist_vol!I23) -> 249 | K23: =IF(K$8, Hist_vol!$R23*Growth_rates!K24, Hist_vol!J23) -> 301 | L23: =IF(L$8, Hist_vol!$R23*Growth_rates!L24, Hist_vol!K23) -> 898 | M23: =IF(M$8, Hist_vol!$R23*Growth_rates!M24, Hist_vol!L23) -> 1272.5 | N23: =IF(N$8, Hist_vol!$R23*Growth_rates!N24, Hist_vol!M23) -> 581.5 | O23: =IF(O$8, Hist_vol!$R23*Growth_rates!O24, Hist_vol!N23) -> 604 | P23: =IF(P$8, Hist_vol!$R23*Growth_rates!P24, Hist_vol!O23) -> 762.5 | Q23: =IF(Q$8, Hist_vol!$R23*Growth_rates!Q24, Hist_vol!P23) -> 685 | R23: =IF(R$8, Hist_vol!$R23*Growth_rates!R24, Hist_vol!Q23) -> 492 | S23: =IF(S$8, Hist_vol!$R23*Growth_rates!S24, Hist_vol!R23) -> 700 | T23: =IF(T$8, Hist_vol!$R23*Growth_rates!T24, Hist_vol!S23) -> 340 | U23: =IF(U$8, Hist_vol!$R23*Growth_rates!U24, Hist_vol!T23) -> 768.7457279 | V23: =IF(V$8, Hist_vol!$R23*Growth_rates!V24, Hist_vol!U23) -> 870.7963499 | W23: =IF(W$8, Hist_vol!$R23*Growth_rates!W24, Hist_vol!V23) -> 984.2029275 | X23: =IF(X$8, Hist_vol!$R23*Growth_rates!X24, Hist_vol!W23) -> 945.2097103 | Y23: =IF(Y$8, Hist_vol!$R23*Growth_rates!Y24, Hist_vol!X23) -> 897.743878 | Z23: =IF(Z$8, Hist_vol!$R23*Growth_rates!Z24, Hist_vol!Y23) -> 912.2223944 | AA23: =IF(AA$8, Hist_vol!$R23*Growth_rates!AA24, Hist_vol!Z23) -> 945.2589391
B24: =Hist_vol!B24 -> Connections | C24: =Hist_vol!C24 -> S2 | D24: =Hist_vol!D24 -> Subdivision | E24: =Hist_vol!E24 -> Complex connection HV (no upstream asset works) | H24: =IF(H$8, Hist_vol!$R24*Growth_rates!H25, Hist_vol!G24) -> 32.5 | I24: =IF(I$8, Hist_vol!$R24*Growth_rates!I25, Hist_vol!H24) -> 43.5 | J24: =IF(J$8, Hist_vol!$R24*Growth_rates!J25, Hist_vol!I24) -> 63 | K24: =IF(K$8, Hist_vol!$R24*Growth_rates!K25, Hist_vol!J24) -> 70 | L24: =IF(L$8, Hist_vol!$R24*Growth_rates!L25, Hist_vol!K24) -> 109.5 | M24: =IF(M$8, Hist_vol!$R24*Growth_rates!M25, Hist_vol!L24) -> 93 | N24: =IF(N$8, Hist_vol!$R24*Growth_rates!N25, Hist_vol!M24) -> 203 | O24: =IF(O$8, Hist_vol!$R24*Growth_rates!O25, Hist_vol!N24) -> 351 | P24: =IF(P$8, Hist_vol!$R24*Growth_rates!P25, Hist_vol!O24) -> 632.5 | Q24: =IF(Q$8, Hist_vol!$R24*Growth_rates!Q25, Hist_vol!P24) -> 1109 | R24: =IF(R$8, Hist_vol!$R24*Growth_rates!R25, Hist_vol!Q24) -> 476 | S24: =IF(S$8, Hist_vol!$R24*Growth_rates!S25, Hist_vol!R24) -> 644 | T24: =IF(T$8, Hist_vol!$R24*Growth_rates!T25, Hist_vol!S24) -> 83 | U24: =IF(U$8, Hist_vol!$R24*Growth_rates!U25, Hist_vol!T24) -> 707.2460697 | V24: =IF(V$8, Hist_vol!$R24*Growth_rates!V25, Hist_vol!U24) -> 801.1326419 | W24: =IF(W$8, Hist_vol!$R24*Growth_rates!W25, Hist_vol!V24) -> 905.4666933 | X24: =IF(X$8, Hist_vol!$R24*Growth_rates!X25, Hist_vol!W24) -> 869.5929335 | Y24: =IF(Y$8, Hist_vol!$R24*Growth_rates!Y25, Hist_vol!X24) -> 825.9243678 | Z24: =IF(Z$8, Hist_vol!$R24*Growth_rates!Z25, Hist_vol!Y24) -> 839.2446029 | AA24: =IF(AA$8, Hist_vol!$R24*Growth_rates!AA25, Hist_vol!Z24) -> 869.638224
B25: =Hist_vol!B25 -> Connections | C25: =Hist_vol!C25 -> S3 | D25: =Hist_vol!D25 -> Subdivision | E25: =Hist_vol!E25 -> Complex connection HV (with upstream asset works) | H25: =IF(H$8, Hist_vol!$R25*Growth_rates!H26, Hist_vol!G25) -> 0 | I25: =IF(I$8, Hist_vol!$R25*Growth_rates!I26, Hist_vol!H25) -> 0 | J25: =IF(J$8, Hist_vol!$R25*Growth_rates!J26, Hist_vol!I25) -> 0 | K25: =IF(K$8, Hist_vol!$R25*Growth_rates!K26, Hist_vol!J25) -> 0 | L25: =IF(L$8, Hist_vol!$R25*Growth_rates!L26, Hist_vol!K25) -> 0 | M25: =IF(M$8, Hist_vol!$R25*Growth_rates!M26, Hist_vol!L25) -> 0.5 | N25: =IF(N$8, Hist_vol!$R25*Growth_rates!N26, Hist_vol!M25) -> 16.5 | O25: =IF(O$8, Hist_vol!$R25*Growth_rates!O26, Hist_vol!N25) -> 16 | P25: =IF(P$8, Hist_vol!$R25*Growth_rates!P26, Hist_vol!O25) -> 0 | Q25: =IF(Q$8, Hist_vol!$R25*Growth_rates!Q26, Hist_vol!P25) -> 0 | R25: =IF(R$8, Hist_vol!$R25*Growth_rates!R26, Hist_vol!Q25) -> 0 | S25: =IF(S$8, Hist_vol!$R25*Growth_rates!S26, Hist_vol!R25) -> 0 | T25: =IF(T$8, Hist_vol!$R25*Growth_rates!T26, Hist_vol!S25) -> 0 | U25: =IF(U$8, Hist_vol!$R25*Growth_rates!U26, Hist_vol!T25) -> 0 | V25: =IF(V$8, Hist_vol!$R25*Growth_rates!V26, Hist_vol!U25) -> 0 | W25: =IF(W$8, Hist_vol!$R25*Growth_rates!W26, Hist_vol!V25) -> 0 | X25: =IF(X$8, Hist_vol!$R25*Growth_rates!X26, Hist_vol!W25) -> 0 | Y25: =IF(Y$8, Hist_vol!$R25*Growth_rates!Y26, Hist_vol!X25) -> 0 | Z25: =IF(Z$8, Hist_vol!$R25*Growth_rates!Z26, Hist_vol!Y25) -> 0 | AA25: =IF(AA$8, Hist_vol!$R25*Growth_rates!AA26, Hist_vol!Z25) -> 0
B26: =Hist_vol!B26 -> Connections | C26: =Hist_vol!C26 -> EG1 | D26: =Hist_vol!D26 -> Embedded generation | E26: =Hist_vol!E26 -> Simple connection LV | H26: =IF(H$8, Hist_vol!$R26*Growth_rates!H27, Hist_vol!G26) -> 11674.5 | I26: =IF(I$8, Hist_vol!$R26*Growth_rates!I27, Hist_vol!H26) -> 7420 | J26: =IF(J$8, Hist_vol!$R26*Growth_rates!J27, Hist_vol!I26) -> 3143.5 | K26: =IF(K$8, Hist_vol!$R26*Growth_rates!K27, Hist_vol!J26) -> 5632 | L26: =IF(L$8, Hist_vol!$R26*Growth_rates!L27, Hist_vol!K26) -> 6484.5 | M26: =IF(M$8, Hist_vol!$R26*Growth_rates!M27, Hist_vol!L26) -> 4168 | N26: =IF(N$8, Hist_vol!$R26*Growth_rates!N27, Hist_vol!M26) -> 5570.5 | O26: =IF(O$8, Hist_vol!$R26*Growth_rates!O27, Hist_vol!N26) -> 3383.5 | P26: =IF(P$8, Hist_vol!$R26*Growth_rates!P27, Hist_vol!O26) -> 0 | Q26: =IF(Q$8, Hist_vol!$R26*Growth_rates!Q27, Hist_vol!P26) -> 0 | R26: =IF(R$8, Hist_vol!$R26*Growth_rates!R27, Hist_vol!Q26) -> 10157 | S26: =IF(S$8, Hist_vol!$R26*Growth_rates!S27, Hist_vol!R26) -> 12070 | T26: =IF(T$8, Hist_vol!$R26*Growth_rates!T27, Hist_vol!S26) -> 0 | U26: =IF(U$8, Hist_vol!$R26*Growth_rates!U27, Hist_vol!T26) -> 2227.945973 | V26: =IF(V$8, Hist_vol!$R26*Growth_rates!V27, Hist_vol!U26) -> 2228.211085 | W26: =IF(W$8, Hist_vol!$R26*Growth_rates!W27, Hist_vol!V26) -> 6686.001745 | X26: =IF(X$8, Hist_vol!$R26*Growth_rates!X27, Hist_vol!W26) -> 16715.7514 | Y26: =IF(Y$8, Hist_vol!$R26*Growth_rates!Y27, Hist_vol!X26) -> 16711.82828 | Z26: =IF(Z$8, Hist_vol!$R26*Growth_rates!Z27, Hist_vol!Y26) -> 19495.48324 | AA26: =IF(AA$8, Hist_vol!$R26*Growth_rates!AA27, Hist_vol!Z26) -> 19495.40312
B27: =Hist_vol!B27 -> Connections | C27: =Hist_vol!C27 -> EG2 | D27: =Hist_vol!D27 -> Embedded generation | E27: =Hist_vol!E27 -> Complex connection HV (small capacity) | H27: =IF(H$8, Hist_vol!$R27*Growth_rates!H28, Hist_vol!G27) -> 0 | I27: =IF(I$8, Hist_vol!$R27*Growth_rates!I28, Hist_vol!H27) -> 0 | J27: =IF(J$8, Hist_vol!$R27*Growth_rates!J28, Hist_vol!I27) -> 0 | K27: =IF(K$8, Hist_vol!$R27*Growth_rates!K28, Hist_vol!J27) -> 0 | L27: =IF(L$8, Hist_vol!$R27*Growth_rates!L28, Hist_vol!K27) -> 0 | M27: =IF(M$8, Hist_vol!$R27*Growth_rates!M28, Hist_vol!L27) -> 0 | N27: =IF(N$8, Hist_vol!$R27*Growth_rates!N28, Hist_vol!M27) -> 0 | O27: =IF(O$8, Hist_vol!$R27*Growth_rates!O28, Hist_vol!N27) -> 0 | P27: =IF(P$8, Hist_vol!$R27*Growth_rates!P28, Hist_vol!O27) -> 0 | Q27: =IF(Q$8, Hist_vol!$R27*Growth_rates!Q28, Hist_vol!P27) -> 0 | R27: =IF(R$8, Hist_vol!$R27*Growth_rates!R28, Hist_vol!Q27) -> 0 | S27: =IF(S$8, Hist_vol!$R27*Growth_rates!S28, Hist_vol!R27) -> 0 | T27: =IF(T$8, Hist_vol!$R27*Growth_rates!T28, Hist_vol!S27) -> 0 | U27: =IF(U$8, Hist_vol!$R27*Growth_rates!U28, Hist_vol!T27) -> 0 | V27: =IF(V$8, Hist_vol!$R27*Growth_rates!V28, Hist_vol!U27) -> 0 | W27: =IF(W$8, Hist_vol!$R27*Growth_rates!W28, Hist_vol!V27) -> 0 | X27: =IF(X$8, Hist_vol!$R27*Growth_rates!X28, Hist_vol!W27) -> 0 | Y27: =IF(Y$8, Hist_vol!$R27*Growth_rates!Y28, Hist_vol!X27) -> 0 | Z27: =IF(Z$8, Hist_vol!$R27*Growth_rates!Z28, Hist_vol!Y27) -> 0 | AA27: =IF(AA$8, Hist_vol!$R27*Growth_rates!AA28, Hist_vol!Z27) -> 0
B28: =Hist_vol!B28 -> Connections | C28: =Hist_vol!C28 -> EG3 | D28: =Hist_vol!D28 -> Embedded generation | E28: =Hist_vol!E28 -> Complex connection HV (large capacity) | H28: =IF(H$8, Hist_vol!$R28*Growth_rates!H29, Hist_vol!G28) -> 0 | I28: =IF(I$8, Hist_vol!$R28*Growth_rates!I29, Hist_vol!H28) -> 1 | J28: =IF(J$8, Hist_vol!$R28*Growth_rates!J29, Hist_vol!I28) -> 1 | K28: =IF(K$8, Hist_vol!$R28*Growth_rates!K29, Hist_vol!J28) -> 0 | L28: =IF(L$8, Hist_vol!$R28*Growth_rates!L29, Hist_vol!K28) -> 0 | M28: =IF(M$8, Hist_vol!$R28*Growth_rates!M29, Hist_vol!L28) -> 0 | N28: =IF(N$8, Hist_vol!$R28*Growth_rates!N29, Hist_vol!M28) -> 0 | O28: =IF(O$8, Hist_vol!$R28*Growth_rates!O29, Hist_vol!N28) -> 0 | P28: =IF(P$8, Hist_vol!$R28*Growth_rates!P29, Hist_vol!O28) -> 0 | Q28: =IF(Q$8, Hist_vol!$R28*Growth_rates!Q29, Hist_vol!P28) -> 0 | R28: =IF(R$8, Hist_vol!$R28*Growth_rates!R29, Hist_vol!Q28) -> 0 | S28: =IF(S$8, Hist_vol!$R28*Growth_rates!S29, Hist_vol!R28) -> 0 | T28: =IF(T$8, Hist_vol!$R28*Growth_rates!T29, Hist_vol!S28) -> 0 | U28: =IF(U$8, Hist_vol!$R28*Growth_rates!U29, Hist_vol!T28) -> 0 | V28: =IF(V$8, Hist_vol!$R28*Growth_rates!V29, Hist_vol!U28) -> 0 | W28: =IF(W$8, Hist_vol!$R28*Growth_rates!W29, Hist_vol!V28) -> 0 | X28: =IF(X$8, Hist_vol!$R28*Growth_rates!X29, Hist_vol!W28) -> 0 | Y28: =IF(Y$8, Hist_vol!$R28*Growth_rates!Y29, Hist_vol!X28) -> 0 | Z28: =IF(Z$8, Hist_vol!$R28*Growth_rates!Z29, Hist_vol!Y28) -> 0 | AA28: =IF(AA$8, Hist_vol!$R28*Growth_rates!AA29, Hist_vol!Z28) -> 0

Sheet Forecast_spend
A1: =Assumptions!$A$1 -> United Energy
A2: =Assumptions!$A$2 -> Connections
A3: Forecast gross capex
B7: =Assumptions!B17 -> 2025/6 - 2030/31 reg period | H7: =Assumptions!G17 -> FALSE | I7: =Assumptions!H17 -> FALSE | J7: =Assumptions!I17 -> FALSE | K7: =Assumptions!J17 -> FALSE | L7: =Assumptions!K17 -> FALSE | M7: =Assumptions!L17 -> FALSE | N7: =Assumptions!M17 -> FALSE | O7: =Assumptions!N17 -> FALSE | P7: =Assumptions!O17 -> FALSE | Q7: =Assumptions!P17 -> FALSE | R7: =Assumptions!Q17 -> FALSE | S7: =Assumptions!R17 -> FALSE | T7: =Assumptions!S17 -> FALSE | U7: =Assumptions!T17 -> FALSE | V7: =Assumptions!U17 -> FALSE | W7: =Assumptions!V17 -> TRUE | X7: =Assumptions!W17 -> TRUE | Y7: =Assumptions!X17 -> TRUE | Z7: =Assumptions!Y17 -> TRUE | AA7: =Assumptions!Z17 -> TRUE
B8: =Assumptions!B18 -> Forecast period | H8: =Assumptions!G18 -> FALSE | I8: =Assumptions!H18 -> FALSE | J8: =Assumptions!I18 -> FALSE | K8: =Assumptions!J18 -> FALSE | L8: =Assumptions!K18 -> FALSE | M8: =Assumptions!L18 -> FALSE | N8: =Assumptions!M18 -> FALSE | O8: =Assumptions!N18 -> FALSE | P8: =Assumptions!O18 -> FALSE | Q8: =Assumptions!P18 -> FALSE | R8: =Assumptions!Q18 -> FALSE | S8: =Assumptions!R18 -> FALSE | T8: =Assumptions!S18 -> FALSE | U8: =Assumptions!T18 -> TRUE | V8: =Assumptions!U18 -> TRUE | W8: =Assumptions!V18 -> TRUE | X8: =Assumptions!W18 -> TRUE | Y8: =Assumptions!X18 -> TRUE | Z8: =Assumptions!Y18 -> TRUE | AA8: =Assumptions!Z18 -> TRUE
B9: =Assumptions!B19 -> Fin year end | H9: =Assumptions!G19 -> 2012 | I9: =Assumptions!H19 -> 2013 | J9: =Assumptions!I19 -> 2014 | K9: =Assumptions!J19 -> 2015 | L9: =Assumptions!K19 -> 2016 | M9: =Assumptions!L19 -> 2017 | N9: =Assumptions!M19 -> 2018 | O9: =Assumptions!N19 -> 2019 | P9: =Assumptions!O19 -> 2020 | Q9: =Assumptions!P19 -> 2021 | R9: =Assumptions!Q19 -> 2022 | S9: =Assumptions!R19 -> 2023 | T9: =Assumptions!S19 -> 2024 | U9: =Assumptions!T19 -> 2025 | V9: =Assumptions!U19 -> 2026 | W9: =Assumptions!V19 -> 2027 | X9: =Assumptions!W19 -> 2028 | Y9: =Assumptions!X19 -> 2029 | Z9: =Assumptions!Y19 -> 2030 | AA9: =Assumptions!Z19 -> 2031
B10: =Assumptions!B20 -> Basis | H10: =Assumptions!G20 -> Actual | I10: =Assumptions!H20 -> Actual | J10: =Assumptions!I20 -> Actual | K10: =Assumptions!J20 -> Actual | L10: =Assumptions!K20 -> Actual | M10: =Assumptions!L20 -> Actual | N10: =Assumptions!M20 -> Actual | O10: =Assumptions!N20 -> Actual | P10: =Assumptions!O20 -> Actual | Q10: =Assumptions!P20 -> Actual | R10: =Assumptions!Q20 -> Actual | S10: =Assumptions!R20 -> Actual | T10: =Assumptions!S20 -> Actual | U10: =Assumptions!T20 -> Forecast | V10: =Assumptions!U20 -> Forecast | W10: =Assumptions!V20 -> Forecast | X10: =Assumptions!W20 -> Forecast | Y10: =Assumptions!X20 -> Forecast | Z10: =Assumptions!Y20 -> Forecast | AA10: =Assumptions!Z20 -> Forecast
B13: =Hist_vol!B$13 -> Category | C13: Type | D13: =Hist_vol!D$13 -> RIN category | E13: =Hist_vol!E$13 -> Description | H13: =Assumptions!G$24 -> 2011/12 | I13: =Assumptions!H$24 -> 2012/13 | J13: =Assumptions!I$24 -> 2013/14 | K13: =Assumptions!J$24 -> 2014/15 | L13: =Assumptions!K$24 -> 2015/16 | M13: =Assumptions!L$24 -> 2016/17 | N13: =Assumptions!M$24 -> 2017/18 | O13: =Assumptions!N$24 -> 2018/19 | P13: =Assumptions!O$24 -> 2019/20 | Q13: =Assumptions!P$24 -> 2020/21 | R13: =Assumptions!Q$24 -> 2021/22 | S13: =Assumptions!R$24 -> 2022/23 | T13: =Assumptions!S$24 -> 2023/24 | U13: =Assumptions!T$24 -> 2024/25 | V13: =Assumptions!U$24 -> 2025/26 | W13: =Assumptions!V$24 -> 2026/27 | X13: =Assumptions!W$24 -> 2027/28 | Y13: =Assumptions!X$24 -> 2028/29 | Z13: =Assumptions!Y$24 -> 2029/30 | AA13: =Assumptions!Z$24 -> 2030/31 | AC13: 2026-31 Total
B15: Forecast total spend (June 2026 $)
B16: =Hist_vol!B15 -> Connections | C16: =Hist_vol!C15 -> R1 | D16: =Hist_vol!D15 -> Residential | E16: =Hist_vol!E15 -> Simple connection LV | F16: =D16&" "&E16 -> Residential Simple connection LV | H16: =SUMPRODUCT(($F$38:$F$53=$F16)*(H$38:H$53)) -> 0 | I16: =SUMPRODUCT(($F$38:$F$53=$F16)*(I$38:I$53)) -> 0 | J16: =SUMPRODUCT(($F$38:$F$53=$F16)*(J$38:J$53)) -> 0 | K16: =SUMPRODUCT(($F$38:$F$53=$F16)*(K$38:K$53)) -> 0 | L16: =SUMPRODUCT(($F$38:$F$53=$F16)*(L$38:L$53)) -> 5996026.817 | M16: =SUMPRODUCT(($F$38:$F$53=$F16)*(M$38:M$53)) -> 13176136.23 | N16: =SUMPRODUCT(($F$38:$F$53=$F16)*(N$38:N$53)) -> 18069351.49 | O16: =SUMPRODUCT(($F$38:$F$53=$F16)*(O$38:O$53)) -> 18444558.38 | P16: =SUMPRODUCT(($F$38:$F$53=$F16)*(P$38:P$53)) -> 14432352.1 | Q16: =SUMPRODUCT(($F$38:$F$53=$F16)*(Q$38:Q$53)) -> 14666323.06 | R16: =SUMPRODUCT(($F$38:$F$53=$F16)*(R$38:R$53)) -> 16115912.33 | S16: =SUMPRODUCT(($F$38:$F$53=$F16)*(S$38:S$53)) -> 22888181.17 | T16: =SUMPRODUCT(($F$38:$F$53=$F16)*(T$38:T$53)) -> 21713339.74 | U16: =SUMPRODUCT(($F$38:$F$53=$F16)*(U$38:U$53)) -> 25135987.84 | V16: =SUMPRODUCT(($F$38:$F$53=$F16)*(V$38:V$53)) -> 28472778.02 | W16: =SUMPRODUCT(($F$38:$F$53=$F16)*(W$38:W$53)) -> 32180878.44 | X16: =SUMPRODUCT(($F$38:$F$53=$F16)*(X$38:X$53)) -> 30905901.56 | Y16: =SUMPRODUCT(($F$38:$F$53=$F16)*(Y$38:Y$53)) -> 29353892.17 | Z16: =SUMPRODUCT(($F$38:$F$53=$F16)*(Z$38:Z$53)) -> 29827302.04 | AA16: =SUMPRODUCT(($F$38:$F$53=$F16)*(AA$38:AA$53)) -> 30907511.21 | AC16: =SUMPRODUCT($H$7:$AA$7*$H16:$AA16) -> 153175485.4
B17: =Hist_vol!B16 -> Connections | C17: =Hist_vol!C16 -> R2 | D17: =Hist_vol!D16 -> Residential | E17: =Hist_vol!E16 -> Complex connection LV | F17: =D17&" "&E17 -> Residential Complex connection LV | H17: =SUMPRODUCT(($F$38:$F$53=$F17)*(H$38:H$53)) -> 0 | I17: =SUMPRODUCT(($F$38:$F$53=$F17)*(I$38:I$53)) -> 0 | J17: =SUMPRODUCT(($F$38:$F$53=$F17)*(J$38:J$53)) -> 0 | K17: =SUMPRODUCT(($F$38:$F$53=$F17)*(K$38:K$53)) -> 0 | L17: =SUMPRODUCT(($F$38:$F$53=$F17)*(L$38:L$53)) -> 0 | M17: =SUMPRODUCT(($F$38:$F$53=$F17)*(M$38:M$53)) -> 0 | N17: =SUMPRODUCT(($F$38:$F$53=$F17)*(N$38:N$53)) -> 0 | O17: =SUMPRODUCT(($F$38:$F$53=$F17)*(O$38:O$53)) -> 0 | P17: =SUMPRODUCT(($F$38:$F$53=$F17)*(P$38:P$53)) -> 0 | Q17: =SUMPRODUCT(($F$38:$F$53=$F17)*(Q$38:Q$53)) -> 0 | R17: =SUMPRODUCT(($F$38:$F$53=$F17)*(R$38:R$53)) -> 0 | S17: =SUMPRODUCT(($F$38:$F$53=$F17)*(S$38:S$53)) -> 0 | T17: =SUMPRODUCT(($F$38:$F$53=$F17)*(T$38:T$53)) -> 0 | U17: =SUMPRODUCT(($F$38:$F$53=$F17)*(U$38:U$53)) -> 0 | V17: =SUMPRODUCT(($F$38:$F$53=$F17)*(V$38:V$53)) -> 0 | W17: =SUMPRODUCT(($F$38:$F$53=$F17)*(W$38:W$53)) -> 0 | X17: =SUMPRODUCT(($F$38:$F$53=$F17)*(X$38:X$53)) -> 0 | Y17: =SUMPRODUCT(($F$38:$F$53=$F17)*(Y$38:Y$53)) -> 0 | Z17: =SUMPRODUCT(($F$38:$F$53=$F17)*(Z$38:Z$53)) -> 0 | AA17: =SUMPRODUCT(($F$38:$F$53=$F17)*(AA$38:AA$53)) -> 0 | AC17: =SUMPRODUCT($H$7:$AA$7*$H17:$AA17) -> 0
B18: =Hist_vol!B17 -> Connections | C18: =Hist_vol!C17 -> R3 | D18: =Hist_vol!D17 -> Residential | E18: =Hist_vol!E17 -> Complex connection HV | F18: Residential Complex connection HV | H18: =SUMPRODUCT(($F$38:$F$53=$F18)*(H$38:H$53)) -> 0 | I18: =SUMPRODUCT(($F$38:$F$53=$F18)*(I$38:I$53)) -> 0 | J18: =SUMPRODUCT(($F$38:$F$53=$F18)*(J$38:J$53)) -> 0 | K18: =SUMPRODUCT(($F$38:$F$53=$F18)*(K$38:K$53)) -> 0 | L18: =SUMPRODUCT(($F$38:$F$53=$F18)*(L$38:L$53)) -> 0 | M18: =SUMPRODUCT(($F$38:$F$53=$F18)*(M$38:M$53)) -> 0 | N18: =SUMPRODUCT(($F$38:$F$53=$F18)*(N$38:N$53)) -> 0 | O18: =SUMPRODUCT(($F$38:$F$53=$F18)*(O$38:O$53)) -> 0 | P18: =SUMPRODUCT(($F$38:$F$53=$F18)*(P$38:P$53)) -> 0 | Q18: =SUMPRODUCT(($F$38:$F$53=$F18)*(Q$38:Q$53)) -> 0 | R18: =SUMPRODUCT(($F$38:$F$53=$F18)*(R$38:R$53)) -> 0 | S18: =SUMPRODUCT(($F$38:$F$53=$F18)*(S$38:S$53)) -> 0 | T18: =SUMPRODUCT(($F$38:$F$53=$F18)*(T$38:T$53)) -> 0 | U18: =SUMPRODUCT(($F$38:$F$53=$F18)*(U$38:U$53)) -> 0 | V18: =SUMPRODUCT(($F$38:$F$53=$F18)*(V$38:V$53)) -> 0 | W18: =SUMPRODUCT(($F$38:$F$53=$F18)*(W$38:W$53)) -> 0 | X18: =SUMPRODUCT(($F$38:$F$53=$F18)*(X$38:X$53)) -> 0 | Y18: =SUMPRODUCT(($F$38:$F$53=$F18)*(Y$38:Y$53)) -> 0 | Z18: =SUMPRODUCT(($F$38:$F$53=$F18)*(Z$38:Z$53)) -> 0 | AA18: =SUMPRODUCT(($F$38:$F$53=$F18)*(AA$38:AA$53)) -> 0 | AC18: =SUMPRODUCT($H$7:$AA$7*$H18:$AA18) -> 0
B19: =Hist_vol!B18 -> Connections | C19: =Hist_vol!C18 -> CI1 | D19: =Hist_vol!D18 -> Commercial/Industrial | E19: =Hist_vol!E18 -> Simple connection LV | F19: Commercial/Industrial Simple connection LV | H19: =SUMPRODUCT(($F$38:$F$53=$F19)*(H$38:H$53)) -> 4985175.064 | I19: =SUMPRODUCT(($F$38:$F$53=$F19)*(I$38:I$53)) -> 5160221.726 | J19: =SUMPRODUCT(($F$38:$F$53=$F19)*(J$38:J$53)) -> 5024551.121 | K19: =SUMPRODUCT(($F$38:$F$53=$F19)*(K$38:K$53)) -> 5078546.336 | L19: =SUMPRODUCT(($F$38:$F$53=$F19)*(L$38:L$53)) -> 2664510.805 | M19: =SUMPRODUCT(($F$38:$F$53=$F19)*(M$38:M$53)) -> 2643134.511 | N19: =SUMPRODUCT(($F$38:$F$53=$F19)*(N$38:N$53)) -> 3555550.184 | O19: =SUMPRODUCT(($F$38:$F$53=$F19)*(O$38:O$53)) -> 4349275.007 | P19: =SUMPRODUCT(($F$38:$F$53=$F19)*(P$38:P$53)) -> 4825666.674 | Q19: =SUMPRODUCT(($F$38:$F$53=$F19)*(Q$38:Q$53)) -> 6770320.754 | R19: =SUMPRODUCT(($F$38:$F$53=$F19)*(R$38:R$53)) -> 6115795.97 | S19: =SUMPRODUCT(($F$38:$F$53=$F19)*(S$38:S$53)) -> 6032057.757 | T19: =SUMPRODUCT(($F$38:$F$53=$F19)*(T$38:T$53)) -> 8194472.639 | U19: =SUMPRODUCT(($F$38:$F$53=$F19)*(U$38:U$53)) -> 4241717.717 | V19: =SUMPRODUCT(($F$38:$F$53=$F19)*(V$38:V$53)) -> 4546201.022 | W19: =SUMPRODUCT(($F$38:$F$53=$F19)*(W$38:W$53)) -> 5156388.134 | X19: =SUMPRODUCT(($F$38:$F$53=$F19)*(X$38:X$53)) -> 5390826.818 | Y19: =SUMPRODUCT(($F$38:$F$53=$F19)*(Y$38:Y$53)) -> 5482476.782 | Z19: =SUMPRODUCT(($F$38:$F$53=$F19)*(Z$38:Z$53)) -> 5592280.408 | AA19: =SUMPRODUCT(($F$38:$F$53=$F19)*(AA$38:AA$53)) -> 5581591.246 | AC19: =SUMPRODUCT($H$7:$AA$7*$H19:$AA19) -> 27203563.39
B20: =Hist_vol!B19 -> Connections | C20: =Hist_vol!C19 -> CI2 | D20: =Hist_vol!D19 -> Commercial/Industrial | E20: =Hist_vol!E19 -> Complex connection HV (customer connected at LV, minor HV works) | F20: Commercial/Industrial Complex connection HV (customer connected at LV, minor HV works) | H20: =SUMPRODUCT(($F$38:$F$53=$F20)*(H$38:H$53)) -> 25402369.87 | I20: =SUMPRODUCT(($F$38:$F$53=$F20)*(I$38:I$53)) -> 24516092.24 | J20: =SUMPRODUCT(($F$38:$F$53=$F20)*(J$38:J$53)) -> 25479198.25 | K20: =SUMPRODUCT(($F$38:$F$53=$F20)*(K$38:K$53)) -> 26936477.7 | L20: =SUMPRODUCT(($F$38:$F$53=$F20)*(L$38:L$53)) -> 27887387.71 | M20: =SUMPRODUCT(($F$38:$F$53=$F20)*(M$38:M$53)) -> 25661552.1 | N20: =SUMPRODUCT(($F$38:$F$53=$F20)*(N$38:N$53)) -> 17540040.47 | O20: =SUMPRODUCT(($F$38:$F$53=$F20)*(O$38:O$53)) -> 13603860.79 | P20: =SUMPRODUCT(($F$38:$F$53=$F20)*(P$38:P$53)) -> 13370936 | Q20: =SUMPRODUCT(($F$38:$F$53=$F20)*(Q$38:Q$53)) -> 17776512.73 | R20: =SUMPRODUCT(($F$38:$F$53=$F20)*(R$38:R$53)) -> 14085682.29 | S20: =SUMPRODUCT(($F$38:$F$53=$F20)*(S$38:S$53)) -> 18834434.91 | T20: =SUMPRODUCT(($F$38:$F$53=$F20)*(T$38:T$53)) -> 20261295.9 | U20: =SUMPRODUCT(($F$38:$F$53=$F20)*(U$38:U$53)) -> 13244295.64 | V20: =SUMPRODUCT(($F$38:$F$53=$F20)*(V$38:V$53)) -> 14195011.17 | W20: =SUMPRODUCT(($F$38:$F$53=$F20)*(W$38:W$53)) -> 16100253.11 | X20: =SUMPRODUCT(($F$38:$F$53=$F20)*(X$38:X$53)) -> 16832262.04 | Y20: =SUMPRODUCT(($F$38:$F$53=$F20)*(Y$38:Y$53)) -> 17118428.94 | Z20: =SUMPRODUCT(($F$38:$F$53=$F20)*(Z$38:Z$53)) -> 17461278.65 | AA20: =SUMPRODUCT(($F$38:$F$53=$F20)*(AA$38:AA$53)) -> 17427902.92 | AC20: =SUMPRODUCT($H$7:$AA$7*$H20:$AA20) -> 84940125.66
B21: =Hist_vol!B20 -> Connections | C21: =Hist_vol!C20 -> CI3 | D21: =Hist_vol!D20 -> Commercial/Industrial | E21: =Hist_vol!E20 -> Complex connection HV (customer connected at LV, upstream asset works) | F21: Commercial/Industrial Complex connection HV (customer connected at LV, upstream asset works) | H21: =SUMPRODUCT(($F$38:$F$53=$F21)*(H$38:H$53)) -> 3230042.001 | I21: =SUMPRODUCT(($F$38:$F$53=$F21)*(I$38:I$53)) -> 1234718.999 | J21: =SUMPRODUCT(($F$38:$F$53=$F21)*(J$38:J$53)) -> 1355167.633 | K21: =SUMPRODUCT(($F$38:$F$53=$F21)*(K$38:K$53)) -> 6667608.404 | L21: =SUMPRODUCT(($F$38:$F$53=$F21)*(L$38:L$53)) -> 8307680.6 | M21: =SUMPRODUCT(($F$38:$F$53=$F21)*(M$38:M$53)) -> 3779807.972 | N21: =SUMPRODUCT(($F$38:$F$53=$F21)*(N$38:N$53)) -> 1494624.018 | O21: =SUMPRODUCT(($F$38:$F$53=$F21)*(O$38:O$53)) -> 1339301.559 | P21: =SUMPRODUCT(($F$38:$F$53=$F21)*(P$38:P$53)) -> 1003223.669 | Q21: =SUMPRODUCT(($F$38:$F$53=$F21)*(Q$38:Q$53)) -> 0 | R21: =SUMPRODUCT(($F$38:$F$53=$F21)*(R$38:R$53)) -> 2059569.041 | S21: =SUMPRODUCT(($F$38:$F$53=$F21)*(S$38:S$53)) -> 491280.8829 | T21: =SUMPRODUCT(($F$38:$F$53=$F21)*(T$38:T$53)) -> 6427547.973 | U21: =SUMPRODUCT(($F$38:$F$53=$F21)*(U$38:U$53)) -> 345466.6565 | V21: =SUMPRODUCT(($F$38:$F$53=$F21)*(V$38:V$53)) -> 370265.2962 | W21: =SUMPRODUCT(($F$38:$F$53=$F21)*(W$38:W$53)) -> 419961.9793 | X21: =SUMPRODUCT(($F$38:$F$53=$F21)*(X$38:X$53)) -> 439055.8356 | Y21: =SUMPRODUCT(($F$38:$F$53=$F21)*(Y$38:Y$53)) -> 446520.2659 | Z21: =SUMPRODUCT(($F$38:$F$53=$F21)*(Z$38:Z$53)) -> 455463.2212 | AA21: =SUMPRODUCT(($F$38:$F$53=$F21)*(AA$38:AA$53)) -> 454592.6425 | AC21: =SUMPRODUCT($H$7:$AA$7*$H21:$AA21) -> 2215593.944
B22: =Hist_vol!B21 -> Connections | C22: =Hist_vol!C21 -> CI4 | D22: =Hist_vol!D21 -> Commercial/Industrial | E22: =Hist_vol!E21 -> Complex connection HV (customer connected at HV) | F22: Commercial/Industrial Complex connection HV (customer connected at HV) | H22: =SUMPRODUCT(($F$38:$F$53=$F22)*(H$38:H$53)) -> 1216986.426 | I22: =SUMPRODUCT(($F$38:$F$53=$F22)*(I$38:I$53)) -> 1302141.906 | J22: =SUMPRODUCT(($F$38:$F$53=$F22)*(J$38:J$53)) -> 1904663.933 | K22: =SUMPRODUCT(($F$38:$F$53=$F22)*(K$38:K$53)) -> 7926253.879 | L22: =SUMPRODUCT(($F$38:$F$53=$F22)*(L$38:L$53)) -> 13052327.12 | M22: =SUMPRODUCT(($F$38:$F$53=$F22)*(M$38:M$53)) -> 15256300.16 | N22: =SUMPRODUCT(($F$38:$F$53=$F22)*(N$38:N$53)) -> 13704870.12 | O22: =SUMPRODUCT(($F$38:$F$53=$F22)*(O$38:O$53)) -> 10900348.75 | P22: =SUMPRODUCT(($F$38:$F$53=$F22)*(P$38:P$53)) -> 14573361.18 | Q22: =SUMPRODUCT(($F$38:$F$53=$F22)*(Q$38:Q$53)) -> 24021168.63 | R22: =SUMPRODUCT(($F$38:$F$53=$F22)*(R$38:R$53)) -> 11289883.87 | S22: =SUMPRODUCT(($F$38:$F$53=$F22)*(S$38:S$53)) -> 14554152.36 | T22: =SUMPRODUCT(($F$38:$F$53=$F22)*(T$38:T$53)) -> 46711820.65 | U22: =SUMPRODUCT(($F$38:$F$53=$F22)*(U$38:U$53)) -> 10234418.9 | V22: =SUMPRODUCT(($F$38:$F$53=$F22)*(V$38:V$53)) -> 10969076.39 | W22: =SUMPRODUCT(($F$38:$F$53=$F22)*(W$38:W$53)) -> 12441336.2 | X22: =SUMPRODUCT(($F$38:$F$53=$F22)*(X$38:X$53)) -> 13006989.99 | Y22: =SUMPRODUCT(($F$38:$F$53=$F22)*(Y$38:Y$53)) -> 13228123.07 | Z22: =SUMPRODUCT(($F$38:$F$53=$F22)*(Z$38:Z$53)) -> 13493057.32 | AA22: =SUMPRODUCT(($F$38:$F$53=$F22)*(AA$38:AA$53)) -> 13467266.51 | AC22: =SUMPRODUCT($H$7:$AA$7*$H22:$AA22) -> 65636773.1
B23: =Hist_vol!B22 -> Connections | C23: =Hist_vol!C22 -> CI5 | D23: =Hist_vol!D22 -> Commercial/Industrial | E23: =Hist_vol!E22 -> Complex connection sub-transmission | F23: Commercial/Industrial Complex connection sub-transmission | H23: =SUMPRODUCT(($F$38:$F$53=$F23)*(H$38:H$53)) -> 0 | I23: =SUMPRODUCT(($F$38:$F$53=$F23)*(I$38:I$53)) -> 0 | J23: =SUMPRODUCT(($F$38:$F$53=$F23)*(J$38:J$53)) -> 0 | K23: =SUMPRODUCT(($F$38:$F$53=$F23)*(K$38:K$53)) -> 0 | L23: =SUMPRODUCT(($F$38:$F$53=$F23)*(L$38:L$53)) -> 0 | M23: =SUMPRODUCT(($F$38:$F$53=$F23)*(M$38:M$53)) -> 0 | N23: =SUMPRODUCT(($F$38:$F$53=$F23)*(N$38:N$53)) -> 0 | O23: =SUMPRODUCT(($F$38:$F$53=$F23)*(O$38:O$53)) -> 0 | P23: =SUMPRODUCT(($F$38:$F$53=$F23)*(P$38:P$53)) -> 0 | Q23: =SUMPRODUCT(($F$38:$F$53=$F23)*(Q$38:Q$53)) -> 0 | R23: =SUMPRODUCT(($F$38:$F$53=$F23)*(R$38:R$53)) -> 7722.748749 | S23: =SUMPRODUCT(($F$38:$F$53=$F23)*(S$38:S$53)) -> 42177.51101 | T23: =SUMPRODUCT(($F$38:$F$53=$F23)*(T$38:T$53)) -> 459114.3057 | U23: =SUMPRODUCT(($F$38:$F$53=$F23)*(U$38:U$53)) -> 29659.04885 | V23: =SUMPRODUCT(($F$38:$F$53=$F23)*(V$38:V$53)) -> 31788.06493 | W23: =SUMPRODUCT(($F$38:$F$53=$F23)*(W$38:W$53)) -> 36054.63111 | X23: =SUMPRODUCT(($F$38:$F$53=$F23)*(X$38:X$53)) -> 37693.87937 | Y23: =SUMPRODUCT(($F$38:$F$53=$F23)*(Y$38:Y$53)) -> 38334.71663 | Z23: =SUMPRODUCT(($F$38:$F$53=$F23)*(Z$38:Z$53)) -> 39102.4884 | AA23: =SUMPRODUCT(($F$38:$F$53=$F23)*(AA$38:AA$53)) -> 39027.74736 | AC23: =SUMPRODUCT($H$7:$AA$7*$H23:$AA23) -> 190213.4629
B24: =Hist_vol!B23 -> Connections | C24: =Hist_vol!C23 -> S1 | D24: =Hist_vol!D23 -> Subdivision | E24: =Hist_vol!E23 -> Complex connection LV | F24: Subdivision Complex connection LV | H24: =SUMPRODUCT(($F$38:$F$53=$F24)*(H$38:H$53)) -> 14228434.04 | I24: =SUMPRODUCT(($F$38:$F$53=$F24)*(I$38:I$53)) -> 13180366.92 | J24: =SUMPRODUCT(($F$38:$F$53=$F24)*(J$38:J$53)) -> 15057202.38 | K24: =SUMPRODUCT(($F$38:$F$53=$F24)*(K$38:K$53)) -> 17433238.75 | L24: =SUMPRODUCT(($F$38:$F$53=$F24)*(L$38:L$53)) -> 11275188.75 | M24: =SUMPRODUCT(($F$38:$F$53=$F24)*(M$38:M$53)) -> 4250119.203 | N24: =SUMPRODUCT(($F$38:$F$53=$F24)*(N$38:N$53)) -> 1628592.689 | O24: =SUMPRODUCT(($F$38:$F$53=$F24)*(O$38:O$53)) -> 1584279.106 | P24: =SUMPRODUCT(($F$38:$F$53=$F24)*(P$38:P$53)) -> 1982814.353 | Q24: =SUMPRODUCT(($F$38:$F$53=$F24)*(Q$38:Q$53)) -> 2218047.677 | R24: =SUMPRODUCT(($F$38:$F$53=$F24)*(R$38:R$53)) -> 1397119.605 | S24: =SUMPRODUCT(($F$38:$F$53=$F24)*(S$38:S$53)) -> 1799060.017 | T24: =SUMPRODUCT(($F$38:$F$53=$F24)*(T$38:T$53)) -> 3245491.44 | U24: =SUMPRODUCT(($F$38:$F$53=$F24)*(U$38:U$53)) -> 1975742.431 | V24: =SUMPRODUCT(($F$38:$F$53=$F24)*(V$38:V$53)) -> 2238021.28 | W24: =SUMPRODUCT(($F$38:$F$53=$F24)*(W$38:W$53)) -> 2529485.907 | X24: =SUMPRODUCT(($F$38:$F$53=$F24)*(X$38:X$53)) -> 2429269.996 | Y24: =SUMPRODUCT(($F$38:$F$53=$F24)*(Y$38:Y$53)) -> 2307278.737 | Z24: =SUMPRODUCT(($F$38:$F$53=$F24)*(Z$38:Z$53)) -> 2344489.766 | AA24: =SUMPRODUCT(($F$38:$F$53=$F24)*(AA$38:AA$53)) -> 2429396.518 | AC24: =SUMPRODUCT($H$7:$AA$7*$H24:$AA24) -> 12039920.92
B25: =Hist_vol!B24 -> Connections | C25: =Hist_vol!C24 -> S2 | D25: =Hist_vol!D24 -> Subdivision | E25: =Hist_vol!E24 -> Complex connection HV (no upstream asset works) | F25: Subdivision Complex connection HV (no upstream asset works) | H25: =SUMPRODUCT(($F$38:$F$53=$F25)*(H$38:H$53)) -> 2291486.68 | I25: =SUMPRODUCT(($F$38:$F$53=$F25)*(I$38:I$53)) -> 2367634.002 | J25: =SUMPRODUCT(($F$38:$F$53=$F25)*(J$38:J$53)) -> 3246036.124 | K25: =SUMPRODUCT(($F$38:$F$53=$F25)*(K$38:K$53)) -> 3088939.692 | L25: =SUMPRODUCT(($F$38:$F$53=$F25)*(L$38:L$53)) -> 1924878.116 | M25: =SUMPRODUCT(($F$38:$F$53=$F25)*(M$38:M$53)) -> 2109860.39 | N25: =SUMPRODUCT(($F$38:$F$53=$F25)*(N$38:N$53)) -> 1382283.8 | O25: =SUMPRODUCT(($F$38:$F$53=$F25)*(O$38:O$53)) -> 1312592.666 | P25: =SUMPRODUCT(($F$38:$F$53=$F25)*(P$38:P$53)) -> 1741047.522 | Q25: =SUMPRODUCT(($F$38:$F$53=$F25)*(Q$38:Q$53)) -> 2268394.124 | R25: =SUMPRODUCT(($F$38:$F$53=$F25)*(R$38:R$53)) -> 1404375.073 | S25: =SUMPRODUCT(($F$38:$F$53=$F25)*(S$38:S$53)) -> 2235217.618 | T25: =SUMPRODUCT(($F$38:$F$53=$F25)*(T$38:T$53)) -> 3433821.857 | U25: =SUMPRODUCT(($F$38:$F$53=$F25)*(U$38:U$53)) -> 2454734.278 | V25: =SUMPRODUCT(($F$38:$F$53=$F25)*(V$38:V$53)) -> 2780599.061 | W25: =SUMPRODUCT(($F$38:$F$53=$F25)*(W$38:W$53)) -> 3142725.319 | X25: =SUMPRODUCT(($F$38:$F$53=$F25)*(X$38:X$53)) -> 3018213.425 | Y25: =SUMPRODUCT(($F$38:$F$53=$F25)*(Y$38:Y$53)) -> 2866647.047 | Z25: =SUMPRODUCT(($F$38:$F$53=$F25)*(Z$38:Z$53)) -> 2912879.382 | AA25: =SUMPRODUCT(($F$38:$F$53=$F25)*(AA$38:AA$53)) -> 3018370.62 | AC25: =SUMPRODUCT($H$7:$AA$7*$H25:$AA25) -> 14958835.79
B26: =Hist_vol!B25 -> Connections | C26: =Hist_vol!C25 -> S3 | D26: =Hist_vol!D25 -> Subdivision | E26: =Hist_vol!E25 -> Complex connection HV (with upstream asset works) | F26: Subdivision Complex connection HV (with upstream asset works) | H26: =SUMPRODUCT(($F$38:$F$53=$F26)*(H$38:H$53)) -> 0 | I26: =SUMPRODUCT(($F$38:$F$53=$F26)*(I$38:I$53)) -> 0 | J26: =SUMPRODUCT(($F$38:$F$53=$F26)*(J$38:J$53)) -> 0 | K26: =SUMPRODUCT(($F$38:$F$53=$F26)*(K$38:K$53)) -> 0 | L26: =SUMPRODUCT(($F$38:$F$53=$F26)*(L$38:L$53)) -> 0 | M26: =SUMPRODUCT(($F$38:$F$53=$F26)*(M$38:M$53)) -> 261704.1577 | N26: =SUMPRODUCT(($F$38:$F$53=$F26)*(N$38:N$53)) -> 794619.3451 | O26: =SUMPRODUCT(($F$38:$F$53=$F26)*(O$38:O$53)) -> 861020.1132 | P26: =SUMPRODUCT(($F$38:$F$53=$F26)*(P$38:P$53)) -> 328850.0245 | Q26: =SUMPRODUCT(($F$38:$F$53=$F26)*(Q$38:Q$53)) -> 0 | R26: =SUMPRODUCT(($F$38:$F$53=$F26)*(R$38:R$53)) -> 0 | S26: =SUMPRODUCT(($F$38:$F$53=$F26)*(S$38:S$53)) -> 0 | T26: =SUMPRODUCT(($F$38:$F$53=$F26)*(T$38:T$53)) -> 0 | U26: =SUMPRODUCT(($F$38:$F$53=$F26)*(U$38:U$53)) -> 0 | V26: =SUMPRODUCT(($F$38:$F$53=$F26)*(V$38:V$53)) -> 0 | W26: =SUMPRODUCT(($F$38:$F$53=$F26)*(W$38:W$53)) -> 0 | X26: =SUMPRODUCT(($F$38:$F$53=$F26)*(X$38:X$53)) -> 0 | Y26: =SUMPRODUCT(($F$38:$F$53=$F26)*(Y$38:Y$53)) -> 0 | Z26: =SUMPRODUCT(($F$38:$F$53=$F26)*(Z$38:Z$53)) -> 0 | AA26: =SUMPRODUCT(($F$38:$F$53=$F26)*(AA$38:AA$53)) -> 0 | AC26: =SUMPRODUCT($H$7:$AA$7*$H26:$AA26) -> 0
B27: =Hist_vol!B26 -> Connections | C27: =Hist_vol!C26 -> EG1 | D27: =Hist_vol!D26 -> Embedded generation | E27: =Hist_vol!E26 -> Simple connection LV | F27: Embedded generation Simple connection LV | H27: =SUMPRODUCT(($F$38:$F$53=$F27)*(H$38:H$53)) -> 536283.053 | I27: =SUMPRODUCT(($F$38:$F$53=$F27)*(I$38:I$53)) -> 525747.0402 | J27: =SUMPRODUCT(($F$38:$F$53=$F27)*(J$38:J$53)) -> 0 | K27: =SUMPRODUCT(($F$38:$F$53=$F27)*(K$38:K$53)) -> 0 | L27: =SUMPRODUCT(($F$38:$F$53=$F27)*(L$38:L$53)) -> 0 | M27: =SUMPRODUCT(($F$38:$F$53=$F27)*(M$38:M$53)) -> 0 | N27: =SUMPRODUCT(($F$38:$F$53=$F27)*(N$38:N$53)) -> 0 | O27: =SUMPRODUCT(($F$38:$F$53=$F27)*(O$38:O$53)) -> 0 | P27: =SUMPRODUCT(($F$38:$F$53=$F27)*(P$38:P$53)) -> 0 | Q27: =SUMPRODUCT(($F$38:$F$53=$F27)*(Q$38:Q$53)) -> 0 | R27: =SUMPRODUCT(($F$38:$F$53=$F27)*(R$38:R$53)) -> 0 | S27: =SUMPRODUCT(($F$38:$F$53=$F27)*(S$38:S$53)) -> 0 | T27: =SUMPRODUCT(($F$38:$F$53=$F27)*(T$38:T$53)) -> 0 | U27: =SUMPRODUCT(($F$38:$F$53=$F27)*(U$38:U$53)) -> 0 | V27: =SUMPRODUCT(($F$38:$F$53=$F27)*(V$38:V$53)) -> 0 | W27: =SUMPRODUCT(($F$38:$F$53=$F27)*(W$38:W$53)) -> 0 | X27: =SUMPRODUCT(($F$38:$F$53=$F27)*(X$38:X$53)) -> 0 | Y27: =SUMPRODUCT(($F$38:$F$53=$F27)*(Y$38:Y$53)) -> 0 | Z27: =SUMPRODUCT(($F$38:$F$53=$F27)*(Z$38:Z$53)) -> 0 | AA27: =SUMPRODUCT(($F$38:$F$53=$F27)*(AA$38:AA$53)) -> 0 | AC27: =SUMPRODUCT($H$7:$AA$7*$H27:$AA27) -> 0
B28: =Hist_vol!B27 -> Connections | C28: =Hist_vol!C27 -> EG2 | D28: =Hist_vol!D27 -> Embedded generation | E28: =Hist_vol!E27 -> Complex connection HV (small capacity) | F28: Embedded generation Complex connection HV (small capacity) | H28: =SUMPRODUCT(($F$38:$F$53=$F28)*(H$38:H$53)) -> 127014.4073 | I28: =SUMPRODUCT(($F$38:$F$53=$F28)*(I$38:I$53)) -> 124519.0358 | J28: =SUMPRODUCT(($F$38:$F$53=$F28)*(J$38:J$53)) -> 0 | K28: =SUMPRODUCT(($F$38:$F$53=$F28)*(K$38:K$53)) -> 0 | L28: =SUMPRODUCT(($F$38:$F$53=$F28)*(L$38:L$53)) -> 0 | M28: =SUMPRODUCT(($F$38:$F$53=$F28)*(M$38:M$53)) -> 0 | N28: =SUMPRODUCT(($F$38:$F$53=$F28)*(N$38:N$53)) -> 0 | O28: =SUMPRODUCT(($F$38:$F$53=$F28)*(O$38:O$53)) -> 0 | P28: =SUMPRODUCT(($F$38:$F$53=$F28)*(P$38:P$53)) -> 3616.306224 | Q28: =SUMPRODUCT(($F$38:$F$53=$F28)*(Q$38:Q$53)) -> 16390.0709 | R28: =SUMPRODUCT(($F$38:$F$53=$F28)*(R$38:R$53)) -> 220568.6234 | S28: =SUMPRODUCT(($F$38:$F$53=$F28)*(S$38:S$53)) -> 4940884.844 | T28: =SUMPRODUCT(($F$38:$F$53=$F28)*(T$38:T$53)) -> 2178715.701 | U28: =SUMPRODUCT(($F$38:$F$53=$F28)*(U$38:U$53)) -> 0 | V28: =SUMPRODUCT(($F$38:$F$53=$F28)*(V$38:V$53)) -> 0 | W28: =SUMPRODUCT(($F$38:$F$53=$F28)*(W$38:W$53)) -> 0 | X28: =SUMPRODUCT(($F$38:$F$53=$F28)*(X$38:X$53)) -> 0 | Y28: =SUMPRODUCT(($F$38:$F$53=$F28)*(Y$38:Y$53)) -> 0 | Z28: =SUMPRODUCT(($F$38:$F$53=$F28)*(Z$38:Z$53)) -> 0 | AA28: =SUMPRODUCT(($F$38:$F$53=$F28)*(AA$38:AA$53)) -> 0 | AC28: =SUMPRODUCT($H$7:$AA$7*$H28:$AA28) -> 0
B29: =Hist_vol!B28 -> Connections | C29: =Hist_vol!C28 -> EG3 | D29: =Hist_vol!D28 -> Embedded generation | E29: =Hist_vol!E28 -> Complex connection HV (large capacity) | F29: Embedded generation Complex connection HV (large capacity) | H29: =SUMPRODUCT(($F$38:$F$53=$F29)*(H$38:H$53)) -> 0 | I29: =SUMPRODUCT(($F$38:$F$53=$F29)*(I$38:I$53)) -> 110683.5874 | J29: =SUMPRODUCT(($F$38:$F$53=$F29)*(J$38:J$53)) -> 108342.2038 | K29: =SUMPRODUCT(($F$38:$F$53=$F29)*(K$38:K$53)) -> 0 | L29: =SUMPRODUCT(($F$38:$F$53=$F29)*(L$38:L$53)) -> 0 | M29: =SUMPRODUCT(($F$38:$F$53=$F29)*(M$38:M$53)) -> 0 | N29: =SUMPRODUCT(($F$38:$F$53=$F29)*(N$38:N$53)) -> 0 | O29: =SUMPRODUCT(($F$38:$F$53=$F29)*(O$38:O$53)) -> 0 | P29: =SUMPRODUCT(($F$38:$F$53=$F29)*(P$38:P$53)) -> 0 | Q29: =SUMPRODUCT(($F$38:$F$53=$F29)*(Q$38:Q$53)) -> 0 | R29: =SUMPRODUCT(($F$38:$F$53=$F29)*(R$38:R$53)) -> 0 | S29: =SUMPRODUCT(($F$38:$F$53=$F29)*(S$38:S$53)) -> 0 | T29: =SUMPRODUCT(($F$38:$F$53=$F29)*(T$38:T$53)) -> 0 | U29: =SUMPRODUCT(($F$38:$F$53=$F29)*(U$38:U$53)) -> 0 | V29: =SUMPRODUCT(($F$38:$F$53=$F29)*(V$38:V$53)) -> 0 | W29: =SUMPRODUCT(($F$38:$F$53=$F29)*(W$38:W$53)) -> 0 | X29: =SUMPRODUCT(($F$38:$F$53=$F29)*(X$38:X$53)) -> 0 | Y29: =SUMPRODUCT(($F$38:$F$53=$F29)*(Y$38:Y$53)) -> 0 | Z29: =SUMPRODUCT(($F$38:$F$53=$F29)*(Z$38:Z$53)) -> 0 | AA29: =SUMPRODUCT(($F$38:$F$53=$F29)*(AA$38:AA$53)) -> 0 | AC29: =SUMPRODUCT($H$7:$AA$7*$H29:$AA29) -> 0
B30: ='Grid connected batteries'!B16 -> Connections | C30: Grid connected Batteries | D30: Grid connected Batteries | F30: =D30 -> Grid connected Batteries | H30: 0 | I30: 0 | J30: 0 | K30: 0 | L30: 0 | M30: 0 | N30: 0 | O30: 0 | P30: 0 | Q30: 0 | R30: 0 | S30: 0 | T30: 0 | U30: 0 | V30: 0 | W30: ='Grid connected batteries'!E16 -> 5296592.788 | X30: ='Grid connected batteries'!F16 -> 5205558.138 | Y30: ='Grid connected batteries'!G16 -> 6295788.595 | Z30: ='Grid connected batteries'!H16 -> 7238304.047 | AA30: ='Grid connected batteries'!I16 -> 6659987.674 | AC30: =SUMPRODUCT($H$7:$AA$7*$H30:$AA30) -> 30696231.24
B31: Connections | C31: Data Centres | D31: Data Centres | F31: =D31 -> Data Centres | H31: 0 | I31: 0 | J31: 0 | K31: 0 | L31: 0 | M31: 0 | N31: 0 | O31: 0 | P31: 0 | Q31: 0 | R31: 0 | S31: 0 | T31: 0 | U31: 0 | V31: 0 | W31: 0 | X31: 0 | Y31: 0 | Z31: 0 | AA31: 0 | AC31: =SUMPRODUCT($H$7:$AA$7*$H31:$AA31) -> 0
B32: Total | H32: =SUM(H16:H31) -> 52017791.54 | I32: 48522125.46 | J32: 52175161.65 | K32: 67131064.76 | L32: 71107999.92 | M32: 67138614.73 | N32: 58169932.12 | O32: 52395236.37 | P32: 52261867.84 | Q32: 67737157.05 | R32: 52696629.56 | S32: 71817447.07 | T32: 112625620.2 | U32: 57662022.52 | V32: 63603740.31 | W32: 77303676.51 | X32: 77265771.68 | Y32: 77137490.33 | Z32: 79364157.33 | AA32: 79985647.09 | AC32: =SUM(AC16:AC31) -> 391056742.9
B35: =Hist_vol!B$13 -> Category | C35: =Hist_vol!C$13 -> Type | D35: =Hist_vol!D$13 -> RIN category | E35: =Hist_vol!E$13 -> Description | G35: Unit rate | H35: =Assumptions!G$24 -> 2011/12 | I35: =Assumptions!H$24 -> 2012/13 | J35: =Assumptions!I$24 -> 2013/14 | K35: =Assumptions!J$24 -> 2014/15 | L35: =Assumptions!K$24 -> 2015/16 | M35: =Assumptions!L$24 -> 2016/17 | N35: =Assumptions!M$24 -> 2017/18 | O35: =Assumptions!N$24 -> 2018/19 | P35: =Assumptions!O$24 -> 2019/20 | Q35: =Assumptions!P$24 -> 2020/21 | R35: =Assumptions!Q$24 -> 2021/22 | S35: =Assumptions!R$24 -> 2022/23 | T35: =Assumptions!S$24 -> 2023/24 | U35: =Assumptions!T$24 -> 2024/25 | V35: =Assumptions!U$24 -> 2025/26 | W35: =Assumptions!V$24 -> 2026/27 | X35: =Assumptions!W$24 -> 2027/28 | Y35: =Assumptions!X$24 -> 2028/29 | Z35: =Assumptions!Y$24 -> 2029/30 | AA35: =Assumptions!Z$24 -> 2030/31 | AC35: 2026-31 Total
B37: Forecast spend from trend (June 2026 $)
B38: =Hist_vol!B15 -> Connections | C38: =Hist_vol!C15 -> R1 | D38: =Hist_vol!D15 -> Residential | E38: =Hist_vol!E15 -> Simple connection LV | F38: =D38&" "&E38 -> Residential Simple connection LV | G38: =Unit_rates!R15 -> 3601.602072 | H38: =IF(H$8, $G38*Forecast_vol!H15,Hist_expenditure!G15*Assumptions!G$29) -> 0 | I38: =IF(I$8, $G38*Forecast_vol!I15,Hist_expenditure!H15*Assumptions!H$29) -> 0 | J38: =IF(J$8, $G38*Forecast_vol!J15,Hist_expenditure!I15*Assumptions!I$29) -> 0 | K38: =IF(K$8, $G38*Forecast_vol!K15,Hist_expenditure!J15*Assumptions!J$29) -> 0 | L38: =IF(L$8, $G38*Forecast_vol!L15,Hist_expenditure!K15*Assumptions!K$29) -> 5996026.817 | M38: =IF(M$8, $G38*Forecast_vol!M15,Hist_expenditure!L15*Assumptions!L$29) -> 13176136.23 | N38: =IF(N$8, $G38*Forecast_vol!N15,Hist_expenditure!M15*Assumptions!M$29) -> 18069351.49 | O38: =IF(O$8, $G38*Forecast_vol!O15,Hist_expenditure!N15*Assumptions!N$29) -> 18444558.38 | P38: =IF(P$8, $G38*Forecast_vol!P15,Hist_expenditure!O15*Assumptions!O$29) -> 14432352.1 | Q38: =IF(Q$8, $G38*Forecast_vol!Q15,Hist_expenditure!P15*Assumptions!P$29) -> 14666323.06 | R38: =IF(R$8, $G38*Forecast_vol!R15,Hist_expenditure!Q15*Assumptions!Q$29) -> 16115912.33 | S38: =IF(S$8, $G38*Forecast_vol!S15,Hist_expenditure!R15*Assumptions!R$29) -> 22888181.17 | T38: =IF(T$8, $G38*Forecast_vol!T15,Hist_expenditure!S15*Assumptions!S$29) -> 21713339.74 | U38: =IF(U$8, $G38*Forecast_vol!U15,Hist_expenditure!T15*Assumptions!T$29) -> 25135987.84 | V38: =IF(V$8, $G38*Forecast_vol!V15,Hist_expenditure!U15*Assumptions!U$29) -> 28472778.02 | W38: =IF(W$8, $G38*Forecast_vol!W15,Hist_expenditure!V15*Assumptions!V$29) -> 32180878.44 | X38: =IF(X$8, $G38*Forecast_vol!X15,Hist_expenditure!W15*Assumptions!W$29) -> 30905901.56 | Y38: =IF(Y$8, $G38*Forecast_vol!Y15,Hist_expenditure!X15*Assumptions!X$29) -> 29353892.17 | Z38: =IF(Z$8, $G38*Forecast_vol!Z15,Hist_expenditure!Y15*Assumptions!Y$29) -> 29827302.04 | AA38: =IF(AA$8, $G38*Forecast_vol!AA15,Hist_expenditure!Z15*Assumptions!Z$29) -> 30907511.21 | AC38: =SUMPRODUCT($H$7:$AA$7*$H38:$AA38) -> 153175485.4
B39: =Hist_vol!B16 -> Connections | C39: =Hist_vol!C16 -> R2 | D39: =Hist_vol!D16 -> Residential | E39: =Hist_vol!E16 -> Complex connection LV | F39: =D39&" "&E39 -> Residential Complex connection LV | G39: =Unit_rates!R16 -> 0 | H39: =IF(H$8, $G39*Forecast_vol!H16,Hist_expenditure!G16*Assumptions!G$29) -> 0 | I39: =IF(I$8, $G39*Forecast_vol!I16,Hist_expenditure!H16*Assumptions!H$29) -> 0 | J39: =IF(J$8, $G39*Forecast_vol!J16,Hist_expenditure!I16*Assumptions!I$29) -> 0 | K39: =IF(K$8, $G39*Forecast_vol!K16,Hist_expenditure!J16*Assumptions!J$29) -> 0 | L39: =IF(L$8, $G39*Forecast_vol!L16,Hist_expenditure!K16*Assumptions!K$29) -> 0 | M39: =IF(M$8, $G39*Forecast_vol!M16,Hist_expenditure!L16*Assumptions!L$29) -> 0 | N39: =IF(N$8, $G39*Forecast_vol!N16,Hist_expenditure!M16*Assumptions!M$29) -> 0 | O39: =IF(O$8, $G39*Forecast_vol!O16,Hist_expenditure!N16*Assumptions!N$29) -> 0 | P39: =IF(P$8, $G39*Forecast_vol!P16,Hist_expenditure!O16*Assumptions!O$29) -> 0 | Q39: =IF(Q$8, $G39*Forecast_vol!Q16,Hist_expenditure!P16*Assumptions!P$29) -> 0 | R39: =IF(R$8, $G39*Forecast_vol!R16,Hist_expenditure!Q16*Assumptions!Q$29) -> 0 | S39: =IF(S$8, $G39*Forecast_vol!S16,Hist_expenditure!R16*Assumptions!R$29) -> 0 | T39: =IF(T$8, $G39*Forecast_vol!T16,Hist_expenditure!S16*Assumptions!S$29) -> 0 | U39: =IF(U$8, $G39*Forecast_vol!U16,Hist_expenditure!T16*Assumptions!T$29) -> 0 | V39: =IF(V$8, $G39*Forecast_vol!V16,Hist_expenditure!U16*Assumptions!U$29) -> 0 | W39: =IF(W$8, $G39*Forecast_vol!W16,Hist_expenditure!V16*Assumptions!V$29) -> 0 | X39: =IF(X$8, $G39*Forecast_vol!X16,Hist_expenditure!W16*Assumptions!W$29) -> 0 | Y39: =IF(Y$8, $G39*Forecast_vol!Y16,Hist_expenditure!X16*Assumptions!X$29) -> 0 | Z39: =IF(Z$8, $G39*Forecast_vol!Z16,Hist_expenditure!Y16*Assumptions!Y$29) -> 0 | AA39: =IF(AA$8, $G39*Forecast_vol!AA16,Hist_expenditure!Z16*Assumptions!Z$29) -> 0 | AC39: =SUMPRODUCT($H$7:$AA$7*$H39:$AA39) -> 0
B40: =Hist_vol!B17 -> Connections | C40: =Hist_vol!C17 -> R3 | D40: =Hist_vol!D17 -> Residential | E40: =Hist_vol!E17 -> Complex connection HV | F40: Residential Complex connection HV | G40: =Unit_rates!R17 -> 0 | H40: =IF(H$8, $G40*Forecast_vol!H17,Hist_expenditure!G17*Assumptions!G$29) -> 0 | I40: =IF(I$8, $G40*Forecast_vol!I17,Hist_expenditure!H17*Assumptions!H$29) -> 0 | J40: =IF(J$8, $G40*Forecast_vol!J17,Hist_expenditure!I17*Assumptions!I$29) -> 0 | K40: =IF(K$8, $G40*Forecast_vol!K17,Hist_expenditure!J17*Assumptions!J$29) -> 0 | L40: =IF(L$8, $G40*Forecast_vol!L17,Hist_expenditure!K17*Assumptions!K$29) -> 0 | M40: =IF(M$8, $G40*Forecast_vol!M17,Hist_expenditure!L17*Assumptions!L$29) -> 0 | N40: =IF(N$8, $G40*Forecast_vol!N17,Hist_expenditure!M17*Assumptions!M$29) -> 0 | O40: =IF(O$8, $G40*Forecast_vol!O17,Hist_expenditure!N17*Assumptions!N$29) -> 0 | P40: =IF(P$8, $G40*Forecast_vol!P17,Hist_expenditure!O17*Assumptions!O$29) -> 0 | Q40: =IF(Q$8, $G40*Forecast_vol!Q17,Hist_expenditure!P17*Assumptions!P$29) -> 0 | R40: =IF(R$8, $G40*Forecast_vol!R17,Hist_expenditure!Q17*Assumptions!Q$29) -> 0 | S40: =IF(S$8, $G40*Forecast_vol!S17,Hist_expenditure!R17*Assumptions!R$29) -> 0 | T40: =IF(T$8, $G40*Forecast_vol!T17,Hist_expenditure!S17*Assumptions!S$29) -> 0 | U40: =IF(U$8, $G40*Forecast_vol!U17,Hist_expenditure!T17*Assumptions!T$29) -> 0 | V40: =IF(V$8, $G40*Forecast_vol!V17,Hist_expenditure!U17*Assumptions!U$29) -> 0 | W40: =IF(W$8, $G40*Forecast_vol!W17,Hist_expenditure!V17*Assumptions!V$29) -> 0 | X40: =IF(X$8, $G40*Forecast_vol!X17,Hist_expenditure!W17*Assumptions!W$29) -> 0 | Y40: =IF(Y$8, $G40*Forecast_vol!Y17,Hist_expenditure!X17*Assumptions!X$29) -> 0 | Z40: =IF(Z$8, $G40*Forecast_vol!Z17,Hist_expenditure!Y17*Assumptions!Y$29) -> 0 | AA40: =IF(AA$8, $G40*Forecast_vol!AA17,Hist_expenditure!Z17*Assumptions!Z$29) -> 0 | AC40: =SUMPRODUCT($H$7:$AA$7*$H40:$AA40) -> 0
B41: =Hist_vol!B18 -> Connections | C41: =Hist_vol!C18 -> CI1 | D41: =Hist_vol!D18 -> Commercial/Industrial | E41: =Hist_vol!E18 -> Simple connection LV | F41: Commercial/Industrial Simple connection LV | G41: =Unit_rates!R18 -> 9620.50679 | H41: =IF(H$8, $G41*Forecast_vol!H18,Hist_expenditure!G18*Assumptions!G$29) -> 4985175.064 | I41: =IF(I$8, $G41*Forecast_vol!I18,Hist_expenditure!H18*Assumptions!H$29) -> 5160221.726 | J41: =IF(J$8, $G41*Forecast_vol!J18,Hist_expenditure!I18*Assumptions!I$29) -> 5024551.121 | K41: =IF(K$8, $G41*Forecast_vol!K18,Hist_expenditure!J18*Assumptions!J$29) -> 5078546.336 | L41: =IF(L$8, $G41*Forecast_vol!L18,Hist_expenditure!K18*Assumptions!K$29) -> 2664510.805 | M41: =IF(M$8, $G41*Forecast_vol!M18,Hist_expenditure!L18*Assumptions!L$29) -> 2643134.511 | N41: =IF(N$8, $G41*Forecast_vol!N18,Hist_expenditure!M18*Assumptions!M$29) -> 3555550.184 | O41: =IF(O$8, $G41*Forecast_vol!O18,Hist_expenditure!N18*Assumptions!N$29) -> 4349275.007 | P41: =IF(P$8, $G41*Forecast_vol!P18,Hist_expenditure!O18*Assumptions!O$29) -> 4825666.674 | Q41: =IF(Q$8, $G41*Forecast_vol!Q18,Hist_expenditure!P18*Assumptions!P$29) -> 6770320.754 | R41: =IF(R$8, $G41*Forecast_vol!R18,Hist_expenditure!Q18*Assumptions!Q$29) -> 6115795.97 | S41: =IF(S$8, $G41*Forecast_vol!S18,Hist_expenditure!R18*Assumptions!R$29) -> 6032057.757 | T41: =IF(T$8, $G41*Forecast_vol!T18,Hist_expenditure!S18*Assumptions!S$29) -> 8194472.639 | U41: =IF(U$8, $G41*Forecast_vol!U18,Hist_expenditure!T18*Assumptions!T$29) -> 4241717.717 | V41: =IF(V$8, $G41*Forecast_vol!V18,Hist_expenditure!U18*Assumptions!U$29) -> 4546201.022 | W41: =IF(W$8, $G41*Forecast_vol!W18,Hist_expenditure!V18*Assumptions!V$29) -> 5156388.134 | X41: =IF(X$8, $G41*Forecast_vol!X18,Hist_expenditure!W18*Assumptions!W$29) -> 5390826.818 | Y41: =IF(Y$8, $G41*Forecast_vol!Y18,Hist_expenditure!X18*Assumptions!X$29) -> 5482476.782 | Z41: =IF(Z$8, $G41*Forecast_vol!Z18,Hist_expenditure!Y18*Assumptions!Y$29) -> 5592280.408 | AA41: =IF(AA$8, $G41*Forecast_vol!AA18,Hist_expenditure!Z18*Assumptions!Z$29) -> 5581591.246 | AC41: =SUMPRODUCT($H$7:$AA$7*$H41:$AA41) -> 27203563.39
B42: =Hist_vol!B19 -> Connections | C42: =Hist_vol!C19 -> CI2 | D42: =Hist_vol!D19 -> Commercial/Industrial | E42: =Hist_vol!E19 -> Complex connection HV (customer connected at LV, minor HV works) | F42: Commercial/Industrial Complex connection HV (customer connected at LV, minor HV works) | G42: =Unit_rates!R19 -> 22556.20947 | H42: =IF(H$8, $G42*Forecast_vol!H19,Hist_expenditure!G19*Assumptions!G$29) -> 25402369.87 | I42: =IF(I$8, $G42*Forecast_vol!I19,Hist_expenditure!H19*Assumptions!H$29) -> 24516092.24 | J42: =IF(J$8, $G42*Forecast_vol!J19,Hist_expenditure!I19*Assumptions!I$29) -> 25479198.25 | K42: =IF(K$8, $G42*Forecast_vol!K19,Hist_expenditure!J19*Assumptions!J$29) -> 26936477.7 | L42: =IF(L$8, $G42*Forecast_vol!L19,Hist_expenditure!K19*Assumptions!K$29) -> 27887387.71 | M42: =IF(M$8, $G42*Forecast_vol!M19,Hist_expenditure!L19*Assumptions!L$29) -> 25661552.1 | N42: =IF(N$8, $G42*Forecast_vol!N19,Hist_expenditure!M19*Assumptions!M$29) -> 17540040.47 | O42: =IF(O$8, $G42*Forecast_vol!O19,Hist_expenditure!N19*Assumptions!N$29) -> 13603860.79 | P42: =IF(P$8, $G42*Forecast_vol!P19,Hist_expenditure!O19*Assumptions!O$29) -> 13370936 | Q42: =IF(Q$8, $G42*Forecast_vol!Q19,Hist_expenditure!P19*Assumptions!P$29) -> 17776512.73 | R42: =IF(R$8, $G42*Forecast_vol!R19,Hist_expenditure!Q19*Assumptions!Q$29) -> 14085682.29 | S42: =IF(S$8, $G42*Forecast_vol!S19,Hist_expenditure!R19*Assumptions!R$29) -> 18834434.91 | T42: =IF(T$8, $G42*Forecast_vol!T19,Hist_expenditure!S19*Assumptions!S$29) -> 20261295.9 | U42: =IF(U$8, $G42*Forecast_vol!U19,Hist_expenditure!T19*Assumptions!T$29) -> 13244295.64 | V42: =IF(V$8, $G42*Forecast_vol!V19,Hist_expenditure!U19*Assumptions!U$29) -> 14195011.17 | W42: =IF(W$8, $G42*Forecast_vol!W19,Hist_expenditure!V19*Assumptions!V$29) -> 16100253.11 | X42: =IF(X$8, $G42*Forecast_vol!X19,Hist_expenditure!W19*Assumptions!W$29) -> 16832262.04 | Y42: =IF(Y$8, $G42*Forecast_vol!Y19,Hist_expenditure!X19*Assumptions!X$29) -> 17118428.94 | Z42: =IF(Z$8, $G42*Forecast_vol!Z19,Hist_expenditure!Y19*Assumptions!Y$29) -> 17461278.65 | AA42: =IF(AA$8, $G42*Forecast_vol!AA19,Hist_expenditure!Z19*Assumptions!Z$29) -> 17427902.92 | AC42: =SUMPRODUCT($H$7:$AA$7*$H42:$AA42) -> 84940125.66
B43: =Hist_vol!B20 -> Connections | C43: =Hist_vol!C20 -> CI3 | D43: =Hist_vol!D20 -> Commercial/Industrial | E43: =Hist_vol!E20 -> Complex connection HV (customer connected at LV, upstream asset works) | F43: Commercial/Industrial Complex connection HV (customer connected at LV, upstream asset works) | G43: =Unit_rates!R20 -> 245640.4415 | H43: =IF(H$8, $G43*Forecast_vol!H20,Hist_expenditure!G20*Assumptions!G$29) -> 3230042.001 | I43: =IF(I$8, $G43*Forecast_vol!I20,Hist_expenditure!H20*Assumptions!H$29) -> 1234718.999 | J43: =IF(J$8, $G43*Forecast_vol!J20,Hist_expenditure!I20*Assumptions!I$29) -> 1355167.633 | K43: =IF(K$8, $G43*Forecast_vol!K20,Hist_expenditure!J20*Assumptions!J$29) -> 6667608.404 | L43: =IF(L$8, $G43*Forecast_vol!L20,Hist_expenditure!K20*Assumptions!K$29) -> 8307680.6 | M43: =IF(M$8, $G43*Forecast_vol!M20,Hist_expenditure!L20*Assumptions!L$29) -> 3779807.972 | N43: =IF(N$8, $G43*Forecast_vol!N20,Hist_expenditure!M20*Assumptions!M$29) -> 1494624.018 | O43: =IF(O$8, $G43*Forecast_vol!O20,Hist_expenditure!N20*Assumptions!N$29) -> 1339301.559 | P43: =IF(P$8, $G43*Forecast_vol!P20,Hist_expenditure!O20*Assumptions!O$29) -> 1003223.669 | Q43: =IF(Q$8, $G43*Forecast_vol!Q20,Hist_expenditure!P20*Assumptions!P$29) -> 0 | R43: =IF(R$8, $G43*Forecast_vol!R20,Hist_expenditure!Q20*Assumptions!Q$29) -> 2059569.041 | S43: =IF(S$8, $G43*Forecast_vol!S20,Hist_expenditure!R20*Assumptions!R$29) -> 491280.8829 | T43: =IF(T$8, $G43*Forecast_vol!T20,Hist_expenditure!S20*Assumptions!S$29) -> 6427547.973 | U43: =IF(U$8, $G43*Forecast_vol!U20,Hist_expenditure!T20*Assumptions!T$29) -> 345466.6565 | V43: =IF(V$8, $G43*Forecast_vol!V20,Hist_expenditure!U20*Assumptions!U$29) -> 370265.2962 | W43: =IF(W$8, $G43*Forecast_vol!W20,Hist_expenditure!V20*Assumptions!V$29) -> 419961.9793 | X43: =IF(X$8, $G43*Forecast_vol!X20,Hist_expenditure!W20*Assumptions!W$29) -> 439055.8356 | Y43: =IF(Y$8, $G43*Forecast_vol!Y20,Hist_expenditure!X20*Assumptions!X$29) -> 446520.2659 | Z43: =IF(Z$8, $G43*Forecast_vol!Z20,Hist_expenditure!Y20*Assumptions!Y$29) -> 455463.2212 | AA43: =IF(AA$8, $G43*Forecast_vol!AA20,Hist_expenditure!Z20*Assumptions!Z$29) -> 454592.6425 | AC43: =SUMPRODUCT($H$7:$AA$7*$H43:$AA43) -> 2215593.944
B44: =Hist_vol!B21 -> Connections | C44: =Hist_vol!C21 -> CI4 | D44: =Hist_vol!D21 -> Commercial/Industrial | E44: =Hist_vol!E21 -> Complex connection HV (customer connected at HV) | F44: Commercial/Industrial Complex connection HV (customer connected at HV) | G44: =Unit_rates!R21 -> 16923.43298 | H44: =IF(H$8, $G44*Forecast_vol!H21,Hist_expenditure!G21*Assumptions!G$29) -> 1216986.426 | I44: =IF(I$8, $G44*Forecast_vol!I21,Hist_expenditure!H21*Assumptions!H$29) -> 1302141.906 | J44: =IF(J$8, $G44*Forecast_vol!J21,Hist_expenditure!I21*Assumptions!I$29) -> 1904663.933 | K44: =IF(K$8, $G44*Forecast_vol!K21,Hist_expenditure!J21*Assumptions!J$29) -> 7926253.879 | L44: =IF(L$8, $G44*Forecast_vol!L21,Hist_expenditure!K21*Assumptions!K$29) -> 13052327.12 | M44: =IF(M$8, $G44*Forecast_vol!M21,Hist_expenditure!L21*Assumptions!L$29) -> 15256300.16 | N44: =IF(N$8, $G44*Forecast_vol!N21,Hist_expenditure!M21*Assumptions!M$29) -> 13704870.12 | O44: =IF(O$8, $G44*Forecast_vol!O21,Hist_expenditure!N21*Assumptions!N$29) -> 10900348.75 | P44: =IF(P$8, $G44*Forecast_vol!P21,Hist_expenditure!O21*Assumptions!O$29) -> 14573361.18 | Q44: =IF(Q$8, $G44*Forecast_vol!Q21,Hist_expenditure!P21*Assumptions!P$29) -> 24021168.63 | R44: =IF(R$8, $G44*Forecast_vol!R21,Hist_expenditure!Q21*Assumptions!Q$29) -> 11289883.87 | S44: =IF(S$8, $G44*Forecast_vol!S21,Hist_expenditure!R21*Assumptions!R$29) -> 14554152.36 | T44: =IF(T$8, $G44*Forecast_vol!T21,Hist_expenditure!S21*Assumptions!S$29) -> 46711820.65 | U44: =IF(U$8, $G44*Forecast_vol!U21,Hist_expenditure!T21*Assumptions!T$29) -> 10234418.9 | V44: =IF(V$8, $G44*Forecast_vol!V21,Hist_expenditure!U21*Assumptions!U$29) -> 10969076.39 | W44: =IF(W$8, $G44*Forecast_vol!W21,Hist_expenditure!V21*Assumptions!V$29) -> 12441336.2 | X44: =IF(X$8, $G44*Forecast_vol!X21,Hist_expenditure!W21*Assumptions!W$29) -> 13006989.99 | Y44: =IF(Y$8, $G44*Forecast_vol!Y21,Hist_expenditure!X21*Assumptions!X$29) -> 13228123.07 | Z44: =IF(Z$8, $G44*Forecast_vol!Z21,Hist_expenditure!Y21*Assumptions!Y$29) -> 13493057.32 | AA44: =IF(AA$8, $G44*Forecast_vol!AA21,Hist_expenditure!Z21*Assumptions!Z$29) -> 13467266.51 | AC44: =SUMPRODUCT($H$7:$AA$7*$H44:$AA44) -> 65636773.1
B45: =Hist_vol!B22 -> Connections | C45: =Hist_vol!C22 -> CI5 | D45: =Hist_vol!D22 -> Commercial/Industrial | E45: =Hist_vol!E22 -> Complex connection sub-transmission | F45: Commercial/Industrial Complex connection sub-transmission | G45: =Unit_rates!R22 -> 1562.130037 | H45: =IF(H$8, $G45*Forecast_vol!H22,Hist_expenditure!G22*Assumptions!G$29) -> 0 | I45: =IF(I$8, $G45*Forecast_vol!I22,Hist_expenditure!H22*Assumptions!H$29) -> 0 | J45: =IF(J$8, $G45*Forecast_vol!J22,Hist_expenditure!I22*Assumptions!I$29) -> 0 | K45: =IF(K$8, $G45*Forecast_vol!K22,Hist_expenditure!J22*Assumptions!J$29) -> 0 | L45: =IF(L$8, $G45*Forecast_vol!L22,Hist_expenditure!K22*Assumptions!K$29) -> 0 | M45: =IF(M$8, $G45*Forecast_vol!M22,Hist_expenditure!L22*Assumptions!L$29) -> 0 | N45: =IF(N$8, $G45*Forecast_vol!N22,Hist_expenditure!M22*Assumptions!M$29) -> 0 | O45: =IF(O$8, $G45*Forecast_vol!O22,Hist_expenditure!N22*Assumptions!N$29) -> 0 | P45: =IF(P$8, $G45*Forecast_vol!P22,Hist_expenditure!O22*Assumptions!O$29) -> 0 | Q45: =IF(Q$8, $G45*Forecast_vol!Q22,Hist_expenditure!P22*Assumptions!P$29) -> 0 | R45: =IF(R$8, $G45*Forecast_vol!R22,Hist_expenditure!Q22*Assumptions!Q$29) -> 7722.748749 | S45: =IF(S$8, $G45*Forecast_vol!S22,Hist_expenditure!R22*Assumptions!R$29) -> 42177.51101 | T45: =IF(T$8, $G45*Forecast_vol!T22,Hist_expenditure!S22*Assumptions!S$29) -> 459114.3057 | U45: =IF(U$8, $G45*Forecast_vol!U22,Hist_expenditure!T22*Assumptions!T$29) -> 29659.04885 | V45: =IF(V$8, $G45*Forecast_vol!V22,Hist_expenditure!U22*Assumptions!U$29) -> 31788.06493 | W45: =IF(W$8, $G45*Forecast_vol!W22,Hist_expenditure!V22*Assumptions!V$29) -> 36054.63111 | X45: =IF(X$8, $G45*Forecast_vol!X22,Hist_expenditure!W22*Assumptions!W$29) -> 37693.87937 | Y45: =IF(Y$8, $G45*Forecast_vol!Y22,Hist_expenditure!X22*Assumptions!X$29) -> 38334.71663 | Z45: =IF(Z$8, $G45*Forecast_vol!Z22,Hist_expenditure!Y22*Assumptions!Y$29) -> 39102.4884 | AA45: =IF(AA$8, $G45*Forecast_vol!AA22,Hist_expenditure!Z22*Assumptions!Z$29) -> 39027.74736 | AC45: =SUMPRODUCT($H$7:$AA$7*$H45:$AA45) -> 190213.4629
B46: =Hist_vol!B23 -> Connections | C46: =Hist_vol!C23 -> S1 | D46: =Hist_vol!D23 -> Subdivision | E46: =Hist_vol!E23 -> Complex connection LV | F46: Subdivision Complex connection LV | G46: =Unit_rates!R23 -> 2570.085738 | H46: =IF(H$8, $G46*Forecast_vol!H23,Hist_expenditure!G23*Assumptions!G$29) -> 14228434.04 | I46: =IF(I$8, $G46*Forecast_vol!I23,Hist_expenditure!H23*Assumptions!H$29) -> 13180366.92 | J46: =IF(J$8, $G46*Forecast_vol!J23,Hist_expenditure!I23*Assumptions!I$29) -> 15057202.38 | K46: =IF(K$8, $G46*Forecast_vol!K23,Hist_expenditure!J23*Assumptions!J$29) -> 17433238.75 | L46: =IF(L$8, $G46*Forecast_vol!L23,Hist_expenditure!K23*Assumptions!K$29) -> 11275188.75 | M46: =IF(M$8, $G46*Forecast_vol!M23,Hist_expenditure!L23*Assumptions!L$29) -> 4250119.203 | N46: =IF(N$8, $G46*Forecast_vol!N23,Hist_expenditure!M23*Assumptions!M$29) -> 1628592.689 | O46: =IF(O$8, $G46*Forecast_vol!O23,Hist_expenditure!N23*Assumptions!N$29) -> 1584279.106 | P46: =IF(P$8, $G46*Forecast_vol!P23,Hist_expenditure!O23*Assumptions!O$29) -> 1982814.353 | Q46: =IF(Q$8, $G46*Forecast_vol!Q23,Hist_expenditure!P23*Assumptions!P$29) -> 2218047.677 | R46: =IF(R$8, $G46*Forecast_vol!R23,Hist_expenditure!Q23*Assumptions!Q$29) -> 1397119.605 | S46: =IF(S$8, $G46*Forecast_vol!S23,Hist_expenditure!R23*Assumptions!R$29) -> 1799060.017 | T46: =IF(T$8, $G46*Forecast_vol!T23,Hist_expenditure!S23*Assumptions!S$29) -> 3245491.44 | U46: =IF(U$8, $G46*Forecast_vol!U23,Hist_expenditure!T23*Assumptions!T$29) -> 1975742.431 | V46: =IF(V$8, $G46*Forecast_vol!V23,Hist_expenditure!U23*Assumptions!U$29) -> 2238021.28 | W46: =IF(W$8, $G46*Forecast_vol!W23,Hist_expenditure!V23*Assumptions!V$29) -> 2529485.907 | X46: =IF(X$8, $G46*Forecast_vol!X23,Hist_expenditure!W23*Assumptions!W$29) -> 2429269.996 | Y46: =IF(Y$8, $G46*Forecast_vol!Y23,Hist_expenditure!X23*Assumptions!X$29) -> 2307278.737 | Z46: =IF(Z$8, $G46*Forecast_vol!Z23,Hist_expenditure!Y23*Assumptions!Y$29) -> 2344489.766 | AA46: =IF(AA$8, $G46*Forecast_vol!AA23,Hist_expenditure!Z23*Assumptions!Z$29) -> 2429396.518 | AC46: =SUMPRODUCT($H$7:$AA$7*$H46:$AA46) -> 12039920.92
B47: =Hist_vol!B24 -> Connections | C47: =Hist_vol!C24 -> S2 | D47: =Hist_vol!D24 -> Subdivision | E47: =Hist_vol!E24 -> Complex connection HV (no upstream asset works) | F47: Subdivision Complex connection HV (no upstream asset works) | G47: =Unit_rates!R24 -> 3470.834811 | H47: =IF(H$8, $G47*Forecast_vol!H24,Hist_expenditure!G24*Assumptions!G$29) -> 2291486.68 | I47: =IF(I$8, $G47*Forecast_vol!I24,Hist_expenditure!H24*Assumptions!H$29) -> 2367634.002 | J47: =IF(J$8, $G47*Forecast_vol!J24,Hist_expenditure!I24*Assumptions!I$29) -> 3246036.124 | K47: =IF(K$8, $G47*Forecast_vol!K24,Hist_expenditure!J24*Assumptions!J$29) -> 3088939.692 | L47: =IF(L$8, $G47*Forecast_vol!L24,Hist_expenditure!K24*Assumptions!K$29) -> 1924878.116 | M47: =IF(M$8, $G47*Forecast_vol!M24,Hist_expenditure!L24*Assumptions!L$29) -> 2109860.39 | N47: =IF(N$8, $G47*Forecast_vol!N24,Hist_expenditure!M24*Assumptions!M$29) -> 1382283.8 | O47: =IF(O$8, $G47*Forecast_vol!O24,Hist_expenditure!N24*Assumptions!N$29) -> 1312592.666 | P47: =IF(P$8, $G47*Forecast_vol!P24,Hist_expenditure!O24*Assumptions!O$29) -> 1741047.522 | Q47: =IF(Q$8, $G47*Forecast_vol!Q24,Hist_expenditure!P24*Assumptions!P$29) -> 2268394.124 | R47: =IF(R$8, $G47*Forecast_vol!R24,Hist_expenditure!Q24*Assumptions!Q$29) -> 1404375.073 | S47: =IF(S$8, $G47*Forecast_vol!S24,Hist_expenditure!R24*Assumptions!R$29) -> 2235217.618 | T47: =IF(T$8, $G47*Forecast_vol!T24,Hist_expenditure!S24*Assumptions!S$29) -> 3433821.857 | U47: =IF(U$8, $G47*Forecast_vol!U24,Hist_expenditure!T24*Assumptions!T$29) -> 2454734.278 | V47: =IF(V$8, $G47*Forecast_vol!V24,Hist_expenditure!U24*Assumptions!U$29) -> 2780599.061 | W47: =IF(W$8, $G47*Forecast_vol!W24,Hist_expenditure!V24*Assumptions!V$29) -> 3142725.319 | X47: =IF(X$8, $G47*Forecast_vol!X24,Hist_expenditure!W24*Assumptions!W$29) -> 3018213.425 | Y47: =IF(Y$8, $G47*Forecast_vol!Y24,Hist_expenditure!X24*Assumptions!X$29) -> 2866647.047 | Z47: =IF(Z$8, $G47*Forecast_vol!Z24,Hist_expenditure!Y24*Assumptions!Y$29) -> 2912879.382 | AA47: =IF(AA$8, $G47*Forecast_vol!AA24,Hist_expenditure!Z24*Assumptions!Z$29) -> 3018370.62 | AC47: =SUMPRODUCT($H$7:$AA$7*$H47:$AA47) -> 14958835.79
B48: =Hist_vol!B25 -> Connections | C48: =Hist_vol!C25 -> S3 | D48: =Hist_vol!D25 -> Subdivision | E48: =Hist_vol!E25 -> Complex connection HV (with upstream asset works) | F48: Subdivision Complex connection HV (with upstream asset works) | G48: =Unit_rates!R25 -> 0 | H48: =IF(H$8, $G48*Forecast_vol!H25,Hist_expenditure!G25*Assumptions!G$29) -> 0 | I48: =IF(I$8, $G48*Forecast_vol!I25,Hist_expenditure!H25*Assumptions!H$29) -> 0 | J48: =IF(J$8, $G48*Forecast_vol!J25,Hist_expenditure!I25*Assumptions!I$29) -> 0 | K48: =IF(K$8, $G48*Forecast_vol!K25,Hist_expenditure!J25*Assumptions!J$29) -> 0 | L48: =IF(L$8, $G48*Forecast_vol!L25,Hist_expenditure!K25*Assumptions!K$29) -> 0 | M48: =IF(M$8, $G48*Forecast_vol!M25,Hist_expenditure!L25*Assumptions!L$29) -> 261704.1577 | N48: =IF(N$8, $G48*Forecast_vol!N25,Hist_expenditure!M25*Assumptions!M$29) -> 794619.3451 | O48: =IF(O$8, $G48*Forecast_vol!O25,Hist_expenditure!N25*Assumptions!N$29) -> 861020.1132 | P48: =IF(P$8, $G48*Forecast_vol!P25,Hist_expenditure!O25*Assumptions!O$29) -> 328850.0245 | Q48: =IF(Q$8, $G48*Forecast_vol!Q25,Hist_expenditure!P25*Assumptions!P$29) -> 0 | R48: =IF(R$8, $G48*Forecast_vol!R25,Hist_expenditure!Q25*Assumptions!Q$29) -> 0 | S48: =IF(S$8, $G48*Forecast_vol!S25,Hist_expenditure!R25*Assumptions!R$29) -> 0 | T48: =IF(T$8, $G48*Forecast_vol!T25,Hist_expenditure!S25*Assumptions!S$29) -> 0 | U48: =IF(U$8, $G48*Forecast_vol!U25,Hist_expenditure!T25*Assumptions!T$29) -> 0 | V48: =IF(V$8, $G48*Forecast_vol!V25,Hist_expenditure!U25*Assumptions!U$29) -> 0 | W48: =IF(W$8, $G48*Forecast_vol!W25,Hist_expenditure!V25*Assumptions!V$29) -> 0 | X48: =IF(X$8, $G48*Forecast_vol!X25,Hist_expenditure!W25*Assumptions!W$29) -> 0 | Y48: =IF(Y$8, $G48*Forecast_vol!Y25,Hist_expenditure!X25*Assumptions!X$29) -> 0 | Z48: =IF(Z$8, $G48*Forecast_vol!Z25,Hist_expenditure!Y25*Assumptions!Y$29) -> 0 | AA48: =IF(AA$8, $G48*Forecast_vol!AA25,Hist_expenditure!Z25*Assumptions!Z$29) -> 0 | AC48: =SUMPRODUCT($H$7:$AA$7*$H48:$AA48) -> 0
B49: =Hist_vol!B26 -> Connections | C49: =Hist_vol!C26 -> EG1 | D49: =Hist_vol!D26 -> Embedded generation | E49: =Hist_vol!E26 -> Simple connection LV | F49: Embedded generation Simple connection LV | G49: =Unit_rates!R26 -> 0 | H49: =IF(H$8, $G49*Forecast_vol!H26,Hist_expenditure!G26*Assumptions!G$29) -> 536283.053 | I49: =IF(I$8, $G49*Forecast_vol!I26,Hist_expenditure!H26*Assumptions!H$29) -> 525747.0402 | J49: =IF(J$8, $G49*Forecast_vol!J26,Hist_expenditure!I26*Assumptions!I$29) -> 0 | K49: =IF(K$8, $G49*Forecast_vol!K26,Hist_expenditure!J26*Assumptions!J$29) -> 0 | L49: =IF(L$8, $G49*Forecast_vol!L26,Hist_expenditure!K26*Assumptions!K$29) -> 0 | M49: =IF(M$8, $G49*Forecast_vol!M26,Hist_expenditure!L26*Assumptions!L$29) -> 0 | N49: =IF(N$8, $G49*Forecast_vol!N26,Hist_expenditure!M26*Assumptions!M$29) -> 0 | O49: =IF(O$8, $G49*Forecast_vol!O26,Hist_expenditure!N26*Assumptions!N$29) -> 0 | P49: =IF(P$8, $G49*Forecast_vol!P26,Hist_expenditure!O26*Assumptions!O$29) -> 0 | Q49: =IF(Q$8, $G49*Forecast_vol!Q26,Hist_expenditure!P26*Assumptions!P$29) -> 0 | R49: =IF(R$8, $G49*Forecast_vol!R26,Hist_expenditure!Q26*Assumptions!Q$29) -> 0 | S49: =IF(S$8, $G49*Forecast_vol!S26,Hist_expenditure!R26*Assumptions!R$29) -> 0 | T49: =IF(T$8, $G49*Forecast_vol!T26,Hist_expenditure!S26*Assumptions!S$29) -> 0 | U49: =IF(U$8, $G49*Forecast_vol!U26,Hist_expenditure!X26*Assumptions!T$29) -> 0 | V49: =IF(V$8, $G49*Forecast_vol!V26,Hist_expenditure!#REF!*Assumptions!U$29) -> 0 | W49: =IF(W$8, $G49*Forecast_vol!W26,Hist_expenditure!#REF!*Assumptions!V$29) -> 0 | X49: =IF(X$8, $G49*Forecast_vol!X26,Hist_expenditure!AA26*Assumptions!W$29) -> 0 | Y49: =IF(Y$8, $G49*Forecast_vol!Y26,Hist_expenditure!#REF!*Assumptions!X$29) -> 0 | Z49: =IF(Z$8, $G49*Forecast_vol!Z26,Hist_expenditure!#REF!*Assumptions!Y$29) -> 0 | AA49: =IF(AA$8, $G49*Forecast_vol!AA26,Hist_expenditure!#REF!*Assumptions!Z$29) -> 0 | AC49: =SUMPRODUCT($H$7:$AA$7*$H49:$AA49) -> 0
B50: =Hist_vol!B27 -> Connections | C50: =Hist_vol!C27 -> EG2 | D50: =Hist_vol!D27 -> Embedded generation | E50: =Hist_vol!E27 -> Complex connection HV (small capacity) | F50: Embedded generation Complex connection HV (small capacity) | G50: =Unit_rates!R27 -> 0 | H50: =IF(H$8, $G50*Forecast_vol!H27,Hist_expenditure!G27*Assumptions!G$29) -> 127014.4073 | I50: =IF(I$8, $G50*Forecast_vol!I27,Hist_expenditure!H27*Assumptions!H$29) -> 124519.0358 | J50: =IF(J$8, $G50*Forecast_vol!J27,Hist_expenditure!I27*Assumptions!I$29) -> 0 | K50: =IF(K$8, $G50*Forecast_vol!K27,Hist_expenditure!J27*Assumptions!J$29) -> 0 | L50: =IF(L$8, $G50*Forecast_vol!L27,Hist_expenditure!K27*Assumptions!K$29) -> 0 | M50: =IF(M$8, $G50*Forecast_vol!M27,Hist_expenditure!L27*Assumptions!L$29) -> 0 | N50: =IF(N$8, $G50*Forecast_vol!N27,Hist_expenditure!M27*Assumptions!M$29) -> 0 | O50: =IF(O$8, $G50*Forecast_vol!O27,Hist_expenditure!N27*Assumptions!N$29) -> 0 | P50: =IF(P$8, $G50*Forecast_vol!P27,Hist_expenditure!O27*Assumptions!O$29) -> 3616.306224 | Q50: =IF(Q$8, $G50*Forecast_vol!Q27,Hist_expenditure!P27*Assumptions!P$29) -> 16390.0709 | R50: =IF(R$8, $G50*Forecast_vol!R27,Hist_expenditure!Q27*Assumptions!Q$29) -> 220568.6234 | S50: =IF(S$8, $G50*Forecast_vol!S27,Hist_expenditure!R27*Assumptions!R$29) -> 4940884.844 | T50: =IF(T$8, $G50*Forecast_vol!T27,Hist_expenditure!S27*Assumptions!S$29) -> 2178715.701 | U50: =IF(U$8, $G50*Forecast_vol!U27,Hist_expenditure!X27*Assumptions!T$29) -> 0 | V50: =IF(V$8, $G50*Forecast_vol!V27,Hist_expenditure!Y27*Assumptions!U$29) -> 0 | W50: =IF(W$8, $G50*Forecast_vol!W27,Hist_expenditure!Z27*Assumptions!V$29) -> 0 | X50: =IF(X$8, $G50*Forecast_vol!X27,Hist_expenditure!AA27*Assumptions!W$29) -> 0 | Y50: =IF(Y$8, $G50*Forecast_vol!Y27,Hist_expenditure!#REF!*Assumptions!X$29) -> 0 | Z50: =IF(Z$8, $G50*Forecast_vol!Z27,Hist_expenditure!#REF!*Assumptions!Y$29) -> 0 | AA50: =IF(AA$8, $G50*Forecast_vol!AA27,Hist_expenditure!#REF!*Assumptions!Z$29) -> 0 | AC50: =SUMPRODUCT($H$7:$AA$7*$H50:$AA50) -> 0
B51: =Hist_vol!B28 -> Connections | C51: =Hist_vol!C28 -> EG3 | D51: =Hist_vol!D28 -> Embedded generation | E51: =Hist_vol!E28 -> Complex connection HV (large capacity) | F51: Embedded generation Complex connection HV (large capacity) | G51: =Unit_rates!R28 -> 0 | H51: =IF(H$8, $G51*Forecast_vol!H28,Hist_expenditure!G28*Assumptions!G$29) -> 0 | I51: =IF(I$8, $G51*Forecast_vol!I28,Hist_expenditure!H28*Assumptions!H$29) -> 110683.5874 | J51: =IF(J$8, $G51*Forecast_vol!J28,Hist_expenditure!I28*Assumptions!I$29) -> 108342.2038 | K51: =IF(K$8, $G51*Forecast_vol!K28,Hist_expenditure!J28*Assumptions!J$29) -> 0 | L51: =IF(L$8, $G51*Forecast_vol!L28,Hist_expenditure!K28*Assumptions!K$29) -> 0 | M51: =IF(M$8, $G51*Forecast_vol!M28,Hist_expenditure!L28*Assumptions!L$29) -> 0 | N51: =IF(N$8, $G51*Forecast_vol!N28,Hist_expenditure!M28*Assumptions!M$29) -> 0 | O51: =IF(O$8, $G51*Forecast_vol!O28,Hist_expenditure!N28*Assumptions!N$29) -> 0 | P51: =IF(P$8, $G51*Forecast_vol!P28,Hist_expenditure!O28*Assumptions!O$29) -> 0 | Q51: =IF(Q$8, $G51*Forecast_vol!Q28,Hist_expenditure!P28*Assumptions!P$29) -> 0 | R51: =IF(R$8, $G51*Forecast_vol!R28,Hist_expenditure!Q28*Assumptions!Q$29) -> 0 | S51: =IF(S$8, $G51*Forecast_vol!S28,Hist_expenditure!R28*Assumptions!R$29) -> 0 | T51: =IF(T$8, $G51*Forecast_vol!T28,Hist_expenditure!S28*Assumptions!S$29) -> 0 | U51: =IF(U$8, $G51*Forecast_vol!U28,Hist_expenditure!X28*Assumptions!T$29) -> 0 | V51: =IF(V$8, $G51*Forecast_vol!V28,Hist_expenditure!Y28*Assumptions!U$29) -> 0 | W51: =IF(W$8, $G51*Forecast_vol!W28,Hist_expenditure!Z28*Assumptions!V$29) -> 0 | X51: =IF(X$8, $G51*Forecast_vol!X28,Hist_expenditure!AA28*Assumptions!W$29) -> 0 | Y51: =IF(Y$8, $G51*Forecast_vol!Y28,Hist_expenditure!#REF!*Assumptions!X$29) -> 0 | Z51: =IF(Z$8, $G51*Forecast_vol!Z28,Hist_expenditure!#REF!*Assumptions!Y$29) -> 0 | AA51: =IF(AA$8, $G51*Forecast_vol!AA28,Hist_expenditure!#REF!*Assumptions!Z$29) -> 0 | AC51: =SUMPRODUCT($H$7:$AA$7*$H51:$AA51) -> 0
B54: Category | C54: Type | D54: RIN category | E54: Description | U54: =Assumptions!T$24 -> 2024/25 | V54: =Assumptions!U$24 -> 2025/26 | W54: =Assumptions!V$24 -> 2026/27 | X54: =Assumptions!W$24 -> 2027/28 | Y54: =Assumptions!X$24 -> 2028/29 | Z54: =Assumptions!Y$24 -> 2029/30 | AA54: =Assumptions!Z$24 -> 2030/31 | AC54: 2026-31 Total
B56: Gifted Assets | G56: GA as % of gross capex (FY23)
B57: Connections | C57: R1 | D57: Residential | E57: Simple connection LV | F57: ResidentialSimple connection LV | G57: 0 | U57: =U16*$G57 -> 0 | V57: 0 | W57: 0 | X57: 0 | Y57: 0 | Z57: 0 | AA57: 0 | AC57: =SUM(W57:AA57) -> 0
B58: Connections | C58: R2 | D58: Residential | E58: Complex connection LV | F58: ResidentialComplex connection LV | G58: 0 | U58: 0 | V58: 0 | W58: 0 | X58: 0 | Y58: 0 | Z58: 0 | AA58: 0 | AC58: =SUM(W58:AA58) -> 0
B59: Connections | C59: R3 | D59: Residential | E59: Complex connection HV | F59: ResidentialComplex connection HV | G59: 0 | U59: 0 | V59: 0 | W59: 0 | X59: 0 | Y59: 0 | Z59: 0 | AA59: 0 | AC59: 0
B60: Connections | C60: CI1 | D60: Commercial/Industrial | E60: Simple connection LV | F60: Commercial/IndustrialSimple connection LV | G60: 0.01255806438 | U60: 53267.76418 | V60: 57091.48512 | W60: 64754.25416 | X60: 67698.35025 | Y60: 68849.29639 | Z60: 70228.2174 | AA60: 70093.98221 | AC60: 341624.1004
B61: Connections | C61: CI2 | D61: Commercial/Industrial | E61: Complex connection HV (customer connected at LV, minor HV works) | F61: Commercial/IndustrialComplex connection HV (customer connected at LV, minor HV works) | G61: 0.004021940134 | U61: 53267.76418 | V61: 57091.48512 | W61: 64754.25416 | X61: 67698.35025 | Y61: 68849.29639 | Z61: 70228.2174 | AA61: 70093.98221 | AC61: 341624.1004
B62: Connections | C62: CI3 | D62: Commercial/Industrial | E62: Complex connection HV (customer connected at LV, upstream asset works) | F62: Commercial/IndustrialComplex connection HV (customer connected at LV, upstream asset works) | G62: 0 | U62: 0 | V62: 0 | W62: 0 | X62: 0 | Y62: 0 | Z62: 0 | AA62: 0 | AC62: 0
B63: Connections | C63: CI4 | D63: Commercial/Industrial | E63: Complex connection HV (customer connected at HV) | F63: Commercial/IndustrialComplex connection HV (customer connected at HV) | G63: 0.03035958945 | U63: 310712.7562 | V63: 333016.6559 | W63: 377713.8593 | X63: 394886.8761 | Y63: 401600.3857 | Z63: 409643.6808 | AA63: 408860.6823 | AC63: 1992705.484
B64: Connections | C64: CI5 | D64: Commercial/Industrial | E64: Complex connection sub-transmission | F64: Commercial/IndustrialComplex connection sub-transmission | G64: 0 | U64: 0 | V64: 0 | W64: 0 | X64: 0 | Y64: 0 | Z64: 0 | AA64: 0 | AC64: 0
B65: Connections | C65: S1 | D65: Subdivision | E65: Complex connection LV | F65: SubdivisionComplex connection LV | G65: 0.1946931617 | U65: 384663.5407 | V65: 435727.4388 | W65: 492473.6087 | X65: 472962.2561 | Y65: 449211.3923 | Z65: 456456.125 | AA65: 472986.8891 | AC65: 2344090.271
B66: Connections | C66: S2 | D66: Subdivision | E66: Complex connection HV (no upstream asset works) | F66: SubdivisionComplex connection HV (no upstream asset works) | G66: 0.156702721 | U66: 384663.5407 | V66: 435727.4388 | W66: 492473.6087 | X66: 472962.2561 | Y66: 449211.3923 | Z66: 456456.125 | AA66: 472986.8891 | AC66: 2344090.271
B67: Connections | C67: S3 | D67: Subdivision | E67: Complex connection HV (with upstream asset works) | F67: SubdivisionComplex connection HV (with upstream asset works) | G67: 0 | U67: 0 | V67: 0 | W67: 0 | X67: 0 | Y67: 0 | Z67: 0 | AA67: 0 | AC67: 0
B68: Connections | C68: EG1 | D68: Embedded generation | E68: Simple connection LV | F68: Embedded generationSimple connection LV | G68: 0 | U68: 0 | V68: 0 | W68: 0 | X68: 0 | Y68: 0 | Z68: 0 | AA68: 0 | AC68: 0
B69: Connections | C69: EG2 | D69: Embedded generation | E69: Complex connection HV (small capacity) | F69: Embedded generationComplex connection HV (small capacity) | G69: 0 | U69: 0 | V69: 0 | W69: 0 | X69: 0 | Y69: 0 | Z69: 0 | AA69: 0 | AC69: 0
B70: Connections | C70: EG3 | D70: Embedded generation | E70: Complex connection HV (large capacity) | F70: Embedded generationComplex connection HV (large capacity) | G70: 0 | U70: 0 | V70: 0 | W70: 0 | X70: 0 | Y70: 0 | Z70: 0 | AA70: 0 | AC70: 0
U71: =SUM(U55:U70) -> 1186575.366 | V71: 1318654.504 | W71: =SUM(W55:W70) -> 1492169.585 | X71: 1476208.089 | Y71: 1437721.763 | Z71: 1463012.366 | AA71: 1495022.425 | AC71: 7364134.227

Sheet Forecast_contrib
A1: =Assumptions!$A$1 -> United Energy
A2: =Assumptions!$A$2 -> Connections
A3: Forecast contributions
B7: =Assumptions!B17 -> 2025/6 - 2030/31 reg period | H7: =Assumptions!G17 -> FALSE | I7: =Assumptions!H17 -> FALSE | J7: =Assumptions!I17 -> FALSE | K7: =Assumptions!J17 -> FALSE | L7: =Assumptions!K17 -> FALSE | M7: =Assumptions!L17 -> FALSE | N7: =Assumptions!M17 -> FALSE | O7: =Assumptions!N17 -> FALSE | P7: =Assumptions!O17 -> FALSE | Q7: =Assumptions!P17 -> FALSE | R7: =Assumptions!Q17 -> FALSE | S7: =Assumptions!R17 -> FALSE | T7: =Assumptions!S17 -> FALSE | U7: =Assumptions!T17 -> FALSE | V7: =Assumptions!U17 -> FALSE | W7: =Assumptions!V17 -> TRUE | X7: =Assumptions!W17 -> TRUE | Y7: =Assumptions!X17 -> TRUE | Z7: =Assumptions!Y17 -> TRUE | AA7: =Assumptions!Z17 -> TRUE
B8: =Assumptions!B18 -> Forecast period | H8: =Assumptions!G18 -> FALSE | I8: =Assumptions!H18 -> FALSE | J8: =Assumptions!I18 -> FALSE | K8: =Assumptions!J18 -> FALSE | L8: =Assumptions!K18 -> FALSE | M8: =Assumptions!L18 -> FALSE | N8: =Assumptions!M18 -> FALSE | O8: =Assumptions!N18 -> FALSE | P8: =Assumptions!O18 -> FALSE | Q8: =Assumptions!P18 -> FALSE | R8: =Assumptions!Q18 -> FALSE | S8: =Assumptions!R18 -> FALSE | T8: =Assumptions!S18 -> FALSE | U8: =Assumptions!T18 -> TRUE | V8: =Assumptions!U18 -> TRUE | W8: =Assumptions!V18 -> TRUE | X8: =Assumptions!W18 -> TRUE | Y8: =Assumptions!X18 -> TRUE | Z8: =Assumptions!Y18 -> TRUE | AA8: =Assumptions!Z18 -> TRUE
B9: =Assumptions!B19 -> Fin year end | H9: =Assumptions!G19 -> 2012 | I9: =Assumptions!H19 -> 2013 | J9: =Assumptions!I19 -> 2014 | K9: =Assumptions!J19 -> 2015 | L9: =Assumptions!K19 -> 2016 | M9: =Assumptions!L19 -> 2017 | N9: =Assumptions!M19 -> 2018 | O9: =Assumptions!N19 -> 2019 | P9: =Assumptions!O19 -> 2020 | Q9: =Assumptions!P19 -> 2021 | R9: =Assumptions!Q19 -> 2022 | S9: =Assumptions!R19 -> 2023 | T9: =Assumptions!S19 -> 2024 | U9: =Assumptions!T19 -> 2025 | V9: =Assumptions!U19 -> 2026 | W9: =Assumptions!V19 -> 2027 | X9: =Assumptions!W19 -> 2028 | Y9: =Assumptions!X19 -> 2029 | Z9: =Assumptions!Y19 -> 2030 | AA9: =Assumptions!Z19 -> 2031
B10: =Assumptions!B20 -> Basis | H10: =Assumptions!G20 -> Actual | I10: =Assumptions!H20 -> Actual | J10: =Assumptions!I20 -> Actual | K10: =Assumptions!J20 -> Actual | L10: =Assumptions!K20 -> Actual | M10: =Assumptions!L20 -> Actual | N10: =Assumptions!M20 -> Actual | O10: =Assumptions!N20 -> Actual | P10: =Assumptions!O20 -> Actual | Q10: =Assumptions!P20 -> Actual | R10: =Assumptions!Q20 -> Actual | S10: =Assumptions!R20 -> Actual | T10: =Assumptions!S20 -> Actual | U10: =Assumptions!T20 -> Forecast | V10: =Assumptions!U20 -> Forecast | W10: =Assumptions!V20 -> Forecast | X10: =Assumptions!W20 -> Forecast | Y10: =Assumptions!X20 -> Forecast | Z10: =Assumptions!Y20 -> Forecast | AA10: =Assumptions!Z20 -> Forecast
B13: =Hist_vol!B$13 -> Category | C13: Type | D13: =Hist_vol!D$13 -> RIN category | E13: =Hist_vol!E$13 -> Description | H13: =Assumptions!G$24 -> 2011/12 | I13: =Assumptions!H$24 -> 2012/13 | J13: =Assumptions!I$24 -> 2013/14 | K13: =Assumptions!J$24 -> 2014/15 | L13: =Assumptions!K$24 -> 2015/16 | M13: =Assumptions!L$24 -> 2016/17 | N13: =Assumptions!M$24 -> 2017/18 | O13: =Assumptions!N$24 -> 2018/19 | P13: =Assumptions!O$24 -> 2019/20 | Q13: =Assumptions!P$24 -> 2020/21 | R13: =Assumptions!Q$24 -> 2021/22 | S13: =Assumptions!R$24 -> 2022/23 | T13: =Assumptions!S$24 -> 2023/24 | U13: =Assumptions!T$24 -> 2024/25 | V13: =Assumptions!U$24 -> 2025/26 | W13: =Assumptions!V$24 -> 2026/27 | X13: =Assumptions!W$24 -> 2027/28 | Y13: =Assumptions!X$24 -> 2028/29 | Z13: =Assumptions!Y$24 -> 2029/30 | AA13: =Assumptions!Z$24 -> 2030/31 | AC13: 2026-31 Total
B15: Forecast type 1 contributions (June 2026 $)
B16: =Hist_vol!B15 -> Connections | C16: =Hist_vol!C15 -> R1 | D16: =Hist_vol!D15 -> Residential | E16: =Hist_vol!E15 -> Simple connection LV | F16: =D16&" "&E16 -> Residential Simple connection LV | H16: =IF(H$8,CC_ratio!G15*Forecast_spend!H16,Hist_contributions!G15*Assumptions!G$29) -> 1098685.395 | I16: =IF(I$8,CC_ratio!H15*Forecast_spend!I16,Hist_contributions!H15*Assumptions!H$29) -> 979795.7751 | J16: =IF(J$8,CC_ratio!I15*Forecast_spend!J16,Hist_contributions!I15*Assumptions!I$29) -> 132226.7033 | K16: =IF(K$8,CC_ratio!J15*Forecast_spend!K16,Hist_contributions!J15*Assumptions!J$29) -> 0 | L16: =IF(L$8,CC_ratio!K15*Forecast_spend!L16,Hist_contributions!K15*Assumptions!K$29) -> 3222777.497 | M16: =IF(M$8,CC_ratio!L15*Forecast_spend!M16,Hist_contributions!L15*Assumptions!L$29) -> 8057180.077 | N16: =IF(N$8,CC_ratio!M15*Forecast_spend!N16,Hist_contributions!M15*Assumptions!M$29) -> 12762932.63 | O16: =IF(O$8,CC_ratio!N15*Forecast_spend!O16,Hist_contributions!N15*Assumptions!N$29) -> 14189780.26 | P16: =IF(P$8,CC_ratio!O15*Forecast_spend!P16,Hist_contributions!O15*Assumptions!O$29) -> 12928579.08 | Q16: =IF(Q$8,CC_ratio!P15*Forecast_spend!Q16,Hist_contributions!P15*Assumptions!P$29) -> 14449135.92 | R16: =IF(R$8,CC_ratio!Q15*Forecast_spend!R16,Hist_contributions!Q15*Assumptions!Q$29) -> 9852137.253 | S16: =IF(S$8,CC_ratio!R15*Forecast_spend!S16,Hist_contributions!R15*Assumptions!R$29) -> 20839076.49 | T16: =IF(T$8,CC_ratio!S15*Forecast_spend!T16,Hist_contributions!S15*Assumptions!S$29) -> 21600332.36 | U16: =IF(U$8,CC_ratio!T15*Forecast_spend!U16,Hist_contributions!T15*Assumptions!T$29) -> 22885644.32 | V16: =IF(V$8,CC_ratio!U15*Forecast_spend!V16,Hist_contributions!U15*Assumptions!U$29) -> 25923702.49 | W16: =IF(W$8,CC_ratio!V15*Forecast_spend!W16,Hist_contributions!V15*Assumptions!V$29) -> 29299828.7 | X16: =IF(X$8,CC_ratio!W15*Forecast_spend!X16,Hist_contributions!W15*Assumptions!W$29) -> 28138996.36 | Y16: =IF(Y$8,CC_ratio!X15*Forecast_spend!Y16,Hist_contributions!X15*Assumptions!X$29) -> 26725933.35 | Z16: =IF(Z$8,CC_ratio!Y15*Forecast_spend!Z16,Hist_contributions!Y15*Assumptions!Y$29) -> 27156960.36 | AA16: =IF(AA$8,CC_ratio!Z15*Forecast_spend!AA16,Hist_contributions!Z15*Assumptions!Z$29) -> 28140461.91 | AC16: =SUMPRODUCT($H$7:$AA$7*$H16:$AA16) -> 139462180.7
B17: =Hist_vol!B16 -> Connections | C17: =Hist_vol!C16 -> R2 | D17: =Hist_vol!D16 -> Residential | E17: =Hist_vol!E16 -> Complex connection LV | F17: =D17&" "&E17 -> Residential Complex connection LV | H17: =IF(H$8,CC_ratio!G16*Forecast_spend!H17,Hist_contributions!G16*Assumptions!G$29) -> 0 | I17: =IF(I$8,CC_ratio!H16*Forecast_spend!I17,Hist_contributions!H16*Assumptions!H$29) -> 0 | J17: =IF(J$8,CC_ratio!I16*Forecast_spend!J17,Hist_contributions!I16*Assumptions!I$29) -> 0 | K17: =IF(K$8,CC_ratio!J16*Forecast_spend!K17,Hist_contributions!J16*Assumptions!J$29) -> 0 | L17: =IF(L$8,CC_ratio!K16*Forecast_spend!L17,Hist_contributions!K16*Assumptions!K$29) -> 0 | M17: =IF(M$8,CC_ratio!L16*Forecast_spend!M17,Hist_contributions!L16*Assumptions!L$29) -> 0 | N17: =IF(N$8,CC_ratio!M16*Forecast_spend!N17,Hist_contributions!M16*Assumptions!M$29) -> 0 | O17: =IF(O$8,CC_ratio!N16*Forecast_spend!O17,Hist_contributions!N16*Assumptions!N$29) -> 0 | P17: =IF(P$8,CC_ratio!O16*Forecast_spend!P17,Hist_contributions!O16*Assumptions!O$29) -> 0 | Q17: =IF(Q$8,CC_ratio!P16*Forecast_spend!Q17,Hist_contributions!P16*Assumptions!P$29) -> 0 | R17: =IF(R$8,CC_ratio!Q16*Forecast_spend!R17,Hist_contributions!Q16*Assumptions!Q$29) -> 0 | S17: =IF(S$8,CC_ratio!R16*Forecast_spend!S17,Hist_contributions!R16*Assumptions!R$29) -> 0 | T17: =IF(T$8,CC_ratio!S16*Forecast_spend!T17,Hist_contributions!S16*Assumptions!S$29) -> 0 | U17: =IF(U$8,CC_ratio!T16*Forecast_spend!U17,Hist_contributions!T16*Assumptions!T$29) -> 0 | V17: =IF(V$8,CC_ratio!U16*Forecast_spend!V17,Hist_contributions!U16*Assumptions!U$29) -> 0 | W17: =IF(W$8,CC_ratio!V16*Forecast_spend!W17,Hist_contributions!V16*Assumptions!V$29) -> 0 | X17: =IF(X$8,CC_ratio!W16*Forecast_spend!X17,Hist_contributions!W16*Assumptions!W$29) -> 0 | Y17: =IF(Y$8,CC_ratio!X16*Forecast_spend!Y17,Hist_contributions!X16*Assumptions!X$29) -> 0 | Z17: =IF(Z$8,CC_ratio!Y16*Forecast_spend!Z17,Hist_contributions!Y16*Assumptions!Y$29) -> 0 | AA17: =IF(AA$8,CC_ratio!Z16*Forecast_spend!AA17,Hist_contributions!Z16*Assumptions!Z$29) -> 0 | AC17: =SUMPRODUCT($H$7:$AA$7*$H17:$AA17) -> 0
B18: =Hist_vol!B17 -> Connections | C18: =Hist_vol!C17 -> R3 | D18: =Hist_vol!D17 -> Residential | E18: =Hist_vol!E17 -> Complex connection HV | F18: Residential Complex connection HV | H18: =IF(H$8,CC_ratio!G17*Forecast_spend!H18,Hist_contributions!G17*Assumptions!G$29) -> 0 | I18: =IF(I$8,CC_ratio!H17*Forecast_spend!I18,Hist_contributions!H17*Assumptions!H$29) -> 0 | J18: =IF(J$8,CC_ratio!I17*Forecast_spend!J18,Hist_contributions!I17*Assumptions!I$29) -> 0 | K18: =IF(K$8,CC_ratio!J17*Forecast_spend!K18,Hist_contributions!J17*Assumptions!J$29) -> 0 | L18: =IF(L$8,CC_ratio!K17*Forecast_spend!L18,Hist_contributions!K17*Assumptions!K$29) -> 0 | M18: =IF(M$8,CC_ratio!L17*Forecast_spend!M18,Hist_contributions!L17*Assumptions!L$29) -> 0 | N18: =IF(N$8,CC_ratio!M17*Forecast_spend!N18,Hist_contributions!M17*Assumptions!M$29) -> 0 | O18: =IF(O$8,CC_ratio!N17*Forecast_spend!O18,Hist_contributions!N17*Assumptions!N$29) -> 0 | P18: =IF(P$8,CC_ratio!O17*Forecast_spend!P18,Hist_contributions!O17*Assumptions!O$29) -> 0 | Q18: =IF(Q$8,CC_ratio!P17*Forecast_spend!Q18,Hist_contributions!P17*Assumptions!P$29) -> 0 | R18: =IF(R$8,CC_ratio!Q17*Forecast_spend!R18,Hist_contributions!Q17*Assumptions!Q$29) -> 0 | S18: =IF(S$8,CC_ratio!R17*Forecast_spend!S18,Hist_contributions!R17*Assumptions!R$29) -> 0 | T18: =IF(T$8,CC_ratio!S17*Forecast_spend!T18,Hist_contributions!S17*Assumptions!S$29) -> 0 | U18: =IF(U$8,CC_ratio!T17*Forecast_spend!U18,Hist_contributions!T17*Assumptions!T$29) -> 0 | V18: =IF(V$8,CC_ratio!U17*Forecast_spend!V18,Hist_contributions!U17*Assumptions!U$29) -> 0 | W18: =IF(W$8,CC_ratio!V17*Forecast_spend!W18,Hist_contributions!V17*Assumptions!V$29) -> 0 | X18: =IF(X$8,CC_ratio!W17*Forecast_spend!X18,Hist_contributions!W17*Assumptions!W$29) -> 0 | Y18: =IF(Y$8,CC_ratio!X17*Forecast_spend!Y18,Hist_contributions!X17*Assumptions!X$29) -> 0 | Z18: =IF(Z$8,CC_ratio!Y17*Forecast_spend!Z18,Hist_contributions!Y17*Assumptions!Y$29) -> 0 | AA18: =IF(AA$8,CC_ratio!Z17*Forecast_spend!AA18,Hist_contributions!Z17*Assumptions!Z$29) -> 0 | AC18: =SUMPRODUCT($H$7:$AA$7*$H18:$AA18) -> 0
B19: =Hist_vol!B18 -> Connections | C19: =Hist_vol!C18 -> CI1 | D19: =Hist_vol!D18 -> Commercial/Industrial | E19: =Hist_vol!E18 -> Simple connection LV | F19: Commercial/Industrial Simple connection LV | H19: =IF(H$8,CC_ratio!G18*Forecast_spend!H19,Hist_contributions!G18*Assumptions!G$29) -> 1297766.917 | I19: =IF(I$8,CC_ratio!H18*Forecast_spend!I19,Hist_contributions!H18*Assumptions!H$29) -> 1176074.496 | J19: =IF(J$8,CC_ratio!I18*Forecast_spend!J19,Hist_contributions!I18*Assumptions!I$29) -> 906825.0191 | K19: =IF(K$8,CC_ratio!J18*Forecast_spend!K19,Hist_contributions!J18*Assumptions!J$29) -> 1617538.969 | L19: =IF(L$8,CC_ratio!K18*Forecast_spend!L19,Hist_contributions!K18*Assumptions!K$29) -> 2197976.496 | M19: =IF(M$8,CC_ratio!L18*Forecast_spend!M19,Hist_contributions!L18*Assumptions!L$29) -> 3254631.181 | N19: =IF(N$8,CC_ratio!M18*Forecast_spend!N19,Hist_contributions!M18*Assumptions!M$29) -> 3753659.838 | O19: =IF(O$8,CC_ratio!N18*Forecast_spend!O19,Hist_contributions!N18*Assumptions!N$29) -> 3671395.151 | P19: =IF(P$8,CC_ratio!O18*Forecast_spend!P19,Hist_contributions!O18*Assumptions!O$29) -> 3894668.303 | Q19: =IF(Q$8,CC_ratio!P18*Forecast_spend!Q19,Hist_contributions!P18*Assumptions!P$29) -> 3812521.583 | R19: =IF(R$8,CC_ratio!Q18*Forecast_spend!R19,Hist_contributions!Q18*Assumptions!Q$29) -> 5120131.969 | S19: =IF(S$8,CC_ratio!R18*Forecast_spend!S19,Hist_contributions!R18*Assumptions!R$29) -> 4251778.573 | T19: =IF(T$8,CC_ratio!S18*Forecast_spend!T19,Hist_contributions!S18*Assumptions!S$29) -> 8662360.035 | U19: =IF(U$8,CC_ratio!T18*Forecast_spend!U19,Hist_contributions!T18*Assumptions!T$29) -> 3729272.007 | V19: =IF(V$8,CC_ratio!U18*Forecast_spend!V19,Hist_contributions!U18*Assumptions!U$29) -> 3996970.411 | W19: =IF(W$8,CC_ratio!V18*Forecast_spend!W19,Hist_contributions!V18*Assumptions!V$29) -> 4533440.272 | X19: =IF(X$8,CC_ratio!W18*Forecast_spend!X19,Hist_contributions!W18*Assumptions!W$29) -> 4739556.21 | Y19: =IF(Y$8,CC_ratio!X18*Forecast_spend!Y19,Hist_contributions!X18*Assumptions!X$29) -> 4820133.859 | Z19: =IF(Z$8,CC_ratio!Y18*Forecast_spend!Z19,Hist_contributions!Y18*Assumptions!Y$29) -> 4916672.011 | AA19: =IF(AA$8,CC_ratio!Z18*Forecast_spend!AA19,Hist_contributions!Z18*Assumptions!Z$29) -> 4907274.216 | AC19: =SUMPRODUCT($H$7:$AA$7*$H19:$AA19) -> 23917076.57
B20: =Hist_vol!B19 -> Connections | C20: =Hist_vol!C19 -> CI2 | D20: =Hist_vol!D19 -> Commercial/Industrial | E20: =Hist_vol!E19 -> Complex connection HV (customer connected at LV, minor HV works) | F20: Commercial/Industrial Complex connection HV (customer connected at LV, minor HV works) | H20: =IF(H$8,CC_ratio!G19*Forecast_spend!H20,Hist_contributions!G19*Assumptions!G$29) -> 5961466.856 | I20: =IF(I$8,CC_ratio!H19*Forecast_spend!I20,Hist_contributions!H19*Assumptions!H$29) -> 5141914.34 | J20: =IF(J$8,CC_ratio!I19*Forecast_spend!J20,Hist_contributions!I19*Assumptions!I$29) -> 4456892.827 | K20: =IF(K$8,CC_ratio!J19*Forecast_spend!K20,Hist_contributions!J19*Assumptions!J$29) -> 8645319.966 | L20: =IF(L$8,CC_ratio!K19*Forecast_spend!L20,Hist_contributions!K19*Assumptions!K$29) -> 13565846.58 | M20: =IF(M$8,CC_ratio!L19*Forecast_spend!M20,Hist_contributions!L19*Assumptions!L$29) -> 16898833.59 | N20: =IF(N$8,CC_ratio!M19*Forecast_spend!N20,Hist_contributions!M19*Assumptions!M$29) -> 13129032.14 | O20: =IF(O$8,CC_ratio!N19*Forecast_spend!O20,Hist_contributions!N19*Assumptions!N$29) -> 10180646.98 | P20: =IF(P$8,CC_ratio!O19*Forecast_spend!P20,Hist_contributions!O19*Assumptions!O$29) -> 10036604.7 | Q20: =IF(Q$8,CC_ratio!P19*Forecast_spend!Q20,Hist_contributions!P19*Assumptions!P$29) -> 9585765.415 | R20: =IF(R$8,CC_ratio!Q19*Forecast_spend!R20,Hist_contributions!Q19*Assumptions!Q$29) -> 11792502.8 | S20: =IF(S$8,CC_ratio!R19*Forecast_spend!S20,Hist_contributions!R19*Assumptions!R$29) -> 13275710.78 | T20: =IF(T$8,CC_ratio!S19*Forecast_spend!T20,Hist_contributions!S19*Assumptions!S$29) -> 21418173.04 | U20: =IF(U$8,CC_ratio!T19*Forecast_spend!U20,Hist_contributions!T19*Assumptions!T$29) -> 8283923.397 | V20: =IF(V$8,CC_ratio!U19*Forecast_spend!V20,Hist_contributions!U19*Assumptions!U$29) -> 8878568.43 | W20: =IF(W$8,CC_ratio!V19*Forecast_spend!W20,Hist_contributions!V19*Assumptions!V$29) -> 10070242.09 | X20: =IF(X$8,CC_ratio!W19*Forecast_spend!X20,Hist_contributions!W19*Assumptions!W$29) -> 10528092.48 | Y20: =IF(Y$8,CC_ratio!X19*Forecast_spend!Y20,Hist_contributions!X19*Assumptions!X$29) -> 10707081.59 | Z20: =IF(Z$8,CC_ratio!Y19*Forecast_spend!Z20,Hist_contributions!Y19*Assumptions!Y$29) -> 10921524.16 | AA20: =IF(AA$8,CC_ratio!Z19*Forecast_spend!AA20,Hist_contributions!Z19*Assumptions!Z$29) -> 10900648.6 | AC20: =SUMPRODUCT($H$7:$AA$7*$H20:$AA20) -> 53127588.93
B21: =Hist_vol!B20 -> Connections | C21: =Hist_vol!C20 -> CI3 | D21: =Hist_vol!D20 -> Commercial/Industrial | E21: =Hist_vol!E20 -> Complex connection HV (customer connected at LV, upstream asset works) | F21: Commercial/Industrial Complex connection HV (customer connected at LV, upstream asset works) | H21: =IF(H$8,CC_ratio!G20*Forecast_spend!H21,Hist_contributions!G20*Assumptions!G$29) -> 660787.9671 | I21: =IF(I$8,CC_ratio!H20*Forecast_spend!I21,Hist_contributions!H20*Assumptions!H$29) -> 444358.1567 | J21: =IF(J$8,CC_ratio!I20*Forecast_spend!J21,Hist_contributions!I20*Assumptions!I$29) -> 378885.5685 | K21: =IF(K$8,CC_ratio!J20*Forecast_spend!K21,Hist_contributions!J20*Assumptions!J$29) -> 2246106.271 | L21: =IF(L$8,CC_ratio!K20*Forecast_spend!L21,Hist_contributions!K20*Assumptions!K$29) -> 3451637.661 | M21: =IF(M$8,CC_ratio!L20*Forecast_spend!M21,Hist_contributions!L20*Assumptions!L$29) -> 2143701.693 | N21: =IF(N$8,CC_ratio!M20*Forecast_spend!N21,Hist_contributions!M20*Assumptions!M$29) -> 1001111.071 | O21: =IF(O$8,CC_ratio!N20*Forecast_spend!O21,Hist_contributions!N20*Assumptions!N$29) -> 942344.065 | P21: =IF(P$8,CC_ratio!O20*Forecast_spend!P21,Hist_contributions!O20*Assumptions!O$29) -> 726859.5292 | Q21: =IF(Q$8,CC_ratio!P20*Forecast_spend!Q21,Hist_contributions!P20*Assumptions!P$29) -> 0 | R21: =IF(R$8,CC_ratio!Q20*Forecast_spend!R21,Hist_contributions!Q20*Assumptions!Q$29) -> 1724266.726 | S21: =IF(S$8,CC_ratio!R20*Forecast_spend!S21,Hist_contributions!R20*Assumptions!R$29) -> 346286.1362 | T21: =IF(T$8,CC_ratio!S20*Forecast_spend!T21,Hist_contributions!S20*Assumptions!S$29) -> 6794547.611 | U21: =IF(U$8,CC_ratio!T20*Forecast_spend!U21,Hist_contributions!T20*Assumptions!T$29) -> 243506.9587 | V21: =IF(V$8,CC_ratio!U20*Forecast_spend!V21,Hist_contributions!U20*Assumptions!U$29) -> 260986.6234 | W21: =IF(W$8,CC_ratio!V20*Forecast_spend!W21,Hist_contributions!V20*Assumptions!V$29) -> 296016.019 | X21: =IF(X$8,CC_ratio!W20*Forecast_spend!X21,Hist_contributions!W20*Assumptions!W$29) -> 309474.5881 | Y21: =IF(Y$8,CC_ratio!X20*Forecast_spend!Y21,Hist_contributions!X20*Assumptions!X$29) -> 314735.9952 | Z21: =IF(Z$8,CC_ratio!Y20*Forecast_spend!Z21,Hist_contributions!Y20*Assumptions!Y$29) -> 321039.5611 | AA21: =IF(AA$8,CC_ratio!Z20*Forecast_spend!AA21,Hist_contributions!Z20*Assumptions!Z$29) -> 320425.9216 | AC21: =SUMPRODUCT($H$7:$AA$7*$H21:$AA21) -> 1561692.085
B22: =Hist_vol!B21 -> Connections | C22: =Hist_vol!C21 -> CI4 | D22: =Hist_vol!D21 -> Commercial/Industrial | E22: =Hist_vol!E21 -> Complex connection HV (customer connected at HV) | F22: Commercial/Industrial Complex connection HV (customer connected at HV) | H22: =IF(H$8,CC_ratio!G21*Forecast_spend!H22,Hist_contributions!G21*Assumptions!G$29) -> 177381.2247 | I22: =IF(I$8,CC_ratio!H21*Forecast_spend!I22,Hist_contributions!H21*Assumptions!H$29) -> 126547.5514 | J22: =IF(J$8,CC_ratio!I21*Forecast_spend!J22,Hist_contributions!I21*Assumptions!I$29) -> 292187.3476 | K22: =IF(K$8,CC_ratio!J21*Forecast_spend!K22,Hist_contributions!J21*Assumptions!J$29) -> 2709053.139 | L22: =IF(L$8,CC_ratio!K21*Forecast_spend!L22,Hist_contributions!K21*Assumptions!K$29) -> 7716419.905 | M22: =IF(M$8,CC_ratio!L21*Forecast_spend!M22,Hist_contributions!L21*Assumptions!L$29) -> 12675730.99 | N22: =IF(N$8,CC_ratio!M21*Forecast_spend!N22,Hist_contributions!M21*Assumptions!M$29) -> 11100912.99 | O22: =IF(O$8,CC_ratio!N21*Forecast_spend!O22,Hist_contributions!N21*Assumptions!N$29) -> 8649062.669 | P22: =IF(P$8,CC_ratio!O21*Forecast_spend!P22,Hist_contributions!O21*Assumptions!O$29) -> 11818975 | Q22: =IF(Q$8,CC_ratio!P21*Forecast_spend!Q22,Hist_contributions!P21*Assumptions!P$29) -> 14642415.95 | R22: =IF(R$8,CC_ratio!Q21*Forecast_spend!R22,Hist_contributions!Q21*Assumptions!Q$29) -> 9451867.269 | S22: =IF(S$8,CC_ratio!R21*Forecast_spend!S22,Hist_contributions!R21*Assumptions!R$29) -> 10258694.89 | T22: =IF(T$8,CC_ratio!S21*Forecast_spend!T22,Hist_contributions!S21*Assumptions!S$29) -> 49378967 | U22: =IF(U$8,CC_ratio!T21*Forecast_spend!U22,Hist_contributions!T21*Assumptions!T$29) -> 6130908.305 | V22: =IF(V$8,CC_ratio!U21*Forecast_spend!V22,Hist_contributions!U21*Assumptions!U$29) -> 6571003.414 | W22: =IF(W$8,CC_ratio!V21*Forecast_spend!W22,Hist_contributions!V21*Assumptions!V$29) -> 7452957.726 | X22: =IF(X$8,CC_ratio!W21*Forecast_spend!X22,Hist_contributions!W21*Assumptions!W$29) -> 7791811.505 | Y22: =IF(Y$8,CC_ratio!X21*Forecast_spend!Y22,Hist_contributions!X21*Assumptions!X$29) -> 7924280.839 | Z22: =IF(Z$8,CC_ratio!Y21*Forecast_spend!Z22,Hist_contributions!Y21*Assumptions!Y$29) -> 8082989.176 | AA22: =IF(AA$8,CC_ratio!Z21*Forecast_spend!AA22,Hist_contributions!Z21*Assumptions!Z$29) -> 8067539.239 | AC22: =SUMPRODUCT($H$7:$AA$7*$H22:$AA22) -> 39319578.48
B23: =Hist_vol!B22 -> Connections | C23: =Hist_vol!C22 -> CI5 | D23: =Hist_vol!D22 -> Commercial/Industrial | E23: =Hist_vol!E22 -> Complex connection sub-transmission | F23: Commercial/Industrial Complex connection sub-transmission | H23: =IF(H$8,CC_ratio!G22*Forecast_spend!H23,Hist_contributions!G22*Assumptions!G$29) -> 0 | I23: =IF(I$8,CC_ratio!H22*Forecast_spend!I23,Hist_contributions!H22*Assumptions!H$29) -> 0 | J23: =IF(J$8,CC_ratio!I22*Forecast_spend!J23,Hist_contributions!I22*Assumptions!I$29) -> 0 | K23: =IF(K$8,CC_ratio!J22*Forecast_spend!K23,Hist_contributions!J22*Assumptions!J$29) -> 0 | L23: =IF(L$8,CC_ratio!K22*Forecast_spend!L23,Hist_contributions!K22*Assumptions!K$29) -> 0 | M23: =IF(M$8,CC_ratio!L22*Forecast_spend!M23,Hist_contributions!L22*Assumptions!L$29) -> 0 | N23: =IF(N$8,CC_ratio!M22*Forecast_spend!N23,Hist_contributions!M22*Assumptions!M$29) -> 0 | O23: =IF(O$8,CC_ratio!N22*Forecast_spend!O23,Hist_contributions!N22*Assumptions!N$29) -> 0 | P23: =IF(P$8,CC_ratio!O22*Forecast_spend!P23,Hist_contributions!O22*Assumptions!O$29) -> 0 | Q23: =IF(Q$8,CC_ratio!P22*Forecast_spend!Q23,Hist_contributions!P22*Assumptions!P$29) -> 0 | R23: =IF(R$8,CC_ratio!Q22*Forecast_spend!R23,Hist_contributions!Q22*Assumptions!Q$29) -> 6466.255486 | S23: =IF(S$8,CC_ratio!R22*Forecast_spend!S23,Hist_contributions!R22*Assumptions!R$29) -> 29729.06683 | T23: =IF(T$8,CC_ratio!S22*Forecast_spend!T23,Hist_contributions!S22*Assumptions!S$29) -> 485328.9631 | U23: =IF(U$8,CC_ratio!T22*Forecast_spend!U23,Hist_contributions!T22*Assumptions!T$29) -> 20905.35511 | V23: =IF(V$8,CC_ratio!U22*Forecast_spend!V23,Hist_contributions!U22*Assumptions!U$29) -> 22406.00462 | W23: =IF(W$8,CC_ratio!V22*Forecast_spend!W23,Hist_contributions!V22*Assumptions!V$29) -> 25413.3189 | X23: =IF(X$8,CC_ratio!W22*Forecast_spend!X23,Hist_contributions!W22*Assumptions!W$29) -> 26568.75268 | Y23: =IF(Y$8,CC_ratio!X22*Forecast_spend!Y23,Hist_contributions!X22*Assumptions!X$29) -> 27020.45059 | Z23: =IF(Z$8,CC_ratio!Y22*Forecast_spend!Z23,Hist_contributions!Y22*Assumptions!Y$29) -> 27561.61904 | AA23: =IF(AA$8,CC_ratio!Z22*Forecast_spend!AA23,Hist_contributions!Z22*Assumptions!Z$29) -> 27508.93738 | AC23: =SUMPRODUCT($H$7:$AA$7*$H23:$AA23) -> 134073.0786
B24: =Hist_vol!B23 -> Connections | C24: =Hist_vol!C23 -> S1 | D24: =Hist_vol!D23 -> Subdivision | E24: =Hist_vol!E23 -> Complex connection LV | F24: Subdivision Complex connection LV | H24: =IF(H$8,CC_ratio!G23*Forecast_spend!H24,Hist_contributions!G23*Assumptions!G$29) -> 3295479.219 | I24: =IF(I$8,CC_ratio!H23*Forecast_spend!I24,Hist_contributions!H23*Assumptions!H$29) -> 2801012.254 | J24: =IF(J$8,CC_ratio!I23*Forecast_spend!J24,Hist_contributions!I23*Assumptions!I$29) -> 2819159.168 | K24: =IF(K$8,CC_ratio!J23*Forecast_spend!K24,Hist_contributions!J23*Assumptions!J$29) -> 5593499.997 | L24: =IF(L$8,CC_ratio!K23*Forecast_spend!L24,Hist_contributions!K23*Assumptions!K$29) -> 5037847.245 | M24: =IF(M$8,CC_ratio!L23*Forecast_spend!M24,Hist_contributions!L23*Assumptions!L$29) -> 3611631.043 | N24: =IF(N$8,CC_ratio!M23*Forecast_spend!N24,Hist_contributions!M23*Assumptions!M$29) -> 1937329.227 | O24: =IF(O$8,CC_ratio!N23*Forecast_spend!O24,Hist_contributions!N23*Assumptions!N$29) -> 1531844.003 | P24: =IF(P$8,CC_ratio!O23*Forecast_spend!P24,Hist_contributions!O23*Assumptions!O$29) -> 1917233.339 | Q24: =IF(Q$8,CC_ratio!P23*Forecast_spend!Q24,Hist_contributions!P23*Assumptions!P$29) -> 1365969.934 | R24: =IF(R$8,CC_ratio!Q23*Forecast_spend!R24,Hist_contributions!Q23*Assumptions!Q$29) -> 663887.3155 | S24: =IF(S$8,CC_ratio!R23*Forecast_spend!S24,Hist_contributions!R23*Assumptions!R$29) -> 659430.1121 | T24: =IF(T$8,CC_ratio!S23*Forecast_spend!T24,Hist_contributions!S23*Assumptions!S$29) -> 790855.759 | U24: =IF(U$8,CC_ratio!T23*Forecast_spend!U24,Hist_contributions!T23*Assumptions!T$29) -> 1755628.096 | V24: =IF(V$8,CC_ratio!U23*Forecast_spend!V24,Hist_contributions!U23*Assumptions!U$29) -> 1988686.873 | W24: =IF(W$8,CC_ratio!V23*Forecast_spend!W24,Hist_contributions!V23*Assumptions!V$29) -> 2247679.888 | X24: =IF(X$8,CC_ratio!W23*Forecast_spend!X24,Hist_contributions!W23*Assumptions!W$29) -> 2158628.872 | Y24: =IF(Y$8,CC_ratio!X23*Forecast_spend!Y24,Hist_contributions!X23*Assumptions!X$29) -> 2050228.467 | Z24: =IF(Z$8,CC_ratio!Y23*Forecast_spend!Z24,Hist_contributions!Y23*Assumptions!Y$29) -> 2083293.874 | AA24: =IF(AA$8,CC_ratio!Z23*Forecast_spend!AA24,Hist_contributions!Z23*Assumptions!Z$29) -> 2158741.299 | AC24: =SUMPRODUCT($H$7:$AA$7*$H24:$AA24) -> 10698572.4
B25: =Hist_vol!B24 -> Connections | C25: =Hist_vol!C24 -> S2 | D25: =Hist_vol!D24 -> Subdivision | E25: =Hist_vol!E24 -> Complex connection HV (no upstream asset works) | F25: Subdivision Complex connection HV (no upstream asset works) | H25: =IF(H$8,CC_ratio!G24*Forecast_spend!H25,Hist_contributions!G24*Assumptions!G$29) -> 507425.69 | I25: =IF(I$8,CC_ratio!H24*Forecast_spend!I25,Hist_contributions!H24*Assumptions!H$29) -> 436385.4475 | J25: =IF(J$8,CC_ratio!I24*Forecast_spend!J25,Hist_contributions!I24*Assumptions!I$29) -> 616351.1215 | K25: =IF(K$8,CC_ratio!J24*Forecast_spend!K25,Hist_contributions!J24*Assumptions!J$29) -> 971447.6974 | L25: =IF(L$8,CC_ratio!K24*Forecast_spend!L25,Hist_contributions!K24*Assumptions!K$29) -> 1416813.977 | M25: =IF(M$8,CC_ratio!L24*Forecast_spend!M25,Hist_contributions!L24*Assumptions!L$29) -> 2395270.974 | N25: =IF(N$8,CC_ratio!M24*Forecast_spend!N25,Hist_contributions!M24*Assumptions!M$29) -> 1720677.007 | O25: =IF(O$8,CC_ratio!N24*Forecast_spend!O25,Hist_contributions!N24*Assumptions!N$29) -> 1308078.453 | P25: =IF(P$8,CC_ratio!O24*Forecast_spend!P25,Hist_contributions!O24*Assumptions!O$29) -> 1705550.701 | Q25: =IF(Q$8,CC_ratio!P24*Forecast_spend!Q25,Hist_contributions!P24*Assumptions!P$29) -> 1334415.489 | R25: =IF(R$8,CC_ratio!Q24*Forecast_spend!R25,Hist_contributions!Q24*Assumptions!Q$29) -> 667336.0652 | S25: =IF(S$8,CC_ratio!R24*Forecast_spend!S25,Hist_contributions!R24*Assumptions!R$29) -> 819299.9737 | T25: =IF(T$8,CC_ratio!S24*Forecast_spend!T25,Hist_contributions!S24*Assumptions!S$29) -> 836747.8249 | U25: =IF(U$8,CC_ratio!T24*Forecast_spend!U25,Hist_contributions!T24*Assumptions!T$29) -> 1652672.547 | V25: =IF(V$8,CC_ratio!U24*Forecast_spend!V25,Hist_contributions!U24*Assumptions!U$29) -> 1872064.025 | W25: =IF(W$8,CC_ratio!V24*Forecast_spend!W25,Hist_contributions!V24*Assumptions!V$29) -> 2115868.876 | X25: =IF(X$8,CC_ratio!W24*Forecast_spend!X25,Hist_contributions!W24*Assumptions!W$29) -> 2032040.092 | Y25: =IF(Y$8,CC_ratio!X24*Forecast_spend!Y25,Hist_contributions!X24*Assumptions!X$29) -> 1929996.626 | Z25: =IF(Z$8,CC_ratio!Y24*Forecast_spend!Z25,Hist_contributions!Y24*Assumptions!Y$29) -> 1961122.974 | AA25: =IF(AA$8,CC_ratio!Z24*Forecast_spend!AA25,Hist_contributions!Z24*Assumptions!Z$29) -> 2032145.925 | AC25: =SUMPRODUCT($H$7:$AA$7*$H25:$AA25) -> 10071174.49
B26: =Hist_vol!B25 -> Connections | C26: =Hist_vol!C25 -> S3 | D26: =Hist_vol!D25 -> Subdivision | E26: =Hist_vol!E25 -> Complex connection HV (with upstream asset works) | F26: Subdivision Complex connection HV (with upstream asset works) | H26: =IF(H$8,CC_ratio!G25*Forecast_spend!H26,Hist_contributions!G25*Assumptions!G$29) -> 0 | I26: =IF(I$8,CC_ratio!H25*Forecast_spend!I26,Hist_contributions!H25*Assumptions!H$29) -> 0 | J26: =IF(J$8,CC_ratio!I25*Forecast_spend!J26,Hist_contributions!I25*Assumptions!I$29) -> 0 | K26: =IF(K$8,CC_ratio!J25*Forecast_spend!K26,Hist_contributions!J25*Assumptions!J$29) -> 0 | L26: =IF(L$8,CC_ratio!K25*Forecast_spend!L26,Hist_contributions!K25*Assumptions!K$29) -> 0 | M26: =IF(M$8,CC_ratio!L25*Forecast_spend!M26,Hist_contributions!L25*Assumptions!L$29) -> 175908.5491 | N26: =IF(N$8,CC_ratio!M25*Forecast_spend!N26,Hist_contributions!M25*Assumptions!M$29) -> 379599.2828 | O26: =IF(O$8,CC_ratio!N25*Forecast_spend!O26,Hist_contributions!N25*Assumptions!N$29) -> 420705.1506 | P26: =IF(P$8,CC_ratio!O25*Forecast_spend!P26,Hist_contributions!O25*Assumptions!O$29) -> 214474.8244 | Q26: =IF(Q$8,CC_ratio!P25*Forecast_spend!Q26,Hist_contributions!P25*Assumptions!P$29) -> 0 | R26: =IF(R$8,CC_ratio!Q25*Forecast_spend!R26,Hist_contributions!Q25*Assumptions!Q$29) -> 0 | S26: =IF(S$8,CC_ratio!R25*Forecast_spend!S26,Hist_contributions!R25*Assumptions!R$29) -> 0 | T26: =IF(T$8,CC_ratio!S25*Forecast_spend!T26,Hist_contributions!S25*Assumptions!S$29) -> 0 | U26: =IF(U$8,CC_ratio!T25*Forecast_spend!U26,Hist_contributions!T25*Assumptions!T$29) -> 0 | V26: =IF(V$8,CC_ratio!U25*Forecast_spend!V26,Hist_contributions!U25*Assumptions!U$29) -> 0 | W26: =IF(W$8,CC_ratio!V25*Forecast_spend!W26,Hist_contributions!V25*Assumptions!V$29) -> 0 | X26: =IF(X$8,CC_ratio!W25*Forecast_spend!X26,Hist_contributions!W25*Assumptions!W$29) -> 0 | Y26: =IF(Y$8,CC_ratio!X25*Forecast_spend!Y26,Hist_contributions!X25*Assumptions!X$29) -> 0 | Z26: =IF(Z$8,CC_ratio!Y25*Forecast_spend!Z26,Hist_contributions!Y25*Assumptions!Y$29) -> 0 | AA26: =IF(AA$8,CC_ratio!Z25*Forecast_spend!AA26,Hist_contributions!Z25*Assumptions!Z$29) -> 0 | AC26: =SUMPRODUCT($H$7:$AA$7*$H26:$AA26) -> 0
B27: =Hist_vol!B26 -> Connections | C27: =Hist_vol!C26 -> EG1 | D27: =Hist_vol!D26 -> Embedded generation | E27: =Hist_vol!E26 -> Simple connection LV | F27: Embedded generation Simple connection LV | H27: =IF(H$8,CC_ratio!G26*Forecast_spend!H27,Hist_contributions!G26*Assumptions!G$29) -> 203063.6958 | I27: =IF(I$8,CC_ratio!H26*Forecast_spend!I27,Hist_contributions!H26*Assumptions!H$29) -> 199074.2322 | J27: =IF(J$8,CC_ratio!I26*Forecast_spend!J27,Hist_contributions!I26*Assumptions!I$29) -> 0 | K27: =IF(K$8,CC_ratio!J26*Forecast_spend!K27,Hist_contributions!J26*Assumptions!J$29) -> 0 | L27: =IF(L$8,CC_ratio!K26*Forecast_spend!L27,Hist_contributions!K26*Assumptions!K$29) -> 0 | M27: =IF(M$8,CC_ratio!L26*Forecast_spend!M27,Hist_contributions!L26*Assumptions!L$29) -> 0 | N27: =IF(N$8,CC_ratio!M26*Forecast_spend!N27,Hist_contributions!M26*Assumptions!M$29) -> 0 | O27: =IF(O$8,CC_ratio!N26*Forecast_spend!O27,Hist_contributions!N26*Assumptions!N$29) -> 0 | P27: =IF(P$8,CC_ratio!O26*Forecast_spend!P27,Hist_contributions!O26*Assumptions!O$29) -> 0 | Q27: =IF(Q$8,CC_ratio!P26*Forecast_spend!Q27,Hist_contributions!P26*Assumptions!P$29) -> 0 | R27: =IF(R$8,CC_ratio!Q26*Forecast_spend!R27,Hist_contributions!Q26*Assumptions!Q$29) -> 0 | S27: =IF(S$8,CC_ratio!R26*Forecast_spend!S27,Hist_contributions!R26*Assumptions!R$29) -> 0 | T27: =IF(T$8,CC_ratio!S26*Forecast_spend!T27,Hist_contributions!S26*Assumptions!S$29) -> 0 | U27: =IF(U$8,CC_ratio!T26*Forecast_spend!U27,Hist_contributions!T26*Assumptions!T$29) -> 0 | V27: =IF(V$8,CC_ratio!U26*Forecast_spend!V27,Hist_contributions!U26*Assumptions!U$29) -> 0 | W27: =IF(W$8,CC_ratio!V26*Forecast_spend!W27,Hist_contributions!V26*Assumptions!V$29) -> 0 | X27: =IF(X$8,CC_ratio!W26*Forecast_spend!X27,Hist_contributions!W26*Assumptions!W$29) -> 0 | Y27: =IF(Y$8,CC_ratio!X26*Forecast_spend!Y27,Hist_contributions!X26*Assumptions!X$29) -> 0 | Z27: =IF(Z$8,CC_ratio!Y26*Forecast_spend!Z27,Hist_contributions!Y26*Assumptions!Y$29) -> 0 | AA27: =IF(AA$8,CC_ratio!Z26*Forecast_spend!AA27,Hist_contributions!Z26*Assumptions!Z$29) -> 0 | AC27: =SUMPRODUCT($H$7:$AA$7*$H27:$AA27) -> 0
B28: =Hist_vol!B27 -> Connections | C28: =Hist_vol!C27 -> EG2 | D28: =Hist_vol!D27 -> Embedded generation | E28: =Hist_vol!E27 -> Complex connection HV (small capacity) | F28: Embedded generation Complex connection HV (small capacity) | H28: =IF(H$8,CC_ratio!G27*Forecast_spend!H28,Hist_contributions!G27*Assumptions!G$29) -> 48094.03321 | I28: =IF(I$8,CC_ratio!H27*Forecast_spend!I28,Hist_contributions!H27*Assumptions!H$29) -> 47149.16026 | J28: =IF(J$8,CC_ratio!I27*Forecast_spend!J28,Hist_contributions!I27*Assumptions!I$29) -> 0 | K28: =IF(K$8,CC_ratio!J27*Forecast_spend!K28,Hist_contributions!J27*Assumptions!J$29) -> 0 | L28: =IF(L$8,CC_ratio!K27*Forecast_spend!L28,Hist_contributions!K27*Assumptions!K$29) -> 0 | M28: =IF(M$8,CC_ratio!L27*Forecast_spend!M28,Hist_contributions!L27*Assumptions!L$29) -> 0 | N28: =IF(N$8,CC_ratio!M27*Forecast_spend!N28,Hist_contributions!M27*Assumptions!M$29) -> 0 | O28: =IF(O$8,CC_ratio!N27*Forecast_spend!O28,Hist_contributions!N27*Assumptions!N$29) -> 0 | P28: =IF(P$8,CC_ratio!O27*Forecast_spend!P28,Hist_contributions!O27*Assumptions!O$29) -> 0 | Q28: =IF(Q$8,CC_ratio!P27*Forecast_spend!Q28,Hist_contributions!P27*Assumptions!P$29) -> 9665.629914 | R28: =IF(R$8,CC_ratio!Q27*Forecast_spend!R28,Hist_contributions!Q27*Assumptions!Q$29) -> 40312.292 | S28: =IF(S$8,CC_ratio!R27*Forecast_spend!S28,Hist_contributions!R27*Assumptions!R$29) -> 705954.2323 | T28: =IF(T$8,CC_ratio!S27*Forecast_spend!T28,Hist_contributions!S27*Assumptions!S$29) -> 8512389.491 | U28: =IF(U$8,CC_ratio!T27*Forecast_spend!U28,Hist_contributions!T27*Assumptions!T$29) -> 0 | V28: =IF(V$8,CC_ratio!U27*Forecast_spend!V28,Hist_contributions!U27*Assumptions!U$29) -> 0 | W28: =IF(W$8,CC_ratio!V27*Forecast_spend!W28,Hist_contributions!V27*Assumptions!V$29) -> 0 | X28: =IF(X$8,CC_ratio!W27*Forecast_spend!X28,Hist_contributions!W27*Assumptions!W$29) -> 0 | Y28: =IF(Y$8,CC_ratio!X27*Forecast_spend!Y28,Hist_contributions!X27*Assumptions!X$29) -> 0 | Z28: =IF(Z$8,CC_ratio!Y27*Forecast_spend!Z28,Hist_contributions!Y27*Assumptions!Y$29) -> 0 | AA28: =IF(AA$8,CC_ratio!Z27*Forecast_spend!AA28,Hist_contributions!Z27*Assumptions!Z$29) -> 0 | AC28: =SUMPRODUCT($H$7:$AA$7*$H28:$AA28) -> 0
B29: =Hist_vol!B28 -> Connections | C29: =Hist_vol!C28 -> EG3 | D29: =Hist_vol!D28 -> Embedded generation | E29: =Hist_vol!E28 -> Complex connection HV (large capacity) | F29: Embedded generation Complex connection HV (large capacity) | H29: =IF(H$8,CC_ratio!G28*Forecast_spend!H29,Hist_contributions!G28*Assumptions!G$29) -> 0 | I29: =IF(I$8,CC_ratio!H28*Forecast_spend!I29,Hist_contributions!H28*Assumptions!H$29) -> 5642.701131 | J29: =IF(J$8,CC_ratio!I28*Forecast_spend!J29,Hist_contributions!I28*Assumptions!I$29) -> 5523.336299 | K29: =IF(K$8,CC_ratio!J28*Forecast_spend!K29,Hist_contributions!J28*Assumptions!J$29) -> 0 | L29: =IF(L$8,CC_ratio!K28*Forecast_spend!L29,Hist_contributions!K28*Assumptions!K$29) -> 0 | M29: =IF(M$8,CC_ratio!L28*Forecast_spend!M29,Hist_contributions!L28*Assumptions!L$29) -> 0 | N29: =IF(N$8,CC_ratio!M28*Forecast_spend!N29,Hist_contributions!M28*Assumptions!M$29) -> 0 | O29: =IF(O$8,CC_ratio!N28*Forecast_spend!O29,Hist_contributions!N28*Assumptions!N$29) -> 0 | P29: =IF(P$8,CC_ratio!O28*Forecast_spend!P29,Hist_contributions!O28*Assumptions!O$29) -> 0 | Q29: =IF(Q$8,CC_ratio!P28*Forecast_spend!Q29,Hist_contributions!P28*Assumptions!P$29) -> 0 | R29: =IF(R$8,CC_ratio!Q28*Forecast_spend!R29,Hist_contributions!Q28*Assumptions!Q$29) -> 0 | S29: =IF(S$8,CC_ratio!R28*Forecast_spend!S29,Hist_contributions!R28*Assumptions!R$29) -> 0 | T29: =IF(T$8,CC_ratio!S28*Forecast_spend!T29,Hist_contributions!S28*Assumptions!S$29) -> 0 | U29: =IF(U$8,CC_ratio!T28*Forecast_spend!U29,Hist_contributions!T28*Assumptions!T$29) -> 0 | V29: =IF(V$8,CC_ratio!U28*Forecast_spend!V29,Hist_contributions!U28*Assumptions!U$29) -> 0 | W29: =IF(W$8,CC_ratio!V28*Forecast_spend!W29,Hist_contributions!V28*Assumptions!V$29) -> 0 | X29: =IF(X$8,CC_ratio!W28*Forecast_spend!X29,Hist_contributions!W28*Assumptions!W$29) -> 0 | Y29: =IF(Y$8,CC_ratio!X28*Forecast_spend!Y29,Hist_contributions!X28*Assumptions!X$29) -> 0 | Z29: =IF(Z$8,CC_ratio!Y28*Forecast_spend!Z29,Hist_contributions!Y28*Assumptions!Y$29) -> 0 | AA29: =IF(AA$8,CC_ratio!Z28*Forecast_spend!AA29,Hist_contributions!Z28*Assumptions!Z$29) -> 0 | AC29: =SUMPRODUCT($H$7:$AA$7*$H29:$AA29) -> 0
B30: ='Grid connected batteries'!B18 -> Connections | C30: Grid connected Batteries | D30: Grid connected Batteries | F30: =D30 -> Grid connected Batteries | H30: 0 | I30: 0 | J30: 0 | K30: 0 | L30: 0 | M30: 0 | N30: 0 | O30: 0 | P30: 0 | Q30: 0 | R30: 0 | S30: 0 | T30: 0 | U30: 0 | V30: 0 | W30: ='Grid connected batteries'!E18 -> 4036364.02 | X30: ='Grid connected batteries'!F18 -> 3966989.423 | Y30: ='Grid connected batteries'!G18 -> 4797819.198 | Z30: ='Grid connected batteries'!H18 -> 5516080.089 | AA30: ='Grid connected batteries'!I18 -> 5075363.671 | AC30: =SUMPRODUCT($H$7:$AA$7*$H30:$AA30) -> 23392616.4
B31: Connections | C31: Data Centres | D31: Data Centres | F31: =D31 -> Data Centres | H31: 0 | I31: 0 | J31: 0 | K31: 0 | L31: 0 | M31: 0 | N31: 0 | O31: 0 | P31: 0 | Q31: 0 | R31: 0 | S31: 0 | T31: 0 | U31: 0 | V31: 0 | W31: 0 | X31: 0 | Y31: 0 | Z31: 0 | AA31: 0 | AC31: =SUMPRODUCT($H$7:$AA$7*$H31:$AA31) -> 0
D32: Total | H32: =SUM(H16:H31) -> 13250151 | I32: 11357954.11 | J32: 9608051.091 | K32: 21782966.04 | L32: 36609319.36 | M32: 49212888.09 | N32: 45785254.2 | O32: 40893856.73 | P32: 43242945.48 | Q32: 45199889.92 | R32: 39318907.95 | S32: 51185960.26 | T32: 118479702.1 | U32: 44702460.99 | V32: 49514388.27 | W32: 60077810.91 | X32: 59692158.29 | Y32: 59297230.37 | Z32: 60987243.82 | AA32: 61630109.72 | AC32: =SUM(AC16:AC31) -> 301684553.1

Sheet Forecast_netcapex
A1: =Assumptions!$A$1 -> United Energy
A2: =Assumptions!$A$2 -> Connections
A3: Forecast net capex
B7: =Assumptions!B17 -> 2025/6 - 2030/31 reg period | H7: =Assumptions!G17 -> FALSE | I7: =Assumptions!H17 -> FALSE | J7: =Assumptions!I17 -> FALSE | K7: =Assumptions!J17 -> FALSE | L7: =Assumptions!K17 -> FALSE | M7: =Assumptions!L17 -> FALSE | N7: =Assumptions!M17 -> FALSE | O7: =Assumptions!N17 -> FALSE | P7: =Assumptions!O17 -> FALSE | Q7: =Assumptions!P17 -> FALSE | R7: =Assumptions!Q17 -> FALSE | S7: =Assumptions!R17 -> FALSE | T7: =Assumptions!S17 -> FALSE | U7: =Assumptions!T17 -> FALSE | V7: =Assumptions!U17 -> FALSE | W7: =Assumptions!V17 -> TRUE | X7: =Assumptions!W17 -> TRUE | Y7: =Assumptions!X17 -> TRUE | Z7: =Assumptions!Y17 -> TRUE | AA7: =Assumptions!Z17 -> TRUE
B8: =Assumptions!B18 -> Forecast period | H8: =Assumptions!G18 -> FALSE | I8: =Assumptions!H18 -> FALSE | J8: =Assumptions!I18 -> FALSE | K8: =Assumptions!J18 -> FALSE | L8: =Assumptions!K18 -> FALSE | M8: =Assumptions!L18 -> FALSE | N8: =Assumptions!M18 -> FALSE | O8: =Assumptions!N18 -> FALSE | P8: =Assumptions!O18 -> FALSE | Q8: =Assumptions!P18 -> FALSE | R8: =Assumptions!Q18 -> FALSE | S8: =Assumptions!R18 -> FALSE | T8: =Assumptions!S18 -> FALSE | U8: =Assumptions!T18 -> TRUE | V8: =Assumptions!U18 -> TRUE | W8: =Assumptions!V18 -> TRUE | X8: =Assumptions!W18 -> TRUE | Y8: =Assumptions!X18 -> TRUE | Z8: =Assumptions!Y18 -> TRUE | AA8: =Assumptions!Z18 -> TRUE
B9: =Assumptions!B19 -> Fin year end | H9: =Assumptions!G19 -> 2012 | I9: =Assumptions!H19 -> 2013 | J9: =Assumptions!I19 -> 2014 | K9: =Assumptions!J19 -> 2015 | L9: =Assumptions!K19 -> 2016 | M9: =Assumptions!L19 -> 2017 | N9: =Assumptions!M19 -> 2018 | O9: =Assumptions!N19 -> 2019 | P9: =Assumptions!O19 -> 2020 | Q9: =Assumptions!P19 -> 2021 | R9: =Assumptions!Q19 -> 2022 | S9: =Assumptions!R19 -> 2023 | T9: =Assumptions!S19 -> 2024 | U9: =Assumptions!T19 -> 2025 | V9: =Assumptions!U19 -> 2026 | W9: =Assumptions!V19 -> 2027 | X9: =Assumptions!W19 -> 2028 | Y9: =Assumptions!X19 -> 2029 | Z9: =Assumptions!Y19 -> 2030 | AA9: =Assumptions!Z19 -> 2031
B10: =Assumptions!B20 -> Basis | H10: =Assumptions!G20 -> Actual | I10: =Assumptions!H20 -> Actual | J10: =Assumptions!I20 -> Actual | K10: =Assumptions!J20 -> Actual | L10: =Assumptions!K20 -> Actual | M10: =Assumptions!L20 -> Actual | N10: =Assumptions!M20 -> Actual | O10: =Assumptions!N20 -> Actual | P10: =Assumptions!O20 -> Actual | Q10: =Assumptions!P20 -> Actual | R10: =Assumptions!Q20 -> Actual | S10: =Assumptions!R20 -> Actual | T10: =Assumptions!S20 -> Actual | U10: =Assumptions!T20 -> Forecast | V10: =Assumptions!U20 -> Forecast | W10: =Assumptions!V20 -> Forecast | X10: =Assumptions!W20 -> Forecast | Y10: =Assumptions!X20 -> Forecast | Z10: =Assumptions!Y20 -> Forecast | AA10: =Assumptions!Z20 -> Forecast
B13: =Hist_vol!B$13 -> Category | C13: Type | D13: =Hist_vol!D$13 -> RIN category | E13: =Hist_vol!E$13 -> Description | H13: =Assumptions!G$24 -> 2011/12 | I13: =Assumptions!H$24 -> 2012/13 | J13: =Assumptions!I$24 -> 2013/14 | K13: =Assumptions!J$24 -> 2014/15 | L13: =Assumptions!K$24 -> 2015/16 | M13: =Assumptions!L$24 -> 2016/17 | N13: =Assumptions!M$24 -> 2017/18 | O13: =Assumptions!N$24 -> 2018/19 | P13: =Assumptions!O$24 -> 2019/20 | Q13: =Assumptions!P$24 -> 2020/21 | R13: =Assumptions!Q$24 -> 2021/22 | S13: =Assumptions!R$24 -> 2022/23 | T13: =Assumptions!S$24 -> 2023/24 | U13: =Assumptions!T$24 -> 2024/25 | V13: =Assumptions!U$24 -> 2025/26 | W13: =Assumptions!V$24 -> 2026/27 | X13: =Assumptions!W$24 -> 2027/28 | Y13: =Assumptions!X$24 -> 2028/29 | Z13: =Assumptions!Y$24 -> 2029/30 | AA13: =Assumptions!Z$24 -> 2030/31 | AC13: 2026-31 Total
B15: Forecast type 1 contributions (June 2026 $)
B16: =Hist_vol!B15 -> Connections | C16: =Hist_vol!C15 -> R1 | D16: =Hist_vol!D15 -> Residential | E16: =Hist_vol!E15 -> Simple connection LV | F16: =D16&" "&E16 -> Residential Simple connection LV | H16: =Forecast_spend!H16-Forecast_contrib!H16 -> -1098685.395 | I16: =Forecast_spend!I16-Forecast_contrib!I16 -> -979795.7751 | J16: =Forecast_spend!J16-Forecast_contrib!J16 -> -132226.7033 | K16: =Forecast_spend!K16-Forecast_contrib!K16 -> 0 | L16: =Forecast_spend!L16-Forecast_contrib!L16 -> 2773249.32 | M16: =Forecast_spend!M16-Forecast_contrib!M16 -> 5118956.157 | N16: =Forecast_spend!N16-Forecast_contrib!N16 -> 5306418.855 | O16: =Forecast_spend!O16-Forecast_contrib!O16 -> 4254778.113 | P16: =Forecast_spend!P16-Forecast_contrib!P16 -> 1503773.025 | Q16: =Forecast_spend!Q16-Forecast_contrib!Q16 -> 217187.1385 | R16: =Forecast_spend!R16-Forecast_contrib!R16 -> 6263775.08 | S16: =Forecast_spend!S16-Forecast_contrib!S16 -> 2049104.677 | T16: =Forecast_spend!T16-Forecast_contrib!T16 -> 113007.3759 | U16: =Forecast_spend!U16-Forecast_contrib!U16 -> 2250343.524 | V16: =Forecast_spend!V16-Forecast_contrib!V16 -> 2549075.533 | W16: =Forecast_spend!W16-Forecast_contrib!W16 -> 2881049.746 | X16: =Forecast_spend!X16-Forecast_contrib!X16 -> 2766905.198 | Y16: =Forecast_spend!Y16-Forecast_contrib!Y16 -> 2627958.828 | Z16: =Forecast_spend!Z16-Forecast_contrib!Z16 -> 2670341.679 | AA16: =Forecast_spend!AA16-Forecast_contrib!AA16 -> 2767049.305 | AC16: =SUMPRODUCT($H$7:$AA$7*$H16:$AA16) -> 13713304.75
B17: =Hist_vol!B16 -> Connections | C17: =Hist_vol!C16 -> R2 | D17: =Hist_vol!D16 -> Residential | E17: =Hist_vol!E16 -> Complex connection LV | F17: =D17&" "&E17 -> Residential Complex connection LV | H17: =Forecast_spend!H17-Forecast_contrib!H17 -> 0 | I17: =Forecast_spend!I17-Forecast_contrib!I17 -> 0 | J17: =Forecast_spend!J17-Forecast_contrib!J17 -> 0 | K17: =Forecast_spend!K17-Forecast_contrib!K17 -> 0 | L17: =Forecast_spend!L17-Forecast_contrib!L17 -> 0 | M17: =Forecast_spend!M17-Forecast_contrib!M17 -> 0 | N17: =Forecast_spend!N17-Forecast_contrib!N17 -> 0 | O17: =Forecast_spend!O17-Forecast_contrib!O17 -> 0 | P17: =Forecast_spend!P17-Forecast_contrib!P17 -> 0 | Q17: =Forecast_spend!Q17-Forecast_contrib!Q17 -> 0 | R17: =Forecast_spend!R17-Forecast_contrib!R17 -> 0 | S17: =Forecast_spend!S17-Forecast_contrib!S17 -> 0 | T17: =Forecast_spend!T17-Forecast_contrib!T17 -> 0 | U17: =Forecast_spend!U17-Forecast_contrib!U17 -> 0 | V17: =Forecast_spend!V17-Forecast_contrib!V17 -> 0 | W17: =Forecast_spend!W17-Forecast_contrib!W17 -> 0 | X17: =Forecast_spend!X17-Forecast_contrib!X17 -> 0 | Y17: =Forecast_spend!Y17-Forecast_contrib!Y17 -> 0 | Z17: =Forecast_spend!Z17-Forecast_contrib!Z17 -> 0 | AA17: =Forecast_spend!AA17-Forecast_contrib!AA17 -> 0 | AC17: =SUMPRODUCT($H$7:$AA$7*$H17:$AA17) -> 0
B18: =Hist_vol!B17 -> Connections | C18: =Hist_vol!C17 -> R3 | D18: =Hist_vol!D17 -> Residential | E18: =Hist_vol!E17 -> Complex connection HV | F18: Residential Complex connection HV | H18: =Forecast_spend!H18-Forecast_contrib!H18 -> 0 | I18: =Forecast_spend!I18-Forecast_contrib!I18 -> 0 | J18: =Forecast_spend!J18-Forecast_contrib!J18 -> 0 | K18: =Forecast_spend!K18-Forecast_contrib!K18 -> 0 | L18: =Forecast_spend!L18-Forecast_contrib!L18 -> 0 | M18: =Forecast_spend!M18-Forecast_contrib!M18 -> 0 | N18: =Forecast_spend!N18-Forecast_contrib!N18 -> 0 | O18: =Forecast_spend!O18-Forecast_contrib!O18 -> 0 | P18: =Forecast_spend!P18-Forecast_contrib!P18 -> 0 | Q18: =Forecast_spend!Q18-Forecast_contrib!Q18 -> 0 | R18: =Forecast_spend!R18-Forecast_contrib!R18 -> 0 | S18: =Forecast_spend!S18-Forecast_contrib!S18 -> 0 | T18: =Forecast_spend!T18-Forecast_contrib!T18 -> 0 | U18: =Forecast_spend!U18-Forecast_contrib!U18 -> 0 | V18: =Forecast_spend!V18-Forecast_contrib!V18 -> 0 | W18: =Forecast_spend!W18-Forecast_contrib!W18 -> 0 | X18: =Forecast_spend!X18-Forecast_contrib!X18 -> 0 | Y18: =Forecast_spend!Y18-Forecast_contrib!Y18 -> 0 | Z18: =Forecast_spend!Z18-Forecast_contrib!Z18 -> 0 | AA18: =Forecast_spend!AA18-Forecast_contrib!AA18 -> 0 | AC18: =SUMPRODUCT($H$7:$AA$7*$H18:$AA18) -> 0
B19: =Hist_vol!B18 -> Connections | C19: =Hist_vol!C18 -> CI1 | D19: =Hist_vol!D18 -> Commercial/Industrial | E19: =Hist_vol!E18 -> Simple connection LV | F19: Commercial/Industrial Simple connection LV | H19: =Forecast_spend!H19-Forecast_contrib!H19 -> 3687408.147 | I19: =Forecast_spend!I19-Forecast_contrib!I19 -> 3984147.23 | J19: =Forecast_spend!J19-Forecast_contrib!J19 -> 4117726.102 | K19: =Forecast_spend!K19-Forecast_contrib!K19 -> 3461007.366 | L19: =Forecast_spend!L19-Forecast_contrib!L19 -> 466534.3092 | M19: =Forecast_spend!M19-Forecast_contrib!M19 -> -611496.6707 | N19: =Forecast_spend!N19-Forecast_contrib!N19 -> -198109.6538 | O19: =Forecast_spend!O19-Forecast_contrib!O19 -> 677879.8563 | P19: =Forecast_spend!P19-Forecast_contrib!P19 -> 930998.3712 | Q19: =Forecast_spend!Q19-Forecast_contrib!Q19 -> 2957799.171 | R19: =Forecast_spend!R19-Forecast_contrib!R19 -> 995664.0014 | S19: =Forecast_spend!S19-Forecast_contrib!S19 -> 1780279.185 | T19: =Forecast_spend!T19-Forecast_contrib!T19 -> -467887.3961 | U19: =Forecast_spend!U19-Forecast_contrib!U19 -> 512445.7105 | V19: =Forecast_spend!V19-Forecast_contrib!V19 -> 549230.6108 | W19: =Forecast_spend!W19-Forecast_contrib!W19 -> 622947.8615 | X19: =Forecast_spend!X19-Forecast_contrib!X19 -> 651270.6086 | Y19: =Forecast_spend!Y19-Forecast_contrib!Y19 -> 662342.9226 | Z19: =Forecast_spend!Z19-Forecast_contrib!Z19 -> 675608.3969 | AA19: =Forecast_spend!AA19-Forecast_contrib!AA19 -> 674317.0297 | AC19: =SUMPRODUCT($H$7:$AA$7*$H19:$AA19) -> 3286486.819
B20: =Hist_vol!B19 -> Connections | C20: =Hist_vol!C19 -> CI2 | D20: =Hist_vol!D19 -> Commercial/Industrial | E20: =Hist_vol!E19 -> Complex connection HV (customer connected at LV, minor HV works) | F20: Commercial/Industrial Complex connection HV (customer connected at LV, minor HV works) | H20: =Forecast_spend!H20-Forecast_contrib!H20 -> 19440903.01 | I20: =Forecast_spend!I20-Forecast_contrib!I20 -> 19374177.9 | J20: =Forecast_spend!J20-Forecast_contrib!J20 -> 21022305.43 | K20: =Forecast_spend!K20-Forecast_contrib!K20 -> 18291157.74 | L20: =Forecast_spend!L20-Forecast_contrib!L20 -> 14321541.13 | M20: =Forecast_spend!M20-Forecast_contrib!M20 -> 8762718.515 | N20: =Forecast_spend!N20-Forecast_contrib!N20 -> 4411008.324 | O20: =Forecast_spend!O20-Forecast_contrib!O20 -> 3423213.816 | P20: =Forecast_spend!P20-Forecast_contrib!P20 -> 3334331.304 | Q20: =Forecast_spend!Q20-Forecast_contrib!Q20 -> 8190747.32 | R20: =Forecast_spend!R20-Forecast_contrib!R20 -> 2293179.488 | S20: =Forecast_spend!S20-Forecast_contrib!S20 -> 5558724.126 | T20: =Forecast_spend!T20-Forecast_contrib!T20 -> -1156877.148 | U20: =Forecast_spend!U20-Forecast_contrib!U20 -> 4960372.241 | V20: =Forecast_spend!V20-Forecast_contrib!V20 -> 5316442.738 | W20: =Forecast_spend!W20-Forecast_contrib!W20 -> 6030011.017 | X20: =Forecast_spend!X20-Forecast_contrib!X20 -> 6304169.558 | Y20: =Forecast_spend!Y20-Forecast_contrib!Y20 -> 6411347.349 | Z20: =Forecast_spend!Z20-Forecast_contrib!Z20 -> 6539754.493 | AA20: =Forecast_spend!AA20-Forecast_contrib!AA20 -> 6527254.316 | AC20: =SUMPRODUCT($H$7:$AA$7*$H20:$AA20) -> 31812536.73
B21: =Hist_vol!B20 -> Connections | C21: =Hist_vol!C20 -> CI3 | D21: =Hist_vol!D20 -> Commercial/Industrial | E21: =Hist_vol!E20 -> Complex connection HV (customer connected at LV, upstream asset works) | F21: Commercial/Industrial Complex connection HV (customer connected at LV, upstream asset works) | H21: =Forecast_spend!H21-Forecast_contrib!H21 -> 2569254.034 | I21: =Forecast_spend!I21-Forecast_contrib!I21 -> 790360.8424 | J21: =Forecast_spend!J21-Forecast_contrib!J21 -> 976282.0647 | K21: =Forecast_spend!K21-Forecast_contrib!K21 -> 4421502.133 | L21: =Forecast_spend!L21-Forecast_contrib!L21 -> 4856042.939 | M21: =Forecast_spend!M21-Forecast_contrib!M21 -> 1636106.278 | N21: =Forecast_spend!N21-Forecast_contrib!N21 -> 493512.9472 | O21: =Forecast_spend!O21-Forecast_contrib!O21 -> 396957.494 | P21: =Forecast_spend!P21-Forecast_contrib!P21 -> 276364.14 | Q21: =Forecast_spend!Q21-Forecast_contrib!Q21 -> 0 | R21: =Forecast_spend!R21-Forecast_contrib!R21 -> 335302.3147 | S21: =Forecast_spend!S21-Forecast_contrib!S21 -> 144994.7468 | T21: =Forecast_spend!T21-Forecast_contrib!T21 -> -366999.6388 | U21: =Forecast_spend!U21-Forecast_contrib!U21 -> 101959.6978 | V21: =Forecast_spend!V21-Forecast_contrib!V21 -> 109278.6728 | W21: =Forecast_spend!W21-Forecast_contrib!W21 -> 123945.9603 | X21: =Forecast_spend!X21-Forecast_contrib!X21 -> 129581.2475 | Y21: =Forecast_spend!Y21-Forecast_contrib!Y21 -> 131784.2707 | Z21: =Forecast_spend!Z21-Forecast_contrib!Z21 -> 134423.6601 | AA21: =Forecast_spend!AA21-Forecast_contrib!AA21 -> 134166.7208 | AC21: =SUMPRODUCT($H$7:$AA$7*$H21:$AA21) -> 653901.8595
B22: =Hist_vol!B21 -> Connections | C22: =Hist_vol!C21 -> CI4 | D22: =Hist_vol!D21 -> Commercial/Industrial | E22: =Hist_vol!E21 -> Complex connection HV (customer connected at HV) | F22: Commercial/Industrial Complex connection HV (customer connected at HV) | H22: =Forecast_spend!H22-Forecast_contrib!H22 -> 1039605.202 | I22: =Forecast_spend!I22-Forecast_contrib!I22 -> 1175594.355 | J22: =Forecast_spend!J22-Forecast_contrib!J22 -> 1612476.586 | K22: =Forecast_spend!K22-Forecast_contrib!K22 -> 5217200.739 | L22: =Forecast_spend!L22-Forecast_contrib!L22 -> 5335907.218 | M22: =Forecast_spend!M22-Forecast_contrib!M22 -> 2580569.177 | N22: =Forecast_spend!N22-Forecast_contrib!N22 -> 2603957.133 | O22: =Forecast_spend!O22-Forecast_contrib!O22 -> 2251286.077 | P22: =Forecast_spend!P22-Forecast_contrib!P22 -> 2754386.181 | Q22: =Forecast_spend!Q22-Forecast_contrib!Q22 -> 9378752.679 | R22: =Forecast_spend!R22-Forecast_contrib!R22 -> 1838016.605 | S22: =Forecast_spend!S22-Forecast_contrib!S22 -> 4295457.468 | T22: =Forecast_spend!T22-Forecast_contrib!T22 -> -2667146.351 | U22: =Forecast_spend!U22-Forecast_contrib!U22 -> 4103510.597 | V22: =Forecast_spend!V22-Forecast_contrib!V22 -> 4398072.978 | W22: =Forecast_spend!W22-Forecast_contrib!W22 -> 4988378.474 | X22: =Forecast_spend!X22-Forecast_contrib!X22 -> 5215178.485 | Y22: =Forecast_spend!Y22-Forecast_contrib!Y22 -> 5303842.234 | Z22: =Forecast_spend!Z22-Forecast_contrib!Z22 -> 5410068.149 | AA22: =Forecast_spend!AA22-Forecast_contrib!AA22 -> 5399727.27 | AC22: =SUMPRODUCT($H$7:$AA$7*$H22:$AA22) -> 26317194.61
B23: =Hist_vol!B22 -> Connections | C23: =Hist_vol!C22 -> CI5 | D23: =Hist_vol!D22 -> Commercial/Industrial | E23: =Hist_vol!E22 -> Complex connection sub-transmission | F23: Commercial/Industrial Complex connection sub-transmission | H23: =Forecast_spend!H23-Forecast_contrib!H23 -> 0 | I23: =Forecast_spend!I23-Forecast_contrib!I23 -> 0 | J23: =Forecast_spend!J23-Forecast_contrib!J23 -> 0 | K23: =Forecast_spend!K23-Forecast_contrib!K23 -> 0 | L23: =Forecast_spend!L23-Forecast_contrib!L23 -> 0 | M23: =Forecast_spend!M23-Forecast_contrib!M23 -> 0 | N23: =Forecast_spend!N23-Forecast_contrib!N23 -> 0 | O23: =Forecast_spend!O23-Forecast_contrib!O23 -> 0 | P23: =Forecast_spend!P23-Forecast_contrib!P23 -> 0 | Q23: =Forecast_spend!Q23-Forecast_contrib!Q23 -> 0 | R23: =Forecast_spend!R23-Forecast_contrib!R23 -> 1256.493264 | S23: =Forecast_spend!S23-Forecast_contrib!S23 -> 12448.44418 | T23: =Forecast_spend!T23-Forecast_contrib!T23 -> -26214.65739 | U23: =Forecast_spend!U23-Forecast_contrib!U23 -> 8753.69374 | V23: =Forecast_spend!V23-Forecast_contrib!V23 -> 9382.060307 | W23: =Forecast_spend!W23-Forecast_contrib!W23 -> 10641.31221 | X23: =Forecast_spend!X23-Forecast_contrib!X23 -> 11125.12669 | Y23: =Forecast_spend!Y23-Forecast_contrib!Y23 -> 11314.26603 | Z23: =Forecast_spend!Z23-Forecast_contrib!Z23 -> 11540.86935 | AA23: =Forecast_spend!AA23-Forecast_contrib!AA23 -> 11518.80997 | AC23: =SUMPRODUCT($H$7:$AA$7*$H23:$AA23) -> 56140.38426
B24: =Hist_vol!B23 -> Connections | C24: =Hist_vol!C23 -> S1 | D24: =Hist_vol!D23 -> Subdivision | E24: =Hist_vol!E23 -> Complex connection LV | F24: Subdivision Complex connection LV | H24: =Forecast_spend!H24-Forecast_contrib!H24 -> 10932954.82 | I24: =Forecast_spend!I24-Forecast_contrib!I24 -> 10379354.67 | J24: =Forecast_spend!J24-Forecast_contrib!J24 -> 12238043.21 | K24: =Forecast_spend!K24-Forecast_contrib!K24 -> 11839738.75 | L24: =Forecast_spend!L24-Forecast_contrib!L24 -> 6237341.502 | M24: =Forecast_spend!M24-Forecast_contrib!M24 -> 638488.1592 | N24: =Forecast_spend!N24-Forecast_contrib!N24 -> -308736.5381 | O24: =Forecast_spend!O24-Forecast_contrib!O24 -> 52435.10254 | P24: =Forecast_spend!P24-Forecast_contrib!P24 -> 65581.01352 | Q24: =Forecast_spend!Q24-Forecast_contrib!Q24 -> 852077.743 | R24: =Forecast_spend!R24-Forecast_contrib!R24 -> 733232.2898 | S24: =Forecast_spend!S24-Forecast_contrib!S24 -> 1139629.905 | T24: =Forecast_spend!T24-Forecast_contrib!T24 -> 2454635.681 | U24: =Forecast_spend!U24-Forecast_contrib!U24 -> 220114.3357 | V24: =Forecast_spend!V24-Forecast_contrib!V24 -> 249334.4068 | W24: =Forecast_spend!W24-Forecast_contrib!W24 -> 281806.0195 | X24: =Forecast_spend!X24-Forecast_contrib!X24 -> 270641.1235 | Y24: =Forecast_spend!Y24-Forecast_contrib!Y24 -> 257050.2705 | Z24: =Forecast_spend!Z24-Forecast_contrib!Z24 -> 261195.8923 | AA24: =Forecast_spend!AA24-Forecast_contrib!AA24 -> 270655.2191 | AC24: =SUMPRODUCT($H$7:$AA$7*$H24:$AA24) -> 1341348.525
B25: =Hist_vol!B24 -> Connections | C25: =Hist_vol!C24 -> S2 | D25: =Hist_vol!D24 -> Subdivision | E25: =Hist_vol!E24 -> Complex connection HV (no upstream asset works) | F25: Subdivision Complex connection HV (no upstream asset works) | H25: =Forecast_spend!H25-Forecast_contrib!H25 -> 1784060.99 | I25: =Forecast_spend!I25-Forecast_contrib!I25 -> 1931248.554 | J25: =Forecast_spend!J25-Forecast_contrib!J25 -> 2629685.002 | K25: =Forecast_spend!K25-Forecast_contrib!K25 -> 2117491.995 | L25: =Forecast_spend!L25-Forecast_contrib!L25 -> 508064.1393 | M25: =Forecast_spend!M25-Forecast_contrib!M25 -> -285410.5834 | N25: =Forecast_spend!N25-Forecast_contrib!N25 -> -338393.2071 | O25: =Forecast_spend!O25-Forecast_contrib!O25 -> 4514.213467 | P25: =Forecast_spend!P25-Forecast_contrib!P25 -> 35496.82099 | Q25: =Forecast_spend!Q25-Forecast_contrib!Q25 -> 933978.6353 | R25: =Forecast_spend!R25-Forecast_contrib!R25 -> 737039.0079 | S25: =Forecast_spend!S25-Forecast_contrib!S25 -> 1415917.644 | T25: =Forecast_spend!T25-Forecast_contrib!T25 -> 2597074.032 | U25: =Forecast_spend!U25-Forecast_contrib!U25 -> 802061.7313 | V25: =Forecast_spend!V25-Forecast_contrib!V25 -> 908535.0365 | W25: =Forecast_spend!W25-Forecast_contrib!W25 -> 1026856.443 | X25: =Forecast_spend!X25-Forecast_contrib!X25 -> 986173.3329 | Y25: =Forecast_spend!Y25-Forecast_contrib!Y25 -> 936650.4202 | Z25: =Forecast_spend!Z25-Forecast_contrib!Z25 -> 951756.4084 | AA25: =Forecast_spend!AA25-Forecast_contrib!AA25 -> 986224.6952 | AC25: =SUMPRODUCT($H$7:$AA$7*$H25:$AA25) -> 4887661.3
B26: =Hist_vol!B25 -> Connections | C26: =Hist_vol!C25 -> S3 | D26: =Hist_vol!D25 -> Subdivision | E26: =Hist_vol!E25 -> Complex connection HV (with upstream asset works) | F26: Subdivision Complex connection HV (with upstream asset works) | H26: =Forecast_spend!H26-Forecast_contrib!H26 -> 0 | I26: =Forecast_spend!I26-Forecast_contrib!I26 -> 0 | J26: =Forecast_spend!J26-Forecast_contrib!J26 -> 0 | K26: =Forecast_spend!K26-Forecast_contrib!K26 -> 0 | L26: =Forecast_spend!L26-Forecast_contrib!L26 -> 0 | M26: =Forecast_spend!M26-Forecast_contrib!M26 -> 85795.60861 | N26: =Forecast_spend!N26-Forecast_contrib!N26 -> 415020.0623 | O26: =Forecast_spend!O26-Forecast_contrib!O26 -> 440314.9627 | P26: =Forecast_spend!P26-Forecast_contrib!P26 -> 114375.2001 | Q26: =Forecast_spend!Q26-Forecast_contrib!Q26 -> 0 | R26: =Forecast_spend!R26-Forecast_contrib!R26 -> 0 | S26: =Forecast_spend!S26-Forecast_contrib!S26 -> 0 | T26: =Forecast_spend!T26-Forecast_contrib!T26 -> 0 | U26: =Forecast_spend!U26-Forecast_contrib!U26 -> 0 | V26: =Forecast_spend!V26-Forecast_contrib!V26 -> 0 | W26: =Forecast_spend!W26-Forecast_contrib!W26 -> 0 | X26: =Forecast_spend!X26-Forecast_contrib!X26 -> 0 | Y26: =Forecast_spend!Y26-Forecast_contrib!Y26 -> 0 | Z26: =Forecast_spend!Z26-Forecast_contrib!Z26 -> 0 | AA26: =Forecast_spend!AA26-Forecast_contrib!AA26 -> 0 | AC26: =SUMPRODUCT($H$7:$AA$7*$H26:$AA26) -> 0
B27: =Hist_vol!B26 -> Connections | C27: =Hist_vol!C26 -> EG1 | D27: =Hist_vol!D26 -> Embedded generation | E27: =Hist_vol!E26 -> Simple connection LV | F27: Embedded generation Simple connection LV | H27: =Forecast_spend!H27-Forecast_contrib!H27 -> 333219.3572 | I27: =Forecast_spend!I27-Forecast_contrib!I27 -> 326672.8079 | J27: =Forecast_spend!J27-Forecast_contrib!J27 -> 0 | K27: =Forecast_spend!K27-Forecast_contrib!K27 -> 0 | L27: =Forecast_spend!L27-Forecast_contrib!L27 -> 0 | M27: =Forecast_spend!M27-Forecast_contrib!M27 -> 0 | N27: =Forecast_spend!N27-Forecast_contrib!N27 -> 0 | O27: =Forecast_spend!O27-Forecast_contrib!O27 -> 0 | P27: =Forecast_spend!P27-Forecast_contrib!P27 -> 0 | Q27: =Forecast_spend!Q27-Forecast_contrib!Q27 -> 0 | R27: =Forecast_spend!R27-Forecast_contrib!R27 -> 0 | S27: =Forecast_spend!S27-Forecast_contrib!S27 -> 0 | T27: =Forecast_spend!T27-Forecast_contrib!T27 -> 0 | U27: =Forecast_spend!U27-Forecast_contrib!U27 -> 0 | V27: =Forecast_spend!V27-Forecast_contrib!V27 -> 0 | W27: =Forecast_spend!W27-Forecast_contrib!W27 -> 0 | X27: =Forecast_spend!X27-Forecast_contrib!X27 -> 0 | Y27: =Forecast_spend!Y27-Forecast_contrib!Y27 -> 0 | Z27: =Forecast_spend!Z27-Forecast_contrib!Z27 -> 0 | AA27: =Forecast_spend!AA27-Forecast_contrib!AA27 -> 0 | AC27: =SUMPRODUCT($H$7:$AA$7*$H27:$AA27) -> 0
B28: =Hist_vol!B27 -> Connections | C28: =Hist_vol!C27 -> EG2 | D28: =Hist_vol!D27 -> Embedded generation | E28: =Hist_vol!E27 -> Complex connection HV (small capacity) | F28: Embedded generation Complex connection HV (small capacity) | H28: =Forecast_spend!H28-Forecast_contrib!H28 -> 78920.37407 | I28: =Forecast_spend!I28-Forecast_contrib!I28 -> 77369.87556 | J28: =Forecast_spend!J28-Forecast_contrib!J28 -> 0 | K28: =Forecast_spend!K28-Forecast_contrib!K28 -> 0 | L28: =Forecast_spend!L28-Forecast_contrib!L28 -> 0 | M28: =Forecast_spend!M28-Forecast_contrib!M28 -> 0 | N28: =Forecast_spend!N28-Forecast_contrib!N28 -> 0 | O28: =Forecast_spend!O28-Forecast_contrib!O28 -> 0 | P28: =Forecast_spend!P28-Forecast_contrib!P28 -> 3616.306224 | Q28: =Forecast_spend!Q28-Forecast_contrib!Q28 -> 6724.440981 | R28: =Forecast_spend!R28-Forecast_contrib!R28 -> 180256.3314 | S28: =Forecast_spend!S28-Forecast_contrib!S28 -> 4234930.612 | T28: =Forecast_spend!T28-Forecast_contrib!T28 -> -6333673.791 | U28: =Forecast_spend!U28-Forecast_contrib!U28 -> 0 | V28: =Forecast_spend!V28-Forecast_contrib!V28 -> 0 | W28: =Forecast_spend!W28-Forecast_contrib!W28 -> 0 | X28: =Forecast_spend!X28-Forecast_contrib!X28 -> 0 | Y28: =Forecast_spend!Y28-Forecast_contrib!Y28 -> 0 | Z28: =Forecast_spend!Z28-Forecast_contrib!Z28 -> 0 | AA28: =Forecast_spend!AA28-Forecast_contrib!AA28 -> 0 | AC28: =SUMPRODUCT($H$7:$AA$7*$H28:$AA28) -> 0
B29: =Hist_vol!B28 -> Connections | C29: =Hist_vol!C28 -> EG3 | D29: =Hist_vol!D28 -> Embedded generation | E29: =Hist_vol!E28 -> Complex connection HV (large capacity) | F29: Embedded generation Complex connection HV (large capacity) | H29: =Forecast_spend!H29-Forecast_contrib!H29 -> 0 | I29: =Forecast_spend!I29-Forecast_contrib!I29 -> 105040.8863 | J29: =Forecast_spend!J29-Forecast_contrib!J29 -> 102818.8675 | K29: =Forecast_spend!K29-Forecast_contrib!K29 -> 0 | L29: =Forecast_spend!L29-Forecast_contrib!L29 -> 0 | M29: =Forecast_spend!M29-Forecast_contrib!M29 -> 0 | N29: =Forecast_spend!N29-Forecast_contrib!N29 -> 0 | O29: =Forecast_spend!O29-Forecast_contrib!O29 -> 0 | P29: =Forecast_spend!P29-Forecast_contrib!P29 -> 0 | Q29: =Forecast_spend!Q29-Forecast_contrib!Q29 -> 0 | R29: =Forecast_spend!R29-Forecast_contrib!R29 -> 0 | S29: =Forecast_spend!S29-Forecast_contrib!S29 -> 0 | T29: =Forecast_spend!T29-Forecast_contrib!T29 -> 0 | U29: =Forecast_spend!U29-Forecast_contrib!U29 -> 0 | V29: =Forecast_spend!V29-Forecast_contrib!V29 -> 0 | W29: =Forecast_spend!W29-Forecast_contrib!W29 -> 0 | X29: =Forecast_spend!X29-Forecast_contrib!X29 -> 0 | Y29: =Forecast_spend!Y29-Forecast_contrib!Y29 -> 0 | Z29: =Forecast_spend!Z29-Forecast_contrib!Z29 -> 0 | AA29: =Forecast_spend!AA29-Forecast_contrib!AA29 -> 0 | AC29: =SUMPRODUCT($H$7:$AA$7*$H29:$AA29) -> 0
B30: ='Grid connected batteries'!B17 -> Connections | C30: Grid connected Batteries | D30: ='Grid connected batteries'!C17 -> Grid connected Battery | E30: Net capex | F30: =D30 -> Grid connected Battery | H30: =Forecast_spend!H30-Forecast_contrib!H30 -> 0 | I30: =Forecast_spend!I30-Forecast_contrib!I30 -> 0 | J30: =Forecast_spend!J30-Forecast_contrib!J30 -> 0 | K30: =Forecast_spend!K30-Forecast_contrib!K30 -> 0 | L30: =Forecast_spend!L30-Forecast_contrib!L30 -> 0 | M30: =Forecast_spend!M30-Forecast_contrib!M30 -> 0 | N30: =Forecast_spend!N30-Forecast_contrib!N30 -> 0 | O30: =Forecast_spend!O30-Forecast_contrib!O30 -> 0 | P30: =Forecast_spend!P30-Forecast_contrib!P30 -> 0 | Q30: =Forecast_spend!Q30-Forecast_contrib!Q30 -> 0 | R30: =Forecast_spend!R30-Forecast_contrib!R30 -> 0 | S30: =Forecast_spend!S30-Forecast_contrib!S30 -> 0 | T30: =Forecast_spend!T30-Forecast_contrib!T30 -> 0 | U30: =Forecast_spend!U30-Forecast_contrib!U30 -> 0 | V30: =Forecast_spend!V30-Forecast_contrib!V30 -> 0 | W30: =Forecast_spend!W30-Forecast_contrib!W30 -> 1260228.768 | X30: =Forecast_spend!X30-Forecast_contrib!X30 -> 1238568.714 | Y30: =Forecast_spend!Y30-Forecast_contrib!Y30 -> 1497969.397 | Z30: =Forecast_spend!Z30-Forecast_contrib!Z30 -> 1722223.958 | AA30: =Forecast_spend!AA30-Forecast_contrib!AA30 -> 1584624.002 | AC30: =SUMPRODUCT($H$7:$AA$7*$H30:$AA30) -> 7303614.84
B31: Connections | C31: Data Centres | D31: Data Centres | F31: =D31 -> Data Centres | H31: =Forecast_spend!H31-Forecast_contrib!H31 -> 0 | I31: =Forecast_spend!I31-Forecast_contrib!I31 -> 0 | J31: =Forecast_spend!J31-Forecast_contrib!J31 -> 0 | K31: =Forecast_spend!K31-Forecast_contrib!K31 -> 0 | L31: =Forecast_spend!L31-Forecast_contrib!L31 -> 0 | M31: =Forecast_spend!M31-Forecast_contrib!M31 -> 0 | N31: =Forecast_spend!N31-Forecast_contrib!N31 -> 0 | O31: =Forecast_spend!O31-Forecast_contrib!O31 -> 0 | P31: =Forecast_spend!P31-Forecast_contrib!P31 -> 0 | Q31: =Forecast_spend!Q31-Forecast_contrib!Q31 -> 0 | R31: =Forecast_spend!R31-Forecast_contrib!R31 -> 0 | S31: =Forecast_spend!S31-Forecast_contrib!S31 -> 0 | T31: =Forecast_spend!T31-Forecast_contrib!T31 -> 0 | U31: =Forecast_spend!U31-Forecast_contrib!U31 -> 0 | V31: =Forecast_spend!V31-Forecast_contrib!V31 -> 0 | W31: =Forecast_spend!W31-Forecast_contrib!W31 -> 0 | X31: =Forecast_spend!X31-Forecast_contrib!X31 -> 0 | Y31: =Forecast_spend!Y31-Forecast_contrib!Y31 -> 0 | Z31: =Forecast_spend!Z31-Forecast_contrib!Z31 -> 0 | AA31: =Forecast_spend!AA31-Forecast_contrib!AA31 -> 0 | AC31: =SUMPRODUCT($H$7:$AA$7*$H31:$AA31) -> 0
D32: Total | H32: =SUM(H16:H31) -> 38767640.55 | I32: 37164171.35 | J32: 42567110.56 | K32: 45348098.72 | L32: 34498680.55 | M32: 17925726.64 | N32: 12384677.92 | O32: 11501379.64 | P32: 9018922.362 | Q32: 22537267.13 | R32: 13377721.61 | S32: 20631486.81 | T32: -5854081.892 | U32: 12959561.53 | V32: 14089352.04 | W32: 17225865.6 | X32: 17573613.39 | Y32: 17840259.96 | Z32: 18376913.51 | AA32: 18355537.37 | AC32: =SUM(AC16:AC31) -> 89372189.83

Sheet Lists
A1: =Assumptions!$A$1 -> United Energy
A2: =Assumptions!$A$2 -> Connections
A3: Assumptions
B6: Business | D6: RIN categories | F6: Business categories | G6: AER categories | I6: PTRM asset category | K6: RIN category | N6: Forecast basis | P6: Growth rates | S6: Code | T6: Segment | U6: Type
B7: United | D7: Replacement | F7: Replacement | G7: Replacement | I7: Subtransmission | K7: Residential | L7: Res | N7: History | P7: Historical | S7: R1 | T7: Residential | U7: Simple connection LV
B8: CitiPower | D8: Augmentation | F8: DER Augmentation | G8: Augmentation | I8: Distribution system assets | K8: Commercial/Industrial | L8: C&I | N8: Business case | P8: Growth1 | S8: R2 | T8: Residential | U8: Complex connection LV
B9: United Energy | D9: Connections | F9: Other augmentation | G9: DER capex | I9: Public lighting | K9: Subdivision | L9: Subd | N9: Other | P9: Growth2 | S9: R3 | T9: Residential | U9: Complex connection HV
F10: Connections | G10: Connections | I10: SCADA/Network control | K10: Embedded generation | L10: EmbG | P10: Growth3 | S10: CI1 | T10: Commercial/Industrial | U10: Simple connection LV
F11: SCADA | G11: Augmentation | I11: Non-network general assets - IT | K11: Other connections | L11: Other | P11: Flat | S11: CI2 | T11: Commercial/Industrial | U11: Complex connection HV (customer connected at LV, minor HV works)
F12: VBRC | G12: Replacement | I12: Non-network general assets - Other | P12: ACIF | S12: CI3 | T12: Commercial/Industrial | U12: Complex connection HV (customer connected at LV, upstream asset works)
F13: REFCL | G13: Augmentation | I13: VBRC | P13: GSP | S13: CI4 | T13: Commercial/Industrial | U13: Complex connection HV (customer connected at HV)
F14: Recurring IT | G14: ICT capex | I14: Land | P14: HIA | S14: CI5 | T14: Commercial/Industrial | U14: Complex connection sub-transmission
F15: Non-recurring IT | G15: ICT capex | I15: Accelerated depreciation assets | P15: ACIF FTI | S15: S1 | T15: Subdivision | U15: Complex connection LV
F16: Recurring DER IT | G16: DER capex | P16: Macromonitor | S16: S2 | T16: Subdivision | U16: Complex connection HV (no upstream asset works)
F17: Non-recurring DER IT | G17: DER capex | S17: S3 | T17: Subdivision | U17: Complex connection HV (with upstream asset works)
F18: Property | G18: Property capex | S18: EG1 | T18: Embedded generation | U18: Simple connection LV
F19: Fleet | G19: Fleet capex | S19: EG2 | T19: Embedded generation | U19: Complex connection HV (small capacity)
F20: Other | G20: Other non-network capex | S20: EG3 | T20: Embedded generation | U20: Complex connection HV (large capacity)
F21: Land | G21: Other non-network capex
W60: RHU | X60: Fuse/Junction Box Replacement | AB60: =W60&X60 -> RHUFuse/Junction Box Replacement
W61: RLG | X61: Sustainable Lantern Replacemen | AB61: RLGSustainable Lantern Replacemen
W62: RLJ | X62: Single Main Roads P/L replacem | AB62: RLJSingle Main Roads P/L replacem
W63: RLM | X63: Single Minor Roads P/L replace | AB63: RLMSingle Minor Roads P/L replace
W64: RMF | X64: Premise faults service replace | AB64: RMFPremise faults service replace
W65: RMJ | X65: Replace Service (alter termina | AB65: RMJReplace Service (alter termina
W66: RMK | X66: Replace Service (& customer ma | AB66: RMKReplace Service (& customer ma
W67: RML | X67: Install Disconnect Device | AB67: RMLInstall Disconnect Device
W68: RMP | X68: Service replacement (Planned) | AB68: RMPService replacement (Planned)
W69: RMU | X69: O/h services replaced with U/G | AB69: RMUO/h services replaced with U/G
W70: ROA | X70: O/H Line Repl-HV ABC | AB70: ROAO/H Line Repl-HV ABC
W71: ROF | X71: Fargo Sleeve replacement (3) | AB71: ROFFargo Sleeve replacement (3)
W72: ROH | X72: Open wire replacement | AB72: ROHOpen wire replacement
W73: ROL | X73: O/H Line Repl-LV ABC | AB73: ROLO/H Line Repl-LV ABC
W74: ROP | AB74: ROP
W75: RPA | X75: Pole Replace P/L - Main Roads | AB75: RPAPole Replace P/L - Main Roads
W76: RPB | X76: Pole Replace P/L - Minor Roads | AB76: RPBPole Replace P/L - Minor Roads
W77: RPH | X77: Pole Replacement- High Voltage | AB77: RPHPole Replacement- High Voltage
W78: RPL | X78: Pole Replacement- Low Voltage | AB78: RPLPole Replacement- Low Voltage
W79: RPS | X79: Pole Replacement- SubT | AB79: RPSPole Replacement- SubT
W80: RRH | X80: Pole Reinforcement- HV | AB80: RRHPole Reinforcement- HV
W81: RRL | X81: Pole Reinforcement- LV | AB81: RRLPole Reinforcement- LV
W82: RRS | X82: Pole Reinforcement- ST | AB82: RRSPole Reinforcement- ST
W83: RSA | X83: Subtrans Install Replacement | AB83: RSASubtrans Install Replacement
W84: RUA | X84: Dist. U/G Cable Replacement | AB84: RUADist. U/G Cable Replacement
W85: RUC | X85: Underground Cable Replacement | AB85: RUCUnderground Cable Replacement
W86: RUD | X86: Pillar to Pit | AB86: RUDPillar to Pit
W87: RUE | X87: Pillar to Pit Cust Service Alt | AB87: RUEPillar to Pit Cust Service Alt
W88: RUF | X88: Pillar to UEL STD Pillar Repla | AB88: RUFPillar to UEL STD Pillar Repla
W89: RUG | X89: Dist. U/G Cable Repl-non cabus | AB89: RUGDist. U/G Cable Repl-non cabus
W90: RUH | X90: Dist. U/G Cable Repl-HV | AB90: RUHDist. U/G Cable Repl-HV
W91: RUL | X91: Dist. U/G Cable Repl-LV | AB91: RULDist. U/G Cable Repl-LV
W92: RUP | X92: Dist. U/G Cable Replacement - | AB92: RUPDist. U/G Cable Replacement -
W93: RUS | X93: Dist. U/G Cable Repl-SubT | AB93: =W93&X93 -> RUSDist. U/G Cable Repl-SubT
W94: RXD | X94: Surge Diverter repl (set of 3) | AB94: RXDSurge Diverter repl (set of 3)
W95: RXE | X95: Surge Diverter repl - (single) | AB95: RXESurge Diverter repl - (single)
W96: RXF | X96: Fuse Unit repl (set of 3) | AB96: RXFFuse Unit repl (set of 3)
W97: RXG | X97: Sub T Insulator repl(set of 3) | AB97: RXGSub T Insulator repl(set of 3)
W98: RXH | X98: HV Xarms replacement | AB98: RXHHV Xarms replacement
W99: RXI | X99: HV Insulator repl (set of 3) | AB99: RXIHV Insulator repl (set of 3)
W100: RXJ | X100: Fuse Unit repl (single) | AB100: RXJFuse Unit repl (single)
W101: RXK | X101: Sub T Insulator repl (single) | AB101: RXKSub T Insulator repl (single)
W102: RXL | X102: LV Xarms replacement | AB102: RXLLV Xarms replacement
W103: RXM | X103: HV Insulator repl (single) | AB103: RXMHV Insulator repl (single)
W104: RXP | X104: Pole Top Rot life extension | AB104: RXPPole Top Rot life extension
W105: RXS | X105: ST Xarms replacement | AB105: RXSST Xarms replacement

Sheet Output
A1: United Energy
C2: SME Output sheet for input into AER Capex Forecast Model | I2: Key: | J2: Input | K2: Do not edit
C3: Input| Projects
I5: Total annual direct costs excl. type 2 capcons, unescalated (note: please include type 1 capital contributions and rebates where applicable) | Q5: Total annual type 1 capital contributions, direct costs, unescalated | AF5: 0 | AG5: 0
I6: =SUM(I10:I1009) -> 57662.02252 | J6: 63603.74031 | K6: 77303.67651 | L6: 77265.77168 | M6: 77137.49033 | N6: 79364.15733 | O6: 79985.64709 | Q6: =SUM(Q10:Q1009) -> 44702.46099 | R6: 49514.38827 | S6: 60077.81091 | T6: 59692.15829 | U6: 59297.23037 | V6: 60987.24382 | W6: 61630.10972 | AF6: NOTE: fill in table only if you select 'DNSP defined' overhead allocation | AR6: 1 | AS6: 2 | AT6: 3 | AU6: 4 | AV6: 5 | AW6: 6 | AX6: 7 | AY6: 8 | AZ6: 9 | BA6: 10 | BB6: 11 | BC6: 12 | BD6: 13 | BE6: 14 | BF6: 15 | BG6: 16 | BH6: 17 | BI6: 18 | BJ6: 19 | BK6: 20 | BL6: 21 | BM6: 22 | BN6: 23 | BO6: 24 | BP6: 25 | BQ6: 26 | BR6: 27 | BS6: 28 | BT6: 29 | BU6: 30 | BV6: 31 | BW6: 32 | BX6: 33 | BY6: 34 | BZ6: 35 | CA6: 36 | CB6: 37 | CC6: 38 | CD6: 39 | CE6: 40 | CF6: 41 | CG6: 42 | CH6: 43 | CI6: 44 | CJ6: 45 | CK6: 46 | CL6: 47 | CM6: 48 | CN6: 49 | CO6: 50
C7: 13. Project Details | F7: 14. RIN and optional DNSP mapping categories | I7: 15. Unescalated direct costs (excluding type 2 capital contributions) ($'000s 2025-26 June) | Q7: 16. Type 1 capital contributions included in table 15 ($'000s 2025-26 June) | Y7: 17. Cost components as % of direct costs | AC7: 18. Capitalised overheads allocation | AF7: 19. Allocation of capitalised overheads - DNSP defined | AI7: 20. AER categories as % of direct costs (i.e. total costs reported in table 15, excluding capitalised overheads) | AR7: 21. PTRM asset classes as % of direct costs (i.e. total costs reported in table 15, excluding capitalised overheads)
AB8: 0 | AF8: % of total capitalised overheads allocated to project: | AQ8: 0 | AR8: Dx | AS8: Dx | AT8: Dx | AU8: Dx | AV8: Dx | AW8: Dx | AX8: Dx | AY8: Dx | AZ8: Dx | BA8: Dx | CP8: 0
C9: Project/Program Inputs | D9: Unique ID | F9: RIN categories | G9: DNSP category (free-fill) | I9: 2024-25 | J9: 2025-26 | K9: 2026-27 | L9: 2027-28 | M9: 2028-29 | N9: 2029-30 | O9: 2030-31 | Q9: 2024-25 | R9: 2025-26 | S9: 2026-27 | T9: 2027-28 | U9: 2028-29 | V9: 2029-30 | W9: 2030-31 | Y9: Internal labour | Z9: Contract labour | AA9: Non-labour | AC9: Network Overheads Applies | AD9: Corporate Overheads Applies | AF9: % of total network overheads | AG9: % of total corporate overheads | AI9: Replacement | AJ9: DER capex | AK9: Augmentation | AL9: Connections | AM9: ICT capex | AN9: Property capex | AO9: Fleet capex | AP9: Other non-network capex | AR9: Subtransmission | AS9: Distribution system assets | AT9: SCADA (10-year asset) | AU9: Non-network general assets - IT | AV9: Non-network general assets - Other | AW9: VBRC | AX9: Land | AY9: Accelerated depreciation assets | AZ9: in-house software | BA9: Equity raising costs
B10: 1 | C10: LV pole replacement | D10: 1 | F10: Replacement | G10: Replacement | I10: =SUMPRODUCT((Forecast_spend!U$16:U$31)*(Forecast_spend!$F$16:$F$31=$C10))/1000 -> 0 | J10: =SUMPRODUCT((Forecast_spend!V$16:V$31)*(Forecast_spend!$F$16:$F$31=$C10))/1000 -> 0 | K10: =SUMPRODUCT((Forecast_spend!W$16:W$31)*(Forecast_spend!$F$16:$F$31=$C10))/1000 -> 0 | L10: =SUMPRODUCT((Forecast_spend!X$16:X$31)*(Forecast_spend!$F$16:$F$31=$C10))/1000 -> 0 | M10: =SUMPRODUCT((Forecast_spend!Y$16:Y$31)*(Forecast_spend!$F$16:$F$31=$C10))/1000 -> 0 | N10: =SUMPRODUCT((Forecast_spend!Z$16:Z$31)*(Forecast_spend!$F$16:$F$31=$C10))/1000 -> 0 | O10: =SUMPRODUCT((Forecast_spend!AA$16:AA$31)*(Forecast_spend!$F$16:$F$31=$C10))/1000 -> 0 | Q10: =SUMPRODUCT((Forecast_contrib!U$16:U$31)*(Forecast_contrib!$F$16:$F$31=$C10))/1000 -> 0 | R10: =SUMPRODUCT((Forecast_contrib!V$16:V$31)*(Forecast_contrib!$F$16:$F$31=$C10))/1000 -> 0 | S10: =SUMPRODUCT((Forecast_contrib!W$16:W$31)*(Forecast_contrib!$F$16:$F$31=$C10))/1000 -> 0 | T10: =SUMPRODUCT((Forecast_contrib!X$16:X$31)*(Forecast_contrib!$F$16:$F$31=$C10))/1000 -> 0 | U10: =SUMPRODUCT((Forecast_contrib!Y$16:Y$31)*(Forecast_contrib!$F$16:$F$31=$C10))/1000 -> 0 | V10: =SUMPRODUCT((Forecast_contrib!Z$16:Z$31)*(Forecast_contrib!$F$16:$F$31=$C10))/1000 -> 0 | W10: =SUMPRODUCT((Forecast_contrib!AA$16:AA$31)*(Forecast_contrib!$F$16:$F$31=$C10))/1000 -> 0 | AB10: =IF(SUM(Y10:AA10,I10:O10)=0,"",IF(SUM(Y10:AA10)=1,"",1)) ->  | AI10: 0 | AJ10: 0 | AK10: 0 | AL10: 0 | AM10: 0 | AN10: 0 | AO10: 0 | AP10: 0 | CP10: =IF(COUNT(AI10:AP10)=0,"",IF(SUM(AI10:AP10)=1,"",1)) -> 1
B11: 2 | C11: HV pole replacement | D11: 2 | F11: Replacement | G11: Replacement | I11: =SUMPRODUCT((Forecast_spend!U$16:U$31)*(Forecast_spend!$F$16:$F$31=$C11))/1000 -> 0 | J11: =SUMPRODUCT((Forecast_spend!V$16:V$31)*(Forecast_spend!$F$16:$F$31=$C11))/1000 -> 0 | K11: =SUMPRODUCT((Forecast_spend!W$16:W$31)*(Forecast_spend!$F$16:$F$31=$C11))/1000 -> 0 | L11: =SUMPRODUCT((Forecast_spend!X$16:X$31)*(Forecast_spend!$F$16:$F$31=$C11))/1000 -> 0 | M11: =SUMPRODUCT((Forecast_spend!Y$16:Y$31)*(Forecast_spend!$F$16:$F$31=$C11))/1000 -> 0 | N11: =SUMPRODUCT((Forecast_spend!Z$16:Z$31)*(Forecast_spend!$F$16:$F$31=$C11))/1000 -> 0 | O11: =SUMPRODUCT((Forecast_spend!AA$16:AA$31)*(Forecast_spend!$F$16:$F$31=$C11))/1000 -> 0 | Q11: =SUMPRODUCT((Forecast_contrib!U$16:U$31)*(Forecast_contrib!$F$16:$F$31=$C11))/1000 -> 0 | R11: =SUMPRODUCT((Forecast_contrib!V$16:V$31)*(Forecast_contrib!$F$16:$F$31=$C11))/1000 -> 0 | S11: =SUMPRODUCT((Forecast_contrib!W$16:W$31)*(Forecast_contrib!$F$16:$F$31=$C11))/1000 -> 0 | T11: =SUMPRODUCT((Forecast_contrib!X$16:X$31)*(Forecast_contrib!$F$16:$F$31=$C11))/1000 -> 0 | U11: =SUMPRODUCT((Forecast_contrib!Y$16:Y$31)*(Forecast_contrib!$F$16:$F$31=$C11))/1000 -> 0 | V11: =SUMPRODUCT((Forecast_contrib!Z$16:Z$31)*(Forecast_contrib!$F$16:$F$31=$C11))/1000 -> 0 | W11: =SUMPRODUCT((Forecast_contrib!AA$16:AA$31)*(Forecast_contrib!$F$16:$F$31=$C11))/1000 -> 0 | AI11: 0 | AJ11: 0 | AK11: 0 | AL11: 0 | AM11: 0 | AN11: 0 | AO11: 0 | AP11: 0 | CP11: 1
B12: 3 | C12: LV pole top replacement | D12: 3 | F12: Replacement | G12: Replacement | I12: =SUMPRODUCT((Forecast_spend!U$16:U$31)*(Forecast_spend!$F$16:$F$31=$C12))/1000 -> 0 | J12: =SUMPRODUCT((Forecast_spend!V$16:V$31)*(Forecast_spend!$F$16:$F$31=$C12))/1000 -> 0 | K12: =SUMPRODUCT((Forecast_spend!W$16:W$31)*(Forecast_spend!$F$16:$F$31=$C12))/1000 -> 0 | L12: =SUMPRODUCT((Forecast_spend!X$16:X$31)*(Forecast_spend!$F$16:$F$31=$C12))/1000 -> 0 | M12: =SUMPRODUCT((Forecast_spend!Y$16:Y$31)*(Forecast_spend!$F$16:$F$31=$C12))/1000 -> 0 | N12: =SUMPRODUCT((Forecast_spend!Z$16:Z$31)*(Forecast_spend!$F$16:$F$31=$C12))/1000 -> 0 | O12: =SUMPRODUCT((Forecast_spend!AA$16:AA$31)*(Forecast_spend!$F$16:$F$31=$C12))/1000 -> 0 | Q12: =SUMPRODUCT((Forecast_contrib!U$16:U$31)*(Forecast_contrib!$F$16:$F$31=$C12))/1000 -> 0 | R12: =SUMPRODUCT((Forecast_contrib!V$16:V$31)*(Forecast_contrib!$F$16:$F$31=$C12))/1000 -> 0 | S12: =SUMPRODUCT((Forecast_contrib!W$16:W$31)*(Forecast_contrib!$F$16:$F$31=$C12))/1000 -> 0 | T12: =SUMPRODUCT((Forecast_contrib!X$16:X$31)*(Forecast_contrib!$F$16:$F$31=$C12))/1000 -> 0 | U12: =SUMPRODUCT((Forecast_contrib!Y$16:Y$31)*(Forecast_contrib!$F$16:$F$31=$C12))/1000 -> 0 | V12: =SUMPRODUCT((Forecast_contrib!Z$16:Z$31)*(Forecast_contrib!$F$16:$F$31=$C12))/1000 -> 0 | W12: =SUMPRODUCT((Forecast_contrib!AA$16:AA$31)*(Forecast_contrib!$F$16:$F$31=$C12))/1000 -> 0 | AI12: 0 | AJ12: 0 | AK12: 0 | AL12: 0 | AM12: 0 | AN12: 0 | AO12: 0 | AP12: 0 | CP12: 1
B13: 4 | C13: HV pole top replacement | D13: 4 | F13: Replacement | G13: Replacement | I13: =SUMPRODUCT((Forecast_spend!U$16:U$31)*(Forecast_spend!$F$16:$F$31=$C13))/1000 -> 0 | J13: =SUMPRODUCT((Forecast_spend!V$16:V$31)*(Forecast_spend!$F$16:$F$31=$C13))/1000 -> 0 | K13: =SUMPRODUCT((Forecast_spend!W$16:W$31)*(Forecast_spend!$F$16:$F$31=$C13))/1000 -> 0 | L13: =SUMPRODUCT((Forecast_spend!X$16:X$31)*(Forecast_spend!$F$16:$F$31=$C13))/1000 -> 0 | M13: =SUMPRODUCT((Forecast_spend!Y$16:Y$31)*(Forecast_spend!$F$16:$F$31=$C13))/1000 -> 0 | N13: =SUMPRODUCT((Forecast_spend!Z$16:Z$31)*(Forecast_spend!$F$16:$F$31=$C13))/1000 -> 0 | O13: =SUMPRODUCT((Forecast_spend!AA$16:AA$31)*(Forecast_spend!$F$16:$F$31=$C13))/1000 -> 0 | Q13: =SUMPRODUCT((Forecast_contrib!U$16:U$31)*(Forecast_contrib!$F$16:$F$31=$C13))/1000 -> 0 | R13: =SUMPRODUCT((Forecast_contrib!V$16:V$31)*(Forecast_contrib!$F$16:$F$31=$C13))/1000 -> 0 | S13: =SUMPRODUCT((Forecast_contrib!W$16:W$31)*(Forecast_contrib!$F$16:$F$31=$C13))/1000 -> 0 | T13: =SUMPRODUCT((Forecast_contrib!X$16:X$31)*(Forecast_contrib!$F$16:$F$31=$C13))/1000 -> 0 | U13: =SUMPRODUCT((Forecast_contrib!Y$16:Y$31)*(Forecast_contrib!$F$16:$F$31=$C13))/1000 -> 0 | V13: =SUMPRODUCT((Forecast_contrib!Z$16:Z$31)*(Forecast_contrib!$F$16:$F$31=$C13))/1000 -> 0 | W13: =SUMPRODUCT((Forecast_contrib!AA$16:AA$31)*(Forecast_contrib!$F$16:$F$31=$C13))/1000 -> 0 | AI13: 0 | AJ13: 0 | AK13: 0 | AL13: 0 | AM13: 0 | AN13: 0 | AO13: 0 | AP13: 0 | CP13: 1
B14: 5 | C14: Pole reinforcement | D14: 5 | F14: Replacement | G14: Replacement | I14: =SUMPRODUCT((Forecast_spend!U$16:U$31)*(Forecast_spend!$F$16:$F$31=$C14))/1000 -> 0 | J14: =SUMPRODUCT((Forecast_spend!V$16:V$31)*(Forecast_spend!$F$16:$F$31=$C14))/1000 -> 0 | K14: =SUMPRODUCT((Forecast_spend!W$16:W$31)*(Forecast_spend!$F$16:$F$31=$C14))/1000 -> 0 | L14: =SUMPRODUCT((Forecast_spend!X$16:X$31)*(Forecast_spend!$F$16:$F$31=$C14))/1000 -> 0 | M14: =SUMPRODUCT((Forecast_spend!Y$16:Y$31)*(Forecast_spend!$F$16:$F$31=$C14))/1000 -> 0 | N14: =SUMPRODUCT((Forecast_spend!Z$16:Z$31)*(Forecast_spend!$F$16:$F$31=$C14))/1000 -> 0 | O14: =SUMPRODUCT((Forecast_spend!AA$16:AA$31)*(Forecast_spend!$F$16:$F$31=$C14))/1000 -> 0 | Q14: =SUMPRODUCT((Forecast_contrib!U$16:U$31)*(Forecast_contrib!$F$16:$F$31=$C14))/1000 -> 0 | R14: =SUMPRODUCT((Forecast_contrib!V$16:V$31)*(Forecast_contrib!$F$16:$F$31=$C14))/1000 -> 0 | S14: =SUMPRODUCT((Forecast_contrib!W$16:W$31)*(Forecast_contrib!$F$16:$F$31=$C14))/1000 -> 0 | T14: =SUMPRODUCT((Forecast_contrib!X$16:X$31)*(Forecast_contrib!$F$16:$F$31=$C14))/1000 -> 0 | U14: =SUMPRODUCT((Forecast_contrib!Y$16:Y$31)*(Forecast_contrib!$F$16:$F$31=$C14))/1000 -> 0 | V14: =SUMPRODUCT((Forecast_contrib!Z$16:Z$31)*(Forecast_contrib!$F$16:$F$31=$C14))/1000 -> 0 | W14: =SUMPRODUCT((Forecast_contrib!AA$16:AA$31)*(Forecast_contrib!$F$16:$F$31=$C14))/1000 -> 0 | AI14: 0 | AJ14: 0 | AK14: 0 | AL14: 0 | AM14: 0 | AN14: 0 | AO14: 0 | AP14: 0 | CP14: 1
B15: 6 | C15: Risk-based HV conductor replacement | D15: 6 | F15: Replacement | G15: Replacement | I15: =SUMPRODUCT((Forecast_spend!U$16:U$31)*(Forecast_spend!$F$16:$F$31=$C15))/1000 -> 0 | J15: =SUMPRODUCT((Forecast_spend!V$16:V$31)*(Forecast_spend!$F$16:$F$31=$C15))/1000 -> 0 | K15: =SUMPRODUCT((Forecast_spend!W$16:W$31)*(Forecast_spend!$F$16:$F$31=$C15))/1000 -> 0 | L15: =SUMPRODUCT((Forecast_spend!X$16:X$31)*(Forecast_spend!$F$16:$F$31=$C15))/1000 -> 0 | M15: =SUMPRODUCT((Forecast_spend!Y$16:Y$31)*(Forecast_spend!$F$16:$F$31=$C15))/1000 -> 0 | N15: =SUMPRODUCT((Forecast_spend!Z$16:Z$31)*(Forecast_spend!$F$16:$F$31=$C15))/1000 -> 0 | O15: =SUMPRODUCT((Forecast_spend!AA$16:AA$31)*(Forecast_spend!$F$16:$F$31=$C15))/1000 -> 0 | Q15: =SUMPRODUCT((Forecast_contrib!U$16:U$31)*(Forecast_contrib!$F$16:$F$31=$C15))/1000 -> 0 | R15: =SUMPRODUCT((Forecast_contrib!V$16:V$31)*(Forecast_contrib!$F$16:$F$31=$C15))/1000 -> 0 | S15: =SUMPRODUCT((Forecast_contrib!W$16:W$31)*(Forecast_contrib!$F$16:$F$31=$C15))/1000 -> 0 | T15: =SUMPRODUCT((Forecast_contrib!X$16:X$31)*(Forecast_contrib!$F$16:$F$31=$C15))/1000 -> 0 | U15: =SUMPRODUCT((Forecast_contrib!Y$16:Y$31)*(Forecast_contrib!$F$16:$F$31=$C15))/1000 -> 0 | V15: =SUMPRODUCT((Forecast_contrib!Z$16:Z$31)*(Forecast_contrib!$F$16:$F$31=$C15))/1000 -> 0 | W15: =SUMPRODUCT((Forecast_contrib!AA$16:AA$31)*(Forecast_contrib!$F$16:$F$31=$C15))/1000 -> 0 | AI15: 0 | AJ15: 0 | AK15: 0 | AL15: 0 | AM15: 0 | AN15: 0 | AO15: 0 | AP15: 0 | CP15: 1
B16: 7 | C16: Defective conductor | D16: 7 | F16: Replacement | G16: Replacement | I16: =SUMPRODUCT((Forecast_spend!U$16:U$31)*(Forecast_spend!$F$16:$F$31=$C16))/1000 -> 0 | J16: =SUMPRODUCT((Forecast_spend!V$16:V$31)*(Forecast_spend!$F$16:$F$31=$C16))/1000 -> 0 | K16: =SUMPRODUCT((Forecast_spend!W$16:W$31)*(Forecast_spend!$F$16:$F$31=$C16))/1000 -> 0 | L16: =SUMPRODUCT((Forecast_spend!X$16:X$31)*(Forecast_spend!$F$16:$F$31=$C16))/1000 -> 0 | M16: =SUMPRODUCT((Forecast_spend!Y$16:Y$31)*(Forecast_spend!$F$16:$F$31=$C16))/1000 -> 0 | N16: =SUMPRODUCT((Forecast_spend!Z$16:Z$31)*(Forecast_spend!$F$16:$F$31=$C16))/1000 -> 0 | O16: =SUMPRODUCT((Forecast_spend!AA$16:AA$31)*(Forecast_spend!$F$16:$F$31=$C16))/1000 -> 0 | Q16: =SUMPRODUCT((Forecast_contrib!U$16:U$31)*(Forecast_contrib!$F$16:$F$31=$C16))/1000 -> 0 | R16: =SUMPRODUCT((Forecast_contrib!V$16:V$31)*(Forecast_contrib!$F$16:$F$31=$C16))/1000 -> 0 | S16: =SUMPRODUCT((Forecast_contrib!W$16:W$31)*(Forecast_contrib!$F$16:$F$31=$C16))/1000 -> 0 | T16: =SUMPRODUCT((Forecast_contrib!X$16:X$31)*(Forecast_contrib!$F$16:$F$31=$C16))/1000 -> 0 | U16: =SUMPRODUCT((Forecast_contrib!Y$16:Y$31)*(Forecast_contrib!$F$16:$F$31=$C16))/1000 -> 0 | V16: =SUMPRODUCT((Forecast_contrib!Z$16:Z$31)*(Forecast_contrib!$F$16:$F$31=$C16))/1000 -> 0 | W16: =SUMPRODUCT((Forecast_contrib!AA$16:AA$31)*(Forecast_contrib!$F$16:$F$31=$C16))/1000 -> 0 | AI16: 0 | AJ16: 0 | AK16: 0 | AL16: 0 | AM16: 0 | AN16: 0 | AO16: 0 | AP16: 0 | CP16: 1
B17: 8 | C17: Corrective HV cable replacement | D17: 8 | F17: Replacement | G17: Replacement | I17: =SUMPRODUCT((Forecast_spend!U$16:U$31)*(Forecast_spend!$F$16:$F$31=$C17))/1000 -> 0 | J17: =SUMPRODUCT((Forecast_spend!V$16:V$31)*(Forecast_spend!$F$16:$F$31=$C17))/1000 -> 0 | K17: =SUMPRODUCT((Forecast_spend!W$16:W$31)*(Forecast_spend!$F$16:$F$31=$C17))/1000 -> 0 | L17: =SUMPRODUCT((Forecast_spend!X$16:X$31)*(Forecast_spend!$F$16:$F$31=$C17))/1000 -> 0 | M17: =SUMPRODUCT((Forecast_spend!Y$16:Y$31)*(Forecast_spend!$F$16:$F$31=$C17))/1000 -> 0 | N17: =SUMPRODUCT((Forecast_spend!Z$16:Z$31)*(Forecast_spend!$F$16:$F$31=$C17))/1000 -> 0 | O17: =SUMPRODUCT((Forecast_spend!AA$16:AA$31)*(Forecast_spend!$F$16:$F$31=$C17))/1000 -> 0 | Q17: =SUMPRODUCT((Forecast_contrib!U$16:U$31)*(Forecast_contrib!$F$16:$F$31=$C17))/1000 -> 0 | R17: =SUMPRODUCT((Forecast_contrib!V$16:V$31)*(Forecast_contrib!$F$16:$F$31=$C17))/1000 -> 0 | S17: =SUMPRODUCT((Forecast_contrib!W$16:W$31)*(Forecast_contrib!$F$16:$F$31=$C17))/1000 -> 0 | T17: =SUMPRODUCT((Forecast_contrib!X$16:X$31)*(Forecast_contrib!$F$16:$F$31=$C17))/1000 -> 0 | U17: =SUMPRODUCT((Forecast_contrib!Y$16:Y$31)*(Forecast_contrib!$F$16:$F$31=$C17))/1000 -> 0 | V17: =SUMPRODUCT((Forecast_contrib!Z$16:Z$31)*(Forecast_contrib!$F$16:$F$31=$C17))/1000 -> 0 | W17: =SUMPRODUCT((Forecast_contrib!AA$16:AA$31)*(Forecast_contrib!$F$16:$F$31=$C17))/1000 -> 0 | AI17: 0 | AJ17: 0 | AK17: 0 | AL17: 0 | AM17: 0 | AN17: 0 | AO17: 0 | AP17: 0 | CP17: 1
B18: 9 | C18: Corrective LV cable replacement | D18: 9 | F18: Replacement | G18: Replacement | I18: =SUMPRODUCT((Forecast_spend!U$16:U$31)*(Forecast_spend!$F$16:$F$31=$C18))/1000 -> 0 | J18: =SUMPRODUCT((Forecast_spend!V$16:V$31)*(Forecast_spend!$F$16:$F$31=$C18))/1000 -> 0 | K18: =SUMPRODUCT((Forecast_spend!W$16:W$31)*(Forecast_spend!$F$16:$F$31=$C18))/1000 -> 0 | L18: =SUMPRODUCT((Forecast_spend!X$16:X$31)*(Forecast_spend!$F$16:$F$31=$C18))/1000 -> 0 | M18: =SUMPRODUCT((Forecast_spend!Y$16:Y$31)*(Forecast_spend!$F$16:$F$31=$C18))/1000 -> 0 | N18: =SUMPRODUCT((Forecast_spend!Z$16:Z$31)*(Forecast_spend!$F$16:$F$31=$C18))/1000 -> 0 | O18: =SUMPRODUCT((Forecast_spend!AA$16:AA$31)*(Forecast_spend!$F$16:$F$31=$C18))/1000 -> 0 | Q18: =SUMPRODUCT((Forecast_contrib!U$16:U$31)*(Forecast_contrib!$F$16:$F$31=$C18))/1000 -> 0 | R18: =SUMPRODUCT((Forecast_contrib!V$16:V$31)*(Forecast_contrib!$F$16:$F$31=$C18))/1000 -> 0 | S18: =SUMPRODUCT((Forecast_contrib!W$16:W$31)*(Forecast_contrib!$F$16:$F$31=$C18))/1000 -> 0 | T18: =SUMPRODUCT((Forecast_contrib!X$16:X$31)*(Forecast_contrib!$F$16:$F$31=$C18))/1000 -> 0 | U18: =SUMPRODUCT((Forecast_contrib!Y$16:Y$31)*(Forecast_contrib!$F$16:$F$31=$C18))/1000 -> 0 | V18: =SUMPRODUCT((Forecast_contrib!Z$16:Z$31)*(Forecast_contrib!$F$16:$F$31=$C18))/1000 -> 0 | W18: =SUMPRODUCT((Forecast_contrib!AA$16:AA$31)*(Forecast_contrib!$F$16:$F$31=$C18))/1000 -> 0 | AB18: =IF(SUM(Y18:AA18,I18:O18)=0,"",IF(SUM(Y18:AA18)=1,"",1)) ->  | AI18: 0 | AJ18: 0 | AK18: 0 | AL18: 0 | AM18: 0 | AN18: 0 | AO18: 0 | AP18: 0 | CP18: 1
B19: 10 | C19: Underground pits and pillars | D19: 10 | F19: Replacement | G19: Replacement | I19: =SUMPRODUCT((Forecast_spend!U$16:U$31)*(Forecast_spend!$F$16:$F$31=$C19))/1000 -> 0 | J19: =SUMPRODUCT((Forecast_spend!V$16:V$31)*(Forecast_spend!$F$16:$F$31=$C19))/1000 -> 0 | K19: =SUMPRODUCT((Forecast_spend!W$16:W$31)*(Forecast_spend!$F$16:$F$31=$C19))/1000 -> 0 | L19: =SUMPRODUCT((Forecast_spend!X$16:X$31)*(Forecast_spend!$F$16:$F$31=$C19))/1000 -> 0 | M19: =SUMPRODUCT((Forecast_spend!Y$16:Y$31)*(Forecast_spend!$F$16:$F$31=$C19))/1000 -> 0 | N19: =SUMPRODUCT((Forecast_spend!Z$16:Z$31)*(Forecast_spend!$F$16:$F$31=$C19))/1000 -> 0 | O19: =SUMPRODUCT((Forecast_spend!AA$16:AA$31)*(Forecast_spend!$F$16:$F$31=$C19))/1000 -> 0 | Q19: =SUMPRODUCT((Forecast_contrib!U$16:U$31)*(Forecast_contrib!$F$16:$F$31=$C19))/1000 -> 0 | R19: =SUMPRODUCT((Forecast_contrib!V$16:V$31)*(Forecast_contrib!$F$16:$F$31=$C19))/1000 -> 0 | S19: =SUMPRODUCT((Forecast_contrib!W$16:W$31)*(Forecast_contrib!$F$16:$F$31=$C19))/1000 -> 0 | T19: =SUMPRODUCT((Forecast_contrib!X$16:X$31)*(Forecast_contrib!$F$16:$F$31=$C19))/1000 -> 0 | U19: =SUMPRODUCT((Forecast_contrib!Y$16:Y$31)*(Forecast_contrib!$F$16:$F$31=$C19))/1000 -> 0 | V19: =SUMPRODUCT((Forecast_contrib!Z$16:Z$31)*(Forecast_contrib!$F$16:$F$31=$C19))/1000 -> 0 | W19: =SUMPRODUCT((Forecast_contrib!AA$16:AA$31)*(Forecast_contrib!$F$16:$F$31=$C19))/1000 -> 0 | AB19: =IF(SUM(Y19:AA19,I19:O19)=0,"",IF(SUM(Y19:AA19)=1,"",1)) ->  | AI19: 0 | AJ19: 0 | AK19: 0 | AL19: 0 | AM19: 0 | AN19: 0 | AO19: 0 | AP19: 0 | CP19: =IF(COUNT(AI19:AP19)=0,"",IF(SUM(AI19:AP19)=1,"",1)) -> 1
B20: 11 | C20: Ampact connector | D20: 11 | F20: Replacement | G20: Replacement | I20: =SUMPRODUCT((Forecast_spend!U$16:U$31)*(Forecast_spend!$F$16:$F$31=$C20))/1000 -> 0 | J20: =SUMPRODUCT((Forecast_spend!V$16:V$31)*(Forecast_spend!$F$16:$F$31=$C20))/1000 -> 0 | K20: =SUMPRODUCT((Forecast_spend!W$16:W$31)*(Forecast_spend!$F$16:$F$31=$C20))/1000 -> 0 | L20: =SUMPRODUCT((Forecast_spend!X$16:X$31)*(Forecast_spend!$F$16:$F$31=$C20))/1000 -> 0 | M20: =SUMPRODUCT((Forecast_spend!Y$16:Y$31)*(Forecast_spend!$F$16:$F$31=$C20))/1000 -> 0 | N20: =SUMPRODUCT((Forecast_spend!Z$16:Z$31)*(Forecast_spend!$F$16:$F$31=$C20))/1000 -> 0 | O20: =SUMPRODUCT((Forecast_spend!AA$16:AA$31)*(Forecast_spend!$F$16:$F$31=$C20))/1000 -> 0 | Q20: =SUMPRODUCT((Forecast_contrib!U$16:U$31)*(Forecast_contrib!$F$16:$F$31=$C20))/1000 -> 0 | R20: =SUMPRODUCT((Forecast_contrib!V$16:V$31)*(Forecast_contrib!$F$16:$F$31=$C20))/1000 -> 0 | S20: =SUMPRODUCT((Forecast_contrib!W$16:W$31)*(Forecast_contrib!$F$16:$F$31=$C20))/1000 -> 0 | T20: =SUMPRODUCT((Forecast_contrib!X$16:X$31)*(Forecast_contrib!$F$16:$F$31=$C20))/1000 -> 0 | U20: =SUMPRODUCT((Forecast_contrib!Y$16:Y$31)*(Forecast_contrib!$F$16:$F$31=$C20))/1000 -> 0 | V20: =SUMPRODUCT((Forecast_contrib!Z$16:Z$31)*(Forecast_contrib!$F$16:$F$31=$C20))/1000 -> 0 | W20: =SUMPRODUCT((Forecast_contrib!AA$16:AA$31)*(Forecast_contrib!$F$16:$F$31=$C20))/1000 -> 0 | AB20: =IF(SUM(Y20:AA20,I20:O20)=0,"",IF(SUM(Y20:AA20)=1,"",1)) ->  | AI20: 0 | AJ20: 0 | AK20: 0 | AL20: 0 | AM20: 0 | AN20: 0 | AO20: 0 | AP20: 0 | CP20: =IF(COUNT(AI20:AP20)=0,"",IF(SUM(AI20:AP20)=1,"",1)) -> 1
B21: 12 | C21: Service lines | D21: 12 | F21: Replacement | G21: Replacement | I21: =SUMPRODUCT((Forecast_spend!U$16:U$31)*(Forecast_spend!$F$16:$F$31=$C21))/1000 -> 0 | J21: =SUMPRODUCT((Forecast_spend!V$16:V$31)*(Forecast_spend!$F$16:$F$31=$C21))/1000 -> 0 | K21: =SUMPRODUCT((Forecast_spend!W$16:W$31)*(Forecast_spend!$F$16:$F$31=$C21))/1000 -> 0 | L21: =SUMPRODUCT((Forecast_spend!X$16:X$31)*(Forecast_spend!$F$16:$F$31=$C21))/1000 -> 0 | M21: =SUMPRODUCT((Forecast_spend!Y$16:Y$31)*(Forecast_spend!$F$16:$F$31=$C21))/1000 -> 0 | N21: =SUMPRODUCT((Forecast_spend!Z$16:Z$31)*(Forecast_spend!$F$16:$F$31=$C21))/1000 -> 0 | O21: =SUMPRODUCT((Forecast_spend!AA$16:AA$31)*(Forecast_spend!$F$16:$F$31=$C21))/1000 -> 0 | Q21: =SUMPRODUCT((Forecast_contrib!U$16:U$31)*(Forecast_contrib!$F$16:$F$31=$C21))/1000 -> 0 | R21: =SUMPRODUCT((Forecast_contrib!V$16:V$31)*(Forecast_contrib!$F$16:$F$31=$C21))/1000 -> 0 | S21: =SUMPRODUCT((Forecast_contrib!W$16:W$31)*(Forecast_contrib!$F$16:$F$31=$C21))/1000 -> 0 | T21: =SUMPRODUCT((Forecast_contrib!X$16:X$31)*(Forecast_contrib!$F$16:$F$31=$C21))/1000 -> 0 | U21: =SUMPRODUCT((Forecast_contrib!Y$16:Y$31)*(Forecast_contrib!$F$16:$F$31=$C21))/1000 -> 0 | V21: =SUMPRODUCT((Forecast_contrib!Z$16:Z$31)*(Forecast_contrib!$F$16:$F$31=$C21))/1000 -> 0 | W21: =SUMPRODUCT((Forecast_contrib!AA$16:AA$31)*(Forecast_contrib!$F$16:$F$31=$C21))/1000 -> 0 | AI21: 0 | AJ21: 0 | AK21: 0 | AL21: 0 | AM21: 0 | AN21: 0 | AO21: 0 | AP21: 0 | CP21: =IF(COUNT(AI21:AP21)=0,"",IF(SUM(AI21:AP21)=1,"",1)) -> 1
B22: 13 | C22: ZSS transformer replacement | D22: 13 | F22: Replacement | G22: Replacement | I22: =SUMPRODUCT((Forecast_spend!U$16:U$31)*(Forecast_spend!$F$16:$F$31=$C22))/1000 -> 0 | J22: =SUMPRODUCT((Forecast_spend!V$16:V$31)*(Forecast_spend!$F$16:$F$31=$C22))/1000 -> 0 | K22: =SUMPRODUCT((Forecast_spend!W$16:W$31)*(Forecast_spend!$F$16:$F$31=$C22))/1000 -> 0 | L22: =SUMPRODUCT((Forecast_spend!X$16:X$31)*(Forecast_spend!$F$16:$F$31=$C22))/1000 -> 0 | M22: =SUMPRODUCT((Forecast_spend!Y$16:Y$31)*(Forecast_spend!$F$16:$F$31=$C22))/1000 -> 0 | N22: =SUMPRODUCT((Forecast_spend!Z$16:Z$31)*(Forecast_spend!$F$16:$F$31=$C22))/1000 -> 0 | O22: =SUMPRODUCT((Forecast_spend!AA$16:AA$31)*(Forecast_spend!$F$16:$F$31=$C22))/1000 -> 0 | Q22: =SUMPRODUCT((Forecast_contrib!U$16:U$31)*(Forecast_contrib!$F$16:$F$31=$C22))/1000 -> 0 | R22: =SUMPRODUCT((Forecast_contrib!V$16:V$31)*(Forecast_contrib!$F$16:$F$31=$C22))/1000 -> 0 | S22: =SUMPRODUCT((Forecast_contrib!W$16:W$31)*(Forecast_contrib!$F$16:$F$31=$C22))/1000 -> 0 | T22: =SUMPRODUCT((Forecast_contrib!X$16:X$31)*(Forecast_contrib!$F$16:$F$31=$C22))/1000 -> 0 | U22: =SUMPRODUCT((Forecast_contrib!Y$16:Y$31)*(Forecast_contrib!$F$16:$F$31=$C22))/1000 -> 0 | V22: =SUMPRODUCT((Forecast_contrib!Z$16:Z$31)*(Forecast_contrib!$F$16:$F$31=$C22))/1000 -> 0 | W22: =SUMPRODUCT((Forecast_contrib!AA$16:AA$31)*(Forecast_contrib!$F$16:$F$31=$C22))/1000 -> 0 | AI22: 0 | AJ22: 0 | AK22: 0 | AL22: 0 | AM22: 0 | AN22: 0 | AO22: 0 | AP22: 0 | CP22: =IF(COUNT(AI22:AP22)=0,"",IF(SUM(AI22:AP22)=1,"",1)) -> 1
B23: 14 | C23: Transformer refurbishment | D23: 14 | F23: Replacement | G23: Replacement | I23: =SUMPRODUCT((Forecast_spend!U$16:U$31)*(Forecast_spend!$F$16:$F$31=$C23))/1000 -> 0 | J23: =SUMPRODUCT((Forecast_spend!V$16:V$31)*(Forecast_spend!$F$16:$F$31=$C23))/1000 -> 0 | K23: =SUMPRODUCT((Forecast_spend!W$16:W$31)*(Forecast_spend!$F$16:$F$31=$C23))/1000 -> 0 | L23: =SUMPRODUCT((Forecast_spend!X$16:X$31)*(Forecast_spend!$F$16:$F$31=$C23))/1000 -> 0 | M23: =SUMPRODUCT((Forecast_spend!Y$16:Y$31)*(Forecast_spend!$F$16:$F$31=$C23))/1000 -> 0 | N23: =SUMPRODUCT((Forecast_spend!Z$16:Z$31)*(Forecast_spend!$F$16:$F$31=$C23))/1000 -> 0 | O23: =SUMPRODUCT((Forecast_spend!AA$16:AA$31)*(Forecast_spend!$F$16:$F$31=$C23))/1000 -> 0 | Q23: =SUMPRODUCT((Forecast_contrib!U$16:U$31)*(Forecast_contrib!$F$16:$F$31=$C23))/1000 -> 0 | R23: =SUMPRODUCT((Forecast_contrib!V$16:V$31)*(Forecast_contrib!$F$16:$F$31=$C23))/1000 -> 0 | S23: =SUMPRODUCT((Forecast_contrib!W$16:W$31)*(Forecast_contrib!$F$16:$F$31=$C23))/1000 -> 0 | T23: =SUMPRODUCT((Forecast_contrib!X$16:X$31)*(Forecast_contrib!$F$16:$F$31=$C23))/1000 -> 0 | U23: =SUMPRODUCT((Forecast_contrib!Y$16:Y$31)*(Forecast_contrib!$F$16:$F$31=$C23))/1000 -> 0 | V23: =SUMPRODUCT((Forecast_contrib!Z$16:Z$31)*(Forecast_contrib!$F$16:$F$31=$C23))/1000 -> 0 | W23: =SUMPRODUCT((Forecast_contrib!AA$16:AA$31)*(Forecast_contrib!$F$16:$F$31=$C23))/1000 -> 0 | AI23: 0 | AJ23: 0 | AK23: 0 | AL23: 0 | AM23: 0 | AN23: 0 | AO23: 0 | AP23: 0 | CP23: =IF(COUNT(AI23:AP23)=0,"",IF(SUM(AI23:AP23)=1,"",1)) -> 1
B24: 15 | C24: Defective kiosk transformer replacement | D24: 15 | F24: Replacement | G24: Replacement | I24: =SUMPRODUCT((Forecast_spend!U$16:U$31)*(Forecast_spend!$F$16:$F$31=$C24))/1000 -> 0 | J24: =SUMPRODUCT((Forecast_spend!V$16:V$31)*(Forecast_spend!$F$16:$F$31=$C24))/1000 -> 0 | K24: =SUMPRODUCT((Forecast_spend!W$16:W$31)*(Forecast_spend!$F$16:$F$31=$C24))/1000 -> 0 | L24: =SUMPRODUCT((Forecast_spend!X$16:X$31)*(Forecast_spend!$F$16:$F$31=$C24))/1000 -> 0 | M24: =SUMPRODUCT((Forecast_spend!Y$16:Y$31)*(Forecast_spend!$F$16:$F$31=$C24))/1000 -> 0 | N24: =SUMPRODUCT((Forecast_spend!Z$16:Z$31)*(Forecast_spend!$F$16:$F$31=$C24))/1000 -> 0 | O24: =SUMPRODUCT((Forecast_spend!AA$16:AA$31)*(Forecast_spend!$F$16:$F$31=$C24))/1000 -> 0 | Q24: =SUMPRODUCT((Forecast_contrib!U$16:U$31)*(Forecast_contrib!$F$16:$F$31=$C24))/1000 -> 0 | R24: =SUMPRODUCT((Forecast_contrib!V$16:V$31)*(Forecast_contrib!$F$16:$F$31=$C24))/1000 -> 0 | S24: =SUMPRODUCT((Forecast_contrib!W$16:W$31)*(Forecast_contrib!$F$16:$F$31=$C24))/1000 -> 0 | T24: =SUMPRODUCT((Forecast_contrib!X$16:X$31)*(Forecast_contrib!$F$16:$F$31=$C24))/1000 -> 0 | U24: =SUMPRODUCT((Forecast_contrib!Y$16:Y$31)*(Forecast_contrib!$F$16:$F$31=$C24))/1000 -> 0 | V24: =SUMPRODUCT((Forecast_contrib!Z$16:Z$31)*(Forecast_contrib!$F$16:$F$31=$C24))/1000 -> 0 | W24: =SUMPRODUCT((Forecast_contrib!AA$16:AA$31)*(Forecast_contrib!$F$16:$F$31=$C24))/1000 -> 0 | AI24: 0 | AJ24: 0 | AK24: 0 | AL24: 0 | AM24: 0 | AN24: 0 | AO24: 0 | AP24: 0 | CP24: 1
B25: 16 | C25: Defective pole transformer replacement | D25: 16 | F25: Replacement | G25: Replacement | I25: =SUMPRODUCT((Forecast_spend!U$16:U$31)*(Forecast_spend!$F$16:$F$31=$C25))/1000 -> 0 | J25: =SUMPRODUCT((Forecast_spend!V$16:V$31)*(Forecast_spend!$F$16:$F$31=$C25))/1000 -> 0 | K25: =SUMPRODUCT((Forecast_spend!W$16:W$31)*(Forecast_spend!$F$16:$F$31=$C25))/1000 -> 0 | L25: =SUMPRODUCT((Forecast_spend!X$16:X$31)*(Forecast_spend!$F$16:$F$31=$C25))/1000 -> 0 | M25: =SUMPRODUCT((Forecast_spend!Y$16:Y$31)*(Forecast_spend!$F$16:$F$31=$C25))/1000 -> 0 | N25: =SUMPRODUCT((Forecast_spend!Z$16:Z$31)*(Forecast_spend!$F$16:$F$31=$C25))/1000 -> 0 | O25: =SUMPRODUCT((Forecast_spend!AA$16:AA$31)*(Forecast_spend!$F$16:$F$31=$C25))/1000 -> 0 | Q25: =SUMPRODUCT((Forecast_contrib!U$16:U$31)*(Forecast_contrib!$F$16:$F$31=$C25))/1000 -> 0 | R25: =SUMPRODUCT((Forecast_contrib!V$16:V$31)*(Forecast_contrib!$F$16:$F$31=$C25))/1000 -> 0 | S25: =SUMPRODUCT((Forecast_contrib!W$16:W$31)*(Forecast_contrib!$F$16:$F$31=$C25))/1000 -> 0 | T25: =SUMPRODUCT((Forecast_contrib!X$16:X$31)*(Forecast_contrib!$F$16:$F$31=$C25))/1000 -> 0 | U25: =SUMPRODUCT((Forecast_contrib!Y$16:Y$31)*(Forecast_contrib!$F$16:$F$31=$C25))/1000 -> 0 | V25: =SUMPRODUCT((Forecast_contrib!Z$16:Z$31)*(Forecast_contrib!$F$16:$F$31=$C25))/1000 -> 0 | W25: =SUMPRODUCT((Forecast_contrib!AA$16:AA$31)*(Forecast_contrib!$F$16:$F$31=$C25))/1000 -> 0 | AI25: 0 | AJ25: 0 | AK25: 0 | AL25: 0 | AM25: 0 | AN25: 0 | AO25: 0 | AP25: 0 | CP25: 1
B26: 17 | C26: Defective ground transformer replacement | D26: 17 | F26: Replacement | G26: Replacement | I26: =SUMPRODUCT((Forecast_spend!U$16:U$31)*(Forecast_spend!$F$16:$F$31=$C26))/1000 -> 0 | J26: =SUMPRODUCT((Forecast_spend!V$16:V$31)*(Forecast_spend!$F$16:$F$31=$C26))/1000 -> 0 | K26: =SUMPRODUCT((Forecast_spend!W$16:W$31)*(Forecast_spend!$F$16:$F$31=$C26))/1000 -> 0 | L26: =SUMPRODUCT((Forecast_spend!X$16:X$31)*(Forecast_spend!$F$16:$F$31=$C26))/1000 -> 0 | M26: =SUMPRODUCT((Forecast_spend!Y$16:Y$31)*(Forecast_spend!$F$16:$F$31=$C26))/1000 -> 0 | N26: =SUMPRODUCT((Forecast_spend!Z$16:Z$31)*(Forecast_spend!$F$16:$F$31=$C26))/1000 -> 0 | O26: =SUMPRODUCT((Forecast_spend!AA$16:AA$31)*(Forecast_spend!$F$16:$F$31=$C26))/1000 -> 0 | Q26: =SUMPRODUCT((Forecast_contrib!U$16:U$31)*(Forecast_contrib!$F$16:$F$31=$C26))/1000 -> 0 | R26: =SUMPRODUCT((Forecast_contrib!V$16:V$31)*(Forecast_contrib!$F$16:$F$31=$C26))/1000 -> 0 | S26: =SUMPRODUCT((Forecast_contrib!W$16:W$31)*(Forecast_contrib!$F$16:$F$31=$C26))/1000 -> 0 | T26: =SUMPRODUCT((Forecast_contrib!X$16:X$31)*(Forecast_contrib!$F$16:$F$31=$C26))/1000 -> 0 | U26: =SUMPRODUCT((Forecast_contrib!Y$16:Y$31)*(Forecast_contrib!$F$16:$F$31=$C26))/1000 -> 0 | V26: =SUMPRODUCT((Forecast_contrib!Z$16:Z$31)*(Forecast_contrib!$F$16:$F$31=$C26))/1000 -> 0 | W26: =SUMPRODUCT((Forecast_contrib!AA$16:AA$31)*(Forecast_contrib!$F$16:$F$31=$C26))/1000 -> 0 | AI26: 0 | AJ26: 0 | AK26: 0 | AL26: 0 | AM26: 0 | AN26: 0 | AO26: 0 | AP26: 0 | CP26: 1
B27: 18 | C27: ZSS switchboard replacement | D27: 18 | F27: Replacement | G27: Replacement | I27: =SUMPRODUCT((Forecast_spend!U$16:U$31)*(Forecast_spend!$F$16:$F$31=$C27))/1000 -> 0 | J27: =SUMPRODUCT((Forecast_spend!V$16:V$31)*(Forecast_spend!$F$16:$F$31=$C27))/1000 -> 0 | K27: =SUMPRODUCT((Forecast_spend!W$16:W$31)*(Forecast_spend!$F$16:$F$31=$C27))/1000 -> 0 | L27: =SUMPRODUCT((Forecast_spend!X$16:X$31)*(Forecast_spend!$F$16:$F$31=$C27))/1000 -> 0 | M27: =SUMPRODUCT((Forecast_spend!Y$16:Y$31)*(Forecast_spend!$F$16:$F$31=$C27))/1000 -> 0 | N27: =SUMPRODUCT((Forecast_spend!Z$16:Z$31)*(Forecast_spend!$F$16:$F$31=$C27))/1000 -> 0 | O27: =SUMPRODUCT((Forecast_spend!AA$16:AA$31)*(Forecast_spend!$F$16:$F$31=$C27))/1000 -> 0 | Q27: =SUMPRODUCT((Forecast_contrib!U$16:U$31)*(Forecast_contrib!$F$16:$F$31=$C27))/1000 -> 0 | R27: =SUMPRODUCT((Forecast_contrib!V$16:V$31)*(Forecast_contrib!$F$16:$F$31=$C27))/1000 -> 0 | S27: =SUMPRODUCT((Forecast_contrib!W$16:W$31)*(Forecast_contrib!$F$16:$F$31=$C27))/1000 -> 0 | T27: =SUMPRODUCT((Forecast_contrib!X$16:X$31)*(Forecast_contrib!$F$16:$F$31=$C27))/1000 -> 0 | U27: =SUMPRODUCT((Forecast_contrib!Y$16:Y$31)*(Forecast_contrib!$F$16:$F$31=$C27))/1000 -> 0 | V27: =SUMPRODUCT((Forecast_contrib!Z$16:Z$31)*(Forecast_contrib!$F$16:$F$31=$C27))/1000 -> 0 | W27: =SUMPRODUCT((Forecast_contrib!AA$16:AA$31)*(Forecast_contrib!$F$16:$F$31=$C27))/1000 -> 0 | AI27: 0 | AJ27: 0 | AK27: 0 | AL27: 0 | AM27: 0 | AN27: 0 | AO27: 0 | AP27: 0 | CP27: 1
B28: 19 | C28: Defective fuses, surge diverters and ACRs | D28: 19 | F28: Replacement | G28: Replacement | I28: =SUMPRODUCT((Forecast_spend!U$16:U$31)*(Forecast_spend!$F$16:$F$31=$C28))/1000 -> 0 | J28: =SUMPRODUCT((Forecast_spend!V$16:V$31)*(Forecast_spend!$F$16:$F$31=$C28))/1000 -> 0 | K28: =SUMPRODUCT((Forecast_spend!W$16:W$31)*(Forecast_spend!$F$16:$F$31=$C28))/1000 -> 0 | L28: =SUMPRODUCT((Forecast_spend!X$16:X$31)*(Forecast_spend!$F$16:$F$31=$C28))/1000 -> 0 | M28: =SUMPRODUCT((Forecast_spend!Y$16:Y$31)*(Forecast_spend!$F$16:$F$31=$C28))/1000 -> 0 | N28: =SUMPRODUCT((Forecast_spend!Z$16:Z$31)*(Forecast_spend!$F$16:$F$31=$C28))/1000 -> 0 | O28: =SUMPRODUCT((Forecast_spend!AA$16:AA$31)*(Forecast_spend!$F$16:$F$31=$C28))/1000 -> 0 | Q28: =SUMPRODUCT((Forecast_contrib!U$16:U$31)*(Forecast_contrib!$F$16:$F$31=$C28))/1000 -> 0 | R28: =SUMPRODUCT((Forecast_contrib!V$16:V$31)*(Forecast_contrib!$F$16:$F$31=$C28))/1000 -> 0 | S28: =SUMPRODUCT((Forecast_contrib!W$16:W$31)*(Forecast_contrib!$F$16:$F$31=$C28))/1000 -> 0 | T28: =SUMPRODUCT((Forecast_contrib!X$16:X$31)*(Forecast_contrib!$F$16:$F$31=$C28))/1000 -> 0 | U28: =SUMPRODUCT((Forecast_contrib!Y$16:Y$31)*(Forecast_contrib!$F$16:$F$31=$C28))/1000 -> 0 | V28: =SUMPRODUCT((Forecast_contrib!Z$16:Z$31)*(Forecast_contrib!$F$16:$F$31=$C28))/1000 -> 0 | W28: =SUMPRODUCT((Forecast_contrib!AA$16:AA$31)*(Forecast_contrib!$F$16:$F$31=$C28))/1000 -> 0 | AI28: 0 | AJ28: 0 | AK28: 0 | AL28: 0 | AM28: 0 | AN28: 0 | AO28: 0 | AP28: 0 | CP28: 1
B29: 20 | C29: Defective switches | D29: 20 | F29: Replacement | G29: Replacement | I29: =SUMPRODUCT((Forecast_spend!U$16:U$31)*(Forecast_spend!$F$16:$F$31=$C29))/1000 -> 0 | J29: =SUMPRODUCT((Forecast_spend!V$16:V$31)*(Forecast_spend!$F$16:$F$31=$C29))/1000 -> 0 | K29: =SUMPRODUCT((Forecast_spend!W$16:W$31)*(Forecast_spend!$F$16:$F$31=$C29))/1000 -> 0 | L29: =SUMPRODUCT((Forecast_spend!X$16:X$31)*(Forecast_spend!$F$16:$F$31=$C29))/1000 -> 0 | M29: =SUMPRODUCT((Forecast_spend!Y$16:Y$31)*(Forecast_spend!$F$16:$F$31=$C29))/1000 -> 0 | N29: =SUMPRODUCT((Forecast_spend!Z$16:Z$31)*(Forecast_spend!$F$16:$F$31=$C29))/1000 -> 0 | O29: =SUMPRODUCT((Forecast_spend!AA$16:AA$31)*(Forecast_spend!$F$16:$F$31=$C29))/1000 -> 0 | Q29: =SUMPRODUCT((Forecast_contrib!U$16:U$31)*(Forecast_contrib!$F$16:$F$31=$C29))/1000 -> 0 | R29: =SUMPRODUCT((Forecast_contrib!V$16:V$31)*(Forecast_contrib!$F$16:$F$31=$C29))/1000 -> 0 | S29: =SUMPRODUCT((Forecast_contrib!W$16:W$31)*(Forecast_contrib!$F$16:$F$31=$C29))/1000 -> 0 | T29: =SUMPRODUCT((Forecast_contrib!X$16:X$31)*(Forecast_contrib!$F$16:$F$31=$C29))/1000 -> 0 | U29: =SUMPRODUCT((Forecast_contrib!Y$16:Y$31)*(Forecast_contrib!$F$16:$F$31=$C29))/1000 -> 0 | V29: =SUMPRODUCT((Forecast_contrib!Z$16:Z$31)*(Forecast_contrib!$F$16:$F$31=$C29))/1000 -> 0 | W29: =SUMPRODUCT((Forecast_contrib!AA$16:AA$31)*(Forecast_contrib!$F$16:$F$31=$C29))/1000 -> 0 | AI29: 0 | AJ29: 0 | AK29: 0 | AL29: 0 | AM29: 0 | AN29: 0 | AO29: 0 | AP29: 0 | CP29: 1
